Workbook

Sheet Steuerung (hidden)
A1: Auftragsnummer | B1: 222710
A3: Berichtsmonat | B3: 2019-10-01
A4: Datenstand | B4: =EDATE(B3,3) -> 2020-01-01
A5: Gebeitsstand | B5: =EDATE(B3,3) -> 2020-01-01
A7: Erstellungsdatum | B7: =TODAY() -> 2020-02-12
A9: Ablageordner | B9: \\Dst.baintern.de\dfs\301\BA-Daten\Statistik\Pinnwand\Produkte\Produkte-StS_gemeinsam\Integrationsprodukte\05_Produktion_ZR\C_QS_ZR
A13: Ablaufbeschreibung
A15: Kopieren Sie die vom StS-Südost zugeliefereten Rohdaten auf die vier gelben Rohdatentabellen "Roh…".
B17: \\Dst.baintern.de\dfs\301\BA-Daten\Statistik\Pinnwand\Produkte\Produkte-StS_gemeinsam\Integrationsprodukte\05_Produktion_ZR\A_Rohdaten_ZR
A18: Geben Sie den aktuellsten Berichtsmonat in Zelle B3 ein.
A19: Alle übrigen Zeitinformationen aktuallisieren sich dann automatisch.
A20: Speichern Sie die Vorlage.
A21: Erzeugen Sie das Heft durch Betätigen des Buttons "Monatsheft erzeugen". Das Heft wird hier gespeichert:
B22: \\Dst.baintern.de\dfs\301\BA-Daten\Statistik\Pinnwand\Produkte\Produkte-StS_gemeinsam\Integrationsprodukte\05_Produktion_ZR\C_QS_ZR
A23: Überprüfen Sie das erstellte Heft. Nehmen Sie sich dafür Zeit und prüfen Sie ob die Zahlen richtig angezeigt werden und die Heftmechanik funktioniert.
A24: Stellen Sie das Heft in folgendem Ordner (Monatsordner) unter dem Namen "integrationen-zr_dwoljc_0.xlsm" ein:
B25: \\Dst.baintern.de\dfs\301\BA-Daten\Statistik\Pinnwand\Produkte\Produkte-StS_gemeinsam\Integrationsprodukte\06_Erstellte_Hefte\2019

Sheet Deckblatt
B3: =TEXT(Steuerung!$B$3,"MMMM JJJJ") -> Oktober 2019

Sheet Impressum
A3: Impressum
A5: Titel: | C5: Integrationen und Verbleib von erwerbsfähigen Leistungsberechtigten (ELB) - Zeitreihen
A7: Region: | C7: Bund, Länder und Jobcenter
A9: Berichtszeitraum: | C9: Zeitreihen
A11: Aktuellster Berichtsmonat: | C11: 2019-10-01
A13: Datenstand: | C13: 2020-01-01
A15: Erstellungsdatum: | C15: 2020-02-12
A17: Erscheinungsweise: | C17: zum 20. des Monats
A19: Herausgeberin: | C19: Bundesagentur für Arbeit
C20: Statistik
A22: Rückfragen an: | C22: Statistik-Service Südost
C23: Regensburger Straße 100/104
C24: 90478 Nürnberg
A25: E-Mail: | C25: Statistik-Service-Suedost@arbeitsagentur.de
A26: Hotline: | C26: 0911/179-8001
A27: Fax: | C27: 0911/179-908001
B29: oder: | C29: Statistik-Service West
C30: Josef-Gockeln-Straße 7
C31: 40474 Düsseldorf
A32: E-Mail: | C32: Statistik-Service-West@arbeitsagentur.de
A33: Hotline: | C33: 0211/4306-331
A34: Fax: | C34: 0211/4306-470
A36: Weiterführende statistische Informationen
A38: Internet: | C38: http://statistik.arbeitsagentur.de
C39: Register: "Statistik nach Themen"
C40: http://statistik.arbeitsagentur.de/Navigation/Statistik/Statistik-nach-Themen/Statistik-nach-Themen-Nav.html
A42: Zitierhinweis: | C42: Statistik der Bundesagentur für Arbeit, Integrationen und Verbleib von erwerbsfähigen Leistungsberechtigten (ELB) - Zeitreihen
C43: Düsseldorf und Nürnberg, Februar 2020
A45: Nutzungsbedingungen: | C45: © Statistik der Bundesagentur für Arbeit
C46: Sie können Informationen speichern, (auch auszugsweise) mit Quellen-
C47: angabe weitergeben, vervielfältigen und verbreiten. Die Inhalte dürfen
C48: nicht verändert oder verfälscht werden. Eigene Berechnungen sind
C49: erlaubt, jedoch als solche kenntlich zu machen.
C50: Im Falle einer Zugänglichmachung im Internet soll dies in Form einer
C51: Verlinkung auf die Homepage der Statistik der Bundesagentur für Arbeit
C52: erfolgen.
C53: Die Nutzung der Inhalte für gewerbliche Zwecke, ausgenommen Presse,
C54: Rundfunk und Fernsehen und wissenschaftliche Publikationen, bedarf
C55: der Genehmigung durch die Statistik der Bundesagentur für Arbeit.

Sheet Inhaltsverzeichnis
A3: Inhaltsverzeichnis
A5: =Impressum!C5 -> Integrationen und Verbleib von erwerbsfähigen Leistungsberechtigten (ELB) - Zeitreihen
A6: =Impressum!C7 -> Bund, Länder und Jobcenter
A7: =Impressum!C9 -> Zeitreihen
A9: Tabelle | B9: Titel
A11: 1 | B11: Integrationen von erwerbsfähigen Leistungsberechtigten (ELB) insgesamt
A12: 2 | B12: Integrationen von erwerbsfähigen Leistungsberechtigten (ELB) in sozialversicherungspflichtige Beschäftigung
A13: 3.1 | B13: Bedarfsdeckende Integrationen von erwerbsfähigen Leistungsberechtigten (ELB)
A14: 3.2 | B14: Anteil bedarfsdeckender Integrationen an allen Integrationen
A15: 4.1 | B15: Kontinuierliche Beschäftigung nach Integration von erwerbsfähigen Leistungsberechtigten (ELB)
A16: 4.2 | B16: Anteil der nach Integration kontinuierlich Beschäftigten an allen Integrationen in sozialversicherungspflichtige Beschäftigung
A18: Methodische_Hinweise
A19: Statistik-Infoseite

Sheet 1
AJ1: Grundsicherung für Arbeitsuchende (SGB II)
A3: 1. Integrationen von erwerbsfähigen Leistungsberechtigten (ELB)
A4: ="Merkmal: " & 'STRG-Merkmal'!$B$11 -> Merkmal: Insgesamt
A5: ="Ausgewählte Regionen, " & "Gebietsstand: " & TEXT(Steuerung!$B$5,"MMMM JJJJ") -> Ausgewählte Regionen, Gebietsstand: Januar 2020
A6: ="Zeitreihe - "&'STRG-Merkmal'!E11&", Datenstand: " & TEXT(Steuerung!$B$4,"MMMM JJJJ") -> Zeitreihe - Monatswerte, Datenstand: Januar 2020
A8: Daten zu Leistungen nach dem SGB II nach einer Wartezeit von 3 Monaten.
A9: =IF('STRG-Merkmal'!$E$9=2, "Bei der Berechnung von gleitenden Jahressummen werden Datenausfälle von bis zu 2 Monaten toleriert, die 10 bzw. 11 verfügbaren Monatswerte werden auf 12 Monate hochgerechnet.", "") -> 
A11: Region | B11: SGB II-Vergleichstyp 2014 | C11: =EDATE(D11,-1) -> 2017-01-01 | D11: 2017-02-01 | E11: 2017-03-01 | F11: 2017-04-01 | G11: 2017-05-01 | H11: 2017-06-01 | I11: 2017-07-01 | J11: 2017-08-01 | K11: 2017-09-01 | L11: 2017-10-01 | M11: 2017-11-01 | N11: 2017-12-01 | O11: 2018-01-01 | P11: 2018-02-01 | Q11: 2018-03-01 | R11: 2018-04-01 | S11: 2018-05-01 | T11: 2018-06-01 | U11: 2018-07-01 | V11: 2018-08-01 | W11: 2018-09-01 | X11: 2018-10-01 | Y11: 2018-11-01 | Z11: 2018-12-01 | AA11: 2019-01-01 | AB11: 2019-02-01 | AC11: 2019-03-01 | AD11: 2019-04-01 | AE11: 2019-05-01 | AF11: 2019-06-01 | AG11: 2019-07-01 | AH11: 2019-08-01 | AI11: =EDATE(AJ11,-1) -> 2019-09-01 | AJ11: =Steuerung!$B$3 -> 2019-10-01
A12: Deutschland | C12: =IF('STRG-Merkmal'!$E$9=2,"",INDIRECT('STRG-Indizes'!$B$3&"Z"&'STRG-Indizes'!$B11&"S"&'STRG-Indizes'!C$5,FALSE)) -> 58723.03752 | D12: =IF('STRG-Merkmal'!$E$9=2,"",INDIRECT('STRG-Indizes'!$B$3&"Z"&'STRG-Indizes'!$B11&"S"&'STRG-Indizes'!D$5,FALSE)) -> 74382.54536 | E12: =IF('STRG-Merkmal'!$E$9=2,"",INDIRECT('STRG-Indizes'!$B$3&"Z"&'STRG-Indizes'!$B11&"S"&'STRG-Indizes'!E$5,FALSE)) -> 81810.64062 | F12: =IF('STRG-Merkmal'!$E$9=2,"",INDIRECT('STRG-Indizes'!$B$3&"Z"&'STRG-Indizes'!$B11&"S"&'STRG-Indizes'!F$5,FALSE)) -> 99167 | G12: =IF('STRG-Merkmal'!$E$9=2,"",INDIRECT('STRG-Indizes'!$B$3&"Z"&'STRG-Indizes'!$B11&"S"&'STRG-Indizes'!G$5,FALSE)) -> 96308 | H12: =IF('STRG-Merkmal'!$E$9=2,"",INDIRECT('STRG-Indizes'!$B$3&"Z"&'STRG-Indizes'!$B11&"S"&'STRG-Indizes'!H$5,FALSE)) -> 79462 | I12: =IF('STRG-Merkmal'!$E$9=2,"",INDIRECT('STRG-Indizes'!$B$3&"Z"&'STRG-Indizes'!$B11&"S"&'STRG-Indizes'!I$5,FALSE)) -> 91882.15574 | J12: =IF('STRG-Merkmal'!$E$9=2,"",INDIRECT('STRG-Indizes'!$B$3&"Z"&'STRG-Indizes'!$B11&"S"&'STRG-Indizes'!J$5,FALSE)) -> 134188.5432 | K12: =IF('STRG-Merkmal'!$E$9=2,"",INDIRECT('STRG-Indizes'!$B$3&"Z"&'STRG-Indizes'!$B11&"S"&'STRG-Indizes'!K$5,FALSE)) -> 137120.0437 | L12: =IF('STRG-Merkmal'!$E$9=2,"",INDIRECT('STRG-Indizes'!$B$3&"Z"&'STRG-Indizes'!$B11&"S"&'STRG-Indizes'!L$5,FALSE)) -> 98107.53642 | M12: =IF('STRG-Merkmal'!$E$9=2,"",INDIRECT('STRG-Indizes'!$B$3&"Z"&'STRG-Indizes'!$B11&"S"&'STRG-Indizes'!M$5,FALSE)) -> 88546 | N12: =INDIRECT('STRG-Indizes'!$B$3&"Z"&'STRG-Indizes'!$B11&"S"&'STRG-Indizes'!N$5,FALSE) -> 69087 | O12: =INDIRECT('STRG-Indizes'!$B$3 & "Z" & 'STRG-Indizes'!$B11 & "S" & 'STRG-Indizes'!O$5, FALSE) -> 61165.61404 | P12: =INDIRECT('STRG-Indizes'!$B$3 & "Z" & 'STRG-Indizes'!$B11 & "S" & 'STRG-Indizes'!P$5, FALSE) -> 81258.186 | Q12: =INDIRECT('STRG-Indizes'!$B$3 & "Z" & 'STRG-Indizes'!$B11 & "S" & 'STRG-Indizes'!Q$5, FALSE) -> 84343.60863 | R12: =INDIRECT('STRG-Indizes'!$B$3 & "Z" & 'STRG-Indizes'!$B11 & "S" & 'STRG-Indizes'!R$5, FALSE) -> 91506.0457 | S12: =INDIRECT('STRG-Indizes'!$B$3 & "Z" & 'STRG-Indizes'!$B11 & "S" & 'STRG-Indizes'!S$5, FALSE) -> 95140.82902 | T12: =INDIRECT('STRG-Indizes'!$B$3 & "Z" & 'STRG-Indizes'!$B11 & "S" & 'STRG-Indizes'!T$5, FALSE) -> 82202.10192 | U12: =INDIRECT('STRG-Indizes'!$B$3 & "Z" & 'STRG-Indizes'!$B11 & "S" & 'STRG-Indizes'!U$5, FALSE) -> 88712 | V12: =INDIRECT('STRG-Indizes'!$B$3 & "Z" & 'STRG-Indizes'!$B11 & "S" & 'STRG-Indizes'!V$5, FALSE) -> 132485 | W12: =INDIRECT('STRG-Indizes'!$B$3 & "Z" & 'STRG-Indizes'!$B11 & "S" & 'STRG-Indizes'!W$5, FALSE) -> 133668 | X12: =INDIRECT('STRG-Indizes'!$B$3 & "Z" & 'STRG-Indizes'!$B11 & "S" & 'STRG-Indizes'!X$5, FALSE) -> 95151.99762 | Y12: =INDIRECT('STRG-Indizes'!$B$3 & "Z" & 'STRG-Indizes'!$B11 & "S" & 'STRG-Indizes'!Y$5, FALSE) -> 83746.69626 | Z12: =INDIRECT('STRG-Indizes'!$B$3 & "Z" & 'STRG-Indizes'!$B11 & "S" & 'STRG-Indizes'!Z$5, FALSE) -> 65762.31448 | AA12: =INDIRECT('STRG-Indizes'!$B$3 & "Z" & 'STRG-Indizes'!$B11 & "S" & 'STRG-Indizes'!AA$5, FALSE) -> 60316 | AB12: =INDIRECT('STRG-Indizes'!$B$3 & "Z" & 'STRG-Indizes'!$B11 & "S" & 'STRG-Indizes'!AB$5, FALSE) -> 72686 | AC12: =INDIRECT('STRG-Indizes'!$B$3 & "Z" & 'STRG-Indizes'!$B11 & "S" & 'STRG-Indizes'!AC$5, FALSE) -> 78518 | AD12: =INDIRECT('STRG-Indizes'!$B$3 & "Z" & 'STRG-Indizes'!$B11 & "S" & 'STRG-Indizes'!AD$5, FALSE) -> 88538 | AE12: =INDIRECT('STRG-Indizes'!$B$3 & "Z" & 'STRG-Indizes'!$B11 & "S" & 'STRG-Indizes'!AE$5, FALSE) -> 80941 | AF12: =INDIRECT('STRG-Indizes'!$B$3 & "Z" & 'STRG-Indizes'!$B11 & "S" & 'STRG-Indizes'!AF$5, FALSE) -> 75314 | AG12: =INDIRECT('STRG-Indizes'!$B$3 & "Z" & 'STRG-Indizes'!$B11 & "S" & 'STRG-Indizes'!AG$5, FALSE) -> 76443 | AH12: =INDIRECT('STRG-Indizes'!$B$3 & "Z" & 'STRG-Indizes'!$B11 & "S" & 'STRG-Indizes'!AH$5, FALSE) -> 123299 | AI12: =INDIRECT('STRG-Indizes'!$B$3 & "Z" & 'STRG-Indizes'!$B11 & "S" & 'STRG-Indizes'!AI$5, FALSE) -> 122874.9472 | AJ12: =INDIRECT('STRG-Indizes'!$B$3 & "Z" & 'STRG-Indizes'!$B11 & "S" & 'STRG-Indizes'!AJ$5, FALSE) -> 90023
A13: Ostdeutschland | C13: =IF('STRG-Merkmal'!$E$9=2,"",INDIRECT('STRG-Indizes'!$B$3&"Z"&'STRG-Indizes'!$B12&"S"&'STRG-Indizes'!C$5,FALSE)) -> 17132.84162 | D13: =IF('STRG-Merkmal'!$E$9=2,"",INDIRECT('STRG-Indizes'!$B$3&"Z"&'STRG-Indizes'!$B12&"S"&'STRG-Indizes'!D$5,FALSE)) -> 21369 | E13: =IF('STRG-Merkmal'!$E$9=2,"",INDIRECT('STRG-Indizes'!$B$3&"Z"&'STRG-Indizes'!$B12&"S"&'STRG-Indizes'!E$5,FALSE)) -> 23742 | F13: =IF('STRG-Merkmal'!$E$9=2,"",INDIRECT('STRG-Indizes'!$B$3&"Z"&'STRG-Indizes'!$B12&"S"&'STRG-Indizes'!F$5,FALSE)) -> 29298 | G13: =IF('STRG-Merkmal'!$E$9=2,"",INDIRECT('STRG-Indizes'!$B$3&"Z"&'STRG-Indizes'!$B12&"S"&'STRG-Indizes'!G$5,FALSE)) -> 28641 | H13: =IF('STRG-Merkmal'!$E$9=2,"",INDIRECT('STRG-Indizes'!$B$3&"Z"&'STRG-Indizes'!$B12&"S"&'STRG-Indizes'!H$5,FALSE)) -> 22361 | I13: =IF('STRG-Merkmal'!$E$9=2,"",INDIRECT('STRG-Indizes'!$B$3&"Z"&'STRG-Indizes'!$B12&"S"&'STRG-Indizes'!I$5,FALSE)) -> 25138 | J13: =IF('STRG-Merkmal'!$E$9=2,"",INDIRECT('STRG-Indizes'!$B$3&"Z"&'STRG-Indizes'!$B12&"S"&'STRG-Indizes'!J$5,FALSE)) -> 34915 | K13: =IF('STRG-Merkmal'!$E$9=2,"",INDIRECT('STRG-Indizes'!$B$3&"Z"&'STRG-Indizes'!$B12&"S"&'STRG-Indizes'!K$5,FALSE)) -> 37840.79272 | L13: =IF('STRG-Merkmal'!$E$9=2,"",INDIRECT('STRG-Indizes'!$B$3&"Z"&'STRG-Indizes'!$B12&"S"&'STRG-Indizes'!L$5,FALSE)) -> 25594.53642 | M13: =IF('STRG-Merkmal'!$E$9=2,"",INDIRECT('STRG-Indizes'!$B$3&"Z"&'STRG-Indizes'!$B12&"S"&'STRG-Indizes'!M$5,FALSE)) -> 23925 | N13: =INDIRECT('STRG-Indizes'!$B$3&"Z"&'STRG-Indizes'!$B12&"S"&'STRG-Indizes'!N$5,FALSE) -> 18078 | O13: =INDIRECT('STRG-Indizes'!$B$3 & "Z" & 'STRG-Indizes'!$B12 & "S" & 'STRG-Indizes'!O$5, FALSE) -> 16264 | P13: =INDIRECT('STRG-Indizes'!$B$3 & "Z" & 'STRG-Indizes'!$B12 & "S" & 'STRG-Indizes'!P$5, FALSE) -> 21812 | Q13: =INDIRECT('STRG-Indizes'!$B$3 & "Z" & 'STRG-Indizes'!$B12 & "S" & 'STRG-Indizes'!Q$5, FALSE) -> 22583 | R13: =INDIRECT('STRG-Indizes'!$B$3 & "Z" & 'STRG-Indizes'!$B12 & "S" & 'STRG-Indizes'!R$5, FALSE) -> 25152 | S13: =INDIRECT('STRG-Indizes'!$B$3 & "Z" & 'STRG-Indizes'!$B12 & "S" & 'STRG-Indizes'!S$5, FALSE) -> 26860 | T13: =INDIRECT('STRG-Indizes'!$B$3 & "Z" & 'STRG-Indizes'!$B12 & "S" & 'STRG-Indizes'!T$5, FALSE) -> 22241 | U13: =INDIRECT('STRG-Indizes'!$B$3 & "Z" & 'STRG-Indizes'!$B12 & "S" & 'STRG-Indizes'!U$5, FALSE) -> 22512 | V13: =INDIRECT('STRG-Indizes'!$B$3 & "Z" & 'STRG-Indizes'!$B12 & "S" & 'STRG-Indizes'!V$5, FALSE) -> 31336 | W13: =INDIRECT('STRG-Indizes'!$B$3 & "Z" & 'STRG-Indizes'!$B12 & "S" & 'STRG-Indizes'!W$5, FALSE) -> 35481 | X13: =INDIRECT('STRG-Indizes'!$B$3 & "Z" & 'STRG-Indizes'!$B12 & "S" & 'STRG-Indizes'!X$5, FALSE) -> 23818.94893 | Y13: =INDIRECT('STRG-Indizes'!$B$3 & "Z" & 'STRG-Indizes'!$B12 & "S" & 'STRG-Indizes'!Y$5, FALSE) -> 21921 | Z13: =INDIRECT('STRG-Indizes'!$B$3 & "Z" & 'STRG-Indizes'!$B12 & "S" & 'STRG-Indizes'!Z$5, FALSE) -> 16668 | AA13: =INDIRECT('STRG-Indizes'!$B$3 & "Z" & 'STRG-Indizes'!$B12 & "S" & 'STRG-Indizes'!AA$5, FALSE) -> 15755 | AB13: =INDIRECT('STRG-Indizes'!$B$3 & "Z" & 'STRG-Indizes'!$B12 & "S" & 'STRG-Indizes'!AB$5, FALSE) -> 18675 | AC13: =INDIRECT('STRG-Indizes'!$B$3 & "Z" & 'STRG-Indizes'!$B12 & "S" & 'STRG-Indizes'!AC$5, FALSE) -> 20981 | AD13: =INDIRECT('STRG-Indizes'!$B$3 & "Z" & 'STRG-Indizes'!$B12 & "S" & 'STRG-Indizes'!AD$5, FALSE) -> 23621 | AE13: =INDIRECT('STRG-Indizes'!$B$3 & "Z" & 'STRG-Indizes'!$B12 & "S" & 'STRG-Indizes'!AE$5, FALSE) -> 22338 | AF13: =INDIRECT('STRG-Indizes'!$B$3 & "Z" & 'STRG-Indizes'!$B12 & "S" & 'STRG-Indizes'!AF$5, FALSE) -> 19390 | AG13: =INDIRECT('STRG-Indizes'!$B$3 & "Z" & 'STRG-Indizes'!$B12 & "S" & 'STRG-Indizes'!AG$5, FALSE) -> 19312 | AH13: =INDIRECT('STRG-Indizes'!$B$3 & "Z" & 'STRG-Indizes'!$B12 & "S" & 'STRG-Indizes'!AH$5, FALSE) -> 29428 | AI13: =INDIRECT('STRG-Indizes'!$B$3 & "Z" & 'STRG-Indizes'!$B12 & "S" & 'STRG-Indizes'!AI$5, FALSE) -> 31186.02937 | AJ13: =INDIRECT('STRG-Indizes'!$B$3 & "Z" & 'STRG-Indizes'!$B12 & "S" & 'STRG-Indizes'!AJ$5, FALSE) -> 21725
A14: Westdeutschland | C14: =IF('STRG-Merkmal'!$E$9=2,"",INDIRECT('STRG-Indizes'!$B$3&"Z"&'STRG-Indizes'!$B13&"S"&'STRG-Indizes'!C$5,FALSE)) -> 41590.1959 | D14: =IF('STRG-Merkmal'!$E$9=2,"",INDIRECT('STRG-Indizes'!$B$3&"Z"&'STRG-Indizes'!$B13&"S"&'STRG-Indizes'!D$5,FALSE)) -> 53013.54536 | E14: =IF('STRG-Merkmal'!$E$9=2,"",INDIRECT('STRG-Indizes'!$B$3&"Z"&'STRG-Indizes'!$B13&"S"&'STRG-Indizes'!E$5,FALSE)) -> 58068.64062 | F14: =IF('STRG-Merkmal'!$E$9=2,"",INDIRECT('STRG-Indizes'!$B$3&"Z"&'STRG-Indizes'!$B13&"S"&'STRG-Indizes'!F$5,FALSE)) -> 69869 | G14: =IF('STRG-Merkmal'!$E$9=2,"",INDIRECT('STRG-Indizes'!$B$3&"Z"&'STRG-Indizes'!$B13&"S"&'STRG-Indizes'!G$5,FALSE)) -> 67667 | H14: =IF('STRG-Merkmal'!$E$9=2,"",INDIRECT('STRG-Indizes'!$B$3&"Z"&'STRG-Indizes'!$B13&"S"&'STRG-Indizes'!H$5,FALSE)) -> 57101 | I14: =IF('STRG-Merkmal'!$E$9=2,"",INDIRECT('STRG-Indizes'!$B$3&"Z"&'STRG-Indizes'!$B13&"S"&'STRG-Indizes'!I$5,FALSE)) -> 66744.15574 | J14: =IF('STRG-Merkmal'!$E$9=2,"",INDIRECT('STRG-Indizes'!$B$3&"Z"&'STRG-Indizes'!$B13&"S"&'STRG-Indizes'!J$5,FALSE)) -> 99273.54321 | K14: =IF('STRG-Merkmal'!$E$9=2,"",INDIRECT('STRG-Indizes'!$B$3&"Z"&'STRG-Indizes'!$B13&"S"&'STRG-Indizes'!K$5,FALSE)) -> 99279.25095 | L14: =IF('STRG-Merkmal'!$E$9=2,"",INDIRECT('STRG-Indizes'!$B$3&"Z"&'STRG-Indizes'!$B13&"S"&'STRG-Indizes'!L$5,FALSE)) -> 72513 | M14: =IF('STRG-Merkmal'!$E$9=2,"",INDIRECT('STRG-Indizes'!$B$3&"Z"&'STRG-Indizes'!$B13&"S"&'STRG-Indizes'!M$5,FALSE)) -> 64621 | N14: =INDIRECT('STRG-Indizes'!$B$3&"Z"&'STRG-Indizes'!$B13&"S"&'STRG-Indizes'!N$5,FALSE) -> 51009 | O14: =INDIRECT('STRG-Indizes'!$B$3 & "Z" & 'STRG-Indizes'!$B13 & "S" & 'STRG-Indizes'!O$5, FALSE) -> 44901.61404 | P14: =INDIRECT('STRG-Indizes'!$B$3 & "Z" & 'STRG-Indizes'!$B13 & "S" & 'STRG-Indizes'!P$5, FALSE) -> 59446.186 | Q14: =INDIRECT('STRG-Indizes'!$B$3 & "Z" & 'STRG-Indizes'!$B13 & "S" & 'STRG-Indizes'!Q$5, FALSE) -> 61760.60863 | R14: =INDIRECT('STRG-Indizes'!$B$3 & "Z" & 'STRG-Indizes'!$B13 & "S" & 'STRG-Indizes'!R$5, FALSE) -> 66354.0457 | S14: =INDIRECT('STRG-Indizes'!$B$3 & "Z" & 'STRG-Indizes'!$B13 & "S" & 'STRG-Indizes'!S$5, FALSE) -> 68280.82902 | T14: =INDIRECT('STRG-Indizes'!$B$3 & "Z" & 'STRG-Indizes'!$B13 & "S" & 'STRG-Indizes'!T$5, FALSE) -> 59961.10192 | U14: =INDIRECT('STRG-Indizes'!$B$3 & "Z" & 'STRG-Indizes'!$B13 & "S" & 'STRG-Indizes'!U$5, FALSE) -> 66200 | V14: =INDIRECT('STRG-Indizes'!$B$3 & "Z" & 'STRG-Indizes'!$B13 & "S" & 'STRG-Indizes'!V$5, FALSE) -> 101149 | W14: =INDIRECT('STRG-Indizes'!$B$3 & "Z" & 'STRG-Indizes'!$B13 & "S" & 'STRG-Indizes'!W$5, FALSE) -> 98187 | X14: =INDIRECT('STRG-Indizes'!$B$3 & "Z" & 'STRG-Indizes'!$B13 & "S" & 'STRG-Indizes'!X$5, FALSE) -> 71333.04869 | Y14: =INDIRECT('STRG-Indizes'!$B$3 & "Z" & 'STRG-Indizes'!$B13 & "S" & 'STRG-Indizes'!Y$5, FALSE) -> 61825.69626 | Z14: =INDIRECT('STRG-Indizes'!$B$3 & "Z" & 'STRG-Indizes'!$B13 & "S" & 'STRG-Indizes'!Z$5, FALSE) -> 49094.31448 | AA14: =INDIRECT('STRG-Indizes'!$B$3 & "Z" & 'STRG-Indizes'!$B13 & "S" & 'STRG-Indizes'!AA$5, FALSE) -> 44561 | AB14: =INDIRECT('STRG-Indizes'!$B$3 & "Z" & 'STRG-Indizes'!$B13 & "S" & 'STRG-Indizes'!AB$5, FALSE) -> 54011 | AC14: =INDIRECT('STRG-Indizes'!$B$3 & "Z" & 'STRG-Indizes'!$B13 & "S" & 'STRG-Indizes'!AC$5, FALSE) -> 57537 | AD14: =INDIRECT('STRG-Indizes'!$B$3 & "Z" & 'STRG-Indizes'!$B13 & "S" & 'STRG-Indizes'!AD$5, FALSE) -> 64917 | AE14: =INDIRECT('STRG-Indizes'!$B$3 & "Z" & 'STRG-Indizes'!$B13 & "S" & 'STRG-Indizes'!AE$5, FALSE) -> 58603 | AF14: =INDIRECT('STRG-Indizes'!$B$3 & "Z" & 'STRG-Indizes'!$B13 & "S" & 'STRG-Indizes'!AF$5, FALSE) -> 55924 | AG14: =INDIRECT('STRG-Indizes'!$B$3 & "Z" & 'STRG-Indizes'!$B13 & "S" & 'STRG-Indizes'!AG$5, FALSE) -> 57131 | AH14: =INDIRECT('STRG-Indizes'!$B$3 & "Z" & 'STRG-Indizes'!$B13 & "S" & 'STRG-Indizes'!AH$5, FALSE) -> 93871 | AI14: =INDIRECT('STRG-Indizes'!$B$3 & "Z" & 'STRG-Indizes'!$B13 & "S" & 'STRG-Indizes'!AI$5, FALSE) -> 91688.91786 | AJ14: =INDIRECT('STRG-Indizes'!$B$3 & "Z" & 'STRG-Indizes'!$B13 & "S" & 'STRG-Indizes'!AJ$5, FALSE) -> 68298
A15: Baden-Württemberg | C15: =IF('STRG-Merkmal'!$E$9=2,"",INDIRECT('STRG-Indizes'!$B$3&"Z"&'STRG-Indizes'!$B14&"S"&'STRG-Indizes'!C$5,FALSE)) -> 4617 | D15: =IF('STRG-Merkmal'!$E$9=2,"",INDIRECT('STRG-Indizes'!$B$3&"Z"&'STRG-Indizes'!$B14&"S"&'STRG-Indizes'!D$5,FALSE)) -> 6116 | E15: =IF('STRG-Merkmal'!$E$9=2,"",INDIRECT('STRG-Indizes'!$B$3&"Z"&'STRG-Indizes'!$B14&"S"&'STRG-Indizes'!E$5,FALSE)) -> 6656 | F15: =IF('STRG-Merkmal'!$E$9=2,"",INDIRECT('STRG-Indizes'!$B$3&"Z"&'STRG-Indizes'!$B14&"S"&'STRG-Indizes'!F$5,FALSE)) -> 8189 | G15: =IF('STRG-Merkmal'!$E$9=2,"",INDIRECT('STRG-Indizes'!$B$3&"Z"&'STRG-Indizes'!$B14&"S"&'STRG-Indizes'!G$5,FALSE)) -> 8096 | H15: =IF('STRG-Merkmal'!$E$9=2,"",INDIRECT('STRG-Indizes'!$B$3&"Z"&'STRG-Indizes'!$B14&"S"&'STRG-Indizes'!H$5,FALSE)) -> 6537 | I15: =IF('STRG-Merkmal'!$E$9=2,"",INDIRECT('STRG-Indizes'!$B$3&"Z"&'STRG-Indizes'!$B14&"S"&'STRG-Indizes'!I$5,FALSE)) -> 7739 | J15: =IF('STRG-Merkmal'!$E$9=2,"",INDIRECT('STRG-Indizes'!$B$3&"Z"&'STRG-Indizes'!$B14&"S"&'STRG-Indizes'!J$5,FALSE)) -> 8510 | K15: =IF('STRG-Merkmal'!$E$9=2,"",INDIRECT('STRG-Indizes'!$B$3&"Z"&'STRG-Indizes'!$B14&"S"&'STRG-Indizes'!K$5,FALSE)) -> 14321 | L15: =IF('STRG-Merkmal'!$E$9=2,"",INDIRECT('STRG-Indizes'!$B$3&"Z"&'STRG-Indizes'!$B14&"S"&'STRG-Indizes'!L$5,FALSE)) -> 9011 | M15: =IF('STRG-Merkmal'!$E$9=2,"",INDIRECT('STRG-Indizes'!$B$3&"Z"&'STRG-Indizes'!$B14&"S"&'STRG-Indizes'!M$5,FALSE)) -> 7617 | N15: =INDIRECT('STRG-Indizes'!$B$3&"Z"&'STRG-Indizes'!$B14&"S"&'STRG-Indizes'!N$5,FALSE) -> 6146 | O15: =INDIRECT('STRG-Indizes'!$B$3 & "Z" & 'STRG-Indizes'!$B14 & "S" & 'STRG-Indizes'!O$5, FALSE) -> 5330 | P15: =INDIRECT('STRG-Indizes'!$B$3 & "Z" & 'STRG-Indizes'!$B14 & "S" & 'STRG-Indizes'!P$5, FALSE) -> 7057 | Q15: =INDIRECT('STRG-Indizes'!$B$3 & "Z" & 'STRG-Indizes'!$B14 & "S" & 'STRG-Indizes'!Q$5, FALSE) -> 7149 | R15: =INDIRECT('STRG-Indizes'!$B$3 & "Z" & 'STRG-Indizes'!$B14 & "S" & 'STRG-Indizes'!R$5, FALSE) -> 7775 | S15: =INDIRECT('STRG-Indizes'!$B$3 & "Z" & 'STRG-Indizes'!$B14 & "S" & 'STRG-Indizes'!S$5, FALSE) -> 8306 | T15: =INDIRECT('STRG-Indizes'!$B$3 & "Z" & 'STRG-Indizes'!$B14 & "S" & 'STRG-Indizes'!T$5, FALSE) -> 6940.933005 | U15: =INDIRECT('STRG-Indizes'!$B$3 & "Z" & 'STRG-Indizes'!$B14 & "S" & 'STRG-Indizes'!U$5, FALSE) -> 7939 | V15: =INDIRECT('STRG-Indizes'!$B$3 & "Z" & 'STRG-Indizes'!$B14 & "S" & 'STRG-Indizes'!V$5, FALSE) -> 8504 | W15: =INDIRECT('STRG-Indizes'!$B$3 & "Z" & 'STRG-Indizes'!$B14 & "S" & 'STRG-Indizes'!W$5, FALSE) -> 14292 | X15: =INDIRECT('STRG-Indizes'!$B$3 & "Z" & 'STRG-Indizes'!$B14 & "S" & 'STRG-Indizes'!X$5, FALSE) -> 8735 | Y15: =INDIRECT('STRG-Indizes'!$B$3 & "Z" & 'STRG-Indizes'!$B14 & "S" & 'STRG-Indizes'!Y$5, FALSE) -> 7202 | Z15: =INDIRECT('STRG-Indizes'!$B$3 & "Z" & 'STRG-Indizes'!$B14 & "S" & 'STRG-Indizes'!Z$5, FALSE) -> 5790 | AA15: =INDIRECT('STRG-Indizes'!$B$3 & "Z" & 'STRG-Indizes'!$B14 & "S" & 'STRG-Indizes'!AA$5, FALSE) -> 5133 | AB15: =INDIRECT('STRG-Indizes'!$B$3 & "Z" & 'STRG-Indizes'!$B14 & "S" & 'STRG-Indizes'!AB$5, FALSE) -> 6114 | AC15: =INDIRECT('STRG-Indizes'!$B$3 & "Z" & 'STRG-Indizes'!$B14 & "S" & 'STRG-Indizes'!AC$5, FALSE) -> 6598 | AD15: =INDIRECT('STRG-Indizes'!$B$3 & "Z" & 'STRG-Indizes'!$B14 & "S" & 'STRG-Indizes'!AD$5, FALSE) -> 7463 | AE15: =INDIRECT('STRG-Indizes'!$B$3 & "Z" & 'STRG-Indizes'!$B14 & "S" & 'STRG-Indizes'!AE$5, FALSE) -> 6866 | AF15: =INDIRECT('STRG-Indizes'!$B$3 & "Z" & 'STRG-Indizes'!$B14 & "S" & 'STRG-Indizes'!AF$5, FALSE) -> 6292 | AG15: =INDIRECT('STRG-Indizes'!$B$3 & "Z" & 'STRG-Indizes'!$B14 & "S" & 'STRG-Indizes'!AG$5, FALSE) -> 6244 | AH15: =INDIRECT('STRG-Indizes'!$B$3 & "Z" & 'STRG-Indizes'!$B14 & "S" & 'STRG-Indizes'!AH$5, FALSE) -> 7581 | AI15: =INDIRECT('STRG-Indizes'!$B$3 & "Z" & 'STRG-Indizes'!$B14 & "S" & 'STRG-Indizes'!AI$5, FALSE) -> 13030 | AJ15: =INDIRECT('STRG-Indizes'!$B$3 & "Z" & 'STRG-Indizes'!$B14 & "S" & 'STRG-Indizes'!AJ$5, FALSE) -> 8059
A16: Bayern | C16: =IF('STRG-Merkmal'!$E$9=2,"",INDIRECT('STRG-Indizes'!$B$3&"Z"&'STRG-Indizes'!$B15&"S"&'STRG-Indizes'!C$5,FALSE)) -> 5180 | D16: =IF('STRG-Merkmal'!$E$9=2,"",INDIRECT('STRG-Indizes'!$B$3&"Z"&'STRG-Indizes'!$B15&"S"&'STRG-Indizes'!D$5,FALSE)) -> 6657 | E16: =IF('STRG-Merkmal'!$E$9=2,"",INDIRECT('STRG-Indizes'!$B$3&"Z"&'STRG-Indizes'!$B15&"S"&'STRG-Indizes'!E$5,FALSE)) -> 7702 | F16: =IF('STRG-Merkmal'!$E$9=2,"",INDIRECT('STRG-Indizes'!$B$3&"Z"&'STRG-Indizes'!$B15&"S"&'STRG-Indizes'!F$5,FALSE)) -> 9017 | G16: =IF('STRG-Merkmal'!$E$9=2,"",INDIRECT('STRG-Indizes'!$B$3&"Z"&'STRG-Indizes'!$B15&"S"&'STRG-Indizes'!G$5,FALSE)) -> 8897 | H16: =IF('STRG-Merkmal'!$E$9=2,"",INDIRECT('STRG-Indizes'!$B$3&"Z"&'STRG-Indizes'!$B15&"S"&'STRG-Indizes'!H$5,FALSE)) -> 7596 | I16: =IF('STRG-Merkmal'!$E$9=2,"",INDIRECT('STRG-Indizes'!$B$3&"Z"&'STRG-Indizes'!$B15&"S"&'STRG-Indizes'!I$5,FALSE)) -> 8438 | J16: =IF('STRG-Merkmal'!$E$9=2,"",INDIRECT('STRG-Indizes'!$B$3&"Z"&'STRG-Indizes'!$B15&"S"&'STRG-Indizes'!J$5,FALSE)) -> 9294 | K16: =IF('STRG-Merkmal'!$E$9=2,"",INDIRECT('STRG-Indizes'!$B$3&"Z"&'STRG-Indizes'!$B15&"S"&'STRG-Indizes'!K$5,FALSE)) -> 15612 | L16: =IF('STRG-Merkmal'!$E$9=2,"",INDIRECT('STRG-Indizes'!$B$3&"Z"&'STRG-Indizes'!$B15&"S"&'STRG-Indizes'!L$5,FALSE)) -> 9825 | M16: =IF('STRG-Merkmal'!$E$9=2,"",INDIRECT('STRG-Indizes'!$B$3&"Z"&'STRG-Indizes'!$B15&"S"&'STRG-Indizes'!M$5,FALSE)) -> 8065 | N16: =INDIRECT('STRG-Indizes'!$B$3&"Z"&'STRG-Indizes'!$B15&"S"&'STRG-Indizes'!N$5,FALSE) -> 6579 | O16: =INDIRECT('STRG-Indizes'!$B$3 & "Z" & 'STRG-Indizes'!$B15 & "S" & 'STRG-Indizes'!O$5, FALSE) -> 5627 | P16: =INDIRECT('STRG-Indizes'!$B$3 & "Z" & 'STRG-Indizes'!$B15 & "S" & 'STRG-Indizes'!P$5, FALSE) -> 7359 | Q16: =INDIRECT('STRG-Indizes'!$B$3 & "Z" & 'STRG-Indizes'!$B15 & "S" & 'STRG-Indizes'!Q$5, FALSE) -> 8169 | R16: =INDIRECT('STRG-Indizes'!$B$3 & "Z" & 'STRG-Indizes'!$B15 & "S" & 'STRG-Indizes'!R$5, FALSE) -> 8685 | S16: =INDIRECT('STRG-Indizes'!$B$3 & "Z" & 'STRG-Indizes'!$B15 & "S" & 'STRG-Indizes'!S$5, FALSE) -> 9488 | T16: =INDIRECT('STRG-Indizes'!$B$3 & "Z" & 'STRG-Indizes'!$B15 & "S" & 'STRG-Indizes'!T$5, FALSE) -> 7787 | U16: =INDIRECT('STRG-Indizes'!$B$3 & "Z" & 'STRG-Indizes'!$B15 & "S" & 'STRG-Indizes'!U$5, FALSE) -> 8291 | V16: =INDIRECT('STRG-Indizes'!$B$3 & "Z" & 'STRG-Indizes'!$B15 & "S" & 'STRG-Indizes'!V$5, FALSE) -> 8966 | W16: =INDIRECT('STRG-Indizes'!$B$3 & "Z" & 'STRG-Indizes'!$B15 & "S" & 'STRG-Indizes'!W$5, FALSE) -> 15284 | X16: =INDIRECT('STRG-Indizes'!$B$3 & "Z" & 'STRG-Indizes'!$B15 & "S" & 'STRG-Indizes'!X$5, FALSE) -> 9425 | Y16: =INDIRECT('STRG-Indizes'!$B$3 & "Z" & 'STRG-Indizes'!$B15 & "S" & 'STRG-Indizes'!Y$5, FALSE) -> 7613 | Z16: =INDIRECT('STRG-Indizes'!$B$3 & "Z" & 'STRG-Indizes'!$B15 & "S" & 'STRG-Indizes'!Z$5, FALSE) -> 6146 | AA16: =INDIRECT('STRG-Indizes'!$B$3 & "Z" & 'STRG-Indizes'!$B15 & "S" & 'STRG-Indizes'!AA$5, FALSE) -> 5558 | AB16: =INDIRECT('STRG-Indizes'!$B$3 & "Z" & 'STRG-Indizes'!$B15 & "S" & 'STRG-Indizes'!AB$5, FALSE) -> 6302 | AC16: =INDIRECT('STRG-Indizes'!$B$3 & "Z" & 'STRG-Indizes'!$B15 & "S" & 'STRG-Indizes'!AC$5, FALSE) -> 7374 | AD16: =INDIRECT('STRG-Indizes'!$B$3 & "Z" & 'STRG-Indizes'!$B15 & "S" & 'STRG-Indizes'!AD$5, FALSE) -> 8200 | AE16: =INDIRECT('STRG-Indizes'!$B$3 & "Z" & 'STRG-Indizes'!$B15 & "S" & 'STRG-Indizes'!AE$5, FALSE) -> 7475 | AF16: =INDIRECT('STRG-Indizes'!$B$3 & "Z" & 'STRG-Indizes'!$B15 & "S" & 'STRG-Indizes'!AF$5, FALSE) -> 6891 | AG16: =INDIRECT('STRG-Indizes'!$B$3 & "Z" & 'STRG-Indizes'!$B15 & "S" & 'STRG-Indizes'!AG$5, FALSE) -> 6643 | AH16: =INDIRECT('STRG-Indizes'!$B$3 & "Z" & 'STRG-Indizes'!$B15 & "S" & 'STRG-Indizes'!AH$5, FALSE) -> 7671 | AI16: =INDIRECT('STRG-Indizes'!$B$3 & "Z" & 'STRG-Indizes'!$B15 & "S" & 'STRG-Indizes'!AI$5, FALSE) -> 13553 | AJ16: =INDIRECT('STRG-Indizes'!$B$3 & "Z" & 'STRG-Indizes'!$B15 & "S" & 'STRG-Indizes'!AJ$5, FALSE) -> 8616
A17: Berlin | C17: =IF('STRG-Merkmal'!$E$9=2,"",INDIRECT('STRG-Indizes'!$B$3&"Z"&'STRG-Indizes'!$B16&"S"&'STRG-Indizes'!C$5,FALSE)) -> 5938 | D17: =IF('STRG-Merkmal'!$E$9=2,"",INDIRECT('STRG-Indizes'!$B$3&"Z"&'STRG-Indizes'!$B16&"S"&'STRG-Indizes'!D$5,FALSE)) -> 7832 | E17: =IF('STRG-Merkmal'!$E$9=2,"",INDIRECT('STRG-Indizes'!$B$3&"Z"&'STRG-Indizes'!$B16&"S"&'STRG-Indizes'!E$5,FALSE)) -> 8151 | F17: =IF('STRG-Merkmal'!$E$9=2,"",INDIRECT('STRG-Indizes'!$B$3&"Z"&'STRG-Indizes'!$B16&"S"&'STRG-Indizes'!F$5,FALSE)) -> 9062 | G17: =IF('STRG-Merkmal'!$E$9=2,"",INDIRECT('STRG-Indizes'!$B$3&"Z"&'STRG-Indizes'!$B16&"S"&'STRG-Indizes'!G$5,FALSE)) -> 8776 | H17: =IF('STRG-Merkmal'!$E$9=2,"",INDIRECT('STRG-Indizes'!$B$3&"Z"&'STRG-Indizes'!$B16&"S"&'STRG-Indizes'!H$5,FALSE)) -> 7208 | I17: =IF('STRG-Merkmal'!$E$9=2,"",INDIRECT('STRG-Indizes'!$B$3&"Z"&'STRG-Indizes'!$B16&"S"&'STRG-Indizes'!I$5,FALSE)) -> 7970 | J17: =IF('STRG-Merkmal'!$E$9=2,"",INDIRECT('STRG-Indizes'!$B$3&"Z"&'STRG-Indizes'!$B16&"S"&'STRG-Indizes'!J$5,FALSE)) -> 8853 | K17: =IF('STRG-Merkmal'!$E$9=2,"",INDIRECT('STRG-Indizes'!$B$3&"Z"&'STRG-Indizes'!$B16&"S"&'STRG-Indizes'!K$5,FALSE)) -> 13296 | L17: =IF('STRG-Merkmal'!$E$9=2,"",INDIRECT('STRG-Indizes'!$B$3&"Z"&'STRG-Indizes'!$B16&"S"&'STRG-Indizes'!L$5,FALSE)) -> 8987 | M17: =IF('STRG-Merkmal'!$E$9=2,"",INDIRECT('STRG-Indizes'!$B$3&"Z"&'STRG-Indizes'!$B16&"S"&'STRG-Indizes'!M$5,FALSE)) -> 8170 | N17: =INDIRECT('STRG-Indizes'!$B$3&"Z"&'STRG-Indizes'!$B16&"S"&'STRG-Indizes'!N$5,FALSE) -> 6004 | O17: =INDIRECT('STRG-Indizes'!$B$3 & "Z" & 'STRG-Indizes'!$B16 & "S" & 'STRG-Indizes'!O$5, FALSE) -> 6013 | P17: =INDIRECT('STRG-Indizes'!$B$3 & "Z" & 'STRG-Indizes'!$B16 & "S" & 'STRG-Indizes'!P$5, FALSE) -> 8453 | Q17: =INDIRECT('STRG-Indizes'!$B$3 & "Z" & 'STRG-Indizes'!$B16 & "S" & 'STRG-Indizes'!Q$5, FALSE) -> 8058 | R17: =INDIRECT('STRG-Indizes'!$B$3 & "Z" & 'STRG-Indizes'!$B16 & "S" & 'STRG-Indizes'!R$5, FALSE) -> 8094 | S17: =INDIRECT('STRG-Indizes'!$B$3 & "Z" & 'STRG-Indizes'!$B16 & "S" & 'STRG-Indizes'!S$5, FALSE) -> 8120 | T17: =INDIRECT('STRG-Indizes'!$B$3 & "Z" & 'STRG-Indizes'!$B16 & "S" & 'STRG-Indizes'!T$5, FALSE) -> 7070 | U17: =INDIRECT('STRG-Indizes'!$B$3 & "Z" & 'STRG-Indizes'!$B16 & "S" & 'STRG-Indizes'!U$5, FALSE) -> 7354 | V17: =INDIRECT('STRG-Indizes'!$B$3 & "Z" & 'STRG-Indizes'!$B16 & "S" & 'STRG-Indizes'!V$5, FALSE) -> 8288 | W17: =INDIRECT('STRG-Indizes'!$B$3 & "Z" & 'STRG-Indizes'!$B16 & "S" & 'STRG-Indizes'!W$5, FALSE) -> 12992 | X17: =INDIRECT('STRG-Indizes'!$B$3 & "Z" & 'STRG-Indizes'!$B16 & "S" & 'STRG-Indizes'!X$5, FALSE) -> 8554 | Y17: =INDIRECT('STRG-Indizes'!$B$3 & "Z" & 'STRG-Indizes'!$B16 & "S" & 'STRG-Indizes'!Y$5, FALSE) -> 7678 | Z17: =INDIRECT('STRG-Indizes'!$B$3 & "Z" & 'STRG-Indizes'!$B16 & "S" & 'STRG-Indizes'!Z$5, FALSE) -> 5855 | AA17: =INDIRECT('STRG-Indizes'!$B$3 & "Z" & 'STRG-Indizes'!$B16 & "S" & 'STRG-Indizes'!AA$5, FALSE) -> 5759 | AB17: =INDIRECT('STRG-Indizes'!$B$3 & "Z" & 'STRG-Indizes'!$B16 & "S" & 'STRG-Indizes'!AB$5, FALSE) -> 7504 | AC17: =INDIRECT('STRG-Indizes'!$B$3 & "Z" & 'STRG-Indizes'!$B16 & "S" & 'STRG-Indizes'!AC$5, FALSE) -> 7419 | AD17: =INDIRECT('STRG-Indizes'!$B$3 & "Z" & 'STRG-Indizes'!$B16 & "S" & 'STRG-Indizes'!AD$5, FALSE) -> 7710 | AE17: =INDIRECT('STRG-Indizes'!$B$3 & "Z" & 'STRG-Indizes'!$B16 & "S" & 'STRG-Indizes'!AE$5, FALSE) -> 7102 | AF17: =INDIRECT('STRG-Indizes'!$B$3 & "Z" & 'STRG-Indizes'!$B16 & "S" & 'STRG-Indizes'!AF$5, FALSE) -> 6380 | AG17: =INDIRECT('STRG-Indizes'!$B$3 & "Z" & 'STRG-Indizes'!$B16 & "S" & 'STRG-Indizes'!AG$5, FALSE) -> 6189 | AH17: =INDIRECT('STRG-Indizes'!$B$3 & "Z" & 'STRG-Indizes'!$B16 & "S" & 'STRG-Indizes'!AH$5, FALSE) -> 10343 | AI17: =INDIRECT('STRG-Indizes'!$B$3 & "Z" & 'STRG-Indizes'!$B16 & "S" & 'STRG-Indizes'!AI$5, FALSE) -> 9924 | AJ17: =INDIRECT('STRG-Indizes'!$B$3 & "Z" & 'STRG-Indizes'!$B16 & "S" & 'STRG-Indizes'!AJ$5, FALSE) -> 7655
A18: Brandenburg | C18: =IF('STRG-Merkmal'!$E$9=2,"",INDIRECT('STRG-Indizes'!$B$3&"Z"&'STRG-Indizes'!$B17&"S"&'STRG-Indizes'!C$5,FALSE)) -> 2013 | D18: =IF('STRG-Merkmal'!$E$9=2,"",INDIRECT('STRG-Indizes'!$B$3&"Z"&'STRG-Indizes'!$B17&"S"&'STRG-Indizes'!D$5,FALSE)) -> 2441 | E18: =IF('STRG-Merkmal'!$E$9=2,"",INDIRECT('STRG-Indizes'!$B$3&"Z"&'STRG-Indizes'!$B17&"S"&'STRG-Indizes'!E$5,FALSE)) -> 2909 | F18: =IF('STRG-Merkmal'!$E$9=2,"",INDIRECT('STRG-Indizes'!$B$3&"Z"&'STRG-Indizes'!$B17&"S"&'STRG-Indizes'!F$5,FALSE)) -> 3951 | G18: =IF('STRG-Merkmal'!$E$9=2,"",INDIRECT('STRG-Indizes'!$B$3&"Z"&'STRG-Indizes'!$B17&"S"&'STRG-Indizes'!G$5,FALSE)) -> 3686 | H18: =IF('STRG-Merkmal'!$E$9=2,"",INDIRECT('STRG-Indizes'!$B$3&"Z"&'STRG-Indizes'!$B17&"S"&'STRG-Indizes'!H$5,FALSE)) -> 2642 | I18: =IF('STRG-Merkmal'!$E$9=2,"",INDIRECT('STRG-Indizes'!$B$3&"Z"&'STRG-Indizes'!$B17&"S"&'STRG-Indizes'!I$5,FALSE)) -> 3250 | J18: =IF('STRG-Merkmal'!$E$9=2,"",INDIRECT('STRG-Indizes'!$B$3&"Z"&'STRG-Indizes'!$B17&"S"&'STRG-Indizes'!J$5,FALSE)) -> 3735 | K18: =IF('STRG-Merkmal'!$E$9=2,"",INDIRECT('STRG-Indizes'!$B$3&"Z"&'STRG-Indizes'!$B17&"S"&'STRG-Indizes'!K$5,FALSE)) -> 5093.792721 | L18: =IF('STRG-Merkmal'!$E$9=2,"",INDIRECT('STRG-Indizes'!$B$3&"Z"&'STRG-Indizes'!$B17&"S"&'STRG-Indizes'!L$5,FALSE)) -> 3393.536417 | M18: =IF('STRG-Merkmal'!$E$9=2,"",INDIRECT('STRG-Indizes'!$B$3&"Z"&'STRG-Indizes'!$B17&"S"&'STRG-Indizes'!M$5,FALSE)) -> 2718 | N18: =INDIRECT('STRG-Indizes'!$B$3&"Z"&'STRG-Indizes'!$B17&"S"&'STRG-Indizes'!N$5,FALSE) -> 2086 | O18: =INDIRECT('STRG-Indizes'!$B$3 & "Z" & 'STRG-Indizes'!$B17 & "S" & 'STRG-Indizes'!O$5, FALSE) -> 1950 | P18: =INDIRECT('STRG-Indizes'!$B$3 & "Z" & 'STRG-Indizes'!$B17 & "S" & 'STRG-Indizes'!P$5, FALSE) -> 2425 | Q18: =INDIRECT('STRG-Indizes'!$B$3 & "Z" & 'STRG-Indizes'!$B17 & "S" & 'STRG-Indizes'!Q$5, FALSE) -> 2654 | R18: =INDIRECT('STRG-Indizes'!$B$3 & "Z" & 'STRG-Indizes'!$B17 & "S" & 'STRG-Indizes'!R$5, FALSE) -> 3322 | S18: =INDIRECT('STRG-Indizes'!$B$3 & "Z" & 'STRG-Indizes'!$B17 & "S" & 'STRG-Indizes'!S$5, FALSE) -> 3596 | T18: =INDIRECT('STRG-Indizes'!$B$3 & "Z" & 'STRG-Indizes'!$B17 & "S" & 'STRG-Indizes'!T$5, FALSE) -> 2743 | U18: =INDIRECT('STRG-Indizes'!$B$3 & "Z" & 'STRG-Indizes'!$B17 & "S" & 'STRG-Indizes'!U$5, FALSE) -> 2875 | V18: =INDIRECT('STRG-Indizes'!$B$3 & "Z" & 'STRG-Indizes'!$B17 & "S" & 'STRG-Indizes'!V$5, FALSE) -> 3396 | W18: =INDIRECT('STRG-Indizes'!$B$3 & "Z" & 'STRG-Indizes'!$B17 & "S" & 'STRG-Indizes'!W$5, FALSE) -> 4646 | X18: =INDIRECT('STRG-Indizes'!$B$3 & "Z" & 'STRG-Indizes'!$B17 & "S" & 'STRG-Indizes'!X$5, FALSE) -> 3016 | Y18: =INDIRECT('STRG-Indizes'!$B$3 & "Z" & 'STRG-Indizes'!$B17 & "S" & 'STRG-Indizes'!Y$5, FALSE) -> 2562 | Z18: =INDIRECT('STRG-Indizes'!$B$3 & "Z" & 'STRG-Indizes'!$B17 & "S" & 'STRG-Indizes'!Z$5, FALSE) -> 1907 | AA18: =INDIRECT('STRG-Indizes'!$B$3 & "Z" & 'STRG-Indizes'!$B17 & "S" & 'STRG-Indizes'!AA$5, FALSE) -> 1876 | AB18: =INDIRECT('STRG-Indizes'!$B$3 & "Z" & 'STRG-Indizes'!$B17 & "S" & 'STRG-Indizes'!AB$5, FALSE) -> 2082 | AC18: =INDIRECT('STRG-Indizes'!$B$3 & "Z" & 'STRG-Indizes'!$B17 & "S" & 'STRG-Indizes'!AC$5, FALSE) -> 2576 | AD18: =INDIRECT('STRG-Indizes'!$B$3 & "Z" & 'STRG-Indizes'!$B17 & "S" & 'STRG-Indizes'!AD$5, FALSE) -> 3144 | AE18: =INDIRECT('STRG-Indizes'!$B$3 & "Z" & 'STRG-Indizes'!$B17 & "S" & 'STRG-Indizes'!AE$5, FALSE) -> 2823 | AF18: =INDIRECT('STRG-Indizes'!$B$3 & "Z" & 'STRG-Indizes'!$B17 & "S" & 'STRG-Indizes'!AF$5, FALSE) -> 2352 | AG18: =INDIRECT('STRG-Indizes'!$B$3 & "Z" & 'STRG-Indizes'!$B17 & "S" & 'STRG-Indizes'!AG$5, FALSE) -> 2416 | AH18: =INDIRECT('STRG-Indizes'!$B$3 & "Z" & 'STRG-Indizes'!$B17 & "S" & 'STRG-Indizes'!AH$5, FALSE) -> 3980 | AI18: =INDIRECT('STRG-Indizes'!$B$3 & "Z" & 'STRG-Indizes'!$B17 & "S" & 'STRG-Indizes'!AI$5, FALSE) -> 3105 | AJ18: =INDIRECT('STRG-Indizes'!$B$3 & "Z" & 'STRG-Indizes'!$B17 & "S" & 'STRG-Indizes'!AJ$5, FALSE) -> 2668
A19: Bremen | C19: =IF('STRG-Merkmal'!$E$9=2,"",INDIRECT('STRG-Indizes'!$B$3&"Z"&'STRG-Indizes'!$B18&"S"&'STRG-Indizes'!C$5,FALSE)) -> 714 | D19: =IF('STRG-Merkmal'!$E$9=2,"",INDIRECT('STRG-Indizes'!$B$3&"Z"&'STRG-Indizes'!$B18&"S"&'STRG-Indizes'!D$5,FALSE)) -> 930 | E19: =IF('STRG-Merkmal'!$E$9=2,"",INDIRECT('STRG-Indizes'!$B$3&"Z"&'STRG-Indizes'!$B18&"S"&'STRG-Indizes'!E$5,FALSE)) -> 930 | F19: =IF('STRG-Merkmal'!$E$9=2,"",INDIRECT('STRG-Indizes'!$B$3&"Z"&'STRG-Indizes'!$B18&"S"&'STRG-Indizes'!F$5,FALSE)) -> 1085 | G19: =IF('STRG-Merkmal'!$E$9=2,"",INDIRECT('STRG-Indizes'!$B$3&"Z"&'STRG-Indizes'!$B18&"S"&'STRG-Indizes'!G$5,FALSE)) -> 1181 | H19: =IF('STRG-Merkmal'!$E$9=2,"",INDIRECT('STRG-Indizes'!$B$3&"Z"&'STRG-Indizes'!$B18&"S"&'STRG-Indizes'!H$5,FALSE)) -> 1007 | I19: =IF('STRG-Merkmal'!$E$9=2,"",INDIRECT('STRG-Indizes'!$B$3&"Z"&'STRG-Indizes'!$B18&"S"&'STRG-Indizes'!I$5,FALSE)) -> 1075 | J19: =IF('STRG-Merkmal'!$E$9=2,"",INDIRECT('STRG-Indizes'!$B$3&"Z"&'STRG-Indizes'!$B18&"S"&'STRG-Indizes'!J$5,FALSE)) -> 2200 | K19: =IF('STRG-Merkmal'!$E$9=2,"",INDIRECT('STRG-Indizes'!$B$3&"Z"&'STRG-Indizes'!$B18&"S"&'STRG-Indizes'!K$5,FALSE)) -> 1606 | L19: =IF('STRG-Merkmal'!$E$9=2,"",INDIRECT('STRG-Indizes'!$B$3&"Z"&'STRG-Indizes'!$B18&"S"&'STRG-Indizes'!L$5,FALSE)) -> 1153 | M19: =IF('STRG-Merkmal'!$E$9=2,"",INDIRECT('STRG-Indizes'!$B$3&"Z"&'STRG-Indizes'!$B18&"S"&'STRG-Indizes'!M$5,FALSE)) -> 1117 | N19: =INDIRECT('STRG-Indizes'!$B$3&"Z"&'STRG-Indizes'!$B18&"S"&'STRG-Indizes'!N$5,FALSE) -> 895 | O19: =INDIRECT('STRG-Indizes'!$B$3 & "Z" & 'STRG-Indizes'!$B18 & "S" & 'STRG-Indizes'!O$5, FALSE) -> 736 | P19: =INDIRECT('STRG-Indizes'!$B$3 & "Z" & 'STRG-Indizes'!$B18 & "S" & 'STRG-Indizes'!P$5, FALSE) -> 1077 | Q19: =INDIRECT('STRG-Indizes'!$B$3 & "Z" & 'STRG-Indizes'!$B18 & "S" & 'STRG-Indizes'!Q$5, FALSE) -> 988 | R19: =INDIRECT('STRG-Indizes'!$B$3 & "Z" & 'STRG-Indizes'!$B18 & "S" & 'STRG-Indizes'!R$5, FALSE) -> 1095 | S19: =INDIRECT('STRG-Indizes'!$B$3 & "Z" & 'STRG-Indizes'!$B18 & "S" & 'STRG-Indizes'!S$5, FALSE) -> 1200 | T19: =INDIRECT('STRG-Indizes'!$B$3 & "Z" & 'STRG-Indizes'!$B18 & "S" & 'STRG-Indizes'!T$5, FALSE) -> 1085 | U19: =INDIRECT('STRG-Indizes'!$B$3 & "Z" & 'STRG-Indizes'!$B18 & "S" & 'STRG-Indizes'!U$5, FALSE) -> 1210 | V19: =INDIRECT('STRG-Indizes'!$B$3 & "Z" & 'STRG-Indizes'!$B18 & "S" & 'STRG-Indizes'!V$5, FALSE) -> 2300 | W19: =INDIRECT('STRG-Indizes'!$B$3 & "Z" & 'STRG-Indizes'!$B18 & "S" & 'STRG-Indizes'!W$5, FALSE) -> 1622 | X19: =INDIRECT('STRG-Indizes'!$B$3 & "Z" & 'STRG-Indizes'!$B18 & "S" & 'STRG-Indizes'!X$5, FALSE) -> 1323 | Y19: =INDIRECT('STRG-Indizes'!$B$3 & "Z" & 'STRG-Indizes'!$B18 & "S" & 'STRG-Indizes'!Y$5, FALSE) -> 1070 | Z19: =INDIRECT('STRG-Indizes'!$B$3 & "Z" & 'STRG-Indizes'!$B18 & "S" & 'STRG-Indizes'!Z$5, FALSE) -> 886 | AA19: =INDIRECT('STRG-Indizes'!$B$3 & "Z" & 'STRG-Indizes'!$B18 & "S" & 'STRG-Indizes'!AA$5, FALSE) -> 707 | AB19: =INDIRECT('STRG-Indizes'!$B$3 & "Z" & 'STRG-Indizes'!$B18 & "S" & 'STRG-Indizes'!AB$5, FALSE) -> 970 | AC19: =INDIRECT('STRG-Indizes'!$B$3 & "Z" & 'STRG-Indizes'!$B18 & "S" & 'STRG-Indizes'!AC$5, FALSE) -> 994 | AD19: =INDIRECT('STRG-Indizes'!$B$3 & "Z" & 'STRG-Indizes'!$B18 & "S" & 'STRG-Indizes'!AD$5, FALSE) -> 1024 | AE19: =INDIRECT('STRG-Indizes'!$B$3 & "Z" & 'STRG-Indizes'!$B18 & "S" & 'STRG-Indizes'!AE$5, FALSE) -> 1054 | AF19: =INDIRECT('STRG-Indizes'!$B$3 & "Z" & 'STRG-Indizes'!$B18 & "S" & 'STRG-Indizes'!AF$5, FALSE) -> 937 | AG19: =INDIRECT('STRG-Indizes'!$B$3 & "Z" & 'STRG-Indizes'!$B18 & "S" & 'STRG-Indizes'!AG$5, FALSE) -> 1058 | AH19: =INDIRECT('STRG-Indizes'!$B$3 & "Z" & 'STRG-Indizes'!$B18 & "S" & 'STRG-Indizes'!AH$5, FALSE) -> 1871 | AI19: =INDIRECT('STRG-Indizes'!$B$3 & "Z" & 'STRG-Indizes'!$B18 & "S" & 'STRG-Indizes'!AI$5, FALSE) -> 1681 | AJ19: =INDIRECT('STRG-Indizes'!$B$3 & "Z" & 'STRG-Indizes'!$B18 & "S" & 'STRG-Indizes'!AJ$5, FALSE) -> 1359
A20: Hamburg | C20: =IF('STRG-Merkmal'!$E$9=2,"",INDIRECT('STRG-Indizes'!$B$3&"Z"&'STRG-Indizes'!$B19&"S"&'STRG-Indizes'!C$5,FALSE)) -> 1740 | D20: =IF('STRG-Merkmal'!$E$9=2,"",INDIRECT('STRG-Indizes'!$B$3&"Z"&'STRG-Indizes'!$B19&"S"&'STRG-Indizes'!D$5,FALSE)) -> 2454 | E20: =IF('STRG-Merkmal'!$E$9=2,"",INDIRECT('STRG-Indizes'!$B$3&"Z"&'STRG-Indizes'!$B19&"S"&'STRG-Indizes'!E$5,FALSE)) -> 2466 | F20: =IF('STRG-Merkmal'!$E$9=2,"",INDIRECT('STRG-Indizes'!$B$3&"Z"&'STRG-Indizes'!$B19&"S"&'STRG-Indizes'!F$5,FALSE)) -> 2770 | G20: =IF('STRG-Merkmal'!$E$9=2,"",INDIRECT('STRG-Indizes'!$B$3&"Z"&'STRG-Indizes'!$B19&"S"&'STRG-Indizes'!G$5,FALSE)) -> 2840 | H20: =IF('STRG-Merkmal'!$E$9=2,"",INDIRECT('STRG-Indizes'!$B$3&"Z"&'STRG-Indizes'!$B19&"S"&'STRG-Indizes'!H$5,FALSE)) -> 2295 | I20: =IF('STRG-Merkmal'!$E$9=2,"",INDIRECT('STRG-Indizes'!$B$3&"Z"&'STRG-Indizes'!$B19&"S"&'STRG-Indizes'!I$5,FALSE)) -> 2617 | J20: =IF('STRG-Merkmal'!$E$9=2,"",INDIRECT('STRG-Indizes'!$B$3&"Z"&'STRG-Indizes'!$B19&"S"&'STRG-Indizes'!J$5,FALSE)) -> 4069 | K20: =IF('STRG-Merkmal'!$E$9=2,"",INDIRECT('STRG-Indizes'!$B$3&"Z"&'STRG-Indizes'!$B19&"S"&'STRG-Indizes'!K$5,FALSE)) -> 4002 | L20: =IF('STRG-Merkmal'!$E$9=2,"",INDIRECT('STRG-Indizes'!$B$3&"Z"&'STRG-Indizes'!$B19&"S"&'STRG-Indizes'!L$5,FALSE)) -> 2941 | M20: =IF('STRG-Merkmal'!$E$9=2,"",INDIRECT('STRG-Indizes'!$B$3&"Z"&'STRG-Indizes'!$B19&"S"&'STRG-Indizes'!M$5,FALSE)) -> 2653 | N20: =INDIRECT('STRG-Indizes'!$B$3&"Z"&'STRG-Indizes'!$B19&"S"&'STRG-Indizes'!N$5,FALSE) -> 2243 | O20: =INDIRECT('STRG-Indizes'!$B$3 & "Z" & 'STRG-Indizes'!$B19 & "S" & 'STRG-Indizes'!O$5, FALSE) -> 1912 | P20: =INDIRECT('STRG-Indizes'!$B$3 & "Z" & 'STRG-Indizes'!$B19 & "S" & 'STRG-Indizes'!P$5, FALSE) -> 2827 | Q20: =INDIRECT('STRG-Indizes'!$B$3 & "Z" & 'STRG-Indizes'!$B19 & "S" & 'STRG-Indizes'!Q$5, FALSE) -> 2500 | R20: =INDIRECT('STRG-Indizes'!$B$3 & "Z" & 'STRG-Indizes'!$B19 & "S" & 'STRG-Indizes'!R$5, FALSE) -> 2671 | S20: =INDIRECT('STRG-Indizes'!$B$3 & "Z" & 'STRG-Indizes'!$B19 & "S" & 'STRG-Indizes'!S$5, FALSE) -> 2645 | T20: =INDIRECT('STRG-Indizes'!$B$3 & "Z" & 'STRG-Indizes'!$B19 & "S" & 'STRG-Indizes'!T$5, FALSE) -> 2385 | U20: =INDIRECT('STRG-Indizes'!$B$3 & "Z" & 'STRG-Indizes'!$B19 & "S" & 'STRG-Indizes'!U$5, FALSE) -> 2556 | V20: =INDIRECT('STRG-Indizes'!$B$3 & "Z" & 'STRG-Indizes'!$B19 & "S" & 'STRG-Indizes'!V$5, FALSE) -> 4002 | W20: =INDIRECT('STRG-Indizes'!$B$3 & "Z" & 'STRG-Indizes'!$B19 & "S" & 'STRG-Indizes'!W$5, FALSE) -> 3969 | X20: =INDIRECT('STRG-Indizes'!$B$3 & "Z" & 'STRG-Indizes'!$B19 & "S" & 'STRG-Indizes'!X$5, FALSE) -> 2659 | Y20: =INDIRECT('STRG-Indizes'!$B$3 & "Z" & 'STRG-Indizes'!$B19 & "S" & 'STRG-Indizes'!Y$5, FALSE) -> 2735 | Z20: =INDIRECT('STRG-Indizes'!$B$3 & "Z" & 'STRG-Indizes'!$B19 & "S" & 'STRG-Indizes'!Z$5, FALSE) -> 2189 | AA20: =INDIRECT('STRG-Indizes'!$B$3 & "Z" & 'STRG-Indizes'!$B19 & "S" & 'STRG-Indizes'!AA$5, FALSE) -> 1938 | AB20: =INDIRECT('STRG-Indizes'!$B$3 & "Z" & 'STRG-Indizes'!$B19 & "S" & 'STRG-Indizes'!AB$5, FALSE) -> 2775 | AC20: =INDIRECT('STRG-Indizes'!$B$3 & "Z" & 'STRG-Indizes'!$B19 & "S" & 'STRG-Indizes'!AC$5, FALSE) -> 2512 | AD20: =INDIRECT('STRG-Indizes'!$B$3 & "Z" & 'STRG-Indizes'!$B19 & "S" & 'STRG-Indizes'!AD$5, FALSE) -> 2649 | AE20: =INDIRECT('STRG-Indizes'!$B$3 & "Z" & 'STRG-Indizes'!$B19 & "S" & 'STRG-Indizes'!AE$5, FALSE) -> 2494 | AF20: =INDIRECT('STRG-Indizes'!$B$3 & "Z" & 'STRG-Indizes'!$B19 & "S" & 'STRG-Indizes'!AF$5, FALSE) -> 2388 | AG20: =INDIRECT('STRG-Indizes'!$B$3 & "Z" & 'STRG-Indizes'!$B19 & "S" & 'STRG-Indizes'!AG$5, FALSE) -> 2288 | AH20: =INDIRECT('STRG-Indizes'!$B$3 & "Z" & 'STRG-Indizes'!$B19 & "S" & 'STRG-Indizes'!AH$5, FALSE) -> 4414 | AI20: =INDIRECT('STRG-Indizes'!$B$3 & "Z" & 'STRG-Indizes'!$B19 & "S" & 'STRG-Indizes'!AI$5, FALSE) -> 3210 | AJ20: =INDIRECT('STRG-Indizes'!$B$3 & "Z" & 'STRG-Indizes'!$B19 & "S" & 'STRG-Indizes'!AJ$5, FALSE) -> 2490
A21: Hessen | C21: =IF('STRG-Merkmal'!$E$9=2,"",INDIRECT('STRG-Indizes'!$B$3&"Z"&'STRG-Indizes'!$B20&"S"&'STRG-Indizes'!C$5,FALSE)) -> 4083.1959 | D21: =IF('STRG-Merkmal'!$E$9=2,"",INDIRECT('STRG-Indizes'!$B$3&"Z"&'STRG-Indizes'!$B20&"S"&'STRG-Indizes'!D$5,FALSE)) -> 5125 | E21: =IF('STRG-Merkmal'!$E$9=2,"",INDIRECT('STRG-Indizes'!$B$3&"Z"&'STRG-Indizes'!$B20&"S"&'STRG-Indizes'!E$5,FALSE)) -> 5780 | F21: =IF('STRG-Merkmal'!$E$9=2,"",INDIRECT('STRG-Indizes'!$B$3&"Z"&'STRG-Indizes'!$B20&"S"&'STRG-Indizes'!F$5,FALSE)) -> 6549 | G21: =IF('STRG-Merkmal'!$E$9=2,"",INDIRECT('STRG-Indizes'!$B$3&"Z"&'STRG-Indizes'!$B20&"S"&'STRG-Indizes'!G$5,FALSE)) -> 6535 | H21: =IF('STRG-Merkmal'!$E$9=2,"",INDIRECT('STRG-Indizes'!$B$3&"Z"&'STRG-Indizes'!$B20&"S"&'STRG-Indizes'!H$5,FALSE)) -> 5590 | I21: =IF('STRG-Merkmal'!$E$9=2,"",INDIRECT('STRG-Indizes'!$B$3&"Z"&'STRG-Indizes'!$B20&"S"&'STRG-Indizes'!I$5,FALSE)) -> 6623 | J21: =IF('STRG-Merkmal'!$E$9=2,"",INDIRECT('STRG-Indizes'!$B$3&"Z"&'STRG-Indizes'!$B20&"S"&'STRG-Indizes'!J$5,FALSE)) -> 10049 | K21: =IF('STRG-Merkmal'!$E$9=2,"",INDIRECT('STRG-Indizes'!$B$3&"Z"&'STRG-Indizes'!$B20&"S"&'STRG-Indizes'!K$5,FALSE)) -> 8227 | L21: =IF('STRG-Merkmal'!$E$9=2,"",INDIRECT('STRG-Indizes'!$B$3&"Z"&'STRG-Indizes'!$B20&"S"&'STRG-Indizes'!L$5,FALSE)) -> 6930 | M21: =IF('STRG-Merkmal'!$E$9=2,"",INDIRECT('STRG-Indizes'!$B$3&"Z"&'STRG-Indizes'!$B20&"S"&'STRG-Indizes'!M$5,FALSE)) -> 6303 | N21: =INDIRECT('STRG-Indizes'!$B$3&"Z"&'STRG-Indizes'!$B20&"S"&'STRG-Indizes'!N$5,FALSE) -> 5115 | O21: =INDIRECT('STRG-Indizes'!$B$3 & "Z" & 'STRG-Indizes'!$B20 & "S" & 'STRG-Indizes'!O$5, FALSE) -> 4219.614038 | P21: =INDIRECT('STRG-Indizes'!$B$3 & "Z" & 'STRG-Indizes'!$B20 & "S" & 'STRG-Indizes'!P$5, FALSE) -> 5580.186003 | Q21: =INDIRECT('STRG-Indizes'!$B$3 & "Z" & 'STRG-Indizes'!$B20 & "S" & 'STRG-Indizes'!Q$5, FALSE) -> 5553 | R21: =INDIRECT('STRG-Indizes'!$B$3 & "Z" & 'STRG-Indizes'!$B20 & "S" & 'STRG-Indizes'!R$5, FALSE) -> 6151 | S21: =INDIRECT('STRG-Indizes'!$B$3 & "Z" & 'STRG-Indizes'!$B20 & "S" & 'STRG-Indizes'!S$5, FALSE) -> 6540 | T21: =INDIRECT('STRG-Indizes'!$B$3 & "Z" & 'STRG-Indizes'!$B20 & "S" & 'STRG-Indizes'!T$5, FALSE) -> 5660 | U21: =INDIRECT('STRG-Indizes'!$B$3 & "Z" & 'STRG-Indizes'!$B20 & "S" & 'STRG-Indizes'!U$5, FALSE) -> 6394 | V21: =INDIRECT('STRG-Indizes'!$B$3 & "Z" & 'STRG-Indizes'!$B20 & "S" & 'STRG-Indizes'!V$5, FALSE) -> 10734 | W21: =INDIRECT('STRG-Indizes'!$B$3 & "Z" & 'STRG-Indizes'!$B20 & "S" & 'STRG-Indizes'!W$5, FALSE) -> 7816 | X21: =INDIRECT('STRG-Indizes'!$B$3 & "Z" & 'STRG-Indizes'!$B20 & "S" & 'STRG-Indizes'!X$5, FALSE) -> 6371 | Y21: =INDIRECT('STRG-Indizes'!$B$3 & "Z" & 'STRG-Indizes'!$B20 & "S" & 'STRG-Indizes'!Y$5, FALSE) -> 6101 | Z21: =INDIRECT('STRG-Indizes'!$B$3 & "Z" & 'STRG-Indizes'!$B20 & "S" & 'STRG-Indizes'!Z$5, FALSE) -> 4910 | AA21: =INDIRECT('STRG-Indizes'!$B$3 & "Z" & 'STRG-Indizes'!$B20 & "S" & 'STRG-Indizes'!AA$5, FALSE) -> 4115 | AB21: =INDIRECT('STRG-Indizes'!$B$3 & "Z" & 'STRG-Indizes'!$B20 & "S" & 'STRG-Indizes'!AB$5, FALSE) -> 5097 | AC21: =INDIRECT('STRG-Indizes'!$B$3 & "Z" & 'STRG-Indizes'!$B20 & "S" & 'STRG-Indizes'!AC$5, FALSE) -> 5519 | AD21: =INDIRECT('STRG-Indizes'!$B$3 & "Z" & 'STRG-Indizes'!$B20 & "S" & 'STRG-Indizes'!AD$5, FALSE) -> 6167 | AE21: =INDIRECT('STRG-Indizes'!$B$3 & "Z" & 'STRG-Indizes'!$B20 & "S" & 'STRG-Indizes'!AE$5, FALSE) -> 5696 | AF21: =INDIRECT('STRG-Indizes'!$B$3 & "Z" & 'STRG-Indizes'!$B20 & "S" & 'STRG-Indizes'!AF$5, FALSE) -> 5530 | AG21: =INDIRECT('STRG-Indizes'!$B$3 & "Z" & 'STRG-Indizes'!$B20 & "S" & 'STRG-Indizes'!AG$5, FALSE) -> 5481 | AH21: =INDIRECT('STRG-Indizes'!$B$3 & "Z" & 'STRG-Indizes'!$B20 & "S" & 'STRG-Indizes'!AH$5, FALSE) -> 10014 | AI21: =INDIRECT('STRG-Indizes'!$B$3 & "Z" & 'STRG-Indizes'!$B20 & "S" & 'STRG-Indizes'!AI$5, FALSE) -> 7551.199854 | AJ21: =INDIRECT('STRG-Indizes'!$B$3 & "Z" & 'STRG-Indizes'!$B20 & "S" & 'STRG-Indizes'!AJ$5, FALSE) -> 6368
A22: Mecklenburg-Vorpommern | C22: =IF('STRG-Merkmal'!$E$9=2,"",INDIRECT('STRG-Indizes'!$B$3&"Z"&'STRG-Indizes'!$B21&"S"&'STRG-Indizes'!C$5,FALSE)) -> 1541 | D22: =IF('STRG-Merkmal'!$E$9=2,"",INDIRECT('STRG-Indizes'!$B$3&"Z"&'STRG-Indizes'!$B21&"S"&'STRG-Indizes'!D$5,FALSE)) -> 1944 | E22: =IF('STRG-Merkmal'!$E$9=2,"",INDIRECT('STRG-Indizes'!$B$3&"Z"&'STRG-Indizes'!$B21&"S"&'STRG-Indizes'!E$5,FALSE)) -> 2575 | F22: =IF('STRG-Merkmal'!$E$9=2,"",INDIRECT('STRG-Indizes'!$B$3&"Z"&'STRG-Indizes'!$B21&"S"&'STRG-Indizes'!F$5,FALSE)) -> 4028 | G22: =IF('STRG-Merkmal'!$E$9=2,"",INDIRECT('STRG-Indizes'!$B$3&"Z"&'STRG-Indizes'!$B21&"S"&'STRG-Indizes'!G$5,FALSE)) -> 3730 | H22: =IF('STRG-Merkmal'!$E$9=2,"",INDIRECT('STRG-Indizes'!$B$3&"Z"&'STRG-Indizes'!$B21&"S"&'STRG-Indizes'!H$5,FALSE)) -> 2556 | I22: =IF('STRG-Merkmal'!$E$9=2,"",INDIRECT('STRG-Indizes'!$B$3&"Z"&'STRG-Indizes'!$B21&"S"&'STRG-Indizes'!I$5,FALSE)) -> 2867 | J22: =IF('STRG-Merkmal'!$E$9=2,"",INDIRECT('STRG-Indizes'!$B$3&"Z"&'STRG-Indizes'!$B21&"S"&'STRG-Indizes'!J$5,FALSE)) -> 3266 | K22: =IF('STRG-Merkmal'!$E$9=2,"",INDIRECT('STRG-Indizes'!$B$3&"Z"&'STRG-Indizes'!$B21&"S"&'STRG-Indizes'!K$5,FALSE)) -> 3876 | L22: =IF('STRG-Merkmal'!$E$9=2,"",INDIRECT('STRG-Indizes'!$B$3&"Z"&'STRG-Indizes'!$B21&"S"&'STRG-Indizes'!L$5,FALSE)) -> 2336 | M22: =IF('STRG-Merkmal'!$E$9=2,"",INDIRECT('STRG-Indizes'!$B$3&"Z"&'STRG-Indizes'!$B21&"S"&'STRG-Indizes'!M$5,FALSE)) -> 2185 | N22: =INDIRECT('STRG-Indizes'!$B$3&"Z"&'STRG-Indizes'!$B21&"S"&'STRG-Indizes'!N$5,FALSE) -> 1660 | O22: =INDIRECT('STRG-Indizes'!$B$3 & "Z" & 'STRG-Indizes'!$B21 & "S" & 'STRG-Indizes'!O$5, FALSE) -> 1488 | P22: =INDIRECT('STRG-Indizes'!$B$3 & "Z" & 'STRG-Indizes'!$B21 & "S" & 'STRG-Indizes'!P$5, FALSE) -> 1835 | Q22: =INDIRECT('STRG-Indizes'!$B$3 & "Z" & 'STRG-Indizes'!$B21 & "S" & 'STRG-Indizes'!Q$5, FALSE) -> 2203 | R22: =INDIRECT('STRG-Indizes'!$B$3 & "Z" & 'STRG-Indizes'!$B21 & "S" & 'STRG-Indizes'!R$5, FALSE) -> 3201 | S22: =INDIRECT('STRG-Indizes'!$B$3 & "Z" & 'STRG-Indizes'!$B21 & "S" & 'STRG-Indizes'!S$5, FALSE) -> 3380 | T22: =INDIRECT('STRG-Indizes'!$B$3 & "Z" & 'STRG-Indizes'!$B21 & "S" & 'STRG-Indizes'!T$5, FALSE) -> 2529 | U22: =INDIRECT('STRG-Indizes'!$B$3 & "Z" & 'STRG-Indizes'!$B21 & "S" & 'STRG-Indizes'!U$5, FALSE) -> 2510 | V22: =INDIRECT('STRG-Indizes'!$B$3 & "Z" & 'STRG-Indizes'!$B21 & "S" & 'STRG-Indizes'!V$5, FALSE) -> 2747 | W22: =INDIRECT('STRG-Indizes'!$B$3 & "Z" & 'STRG-Indizes'!$B21 & "S" & 'STRG-Indizes'!W$5, FALSE) -> 3562 | X22: =INDIRECT('STRG-Indizes'!$B$3 & "Z" & 'STRG-Indizes'!$B21 & "S" & 'STRG-Indizes'!X$5, FALSE) -> 2175 | Y22: =INDIRECT('STRG-Indizes'!$B$3 & "Z" & 'STRG-Indizes'!$B21 & "S" & 'STRG-Indizes'!Y$5, FALSE) -> 1936 | Z22: =INDIRECT('STRG-Indizes'!$B$3 & "Z" & 'STRG-Indizes'!$B21 & "S" & 'STRG-Indizes'!Z$5, FALSE) -> 1552 | AA22: =INDIRECT('STRG-Indizes'!$B$3 & "Z" & 'STRG-Indizes'!$B21 & "S" & 'STRG-Indizes'!AA$5, FALSE) -> 1451 | AB22: =INDIRECT('STRG-Indizes'!$B$3 & "Z" & 'STRG-Indizes'!$B21 & "S" & 'STRG-Indizes'!AB$5, FALSE) -> 1610 | AC22: =INDIRECT('STRG-Indizes'!$B$3 & "Z" & 'STRG-Indizes'!$B21 & "S" & 'STRG-Indizes'!AC$5, FALSE) -> 2238 | AD22: =INDIRECT('STRG-Indizes'!$B$3 & "Z" & 'STRG-Indizes'!$B21 & "S" & 'STRG-Indizes'!AD$5, FALSE) -> 2816 | AE22: =INDIRECT('STRG-Indizes'!$B$3 & "Z" & 'STRG-Indizes'!$B21 & "S" & 'STRG-Indizes'!AE$5, FALSE) -> 3003 | AF22: =INDIRECT('STRG-Indizes'!$B$3 & "Z" & 'STRG-Indizes'!$B21 & "S" & 'STRG-Indizes'!AF$5, FALSE) -> 2159 | AG22: =INDIRECT('STRG-Indizes'!$B$3 & "Z" & 'STRG-Indizes'!$B21 & "S" & 'STRG-Indizes'!AG$5, FALSE) -> 2078 | AH22: =INDIRECT('STRG-Indizes'!$B$3 & "Z" & 'STRG-Indizes'!$B21 & "S" & 'STRG-Indizes'!AH$5, FALSE) -> 2620 | AI22: =INDIRECT('STRG-Indizes'!$B$3 & "Z" & 'STRG-Indizes'!$B21 & "S" & 'STRG-Indizes'!AI$5, FALSE) -> 3104 | AJ22: =INDIRECT('STRG-Indizes'!$B$3 & "Z" & 'STRG-Indizes'!$B21 & "S" & 'STRG-Indizes'!AJ$5, FALSE) -> 1832
A23: Niedersachsen | C23: =IF('STRG-Merkmal'!$E$9=2,"",INDIRECT('STRG-Indizes'!$B$3&"Z"&'STRG-Indizes'!$B22&"S"&'STRG-Indizes'!C$5,FALSE)) -> 5421 | D23: =IF('STRG-Merkmal'!$E$9=2,"",INDIRECT('STRG-Indizes'!$B$3&"Z"&'STRG-Indizes'!$B22&"S"&'STRG-Indizes'!D$5,FALSE)) -> 6663.545363 | E23: =IF('STRG-Merkmal'!$E$9=2,"",INDIRECT('STRG-Indizes'!$B$3&"Z"&'STRG-Indizes'!$B22&"S"&'STRG-Indizes'!E$5,FALSE)) -> 7718.64062 | F23: =IF('STRG-Merkmal'!$E$9=2,"",INDIRECT('STRG-Indizes'!$B$3&"Z"&'STRG-Indizes'!$B22&"S"&'STRG-Indizes'!F$5,FALSE)) -> 9066 | G23: =IF('STRG-Merkmal'!$E$9=2,"",INDIRECT('STRG-Indizes'!$B$3&"Z"&'STRG-Indizes'!$B22&"S"&'STRG-Indizes'!G$5,FALSE)) -> 8774 | H23: =IF('STRG-Merkmal'!$E$9=2,"",INDIRECT('STRG-Indizes'!$B$3&"Z"&'STRG-Indizes'!$B22&"S"&'STRG-Indizes'!H$5,FALSE)) -> 7330 | I23: =IF('STRG-Merkmal'!$E$9=2,"",INDIRECT('STRG-Indizes'!$B$3&"Z"&'STRG-Indizes'!$B22&"S"&'STRG-Indizes'!I$5,FALSE)) -> 8102 | J23: =IF('STRG-Merkmal'!$E$9=2,"",INDIRECT('STRG-Indizes'!$B$3&"Z"&'STRG-Indizes'!$B22&"S"&'STRG-Indizes'!J$5,FALSE)) -> 16484 | K23: =IF('STRG-Merkmal'!$E$9=2,"",INDIRECT('STRG-Indizes'!$B$3&"Z"&'STRG-Indizes'!$B22&"S"&'STRG-Indizes'!K$5,FALSE)) -> 10725.25095 | L23: =IF('STRG-Merkmal'!$E$9=2,"",INDIRECT('STRG-Indizes'!$B$3&"Z"&'STRG-Indizes'!$B22&"S"&'STRG-Indizes'!L$5,FALSE)) -> 8354 | M23: =IF('STRG-Merkmal'!$E$9=2,"",INDIRECT('STRG-Indizes'!$B$3&"Z"&'STRG-Indizes'!$B22&"S"&'STRG-Indizes'!M$5,FALSE)) -> 7994 | N23: =INDIRECT('STRG-Indizes'!$B$3&"Z"&'STRG-Indizes'!$B22&"S"&'STRG-Indizes'!N$5,FALSE) -> 6221 | O23: =INDIRECT('STRG-Indizes'!$B$3 & "Z" & 'STRG-Indizes'!$B22 & "S" & 'STRG-Indizes'!O$5, FALSE) -> 5617 | P23: =INDIRECT('STRG-Indizes'!$B$3 & "Z" & 'STRG-Indizes'!$B22 & "S" & 'STRG-Indizes'!P$5, FALSE) -> 7430 | Q23: =INDIRECT('STRG-Indizes'!$B$3 & "Z" & 'STRG-Indizes'!$B22 & "S" & 'STRG-Indizes'!Q$5, FALSE) -> 7948 | R23: =INDIRECT('STRG-Indizes'!$B$3 & "Z" & 'STRG-Indizes'!$B22 & "S" & 'STRG-Indizes'!R$5, FALSE) -> 8558 | S23: =INDIRECT('STRG-Indizes'!$B$3 & "Z" & 'STRG-Indizes'!$B22 & "S" & 'STRG-Indizes'!S$5, FALSE) -> 8527 | T23: =INDIRECT('STRG-Indizes'!$B$3 & "Z" & 'STRG-Indizes'!$B22 & "S" & 'STRG-Indizes'!T$5, FALSE) -> 7789 | U23: =INDIRECT('STRG-Indizes'!$B$3 & "Z" & 'STRG-Indizes'!$B22 & "S" & 'STRG-Indizes'!U$5, FALSE) -> 7869 | V23: =INDIRECT('STRG-Indizes'!$B$3 & "Z" & 'STRG-Indizes'!$B22 & "S" & 'STRG-Indizes'!V$5, FALSE) -> 16800 | W23: =INDIRECT('STRG-Indizes'!$B$3 & "Z" & 'STRG-Indizes'!$B22 & "S" & 'STRG-Indizes'!W$5, FALSE) -> 10384 | X23: =INDIRECT('STRG-Indizes'!$B$3 & "Z" & 'STRG-Indizes'!$B22 & "S" & 'STRG-Indizes'!X$5, FALSE) -> 8215.04869 | Y23: =INDIRECT('STRG-Indizes'!$B$3 & "Z" & 'STRG-Indizes'!$B22 & "S" & 'STRG-Indizes'!Y$5, FALSE) -> 7592.696256 | Z23: =INDIRECT('STRG-Indizes'!$B$3 & "Z" & 'STRG-Indizes'!$B22 & "S" & 'STRG-Indizes'!Z$5, FALSE) -> 6269.314482 | AA23: =INDIRECT('STRG-Indizes'!$B$3 & "Z" & 'STRG-Indizes'!$B22 & "S" & 'STRG-Indizes'!AA$5, FALSE) -> 5444 | AB23: =INDIRECT('STRG-Indizes'!$B$3 & "Z" & 'STRG-Indizes'!$B22 & "S" & 'STRG-Indizes'!AB$5, FALSE) -> 6870 | AC23: =INDIRECT('STRG-Indizes'!$B$3 & "Z" & 'STRG-Indizes'!$B22 & "S" & 'STRG-Indizes'!AC$5, FALSE) -> 7484 | AD23: =INDIRECT('STRG-Indizes'!$B$3 & "Z" & 'STRG-Indizes'!$B22 & "S" & 'STRG-Indizes'!AD$5, FALSE) -> 8565 | AE23: =INDIRECT('STRG-Indizes'!$B$3 & "Z" & 'STRG-Indizes'!$B22 & "S" & 'STRG-Indizes'!AE$5, FALSE) -> 7533 | AF23: =INDIRECT('STRG-Indizes'!$B$3 & "Z" & 'STRG-Indizes'!$B22 & "S" & 'STRG-Indizes'!AF$5, FALSE) -> 6880 | AG23: =INDIRECT('STRG-Indizes'!$B$3 & "Z" & 'STRG-Indizes'!$B22 & "S" & 'STRG-Indizes'!AG$5, FALSE) -> 7438 | AH23: =INDIRECT('STRG-Indizes'!$B$3 & "Z" & 'STRG-Indizes'!$B22 & "S" & 'STRG-Indizes'!AH$5, FALSE) -> 14609 | AI23: =INDIRECT('STRG-Indizes'!$B$3 & "Z" & 'STRG-Indizes'!$B22 & "S" & 'STRG-Indizes'!AI$5, FALSE) -> 10965 | AJ23: =INDIRECT('STRG-Indizes'!$B$3 & "Z" & 'STRG-Indizes'!$B22 & "S" & 'STRG-Indizes'!AJ$5, FALSE) -> 7908
A24: Nordrhein-Westfalen | C24: =IF('STRG-Merkmal'!$E$9=2,"",INDIRECT('STRG-Indizes'!$B$3&"Z"&'STRG-Indizes'!$B23&"S"&'STRG-Indizes'!C$5,FALSE)) -> 14695 | D24: =IF('STRG-Merkmal'!$E$9=2,"",INDIRECT('STRG-Indizes'!$B$3&"Z"&'STRG-Indizes'!$B23&"S"&'STRG-Indizes'!D$5,FALSE)) -> 18262 | E24: =IF('STRG-Merkmal'!$E$9=2,"",INDIRECT('STRG-Indizes'!$B$3&"Z"&'STRG-Indizes'!$B23&"S"&'STRG-Indizes'!E$5,FALSE)) -> 19281 | F24: =IF('STRG-Merkmal'!$E$9=2,"",INDIRECT('STRG-Indizes'!$B$3&"Z"&'STRG-Indizes'!$B23&"S"&'STRG-Indizes'!F$5,FALSE)) -> 23458 | G24: =IF('STRG-Merkmal'!$E$9=2,"",INDIRECT('STRG-Indizes'!$B$3&"Z"&'STRG-Indizes'!$B23&"S"&'STRG-Indizes'!G$5,FALSE)) -> 22295 | H24: =IF('STRG-Merkmal'!$E$9=2,"",INDIRECT('STRG-Indizes'!$B$3&"Z"&'STRG-Indizes'!$B23&"S"&'STRG-Indizes'!H$5,FALSE)) -> 19346 | I24: =IF('STRG-Merkmal'!$E$9=2,"",INDIRECT('STRG-Indizes'!$B$3&"Z"&'STRG-Indizes'!$B23&"S"&'STRG-Indizes'!I$5,FALSE)) -> 23537.15574 | J24: =IF('STRG-Merkmal'!$E$9=2,"",INDIRECT('STRG-Indizes'!$B$3&"Z"&'STRG-Indizes'!$B23&"S"&'STRG-Indizes'!J$5,FALSE)) -> 35273.54321 | K24: =IF('STRG-Merkmal'!$E$9=2,"",INDIRECT('STRG-Indizes'!$B$3&"Z"&'STRG-Indizes'!$B23&"S"&'STRG-Indizes'!K$5,FALSE)) -> 32534 | L24: =IF('STRG-Merkmal'!$E$9=2,"",INDIRECT('STRG-Indizes'!$B$3&"Z"&'STRG-Indizes'!$B23&"S"&'STRG-Indizes'!L$5,FALSE)) -> 25083 | M24: =IF('STRG-Merkmal'!$E$9=2,"",INDIRECT('STRG-Indizes'!$B$3&"Z"&'STRG-Indizes'!$B23&"S"&'STRG-Indizes'!M$5,FALSE)) -> 22707 | N24: =INDIRECT('STRG-Indizes'!$B$3&"Z"&'STRG-Indizes'!$B23&"S"&'STRG-Indizes'!N$5,FALSE) -> 17396 | O24: =INDIRECT('STRG-Indizes'!$B$3 & "Z" & 'STRG-Indizes'!$B23 & "S" & 'STRG-Indizes'!O$5, FALSE) -> 15830 | P24: =INDIRECT('STRG-Indizes'!$B$3 & "Z" & 'STRG-Indizes'!$B23 & "S" & 'STRG-Indizes'!P$5, FALSE) -> 20769 | Q24: =INDIRECT('STRG-Indizes'!$B$3 & "Z" & 'STRG-Indizes'!$B23 & "S" & 'STRG-Indizes'!Q$5, FALSE) -> 21233 | R24: =INDIRECT('STRG-Indizes'!$B$3 & "Z" & 'STRG-Indizes'!$B23 & "S" & 'STRG-Indizes'!R$5, FALSE) -> 22081 | S24: =INDIRECT('STRG-Indizes'!$B$3 & "Z" & 'STRG-Indizes'!$B23 & "S" & 'STRG-Indizes'!S$5, FALSE) -> 22311.60531 | T24: =INDIRECT('STRG-Indizes'!$B$3 & "Z" & 'STRG-Indizes'!$B23 & "S" & 'STRG-Indizes'!T$5, FALSE) -> 20222.16891 | U24: =INDIRECT('STRG-Indizes'!$B$3 & "Z" & 'STRG-Indizes'!$B23 & "S" & 'STRG-Indizes'!U$5, FALSE) -> 23212 | V24: =INDIRECT('STRG-Indizes'!$B$3 & "Z" & 'STRG-Indizes'!$B23 & "S" & 'STRG-Indizes'!V$5, FALSE) -> 35250 | W24: =INDIRECT('STRG-Indizes'!$B$3 & "Z" & 'STRG-Indizes'!$B23 & "S" & 'STRG-Indizes'!W$5, FALSE) -> 33118 | X24: =INDIRECT('STRG-Indizes'!$B$3 & "Z" & 'STRG-Indizes'!$B23 & "S" & 'STRG-Indizes'!X$5, FALSE) -> 25370 | Y24: =INDIRECT('STRG-Indizes'!$B$3 & "Z" & 'STRG-Indizes'!$B23 & "S" & 'STRG-Indizes'!Y$5, FALSE) -> 21424 | Z24: =INDIRECT('STRG-Indizes'!$B$3 & "Z" & 'STRG-Indizes'!$B23 & "S" & 'STRG-Indizes'!Z$5, FALSE) -> 16775 | AA24: =INDIRECT('STRG-Indizes'!$B$3 & "Z" & 'STRG-Indizes'!$B23 & "S" & 'STRG-Indizes'!AA$5, FALSE) -> 15882 | AB24: =INDIRECT('STRG-Indizes'!$B$3 & "Z" & 'STRG-Indizes'!$B23 & "S" & 'STRG-Indizes'!AB$5, FALSE) -> 18954 | AC24: =INDIRECT('STRG-Indizes'!$B$3 & "Z" & 'STRG-Indizes'!$B23 & "S" & 'STRG-Indizes'!AC$5, FALSE) -> 19475 | AD24: =INDIRECT('STRG-Indizes'!$B$3 & "Z" & 'STRG-Indizes'!$B23 & "S" & 'STRG-Indizes'!AD$5, FALSE) -> 21968 | AE24: =INDIRECT('STRG-Indizes'!$B$3 & "Z" & 'STRG-Indizes'!$B23 & "S" & 'STRG-Indizes'!AE$5, FALSE) -> 19372 | AF24: =INDIRECT('STRG-Indizes'!$B$3 & "Z" & 'STRG-Indizes'!$B23 & "S" & 'STRG-Indizes'!AF$5, FALSE) -> 19278 | AG24: =INDIRECT('STRG-Indizes'!$B$3 & "Z" & 'STRG-Indizes'!$B23 & "S" & 'STRG-Indizes'!AG$5, FALSE) -> 20521 | AH24: =INDIRECT('STRG-Indizes'!$B$3 & "Z" & 'STRG-Indizes'!$B23 & "S" & 'STRG-Indizes'!AH$5, FALSE) -> 33608 | AI24: =INDIRECT('STRG-Indizes'!$B$3 & "Z" & 'STRG-Indizes'!$B23 & "S" & 'STRG-Indizes'!AI$5, FALSE) -> 31533.718 | AJ24: =INDIRECT('STRG-Indizes'!$B$3 & "Z" & 'STRG-Indizes'!$B23 & "S" & 'STRG-Indizes'!AJ$5, FALSE) -> 24981
A25: Rheinland-Pfalz | C25: =IF('STRG-Merkmal'!$E$9=2,"",INDIRECT('STRG-Indizes'!$B$3&"Z"&'STRG-Indizes'!$B24&"S"&'STRG-Indizes'!C$5,FALSE)) -> 2221 | D25: =IF('STRG-Merkmal'!$E$9=2,"",INDIRECT('STRG-Indizes'!$B$3&"Z"&'STRG-Indizes'!$B24&"S"&'STRG-Indizes'!D$5,FALSE)) -> 3098 | E25: =IF('STRG-Merkmal'!$E$9=2,"",INDIRECT('STRG-Indizes'!$B$3&"Z"&'STRG-Indizes'!$B24&"S"&'STRG-Indizes'!E$5,FALSE)) -> 3439 | F25: =IF('STRG-Merkmal'!$E$9=2,"",INDIRECT('STRG-Indizes'!$B$3&"Z"&'STRG-Indizes'!$B24&"S"&'STRG-Indizes'!F$5,FALSE)) -> 4252 | G25: =IF('STRG-Merkmal'!$E$9=2,"",INDIRECT('STRG-Indizes'!$B$3&"Z"&'STRG-Indizes'!$B24&"S"&'STRG-Indizes'!G$5,FALSE)) -> 4044 | H25: =IF('STRG-Merkmal'!$E$9=2,"",INDIRECT('STRG-Indizes'!$B$3&"Z"&'STRG-Indizes'!$B24&"S"&'STRG-Indizes'!H$5,FALSE)) -> 3342 | I25: =IF('STRG-Merkmal'!$E$9=2,"",INDIRECT('STRG-Indizes'!$B$3&"Z"&'STRG-Indizes'!$B24&"S"&'STRG-Indizes'!I$5,FALSE)) -> 3945 | J25: =IF('STRG-Merkmal'!$E$9=2,"",INDIRECT('STRG-Indizes'!$B$3&"Z"&'STRG-Indizes'!$B24&"S"&'STRG-Indizes'!J$5,FALSE)) -> 6564 | K25: =IF('STRG-Merkmal'!$E$9=2,"",INDIRECT('STRG-Indizes'!$B$3&"Z"&'STRG-Indizes'!$B24&"S"&'STRG-Indizes'!K$5,FALSE)) -> 5256 | L25: =IF('STRG-Merkmal'!$E$9=2,"",INDIRECT('STRG-Indizes'!$B$3&"Z"&'STRG-Indizes'!$B24&"S"&'STRG-Indizes'!L$5,FALSE)) -> 4105 | M25: =IF('STRG-Merkmal'!$E$9=2,"",INDIRECT('STRG-Indizes'!$B$3&"Z"&'STRG-Indizes'!$B24&"S"&'STRG-Indizes'!M$5,FALSE)) -> 3720 | N25: =INDIRECT('STRG-Indizes'!$B$3&"Z"&'STRG-Indizes'!$B24&"S"&'STRG-Indizes'!N$5,FALSE) -> 2926 | O25: =INDIRECT('STRG-Indizes'!$B$3 & "Z" & 'STRG-Indizes'!$B24 & "S" & 'STRG-Indizes'!O$5, FALSE) -> 2603 | P25: =INDIRECT('STRG-Indizes'!$B$3 & "Z" & 'STRG-Indizes'!$B24 & "S" & 'STRG-Indizes'!P$5, FALSE) -> 3293 | Q25: =INDIRECT('STRG-Indizes'!$B$3 & "Z" & 'STRG-Indizes'!$B24 & "S" & 'STRG-Indizes'!Q$5, FALSE) -> 3678 | R25: =INDIRECT('STRG-Indizes'!$B$3 & "Z" & 'STRG-Indizes'!$B24 & "S" & 'STRG-Indizes'!R$5, FALSE) -> 4032 | S25: =INDIRECT('STRG-Indizes'!$B$3 & "Z" & 'STRG-Indizes'!$B24 & "S" & 'STRG-Indizes'!S$5, FALSE) -> 4044 | T25: =INDIRECT('STRG-Indizes'!$B$3 & "Z" & 'STRG-Indizes'!$B24 & "S" & 'STRG-Indizes'!T$5, FALSE) -> 3667 | U25: =INDIRECT('STRG-Indizes'!$B$3 & "Z" & 'STRG-Indizes'!$B24 & "S" & 'STRG-Indizes'!U$5, FALSE) -> 4017 | V25: =INDIRECT('STRG-Indizes'!$B$3 & "Z" & 'STRG-Indizes'!$B24 & "S" & 'STRG-Indizes'!V$5, FALSE) -> 6974 | W25: =INDIRECT('STRG-Indizes'!$B$3 & "Z" & 'STRG-Indizes'!$B24 & "S" & 'STRG-Indizes'!W$5, FALSE) -> 5062 | X25: =INDIRECT('STRG-Indizes'!$B$3 & "Z" & 'STRG-Indizes'!$B24 & "S" & 'STRG-Indizes'!X$5, FALSE) -> 4326 | Y25: =INDIRECT('STRG-Indizes'!$B$3 & "Z" & 'STRG-Indizes'!$B24 & "S" & 'STRG-Indizes'!Y$5, FALSE) -> 3717 | Z25: =INDIRECT('STRG-Indizes'!$B$3 & "Z" & 'STRG-Indizes'!$B24 & "S" & 'STRG-Indizes'!Z$5, FALSE) -> 2842 | AA25: =INDIRECT('STRG-Indizes'!$B$3 & "Z" & 'STRG-Indizes'!$B24 & "S" & 'STRG-Indizes'!AA$5, FALSE) -> 2518 | AB25: =INDIRECT('STRG-Indizes'!$B$3 & "Z" & 'STRG-Indizes'!$B24 & "S" & 'STRG-Indizes'!AB$5, FALSE) -> 3115 | AC25: =INDIRECT('STRG-Indizes'!$B$3 & "Z" & 'STRG-Indizes'!$B24 & "S" & 'STRG-Indizes'!AC$5, FALSE) -> 3282 | AD25: =INDIRECT('STRG-Indizes'!$B$3 & "Z" & 'STRG-Indizes'!$B24 & "S" & 'STRG-Indizes'!AD$5, FALSE) -> 3906 | AE25: =INDIRECT('STRG-Indizes'!$B$3 & "Z" & 'STRG-Indizes'!$B24 & "S" & 'STRG-Indizes'!AE$5, FALSE) -> 3608 | AF25: =INDIRECT('STRG-Indizes'!$B$3 & "Z" & 'STRG-Indizes'!$B24 & "S" & 'STRG-Indizes'!AF$5, FALSE) -> 3468 | AG25: =INDIRECT('STRG-Indizes'!$B$3 & "Z" & 'STRG-Indizes'!$B24 & "S" & 'STRG-Indizes'!AG$5, FALSE) -> 3422 | AH25: =INDIRECT('STRG-Indizes'!$B$3 & "Z" & 'STRG-Indizes'!$B24 & "S" & 'STRG-Indizes'!AH$5, FALSE) -> 6382 | AI25: =INDIRECT('STRG-Indizes'!$B$3 & "Z" & 'STRG-Indizes'!$B24 & "S" & 'STRG-Indizes'!AI$5, FALSE) -> 4474 | AJ25: =INDIRECT('STRG-Indizes'!$B$3 & "Z" & 'STRG-Indizes'!$B24 & "S" & 'STRG-Indizes'!AJ$5, FALSE) -> 3898
A26: Saarland | C26: =IF('STRG-Merkmal'!$E$9=2,"",INDIRECT('STRG-Indizes'!$B$3&"Z"&'STRG-Indizes'!$B25&"S"&'STRG-Indizes'!C$5,FALSE)) -> 820 | D26: =IF('STRG-Merkmal'!$E$9=2,"",INDIRECT('STRG-Indizes'!$B$3&"Z"&'STRG-Indizes'!$B25&"S"&'STRG-Indizes'!D$5,FALSE)) -> 1018 | E26: =IF('STRG-Merkmal'!$E$9=2,"",INDIRECT('STRG-Indizes'!$B$3&"Z"&'STRG-Indizes'!$B25&"S"&'STRG-Indizes'!E$5,FALSE)) -> 1069 | F26: =IF('STRG-Merkmal'!$E$9=2,"",INDIRECT('STRG-Indizes'!$B$3&"Z"&'STRG-Indizes'!$B25&"S"&'STRG-Indizes'!F$5,FALSE)) -> 1273 | G26: =IF('STRG-Merkmal'!$E$9=2,"",INDIRECT('STRG-Indizes'!$B$3&"Z"&'STRG-Indizes'!$B25&"S"&'STRG-Indizes'!G$5,FALSE)) -> 1304 | H26: =IF('STRG-Merkmal'!$E$9=2,"",INDIRECT('STRG-Indizes'!$B$3&"Z"&'STRG-Indizes'!$B25&"S"&'STRG-Indizes'!H$5,FALSE)) -> 1102 | I26: =IF('STRG-Merkmal'!$E$9=2,"",INDIRECT('STRG-Indizes'!$B$3&"Z"&'STRG-Indizes'!$B25&"S"&'STRG-Indizes'!I$5,FALSE)) -> 1334 | J26: =IF('STRG-Merkmal'!$E$9=2,"",INDIRECT('STRG-Indizes'!$B$3&"Z"&'STRG-Indizes'!$B25&"S"&'STRG-Indizes'!J$5,FALSE)) -> 1847 | K26: =IF('STRG-Merkmal'!$E$9=2,"",INDIRECT('STRG-Indizes'!$B$3&"Z"&'STRG-Indizes'!$B25&"S"&'STRG-Indizes'!K$5,FALSE)) -> 1872 | L26: =IF('STRG-Merkmal'!$E$9=2,"",INDIRECT('STRG-Indizes'!$B$3&"Z"&'STRG-Indizes'!$B25&"S"&'STRG-Indizes'!L$5,FALSE)) -> 1523 | M26: =IF('STRG-Merkmal'!$E$9=2,"",INDIRECT('STRG-Indizes'!$B$3&"Z"&'STRG-Indizes'!$B25&"S"&'STRG-Indizes'!M$5,FALSE)) -> 1270 | N26: =INDIRECT('STRG-Indizes'!$B$3&"Z"&'STRG-Indizes'!$B25&"S"&'STRG-Indizes'!N$5,FALSE) -> 1089 | O26: =INDIRECT('STRG-Indizes'!$B$3 & "Z" & 'STRG-Indizes'!$B25 & "S" & 'STRG-Indizes'!O$5, FALSE) -> 941 | P26: =INDIRECT('STRG-Indizes'!$B$3 & "Z" & 'STRG-Indizes'!$B25 & "S" & 'STRG-Indizes'!P$5, FALSE) -> 1197 | Q26: =INDIRECT('STRG-Indizes'!$B$3 & "Z" & 'STRG-Indizes'!$B25 & "S" & 'STRG-Indizes'!Q$5, FALSE) -> 1326 | R26: =INDIRECT('STRG-Indizes'!$B$3 & "Z" & 'STRG-Indizes'!$B25 & "S" & 'STRG-Indizes'!R$5, FALSE) -> 1414 | S26: =INDIRECT('STRG-Indizes'!$B$3 & "Z" & 'STRG-Indizes'!$B25 & "S" & 'STRG-Indizes'!S$5, FALSE) -> 1365 | T26: =INDIRECT('STRG-Indizes'!$B$3 & "Z" & 'STRG-Indizes'!$B25 & "S" & 'STRG-Indizes'!T$5, FALSE) -> 1267 | U26: =INDIRECT('STRG-Indizes'!$B$3 & "Z" & 'STRG-Indizes'!$B25 & "S" & 'STRG-Indizes'!U$5, FALSE) -> 1352 | V26: =INDIRECT('STRG-Indizes'!$B$3 & "Z" & 'STRG-Indizes'!$B25 & "S" & 'STRG-Indizes'!V$5, FALSE) -> 2364 | W26: =INDIRECT('STRG-Indizes'!$B$3 & "Z" & 'STRG-Indizes'!$B25 & "S" & 'STRG-Indizes'!W$5, FALSE) -> 1618 | X26: =INDIRECT('STRG-Indizes'!$B$3 & "Z" & 'STRG-Indizes'!$B25 & "S" & 'STRG-Indizes'!X$5, FALSE) -> 1565 | Y26: =INDIRECT('STRG-Indizes'!$B$3 & "Z" & 'STRG-Indizes'!$B25 & "S" & 'STRG-Indizes'!Y$5, FALSE) -> 1283 | Z26: =INDIRECT('STRG-Indizes'!$B$3 & "Z" & 'STRG-Indizes'!$B25 & "S" & 'STRG-Indizes'!Z$5, FALSE) -> 920 | AA26: =INDIRECT('STRG-Indizes'!$B$3 & "Z" & 'STRG-Indizes'!$B25 & "S" & 'STRG-Indizes'!AA$5, FALSE) -> 937 | AB26: =INDIRECT('STRG-Indizes'!$B$3 & "Z" & 'STRG-Indizes'!$B25 & "S" & 'STRG-Indizes'!AB$5, FALSE) -> 1156 | AC26: =INDIRECT('STRG-Indizes'!$B$3 & "Z" & 'STRG-Indizes'!$B25 & "S" & 'STRG-Indizes'!AC$5, FALSE) -> 1184 | AD26: =INDIRECT('STRG-Indizes'!$B$3 & "Z" & 'STRG-Indizes'!$B25 & "S" & 'STRG-Indizes'!AD$5, FALSE) -> 1210 | AE26: =INDIRECT('STRG-Indizes'!$B$3 & "Z" & 'STRG-Indizes'!$B25 & "S" & 'STRG-Indizes'!AE$5, FALSE) -> 1165 | AF26: =INDIRECT('STRG-Indizes'!$B$3 & "Z" & 'STRG-Indizes'!$B25 & "S" & 'STRG-Indizes'!AF$5, FALSE) -> 1245 | AG26: =INDIRECT('STRG-Indizes'!$B$3 & "Z" & 'STRG-Indizes'!$B25 & "S" & 'STRG-Indizes'!AG$5, FALSE) -> 1130 | AH26: =INDIRECT('STRG-Indizes'!$B$3 & "Z" & 'STRG-Indizes'!$B25 & "S" & 'STRG-Indizes'!AH$5, FALSE) -> 2105 | AI26: =INDIRECT('STRG-Indizes'!$B$3 & "Z" & 'STRG-Indizes'!$B25 & "S" & 'STRG-Indizes'!AI$5, FALSE) -> 1467 | AJ26: =INDIRECT('STRG-Indizes'!$B$3 & "Z" & 'STRG-Indizes'!$B25 & "S" & 'STRG-Indizes'!AJ$5, FALSE) -> 1341
A27: Sachsen | C27: =IF('STRG-Merkmal'!$E$9=2,"",INDIRECT('STRG-Indizes'!$B$3&"Z"&'STRG-Indizes'!$B26&"S"&'STRG-Indizes'!C$5,FALSE)) -> 3497 | D27: =IF('STRG-Merkmal'!$E$9=2,"",INDIRECT('STRG-Indizes'!$B$3&"Z"&'STRG-Indizes'!$B26&"S"&'STRG-Indizes'!D$5,FALSE)) -> 4122 | E27: =IF('STRG-Merkmal'!$E$9=2,"",INDIRECT('STRG-Indizes'!$B$3&"Z"&'STRG-Indizes'!$B26&"S"&'STRG-Indizes'!E$5,FALSE)) -> 4584 | F27: =IF('STRG-Merkmal'!$E$9=2,"",INDIRECT('STRG-Indizes'!$B$3&"Z"&'STRG-Indizes'!$B26&"S"&'STRG-Indizes'!F$5,FALSE)) -> 5616 | G27: =IF('STRG-Merkmal'!$E$9=2,"",INDIRECT('STRG-Indizes'!$B$3&"Z"&'STRG-Indizes'!$B26&"S"&'STRG-Indizes'!G$5,FALSE)) -> 5639 | H27: =IF('STRG-Merkmal'!$E$9=2,"",INDIRECT('STRG-Indizes'!$B$3&"Z"&'STRG-Indizes'!$B26&"S"&'STRG-Indizes'!H$5,FALSE)) -> 4363 | I27: =IF('STRG-Merkmal'!$E$9=2,"",INDIRECT('STRG-Indizes'!$B$3&"Z"&'STRG-Indizes'!$B26&"S"&'STRG-Indizes'!I$5,FALSE)) -> 4928 | J27: =IF('STRG-Merkmal'!$E$9=2,"",INDIRECT('STRG-Indizes'!$B$3&"Z"&'STRG-Indizes'!$B26&"S"&'STRG-Indizes'!J$5,FALSE)) -> 8541 | K27: =IF('STRG-Merkmal'!$E$9=2,"",INDIRECT('STRG-Indizes'!$B$3&"Z"&'STRG-Indizes'!$B26&"S"&'STRG-Indizes'!K$5,FALSE)) -> 7205 | L27: =IF('STRG-Merkmal'!$E$9=2,"",INDIRECT('STRG-Indizes'!$B$3&"Z"&'STRG-Indizes'!$B26&"S"&'STRG-Indizes'!L$5,FALSE)) -> 5037 | M27: =IF('STRG-Merkmal'!$E$9=2,"",INDIRECT('STRG-Indizes'!$B$3&"Z"&'STRG-Indizes'!$B26&"S"&'STRG-Indizes'!M$5,FALSE)) -> 4968 | N27: =INDIRECT('STRG-Indizes'!$B$3&"Z"&'STRG-Indizes'!$B26&"S"&'STRG-Indizes'!N$5,FALSE) -> 3733 | O27: =INDIRECT('STRG-Indizes'!$B$3 & "Z" & 'STRG-Indizes'!$B26 & "S" & 'STRG-Indizes'!O$5, FALSE) -> 3154 | P27: =INDIRECT('STRG-Indizes'!$B$3 & "Z" & 'STRG-Indizes'!$B26 & "S" & 'STRG-Indizes'!P$5, FALSE) -> 4089 | Q27: =INDIRECT('STRG-Indizes'!$B$3 & "Z" & 'STRG-Indizes'!$B26 & "S" & 'STRG-Indizes'!Q$5, FALSE) -> 4347 | R27: =INDIRECT('STRG-Indizes'!$B$3 & "Z" & 'STRG-Indizes'!$B26 & "S" & 'STRG-Indizes'!R$5, FALSE) -> 4760 | S27: =INDIRECT('STRG-Indizes'!$B$3 & "Z" & 'STRG-Indizes'!$B26 & "S" & 'STRG-Indizes'!S$5, FALSE) -> 5368 | T27: =INDIRECT('STRG-Indizes'!$B$3 & "Z" & 'STRG-Indizes'!$B26 & "S" & 'STRG-Indizes'!T$5, FALSE) -> 4563 | U27: =INDIRECT('STRG-Indizes'!$B$3 & "Z" & 'STRG-Indizes'!$B26 & "S" & 'STRG-Indizes'!U$5, FALSE) -> 4588 | V27: =INDIRECT('STRG-Indizes'!$B$3 & "Z" & 'STRG-Indizes'!$B26 & "S" & 'STRG-Indizes'!V$5, FALSE) -> 7624 | W27: =INDIRECT('STRG-Indizes'!$B$3 & "Z" & 'STRG-Indizes'!$B26 & "S" & 'STRG-Indizes'!W$5, FALSE) -> 6518 | X27: =INDIRECT('STRG-Indizes'!$B$3 & "Z" & 'STRG-Indizes'!$B26 & "S" & 'STRG-Indizes'!X$5, FALSE) -> 4593 | Y27: =INDIRECT('STRG-Indizes'!$B$3 & "Z" & 'STRG-Indizes'!$B26 & "S" & 'STRG-Indizes'!Y$5, FALSE) -> 4502 | Z27: =INDIRECT('STRG-Indizes'!$B$3 & "Z" & 'STRG-Indizes'!$B26 & "S" & 'STRG-Indizes'!Z$5, FALSE) -> 3392 | AA27: =INDIRECT('STRG-Indizes'!$B$3 & "Z" & 'STRG-Indizes'!$B26 & "S" & 'STRG-Indizes'!AA$5, FALSE) -> 3157 | AB27: =INDIRECT('STRG-Indizes'!$B$3 & "Z" & 'STRG-Indizes'!$B26 & "S" & 'STRG-Indizes'!AB$5, FALSE) -> 3479 | AC27: =INDIRECT('STRG-Indizes'!$B$3 & "Z" & 'STRG-Indizes'!$B26 & "S" & 'STRG-Indizes'!AC$5, FALSE) -> 4044 | AD27: =INDIRECT('STRG-Indizes'!$B$3 & "Z" & 'STRG-Indizes'!$B26 & "S" & 'STRG-Indizes'!AD$5, FALSE) -> 4441 | AE27: =INDIRECT('STRG-Indizes'!$B$3 & "Z" & 'STRG-Indizes'!$B26 & "S" & 'STRG-Indizes'!AE$5, FALSE) -> 4293 | AF27: =INDIRECT('STRG-Indizes'!$B$3 & "Z" & 'STRG-Indizes'!$B26 & "S" & 'STRG-Indizes'!AF$5, FALSE) -> 3882 | AG27: =INDIRECT('STRG-Indizes'!$B$3 & "Z" & 'STRG-Indizes'!$B26 & "S" & 'STRG-Indizes'!AG$5, FALSE) -> 3904 | AH27: =INDIRECT('STRG-Indizes'!$B$3 & "Z" & 'STRG-Indizes'!$B26 & "S" & 'STRG-Indizes'!AH$5, FALSE) -> 5370 | AI27: =INDIRECT('STRG-Indizes'!$B$3 & "Z" & 'STRG-Indizes'!$B26 & "S" & 'STRG-Indizes'!AI$5, FALSE) -> 6918 | AJ27: =INDIRECT('STRG-Indizes'!$B$3 & "Z" & 'STRG-Indizes'!$B26 & "S" & 'STRG-Indizes'!AJ$5, FALSE) -> 4426
A28: Sachsen-Anhalt | C28: =IF('STRG-Merkmal'!$E$9=2,"",INDIRECT('STRG-Indizes'!$B$3&"Z"&'STRG-Indizes'!$B27&"S"&'STRG-Indizes'!C$5,FALSE)) -> 2331.841624 | D28: =IF('STRG-Merkmal'!$E$9=2,"",INDIRECT('STRG-Indizes'!$B$3&"Z"&'STRG-Indizes'!$B27&"S"&'STRG-Indizes'!D$5,FALSE)) -> 2988 | E28: =IF('STRG-Merkmal'!$E$9=2,"",INDIRECT('STRG-Indizes'!$B$3&"Z"&'STRG-Indizes'!$B27&"S"&'STRG-Indizes'!E$5,FALSE)) -> 3243 | F28: =IF('STRG-Merkmal'!$E$9=2,"",INDIRECT('STRG-Indizes'!$B$3&"Z"&'STRG-Indizes'!$B27&"S"&'STRG-Indizes'!F$5,FALSE)) -> 3846 | G28: =IF('STRG-Merkmal'!$E$9=2,"",INDIRECT('STRG-Indizes'!$B$3&"Z"&'STRG-Indizes'!$B27&"S"&'STRG-Indizes'!G$5,FALSE)) -> 3928 | H28: =IF('STRG-Merkmal'!$E$9=2,"",INDIRECT('STRG-Indizes'!$B$3&"Z"&'STRG-Indizes'!$B27&"S"&'STRG-Indizes'!H$5,FALSE)) -> 3219 | I28: =IF('STRG-Merkmal'!$E$9=2,"",INDIRECT('STRG-Indizes'!$B$3&"Z"&'STRG-Indizes'!$B27&"S"&'STRG-Indizes'!I$5,FALSE)) -> 3569 | J28: =IF('STRG-Merkmal'!$E$9=2,"",INDIRECT('STRG-Indizes'!$B$3&"Z"&'STRG-Indizes'!$B27&"S"&'STRG-Indizes'!J$5,FALSE)) -> 6107 | K28: =IF('STRG-Merkmal'!$E$9=2,"",INDIRECT('STRG-Indizes'!$B$3&"Z"&'STRG-Indizes'!$B27&"S"&'STRG-Indizes'!K$5,FALSE)) -> 4622 | L28: =IF('STRG-Merkmal'!$E$9=2,"",INDIRECT('STRG-Indizes'!$B$3&"Z"&'STRG-Indizes'!$B27&"S"&'STRG-Indizes'!L$5,FALSE)) -> 3284 | M28: =IF('STRG-Merkmal'!$E$9=2,"",INDIRECT('STRG-Indizes'!$B$3&"Z"&'STRG-Indizes'!$B27&"S"&'STRG-Indizes'!M$5,FALSE)) -> 3320 | N28: =INDIRECT('STRG-Indizes'!$B$3&"Z"&'STRG-Indizes'!$B27&"S"&'STRG-Indizes'!N$5,FALSE) -> 2666 | O28: =INDIRECT('STRG-Indizes'!$B$3 & "Z" & 'STRG-Indizes'!$B27 & "S" & 'STRG-Indizes'!O$5, FALSE) -> 2019 | P28: =INDIRECT('STRG-Indizes'!$B$3 & "Z" & 'STRG-Indizes'!$B27 & "S" & 'STRG-Indizes'!P$5, FALSE) -> 2820 | Q28: =INDIRECT('STRG-Indizes'!$B$3 & "Z" & 'STRG-Indizes'!$B27 & "S" & 'STRG-Indizes'!Q$5, FALSE) -> 2988 | R28: =INDIRECT('STRG-Indizes'!$B$3 & "Z" & 'STRG-Indizes'!$B27 & "S" & 'STRG-Indizes'!R$5, FALSE) -> 3359 | S28: =INDIRECT('STRG-Indizes'!$B$3 & "Z" & 'STRG-Indizes'!$B27 & "S" & 'STRG-Indizes'!S$5, FALSE) -> 3690 | T28: =INDIRECT('STRG-Indizes'!$B$3 & "Z" & 'STRG-Indizes'!$B27 & "S" & 'STRG-Indizes'!T$5, FALSE) -> 3037 | U28: =INDIRECT('STRG-Indizes'!$B$3 & "Z" & 'STRG-Indizes'!$B27 & "S" & 'STRG-Indizes'!U$5, FALSE) -> 2905 | V28: =INDIRECT('STRG-Indizes'!$B$3 & "Z" & 'STRG-Indizes'!$B27 & "S" & 'STRG-Indizes'!V$5, FALSE) -> 5445 | W28: =INDIRECT('STRG-Indizes'!$B$3 & "Z" & 'STRG-Indizes'!$B27 & "S" & 'STRG-Indizes'!W$5, FALSE) -> 4433 | X28: =INDIRECT('STRG-Indizes'!$B$3 & "Z" & 'STRG-Indizes'!$B27 & "S" & 'STRG-Indizes'!X$5, FALSE) -> 3145 | Y28: =INDIRECT('STRG-Indizes'!$B$3 & "Z" & 'STRG-Indizes'!$B27 & "S" & 'STRG-Indizes'!Y$5, FALSE) -> 3010 | Z28: =INDIRECT('STRG-Indizes'!$B$3 & "Z" & 'STRG-Indizes'!$B27 & "S" & 'STRG-Indizes'!Z$5, FALSE) -> 2317 | AA28: =INDIRECT('STRG-Indizes'!$B$3 & "Z" & 'STRG-Indizes'!$B27 & "S" & 'STRG-Indizes'!AA$5, FALSE) -> 1991 | AB28: =INDIRECT('STRG-Indizes'!$B$3 & "Z" & 'STRG-Indizes'!$B27 & "S" & 'STRG-Indizes'!AB$5, FALSE) -> 2294 | AC28: =INDIRECT('STRG-Indizes'!$B$3 & "Z" & 'STRG-Indizes'!$B27 & "S" & 'STRG-Indizes'!AC$5, FALSE) -> 2811 | AD28: =INDIRECT('STRG-Indizes'!$B$3 & "Z" & 'STRG-Indizes'!$B27 & "S" & 'STRG-Indizes'!AD$5, FALSE) -> 3225 | AE28: =INDIRECT('STRG-Indizes'!$B$3 & "Z" & 'STRG-Indizes'!$B27 & "S" & 'STRG-Indizes'!AE$5, FALSE) -> 2896 | AF28: =INDIRECT('STRG-Indizes'!$B$3 & "Z" & 'STRG-Indizes'!$B27 & "S" & 'STRG-Indizes'!AF$5, FALSE) -> 2601 | AG28: =INDIRECT('STRG-Indizes'!$B$3 & "Z" & 'STRG-Indizes'!$B27 & "S" & 'STRG-Indizes'!AG$5, FALSE) -> 2668 | AH28: =INDIRECT('STRG-Indizes'!$B$3 & "Z" & 'STRG-Indizes'!$B27 & "S" & 'STRG-Indizes'!AH$5, FALSE) -> 4207 | AI28: =INDIRECT('STRG-Indizes'!$B$3 & "Z" & 'STRG-Indizes'!$B27 & "S" & 'STRG-Indizes'!AI$5, FALSE) -> 4620 | AJ28: =INDIRECT('STRG-Indizes'!$B$3 & "Z" & 'STRG-Indizes'!$B27 & "S" & 'STRG-Indizes'!AJ$5, FALSE) -> 2905
A29: Schleswig-Holstein | C29: =IF('STRG-Merkmal'!$E$9=2,"",INDIRECT('STRG-Indizes'!$B$3&"Z"&'STRG-Indizes'!$B28&"S"&'STRG-Indizes'!C$5,FALSE)) -> 2099 | D29: =IF('STRG-Merkmal'!$E$9=2,"",INDIRECT('STRG-Indizes'!$B$3&"Z"&'STRG-Indizes'!$B28&"S"&'STRG-Indizes'!D$5,FALSE)) -> 2690 | E29: =IF('STRG-Merkmal'!$E$9=2,"",INDIRECT('STRG-Indizes'!$B$3&"Z"&'STRG-Indizes'!$B28&"S"&'STRG-Indizes'!E$5,FALSE)) -> 3027 | F29: =IF('STRG-Merkmal'!$E$9=2,"",INDIRECT('STRG-Indizes'!$B$3&"Z"&'STRG-Indizes'!$B28&"S"&'STRG-Indizes'!F$5,FALSE)) -> 4210 | G29: =IF('STRG-Merkmal'!$E$9=2,"",INDIRECT('STRG-Indizes'!$B$3&"Z"&'STRG-Indizes'!$B28&"S"&'STRG-Indizes'!G$5,FALSE)) -> 3701 | H29: =IF('STRG-Merkmal'!$E$9=2,"",INDIRECT('STRG-Indizes'!$B$3&"Z"&'STRG-Indizes'!$B28&"S"&'STRG-Indizes'!H$5,FALSE)) -> 2956 | I29: =IF('STRG-Merkmal'!$E$9=2,"",INDIRECT('STRG-Indizes'!$B$3&"Z"&'STRG-Indizes'!$B28&"S"&'STRG-Indizes'!I$5,FALSE)) -> 3334 | J29: =IF('STRG-Merkmal'!$E$9=2,"",INDIRECT('STRG-Indizes'!$B$3&"Z"&'STRG-Indizes'!$B28&"S"&'STRG-Indizes'!J$5,FALSE)) -> 4983 | K29: =IF('STRG-Merkmal'!$E$9=2,"",INDIRECT('STRG-Indizes'!$B$3&"Z"&'STRG-Indizes'!$B28&"S"&'STRG-Indizes'!K$5,FALSE)) -> 5124 | L29: =IF('STRG-Merkmal'!$E$9=2,"",INDIRECT('STRG-Indizes'!$B$3&"Z"&'STRG-Indizes'!$B28&"S"&'STRG-Indizes'!L$5,FALSE)) -> 3588 | M29: =IF('STRG-Merkmal'!$E$9=2,"",INDIRECT('STRG-Indizes'!$B$3&"Z"&'STRG-Indizes'!$B28&"S"&'STRG-Indizes'!M$5,FALSE)) -> 3175 | N29: =INDIRECT('STRG-Indizes'!$B$3&"Z"&'STRG-Indizes'!$B28&"S"&'STRG-Indizes'!N$5,FALSE) -> 2399 | O29: =INDIRECT('STRG-Indizes'!$B$3 & "Z" & 'STRG-Indizes'!$B28 & "S" & 'STRG-Indizes'!O$5, FALSE) -> 2086 | P29: =INDIRECT('STRG-Indizes'!$B$3 & "Z" & 'STRG-Indizes'!$B28 & "S" & 'STRG-Indizes'!P$5, FALSE) -> 2857 | Q29: =INDIRECT('STRG-Indizes'!$B$3 & "Z" & 'STRG-Indizes'!$B28 & "S" & 'STRG-Indizes'!Q$5, FALSE) -> 3216.608628 | R29: =INDIRECT('STRG-Indizes'!$B$3 & "Z" & 'STRG-Indizes'!$B28 & "S" & 'STRG-Indizes'!R$5, FALSE) -> 3892.045697 | S29: =INDIRECT('STRG-Indizes'!$B$3 & "Z" & 'STRG-Indizes'!$B28 & "S" & 'STRG-Indizes'!S$5, FALSE) -> 3854.223713 | T29: =INDIRECT('STRG-Indizes'!$B$3 & "Z" & 'STRG-Indizes'!$B28 & "S" & 'STRG-Indizes'!T$5, FALSE) -> 3158 | U29: =INDIRECT('STRG-Indizes'!$B$3 & "Z" & 'STRG-Indizes'!$B28 & "S" & 'STRG-Indizes'!U$5, FALSE) -> 3360 | V29: =INDIRECT('STRG-Indizes'!$B$3 & "Z" & 'STRG-Indizes'!$B28 & "S" & 'STRG-Indizes'!V$5, FALSE) -> 5255 | W29: =INDIRECT('STRG-Indizes'!$B$3 & "Z" & 'STRG-Indizes'!$B28 & "S" & 'STRG-Indizes'!W$5, FALSE) -> 5022 | X29: =INDIRECT('STRG-Indizes'!$B$3 & "Z" & 'STRG-Indizes'!$B28 & "S" & 'STRG-Indizes'!X$5, FALSE) -> 3344 | Y29: =INDIRECT('STRG-Indizes'!$B$3 & "Z" & 'STRG-Indizes'!$B28 & "S" & 'STRG-Indizes'!Y$5, FALSE) -> 3088 | Z29: =INDIRECT('STRG-Indizes'!$B$3 & "Z" & 'STRG-Indizes'!$B28 & "S" & 'STRG-Indizes'!Z$5, FALSE) -> 2367 | AA29: =INDIRECT('STRG-Indizes'!$B$3 & "Z" & 'STRG-Indizes'!$B28 & "S" & 'STRG-Indizes'!AA$5, FALSE) -> 2329 | AB29: =INDIRECT('STRG-Indizes'!$B$3 & "Z" & 'STRG-Indizes'!$B28 & "S" & 'STRG-Indizes'!AB$5, FALSE) -> 2658 | AC29: =INDIRECT('STRG-Indizes'!$B$3 & "Z" & 'STRG-Indizes'!$B28 & "S" & 'STRG-Indizes'!AC$5, FALSE) -> 3115 | AD29: =INDIRECT('STRG-Indizes'!$B$3 & "Z" & 'STRG-Indizes'!$B28 & "S" & 'STRG-Indizes'!AD$5, FALSE) -> 3765 | AE29: =INDIRECT('STRG-Indizes'!$B$3 & "Z" & 'STRG-Indizes'!$B28 & "S" & 'STRG-Indizes'!AE$5, FALSE) -> 3340 | AF29: =INDIRECT('STRG-Indizes'!$B$3 & "Z" & 'STRG-Indizes'!$B28 & "S" & 'STRG-Indizes'!AF$5, FALSE) -> 3015 | AG29: =INDIRECT('STRG-Indizes'!$B$3 & "Z" & 'STRG-Indizes'!$B28 & "S" & 'STRG-Indizes'!AG$5, FALSE) -> 2906 | AH29: =INDIRECT('STRG-Indizes'!$B$3 & "Z" & 'STRG-Indizes'!$B28 & "S" & 'STRG-Indizes'!AH$5, FALSE) -> 5616 | AI29: =INDIRECT('STRG-Indizes'!$B$3 & "Z" & 'STRG-Indizes'!$B28 & "S" & 'STRG-Indizes'!AI$5, FALSE) -> 4224 | AJ29: =INDIRECT('STRG-Indizes'!$B$3 & "Z" & 'STRG-Indizes'!$B28 & "S" & 'STRG-Indizes'!AJ$5, FALSE) -> 3278
A30: Thüringen | C30: =IF('STRG-Merkmal'!$E$9=2,"",INDIRECT('STRG-Indizes'!$B$3&"Z"&'STRG-Indizes'!$B29&"S"&'STRG-Indizes'!C$5,FALSE)) -> 1812 | D30: =IF('STRG-Merkmal'!$E$9=2,"",INDIRECT('STRG-Indizes'!$B$3&"Z"&'STRG-Indizes'!$B29&"S"&'STRG-Indizes'!D$5,FALSE)) -> 2042 | E30: =IF('STRG-Merkmal'!$E$9=2,"",INDIRECT('STRG-Indizes'!$B$3&"Z"&'STRG-Indizes'!$B29&"S"&'STRG-Indizes'!E$5,FALSE)) -> 2280 | F30: =IF('STRG-Merkmal'!$E$9=2,"",INDIRECT('STRG-Indizes'!$B$3&"Z"&'STRG-Indizes'!$B29&"S"&'STRG-Indizes'!F$5,FALSE)) -> 2795 | G30: =IF('STRG-Merkmal'!$E$9=2,"",INDIRECT('STRG-Indizes'!$B$3&"Z"&'STRG-Indizes'!$B29&"S"&'STRG-Indizes'!G$5,FALSE)) -> 2882 | H30: =IF('STRG-Merkmal'!$E$9=2,"",INDIRECT('STRG-Indizes'!$B$3&"Z"&'STRG-Indizes'!$B29&"S"&'STRG-Indizes'!H$5,FALSE)) -> 2373 | I30: =IF('STRG-Merkmal'!$E$9=2,"",INDIRECT('STRG-Indizes'!$B$3&"Z"&'STRG-Indizes'!$B29&"S"&'STRG-Indizes'!I$5,FALSE)) -> 2554 | J30: =IF('STRG-Merkmal'!$E$9=2,"",INDIRECT('STRG-Indizes'!$B$3&"Z"&'STRG-Indizes'!$B29&"S"&'STRG-Indizes'!J$5,FALSE)) -> 4413 | K30: =IF('STRG-Merkmal'!$E$9=2,"",INDIRECT('STRG-Indizes'!$B$3&"Z"&'STRG-Indizes'!$B29&"S"&'STRG-Indizes'!K$5,FALSE)) -> 3748 | L30: =IF('STRG-Merkmal'!$E$9=2,"",INDIRECT('STRG-Indizes'!$B$3&"Z"&'STRG-Indizes'!$B29&"S"&'STRG-Indizes'!L$5,FALSE)) -> 2557 | M30: =IF('STRG-Merkmal'!$E$9=2,"",INDIRECT('STRG-Indizes'!$B$3&"Z"&'STRG-Indizes'!$B29&"S"&'STRG-Indizes'!M$5,FALSE)) -> 2564 | N30: =INDIRECT('STRG-Indizes'!$B$3&"Z"&'STRG-Indizes'!$B29&"S"&'STRG-Indizes'!N$5,FALSE) -> 1929 | O30: =INDIRECT('STRG-Indizes'!$B$3 & "Z" & 'STRG-Indizes'!$B29 & "S" & 'STRG-Indizes'!O$5, FALSE) -> 1640 | P30: =INDIRECT('STRG-Indizes'!$B$3 & "Z" & 'STRG-Indizes'!$B29 & "S" & 'STRG-Indizes'!P$5, FALSE) -> 2190 | Q30: =INDIRECT('STRG-Indizes'!$B$3 & "Z" & 'STRG-Indizes'!$B29 & "S" & 'STRG-Indizes'!Q$5, FALSE) -> 2333 | R30: =INDIRECT('STRG-Indizes'!$B$3 & "Z" & 'STRG-Indizes'!$B29 & "S" & 'STRG-Indizes'!R$5, FALSE) -> 2416 | S30: =INDIRECT('STRG-Indizes'!$B$3 & "Z" & 'STRG-Indizes'!$B29 & "S" & 'STRG-Indizes'!S$5, FALSE) -> 2706 | T30: =INDIRECT('STRG-Indizes'!$B$3 & "Z" & 'STRG-Indizes'!$B29 & "S" & 'STRG-Indizes'!T$5, FALSE) -> 2299 | U30: =INDIRECT('STRG-Indizes'!$B$3 & "Z" & 'STRG-Indizes'!$B29 & "S" & 'STRG-Indizes'!U$5, FALSE) -> 2280 | V30: =INDIRECT('STRG-Indizes'!$B$3 & "Z" & 'STRG-Indizes'!$B29 & "S" & 'STRG-Indizes'!V$5, FALSE) -> 3836 | W30: =INDIRECT('STRG-Indizes'!$B$3 & "Z" & 'STRG-Indizes'!$B29 & "S" & 'STRG-Indizes'!W$5, FALSE) -> 3330 | X30: =INDIRECT('STRG-Indizes'!$B$3 & "Z" & 'STRG-Indizes'!$B29 & "S" & 'STRG-Indizes'!X$5, FALSE) -> 2335.948935 | Y30: =INDIRECT('STRG-Indizes'!$B$3 & "Z" & 'STRG-Indizes'!$B29 & "S" & 'STRG-Indizes'!Y$5, FALSE) -> 2233 | Z30: =INDIRECT('STRG-Indizes'!$B$3 & "Z" & 'STRG-Indizes'!$B29 & "S" & 'STRG-Indizes'!Z$5, FALSE) -> 1645 | AA30: =INDIRECT('STRG-Indizes'!$B$3 & "Z" & 'STRG-Indizes'!$B29 & "S" & 'STRG-Indizes'!AA$5, FALSE) -> 1521 | AB30: =INDIRECT('STRG-Indizes'!$B$3 & "Z" & 'STRG-Indizes'!$B29 & "S" & 'STRG-Indizes'!AB$5, FALSE) -> 1706 | AC30: =INDIRECT('STRG-Indizes'!$B$3 & "Z" & 'STRG-Indizes'!$B29 & "S" & 'STRG-Indizes'!AC$5, FALSE) -> 1893 | AD30: =INDIRECT('STRG-Indizes'!$B$3 & "Z" & 'STRG-Indizes'!$B29 & "S" & 'STRG-Indizes'!AD$5, FALSE) -> 2285 | AE30: =INDIRECT('STRG-Indizes'!$B$3 & "Z" & 'STRG-Indizes'!$B29 & "S" & 'STRG-Indizes'!AE$5, FALSE) -> 2221 | AF30: =INDIRECT('STRG-Indizes'!$B$3 & "Z" & 'STRG-Indizes'!$B29 & "S" & 'STRG-Indizes'!AF$5, FALSE) -> 2016 | AG30: =INDIRECT('STRG-Indizes'!$B$3 & "Z" & 'STRG-Indizes'!$B29 & "S" & 'STRG-Indizes'!AG$5, FALSE) -> 2057 | AH30: =INDIRECT('STRG-Indizes'!$B$3 & "Z" & 'STRG-Indizes'!$B29 & "S" & 'STRG-Indizes'!AH$5, FALSE) -> 2908 | AI30: =INDIRECT('STRG-Indizes'!$B$3 & "Z" & 'STRG-Indizes'!$B29 & "S" & 'STRG-Indizes'!AI$5, FALSE) -> 3515.02937 | AJ30: =INDIRECT('STRG-Indizes'!$B$3 & "Z" & 'STRG-Indizes'!$B29 & "S" & 'STRG-Indizes'!AJ$5, FALSE) -> 2239
A31: Baden-Württemberg | C31: =IF('STRG-Merkmal'!$E$9=2,"",INDIRECT('STRG-Indizes'!$B$3&"Z"&'STRG-Indizes'!$B30&"S"&'STRG-Indizes'!C$5,FALSE)) -> 4617 | D31: =IF('STRG-Merkmal'!$E$9=2,"",INDIRECT('STRG-Indizes'!$B$3&"Z"&'STRG-Indizes'!$B30&"S"&'STRG-Indizes'!D$5,FALSE)) -> 6116 | E31: =IF('STRG-Merkmal'!$E$9=2,"",INDIRECT('STRG-Indizes'!$B$3&"Z"&'STRG-Indizes'!$B30&"S"&'STRG-Indizes'!E$5,FALSE)) -> 6656 | F31: =IF('STRG-Merkmal'!$E$9=2,"",INDIRECT('STRG-Indizes'!$B$3&"Z"&'STRG-Indizes'!$B30&"S"&'STRG-Indizes'!F$5,FALSE)) -> 8189 | G31: =IF('STRG-Merkmal'!$E$9=2,"",INDIRECT('STRG-Indizes'!$B$3&"Z"&'STRG-Indizes'!$B30&"S"&'STRG-Indizes'!G$5,FALSE)) -> 8096 | H31: =IF('STRG-Merkmal'!$E$9=2,"",INDIRECT('STRG-Indizes'!$B$3&"Z"&'STRG-Indizes'!$B30&"S"&'STRG-Indizes'!H$5,FALSE)) -> 6537 | I31: =IF('STRG-Merkmal'!$E$9=2,"",INDIRECT('STRG-Indizes'!$B$3&"Z"&'STRG-Indizes'!$B30&"S"&'STRG-Indizes'!I$5,FALSE)) -> 7739 | J31: =IF('STRG-Merkmal'!$E$9=2,"",INDIRECT('STRG-Indizes'!$B$3&"Z"&'STRG-Indizes'!$B30&"S"&'STRG-Indizes'!J$5,FALSE)) -> 8510 | K31: =IF('STRG-Merkmal'!$E$9=2,"",INDIRECT('STRG-Indizes'!$B$3&"Z"&'STRG-Indizes'!$B30&"S"&'STRG-Indizes'!K$5,FALSE)) -> 14321 | L31: =IF('STRG-Merkmal'!$E$9=2,"",INDIRECT('STRG-Indizes'!$B$3&"Z"&'STRG-Indizes'!$B30&"S"&'STRG-Indizes'!L$5,FALSE)) -> 9011 | M31: =IF('STRG-Merkmal'!$E$9=2,"",INDIRECT('STRG-Indizes'!$B$3&"Z"&'STRG-Indizes'!$B30&"S"&'STRG-Indizes'!M$5,FALSE)) -> 7617 | N31: =INDIRECT('STRG-Indizes'!$B$3&"Z"&'STRG-Indizes'!$B30&"S"&'STRG-Indizes'!N$5,FALSE) -> 6146 | O31: =INDIRECT('STRG-Indizes'!$B$3 & "Z" & 'STRG-Indizes'!$B30 & "S" & 'STRG-Indizes'!O$5, FALSE) -> 5330 | P31: =INDIRECT('STRG-Indizes'!$B$3 & "Z" & 'STRG-Indizes'!$B30 & "S" & 'STRG-Indizes'!P$5, FALSE) -> 7057 | Q31: =INDIRECT('STRG-Indizes'!$B$3 & "Z" & 'STRG-Indizes'!$B30 & "S" & 'STRG-Indizes'!Q$5, FALSE) -> 7149 | R31: =INDIRECT('STRG-Indizes'!$B$3 & "Z" & 'STRG-Indizes'!$B30 & "S" & 'STRG-Indizes'!R$5, FALSE) -> 7775 | S31: =INDIRECT('STRG-Indizes'!$B$3 & "Z" & 'STRG-Indizes'!$B30 & "S" & 'STRG-Indizes'!S$5, FALSE) -> 8306 | T31: =INDIRECT('STRG-Indizes'!$B$3 & "Z" & 'STRG-Indizes'!$B30 & "S" & 'STRG-Indizes'!T$5, FALSE) -> 6940.933005 | U31: =INDIRECT('STRG-Indizes'!$B$3 & "Z" & 'STRG-Indizes'!$B30 & "S" & 'STRG-Indizes'!U$5, FALSE) -> 7939 | V31: =INDIRECT('STRG-Indizes'!$B$3 & "Z" & 'STRG-Indizes'!$B30 & "S" & 'STRG-Indizes'!V$5, FALSE) -> 8504 | W31: =INDIRECT('STRG-Indizes'!$B$3 & "Z" & 'STRG-Indizes'!$B30 & "S" & 'STRG-Indizes'!W$5, FALSE) -> 14292 | X31: =INDIRECT('STRG-Indizes'!$B$3 & "Z" & 'STRG-Indizes'!$B30 & "S" & 'STRG-Indizes'!X$5, FALSE) -> 8735 | Y31: =INDIRECT('STRG-Indizes'!$B$3 & "Z" & 'STRG-Indizes'!$B30 & "S" & 'STRG-Indizes'!Y$5, FALSE) -> 7202 | Z31: =INDIRECT('STRG-Indizes'!$B$3 & "Z" & 'STRG-Indizes'!$B30 & "S" & 'STRG-Indizes'!Z$5, FALSE) -> 5790 | AA31: =INDIRECT('STRG-Indizes'!$B$3 & "Z" & 'STRG-Indizes'!$B30 & "S" & 'STRG-Indizes'!AA$5, FALSE) -> 5133 | AB31: =INDIRECT('STRG-Indizes'!$B$3 & "Z" & 'STRG-Indizes'!$B30 & "S" & 'STRG-Indizes'!AB$5, FALSE) -> 6114 | AC31: =INDIRECT('STRG-Indizes'!$B$3 & "Z" & 'STRG-Indizes'!$B30 & "S" & 'STRG-Indizes'!AC$5, FALSE) -> 6598 | AD31: =INDIRECT('STRG-Indizes'!$B$3 & "Z" & 'STRG-Indizes'!$B30 & "S" & 'STRG-Indizes'!AD$5, FALSE) -> 7463 | AE31: =INDIRECT('STRG-Indizes'!$B$3 & "Z" & 'STRG-Indizes'!$B30 & "S" & 'STRG-Indizes'!AE$5, FALSE) -> 6866 | AF31: =INDIRECT('STRG-Indizes'!$B$3 & "Z" & 'STRG-Indizes'!$B30 & "S" & 'STRG-Indizes'!AF$5, FALSE) -> 6292 | AG31: =INDIRECT('STRG-Indizes'!$B$3 & "Z" & 'STRG-Indizes'!$B30 & "S" & 'STRG-Indizes'!AG$5, FALSE) -> 6244 | AH31: =INDIRECT('STRG-Indizes'!$B$3 & "Z" & 'STRG-Indizes'!$B30 & "S" & 'STRG-Indizes'!AH$5, FALSE) -> 7581 | AI31: =INDIRECT('STRG-Indizes'!$B$3 & "Z" & 'STRG-Indizes'!$B30 & "S" & 'STRG-Indizes'!AI$5, FALSE) -> 13030 | AJ31: =INDIRECT('STRG-Indizes'!$B$3 & "Z" & 'STRG-Indizes'!$B30 & "S" & 'STRG-Indizes'!AJ$5, FALSE) -> 8059
A32: JC Alb-Donau-Kreis | B32: Ic | C32: =IF('STRG-Merkmal'!$E$9=2,"",INDIRECT('STRG-Indizes'!$B$3&"Z"&'STRG-Indizes'!$B31&"S"&'STRG-Indizes'!C$5,FALSE)) -> 47 | D32: =IF('STRG-Merkmal'!$E$9=2,"",INDIRECT('STRG-Indizes'!$B$3&"Z"&'STRG-Indizes'!$B31&"S"&'STRG-Indizes'!D$5,FALSE)) -> 72 | E32: =IF('STRG-Merkmal'!$E$9=2,"",INDIRECT('STRG-Indizes'!$B$3&"Z"&'STRG-Indizes'!$B31&"S"&'STRG-Indizes'!E$5,FALSE)) -> 74 | F32: =IF('STRG-Merkmal'!$E$9=2,"",INDIRECT('STRG-Indizes'!$B$3&"Z"&'STRG-Indizes'!$B31&"S"&'STRG-Indizes'!F$5,FALSE)) -> 89 | G32: =IF('STRG-Merkmal'!$E$9=2,"",INDIRECT('STRG-Indizes'!$B$3&"Z"&'STRG-Indizes'!$B31&"S"&'STRG-Indizes'!G$5,FALSE)) -> 105 | H32: =IF('STRG-Merkmal'!$E$9=2,"",INDIRECT('STRG-Indizes'!$B$3&"Z"&'STRG-Indizes'!$B31&"S"&'STRG-Indizes'!H$5,FALSE)) -> 60 | I32: =IF('STRG-Merkmal'!$E$9=2,"",INDIRECT('STRG-Indizes'!$B$3&"Z"&'STRG-Indizes'!$B31&"S"&'STRG-Indizes'!I$5,FALSE)) -> 63 | J32: =IF('STRG-Merkmal'!$E$9=2,"",INDIRECT('STRG-Indizes'!$B$3&"Z"&'STRG-Indizes'!$B31&"S"&'STRG-Indizes'!J$5,FALSE)) -> 109 | K32: =IF('STRG-Merkmal'!$E$9=2,"",INDIRECT('STRG-Indizes'!$B$3&"Z"&'STRG-Indizes'!$B31&"S"&'STRG-Indizes'!K$5,FALSE)) -> 150 | L32: =IF('STRG-Merkmal'!$E$9=2,"",INDIRECT('STRG-Indizes'!$B$3&"Z"&'STRG-Indizes'!$B31&"S"&'STRG-Indizes'!L$5,FALSE)) -> 81 | M32: =IF('STRG-Merkmal'!$E$9=2,"",INDIRECT('STRG-Indizes'!$B$3&"Z"&'STRG-Indizes'!$B31&"S"&'STRG-Indizes'!M$5,FALSE)) -> 83 | N32: =INDIRECT('STRG-Indizes'!$B$3&"Z"&'STRG-Indizes'!$B31&"S"&'STRG-Indizes'!N$5,FALSE) -> 64 | O32: =INDIRECT('STRG-Indizes'!$B$3 & "Z" & 'STRG-Indizes'!$B31 & "S" & 'STRG-Indizes'!O$5, FALSE) -> 49 | P32: =INDIRECT('STRG-Indizes'!$B$3 & "Z" & 'STRG-Indizes'!$B31 & "S" & 'STRG-Indizes'!P$5, FALSE) -> 57 | Q32: =INDIRECT('STRG-Indizes'!$B$3 & "Z" & 'STRG-Indizes'!$B31 & "S" & 'STRG-Indizes'!Q$5, FALSE) -> 70 | R32: =INDIRECT('STRG-Indizes'!$B$3 & "Z" & 'STRG-Indizes'!$B31 & "S" & 'STRG-Indizes'!R$5, FALSE) -> 79 | S32: =INDIRECT('STRG-Indizes'!$B$3 & "Z" & 'STRG-Indizes'!$B31 & "S" & 'STRG-Indizes'!S$5, FALSE) -> 84 | T32: =INDIRECT('STRG-Indizes'!$B$3 & "Z" & 'STRG-Indizes'!$B31 & "S" & 'STRG-Indizes'!T$5, FALSE) -> 77 | U32: =INDIRECT('STRG-Indizes'!$B$3 & "Z" & 'STRG-Indizes'!$B31 & "S" & 'STRG-Indizes'!U$5, FALSE) -> 79 | V32: =INDIRECT('STRG-Indizes'!$B$3 & "Z" & 'STRG-Indizes'!$B31 & "S" & 'STRG-Indizes'!V$5, FALSE) -> 107 | W32: =INDIRECT('STRG-Indizes'!$B$3 & "Z" & 'STRG-Indizes'!$B31 & "S" & 'STRG-Indizes'!W$5, FALSE) -> 175 | X32: =INDIRECT('STRG-Indizes'!$B$3 & "Z" & 'STRG-Indizes'!$B31 & "S" & 'STRG-Indizes'!X$5, FALSE) -> 86 | Y32: =INDIRECT('STRG-Indizes'!$B$3 & "Z" & 'STRG-Indizes'!$B31 & "S" & 'STRG-Indizes'!Y$5, FALSE) -> 62 | Z32: =INDIRECT('STRG-Indizes'!$B$3 & "Z" & 'STRG-Indizes'!$B31 & "S" & 'STRG-Indizes'!Z$5, FALSE) -> 50 | AA32: =INDIRECT('STRG-Indizes'!$B$3 & "Z" & 'STRG-Indizes'!$B31 & "S" & 'STRG-Indizes'!AA$5, FALSE) -> 49 | AB32: =INDIRECT('STRG-Indizes'!$B$3 & "Z" & 'STRG-Indizes'!$B31 & "S" & 'STRG-Indizes'!AB$5, FALSE) -> 65 | AC32: =INDIRECT('STRG-Indizes'!$B$3 & "Z" & 'STRG-Indizes'!$B31 & "S" & 'STRG-Indizes'!AC$5, FALSE) -> 60 | AD32: =INDIRECT('STRG-Indizes'!$B$3 & "Z" & 'STRG-Indizes'!$B31 & "S" & 'STRG-Indizes'!AD$5, FALSE) -> 71 | AE32: =INDIRECT('STRG-Indizes'!$B$3 & "Z" & 'STRG-Indizes'!$B31 & "S" & 'STRG-Indizes'!AE$5, FALSE) -> 64 | AF32: =INDIRECT('STRG-Indizes'!$B$3 & "Z" & 'STRG-Indizes'!$B31 & "S" & 'STRG-Indizes'!AF$5, FALSE) -> 54 | AG32: =INDIRECT('STRG-Indizes'!$B$3 & "Z" & 'STRG-Indizes'!$B31 & "S" & 'STRG-Indizes'!AG$5, FALSE) -> 60 | AH32: =INDIRECT('STRG-Indizes'!$B$3 & "Z" & 'STRG-Indizes'!$B31 & "S" & 'STRG-Indizes'!AH$5, FALSE) -> 62 | AI32: =INDIRECT('STRG-Indizes'!$B$3 & "Z" & 'STRG-Indizes'!$B31 & "S" & 'STRG-Indizes'!AI$5, FALSE) -> 134 | AJ32: =INDIRECT('STRG-Indizes'!$B$3 & "Z" & 'STRG-Indizes'!$B31 & "S" & 'STRG-Indizes'!AJ$5, FALSE) -> 67
A33: JC Baden-Baden, Stadt | B33: IIb | C33: =IF('STRG-Merkmal'!$E$9=2,"",INDIRECT('STRG-Indizes'!$B$3&"Z"&'STRG-Indizes'!$B32&"S"&'STRG-Indizes'!C$5,FALSE)) -> 31 | D33: =IF('STRG-Merkmal'!$E$9=2,"",INDIRECT('STRG-Indizes'!$B$3&"Z"&'STRG-Indizes'!$B32&"S"&'STRG-Indizes'!D$5,FALSE)) -> 33 | E33: =IF('STRG-Merkmal'!$E$9=2,"",INDIRECT('STRG-Indizes'!$B$3&"Z"&'STRG-Indizes'!$B32&"S"&'STRG-Indizes'!E$5,FALSE)) -> 44 | F33: =IF('STRG-Merkmal'!$E$9=2,"",INDIRECT('STRG-Indizes'!$B$3&"Z"&'STRG-Indizes'!$B32&"S"&'STRG-Indizes'!F$5,FALSE)) -> 50 | G33: =IF('STRG-Merkmal'!$E$9=2,"",INDIRECT('STRG-Indizes'!$B$3&"Z"&'STRG-Indizes'!$B32&"S"&'STRG-Indizes'!G$5,FALSE)) -> 59 | H33: =IF('STRG-Merkmal'!$E$9=2,"",INDIRECT('STRG-Indizes'!$B$3&"Z"&'STRG-Indizes'!$B32&"S"&'STRG-Indizes'!H$5,FALSE)) -> 45 | I33: =IF('STRG-Merkmal'!$E$9=2,"",INDIRECT('STRG-Indizes'!$B$3&"Z"&'STRG-Indizes'!$B32&"S"&'STRG-Indizes'!I$5,FALSE)) -> 48 | J33: =IF('STRG-Merkmal'!$E$9=2,"",INDIRECT('STRG-Indizes'!$B$3&"Z"&'STRG-Indizes'!$B32&"S"&'STRG-Indizes'!J$5,FALSE)) -> 56 | K33: =IF('STRG-Merkmal'!$E$9=2,"",INDIRECT('STRG-Indizes'!$B$3&"Z"&'STRG-Indizes'!$B32&"S"&'STRG-Indizes'!K$5,FALSE)) -> 84 | L33: =IF('STRG-Merkmal'!$E$9=2,"",INDIRECT('STRG-Indizes'!$B$3&"Z"&'STRG-Indizes'!$B32&"S"&'STRG-Indizes'!L$5,FALSE)) -> 49 | M33: =IF('STRG-Merkmal'!$E$9=2,"",INDIRECT('STRG-Indizes'!$B$3&"Z"&'STRG-Indizes'!$B32&"S"&'STRG-Indizes'!M$5,FALSE)) -> 50 | N33: =INDIRECT('STRG-Indizes'!$B$3&"Z"&'STRG-Indizes'!$B32&"S"&'STRG-Indizes'!N$5,FALSE) -> 36 | O33: =INDIRECT('STRG-Indizes'!$B$3 & "Z" & 'STRG-Indizes'!$B32 & "S" & 'STRG-Indizes'!O$5, FALSE) -> 31 | P33: =INDIRECT('STRG-Indizes'!$B$3 & "Z" & 'STRG-Indizes'!$B32 & "S" & 'STRG-Indizes'!P$5, FALSE) -> 53 | Q33: =INDIRECT('STRG-Indizes'!$B$3 & "Z" & 'STRG-Indizes'!$B32 & "S" & 'STRG-Indizes'!Q$5, FALSE) -> 37 | R33: =INDIRECT('STRG-Indizes'!$B$3 & "Z" & 'STRG-Indizes'!$B32 & "S" & 'STRG-Indizes'!R$5, FALSE) -> 52 | S33: =INDIRECT('STRG-Indizes'!$B$3 & "Z" & 'STRG-Indizes'!$B32 & "S" & 'STRG-Indizes'!S$5, FALSE) -> 62 | T33: =INDIRECT('STRG-Indizes'!$B$3 & "Z" & 'STRG-Indizes'!$B32 & "S" & 'STRG-Indizes'!T$5, FALSE) -> 38 | U33: =INDIRECT('STRG-Indizes'!$B$3 & "Z" & 'STRG-Indizes'!$B32 & "S" & 'STRG-Indizes'!U$5, FALSE) -> 49 | V33: =INDIRECT('STRG-Indizes'!$B$3 & "Z" & 'STRG-Indizes'!$B32 & "S" & 'STRG-Indizes'!V$5, FALSE) -> 59 | W33: =INDIRECT('STRG-Indizes'!$B$3 & "Z" & 'STRG-Indizes'!$B32 & "S" & 'STRG-Indizes'!W$5, FALSE) -> 70 | X33: =INDIRECT('STRG-Indizes'!$B$3 & "Z" & 'STRG-Indizes'!$B32 & "S" & 'STRG-Indizes'!X$5, FALSE) -> 58 | Y33: =INDIRECT('STRG-Indizes'!$B$3 & "Z" & 'STRG-Indizes'!$B32 & "S" & 'STRG-Indizes'!Y$5, FALSE) -> 33 | Z33: =INDIRECT('STRG-Indizes'!$B$3 & "Z" & 'STRG-Indizes'!$B32 & "S" & 'STRG-Indizes'!Z$5, FALSE) -> 32 | AA33: =INDIRECT('STRG-Indizes'!$B$3 & "Z" & 'STRG-Indizes'!$B32 & "S" & 'STRG-Indizes'!AA$5, FALSE) -> 26 | AB33: =INDIRECT('STRG-Indizes'!$B$3 & "Z" & 'STRG-Indizes'!$B32 & "S" & 'STRG-Indizes'!AB$5, FALSE) -> 37 | AC33: =INDIRECT('STRG-Indizes'!$B$3 & "Z" & 'STRG-Indizes'!$B32 & "S" & 'STRG-Indizes'!AC$5, FALSE) -> 36 | AD33: =INDIRECT('STRG-Indizes'!$B$3 & "Z" & 'STRG-Indizes'!$B32 & "S" & 'STRG-Indizes'!AD$5, FALSE) -> 50 | AE33: =INDIRECT('STRG-Indizes'!$B$3 & "Z" & 'STRG-Indizes'!$B32 & "S" & 'STRG-Indizes'!AE$5, FALSE) -> 50 | AF33: =INDIRECT('STRG-Indizes'!$B$3 & "Z" & 'STRG-Indizes'!$B32 & "S" & 'STRG-Indizes'!AF$5, FALSE) -> 47 | AG33: =INDIRECT('STRG-Indizes'!$B$3 & "Z" & 'STRG-Indizes'!$B32 & "S" & 'STRG-Indizes'!AG$5, FALSE) -> 41 | AH33: =INDIRECT('STRG-Indizes'!$B$3 & "Z" & 'STRG-Indizes'!$B32 & "S" & 'STRG-Indizes'!AH$5, FALSE) -> 51 | AI33: =INDIRECT('STRG-Indizes'!$B$3 & "Z" & 'STRG-Indizes'!$B32 & "S" & 'STRG-Indizes'!AI$5, FALSE) -> 79 | AJ33: =INDIRECT('STRG-Indizes'!$B$3 & "Z" & 'STRG-Indizes'!$B32 & "S" & 'STRG-Indizes'!AJ$5, FALSE) -> 42
A34: JC Biberach | B34: Ic | C34: =IF('STRG-Merkmal'!$E$9=2,"",INDIRECT('STRG-Indizes'!$B$3&"Z"&'STRG-Indizes'!$B33&"S"&'STRG-Indizes'!C$5,FALSE)) -> 66 | D34: =IF('STRG-Merkmal'!$E$9=2,"",INDIRECT('STRG-Indizes'!$B$3&"Z"&'STRG-Indizes'!$B33&"S"&'STRG-Indizes'!D$5,FALSE)) -> 54 | E34: =IF('STRG-Merkmal'!$E$9=2,"",INDIRECT('STRG-Indizes'!$B$3&"Z"&'STRG-Indizes'!$B33&"S"&'STRG-Indizes'!E$5,FALSE)) -> 60 | F34: =IF('STRG-Merkmal'!$E$9=2,"",INDIRECT('STRG-Indizes'!$B$3&"Z"&'STRG-Indizes'!$B33&"S"&'STRG-Indizes'!F$5,FALSE)) -> 86 | G34: =IF('STRG-Merkmal'!$E$9=2,"",INDIRECT('STRG-Indizes'!$B$3&"Z"&'STRG-Indizes'!$B33&"S"&'STRG-Indizes'!G$5,FALSE)) -> 102 | H34: =IF('STRG-Merkmal'!$E$9=2,"",INDIRECT('STRG-Indizes'!$B$3&"Z"&'STRG-Indizes'!$B33&"S"&'STRG-Indizes'!H$5,FALSE)) -> 56 | I34: =IF('STRG-Merkmal'!$E$9=2,"",INDIRECT('STRG-Indizes'!$B$3&"Z"&'STRG-Indizes'!$B33&"S"&'STRG-Indizes'!I$5,FALSE)) -> 86 | J34: =IF('STRG-Merkmal'!$E$9=2,"",INDIRECT('STRG-Indizes'!$B$3&"Z"&'STRG-Indizes'!$B33&"S"&'STRG-Indizes'!J$5,FALSE)) -> 80 | K34: =IF('STRG-Merkmal'!$E$9=2,"",INDIRECT('STRG-Indizes'!$B$3&"Z"&'STRG-Indizes'!$B33&"S"&'STRG-Indizes'!K$5,FALSE)) -> 150 | L34: =IF('STRG-Merkmal'!$E$9=2,"",INDIRECT('STRG-Indizes'!$B$3&"Z"&'STRG-Indizes'!$B33&"S"&'STRG-Indizes'!L$5,FALSE)) -> 82 | M34: =IF('STRG-Merkmal'!$E$9=2,"",INDIRECT('STRG-Indizes'!$B$3&"Z"&'STRG-Indizes'!$B33&"S"&'STRG-Indizes'!M$5,FALSE)) -> 99 | N34: =INDIRECT('STRG-Indizes'!$B$3&"Z"&'STRG-Indizes'!$B33&"S"&'STRG-Indizes'!N$5,FALSE) -> 68 | O34: =INDIRECT('STRG-Indizes'!$B$3 & "Z" & 'STRG-Indizes'!$B33 & "S" & 'STRG-Indizes'!O$5, FALSE) -> 65 | P34: =INDIRECT('STRG-Indizes'!$B$3 & "Z" & 'STRG-Indizes'!$B33 & "S" & 'STRG-Indizes'!P$5, FALSE) -> 100 | Q34: =INDIRECT('STRG-Indizes'!$B$3 & "Z" & 'STRG-Indizes'!$B33 & "S" & 'STRG-Indizes'!Q$5, FALSE) -> 71 | R34: =INDIRECT('STRG-Indizes'!$B$3 & "Z" & 'STRG-Indizes'!$B33 & "S" & 'STRG-Indizes'!R$5, FALSE) -> 90 | S34: =INDIRECT('STRG-Indizes'!$B$3 & "Z" & 'STRG-Indizes'!$B33 & "S" & 'STRG-Indizes'!S$5, FALSE) -> 90 | T34: =INDIRECT('STRG-Indizes'!$B$3 & "Z" & 'STRG-Indizes'!$B33 & "S" & 'STRG-Indizes'!T$5, FALSE) -> 80 | U34: =INDIRECT('STRG-Indizes'!$B$3 & "Z" & 'STRG-Indizes'!$B33 & "S" & 'STRG-Indizes'!U$5, FALSE) -> 90 | V34: =INDIRECT('STRG-Indizes'!$B$3 & "Z" & 'STRG-Indizes'!$B33 & "S" & 'STRG-Indizes'!V$5, FALSE) -> 101 | W34: =INDIRECT('STRG-Indizes'!$B$3 & "Z" & 'STRG-Indizes'!$B33 & "S" & 'STRG-Indizes'!W$5, FALSE) -> 175 | X34: =INDIRECT('STRG-Indizes'!$B$3 & "Z" & 'STRG-Indizes'!$B33 & "S" & 'STRG-Indizes'!X$5, FALSE) -> 107 | Y34: =INDIRECT('STRG-Indizes'!$B$3 & "Z" & 'STRG-Indizes'!$B33 & "S" & 'STRG-Indizes'!Y$5, FALSE) -> 92 | Z34: =INDIRECT('STRG-Indizes'!$B$3 & "Z" & 'STRG-Indizes'!$B33 & "S" & 'STRG-Indizes'!Z$5, FALSE) -> 54 | AA34: =INDIRECT('STRG-Indizes'!$B$3 & "Z" & 'STRG-Indizes'!$B33 & "S" & 'STRG-Indizes'!AA$5, FALSE) -> 56 | AB34: =INDIRECT('STRG-Indizes'!$B$3 & "Z" & 'STRG-Indizes'!$B33 & "S" & 'STRG-Indizes'!AB$5, FALSE) -> 65 | AC34: =INDIRECT('STRG-Indizes'!$B$3 & "Z" & 'STRG-Indizes'!$B33 & "S" & 'STRG-Indizes'!AC$5, FALSE) -> 74 | AD34: =INDIRECT('STRG-Indizes'!$B$3 & "Z" & 'STRG-Indizes'!$B33 & "S" & 'STRG-Indizes'!AD$5, FALSE) -> 71 | AE34: =INDIRECT('STRG-Indizes'!$B$3 & "Z" & 'STRG-Indizes'!$B33 & "S" & 'STRG-Indizes'!AE$5, FALSE) -> 81 | AF34: =INDIRECT('STRG-Indizes'!$B$3 & "Z" & 'STRG-Indizes'!$B33 & "S" & 'STRG-Indizes'!AF$5, FALSE) -> 70 | AG34: =INDIRECT('STRG-Indizes'!$B$3 & "Z" & 'STRG-Indizes'!$B33 & "S" & 'STRG-Indizes'!AG$5, FALSE) -> 88 | AH34: =INDIRECT('STRG-Indizes'!$B$3 & "Z" & 'STRG-Indizes'!$B33 & "S" & 'STRG-Indizes'!AH$5, FALSE) -> 91 | AI34: =INDIRECT('STRG-Indizes'!$B$3 & "Z" & 'STRG-Indizes'!$B33 & "S" & 'STRG-Indizes'!AI$5, FALSE) -> 148 | AJ34: =INDIRECT('STRG-Indizes'!$B$3 & "Z" & 'STRG-Indizes'!$B33 & "S" & 'STRG-Indizes'!AJ$5, FALSE) -> 82
A35: JC Böblingen | B35: Id | C35: =IF('STRG-Merkmal'!$E$9=2,"",INDIRECT('STRG-Indizes'!$B$3&"Z"&'STRG-Indizes'!$B34&"S"&'STRG-Indizes'!C$5,FALSE)) -> 159 | D35: =IF('STRG-Merkmal'!$E$9=2,"",INDIRECT('STRG-Indizes'!$B$3&"Z"&'STRG-Indizes'!$B34&"S"&'STRG-Indizes'!D$5,FALSE)) -> 194 | E35: =IF('STRG-Merkmal'!$E$9=2,"",INDIRECT('STRG-Indizes'!$B$3&"Z"&'STRG-Indizes'!$B34&"S"&'STRG-Indizes'!E$5,FALSE)) -> 195 | F35: =IF('STRG-Merkmal'!$E$9=2,"",INDIRECT('STRG-Indizes'!$B$3&"Z"&'STRG-Indizes'!$B34&"S"&'STRG-Indizes'!F$5,FALSE)) -> 304 | G35: =IF('STRG-Merkmal'!$E$9=2,"",INDIRECT('STRG-Indizes'!$B$3&"Z"&'STRG-Indizes'!$B34&"S"&'STRG-Indizes'!G$5,FALSE)) -> 245 | H35: =IF('STRG-Merkmal'!$E$9=2,"",INDIRECT('STRG-Indizes'!$B$3&"Z"&'STRG-Indizes'!$B34&"S"&'STRG-Indizes'!H$5,FALSE)) -> 187 | I35: =IF('STRG-Merkmal'!$E$9=2,"",INDIRECT('STRG-Indizes'!$B$3&"Z"&'STRG-Indizes'!$B34&"S"&'STRG-Indizes'!I$5,FALSE)) -> 251 | J35: =IF('STRG-Merkmal'!$E$9=2,"",INDIRECT('STRG-Indizes'!$B$3&"Z"&'STRG-Indizes'!$B34&"S"&'STRG-Indizes'!J$5,FALSE)) -> 250 | K35: =IF('STRG-Merkmal'!$E$9=2,"",INDIRECT('STRG-Indizes'!$B$3&"Z"&'STRG-Indizes'!$B34&"S"&'STRG-Indizes'!K$5,FALSE)) -> 432 | L35: =IF('STRG-Merkmal'!$E$9=2,"",INDIRECT('STRG-Indizes'!$B$3&"Z"&'STRG-Indizes'!$B34&"S"&'STRG-Indizes'!L$5,FALSE)) -> 284 | M35: =IF('STRG-Merkmal'!$E$9=2,"",INDIRECT('STRG-Indizes'!$B$3&"Z"&'STRG-Indizes'!$B34&"S"&'STRG-Indizes'!M$5,FALSE)) -> 202 | N35: =INDIRECT('STRG-Indizes'!$B$3&"Z"&'STRG-Indizes'!$B34&"S"&'STRG-Indizes'!N$5,FALSE) -> 189 | O35: =INDIRECT('STRG-Indizes'!$B$3 & "Z" & 'STRG-Indizes'!$B34 & "S" & 'STRG-Indizes'!O$5, FALSE) -> 162 | P35: =INDIRECT('STRG-Indizes'!$B$3 & "Z" & 'STRG-Indizes'!$B34 & "S" & 'STRG-Indizes'!P$5, FALSE) -> 202 | Q35: =INDIRECT('STRG-Indizes'!$B$3 & "Z" & 'STRG-Indizes'!$B34 & "S" & 'STRG-Indizes'!Q$5, FALSE) -> 202 | R35: =INDIRECT('STRG-Indizes'!$B$3 & "Z" & 'STRG-Indizes'!$B34 & "S" & 'STRG-Indizes'!R$5, FALSE) -> 222 | S35: =INDIRECT('STRG-Indizes'!$B$3 & "Z" & 'STRG-Indizes'!$B34 & "S" & 'STRG-Indizes'!S$5, FALSE) -> 237 | T35: =INDIRECT('STRG-Indizes'!$B$3 & "Z" & 'STRG-Indizes'!$B34 & "S" & 'STRG-Indizes'!T$5, FALSE) -> 206 | U35: =INDIRECT('STRG-Indizes'!$B$3 & "Z" & 'STRG-Indizes'!$B34 & "S" & 'STRG-Indizes'!U$5, FALSE) -> 228 | V35: =INDIRECT('STRG-Indizes'!$B$3 & "Z" & 'STRG-Indizes'!$B34 & "S" & 'STRG-Indizes'!V$5, FALSE) -> 243 | W35: =INDIRECT('STRG-Indizes'!$B$3 & "Z" & 'STRG-Indizes'!$B34 & "S" & 'STRG-Indizes'!W$5, FALSE) -> 418 | X35: =INDIRECT('STRG-Indizes'!$B$3 & "Z" & 'STRG-Indizes'!$B34 & "S" & 'STRG-Indizes'!X$5, FALSE) -> 268 | Y35: =INDIRECT('STRG-Indizes'!$B$3 & "Z" & 'STRG-Indizes'!$B34 & "S" & 'STRG-Indizes'!Y$5, FALSE) -> 222 | Z35: =INDIRECT('STRG-Indizes'!$B$3 & "Z" & 'STRG-Indizes'!$B34 & "S" & 'STRG-Indizes'!Z$5, FALSE) -> 182 | AA35: =INDIRECT('STRG-Indizes'!$B$3 & "Z" & 'STRG-Indizes'!$B34 & "S" & 'STRG-Indizes'!AA$5, FALSE) -> 164 | AB35: =INDIRECT('STRG-Indizes'!$B$3 & "Z" & 'STRG-Indizes'!$B34 & "S" & 'STRG-Indizes'!AB$5, FALSE) -> 196 | AC35: =INDIRECT('STRG-Indizes'!$B$3 & "Z" & 'STRG-Indizes'!$B34 & "S" & 'STRG-Indizes'!AC$5, FALSE) -> 178 | AD35: =INDIRECT('STRG-Indizes'!$B$3 & "Z" & 'STRG-Indizes'!$B34 & "S" & 'STRG-Indizes'!AD$5, FALSE) -> 208 | AE35: =INDIRECT('STRG-Indizes'!$B$3 & "Z" & 'STRG-Indizes'!$B34 & "S" & 'STRG-Indizes'!AE$5, FALSE) -> 184 | AF35: =INDIRECT('STRG-Indizes'!$B$3 & "Z" & 'STRG-Indizes'!$B34 & "S" & 'STRG-Indizes'!AF$5, FALSE) -> 164 | AG35: =INDIRECT('STRG-Indizes'!$B$3 & "Z" & 'STRG-Indizes'!$B34 & "S" & 'STRG-Indizes'!AG$5, FALSE) -> 184 | AH35: =INDIRECT('STRG-Indizes'!$B$3 & "Z" & 'STRG-Indizes'!$B34 & "S" & 'STRG-Indizes'!AH$5, FALSE) -> 244 | AI35: =INDIRECT('STRG-Indizes'!$B$3 & "Z" & 'STRG-Indizes'!$B34 & "S" & 'STRG-Indizes'!AI$5, FALSE) -> 377 | AJ35: =INDIRECT('STRG-Indizes'!$B$3 & "Z" & 'STRG-Indizes'!$B34 & "S" & 'STRG-Indizes'!AJ$5, FALSE) -> 242
A36: JC Bodenseekreis | B36: Ia | C36: =IF('STRG-Merkmal'!$E$9=2,"",INDIRECT('STRG-Indizes'!$B$3&"Z"&'STRG-Indizes'!$B35&"S"&'STRG-Indizes'!C$5,FALSE)) -> 52 | D36: =IF('STRG-Merkmal'!$E$9=2,"",INDIRECT('STRG-Indizes'!$B$3&"Z"&'STRG-Indizes'!$B35&"S"&'STRG-Indizes'!D$5,FALSE)) -> 72 | E36: =IF('STRG-Merkmal'!$E$9=2,"",INDIRECT('STRG-Indizes'!$B$3&"Z"&'STRG-Indizes'!$B35&"S"&'STRG-Indizes'!E$5,FALSE)) -> 98 | F36: =IF('STRG-Merkmal'!$E$9=2,"",INDIRECT('STRG-Indizes'!$B$3&"Z"&'STRG-Indizes'!$B35&"S"&'STRG-Indizes'!F$5,FALSE)) -> 130 | G36: =IF('STRG-Merkmal'!$E$9=2,"",INDIRECT('STRG-Indizes'!$B$3&"Z"&'STRG-Indizes'!$B35&"S"&'STRG-Indizes'!G$5,FALSE)) -> 87 | H36: =IF('STRG-Merkmal'!$E$9=2,"",INDIRECT('STRG-Indizes'!$B$3&"Z"&'STRG-Indizes'!$B35&"S"&'STRG-Indizes'!H$5,FALSE)) -> 99 | I36: =IF('STRG-Merkmal'!$E$9=2,"",INDIRECT('STRG-Indizes'!$B$3&"Z"&'STRG-Indizes'!$B35&"S"&'STRG-Indizes'!I$5,FALSE)) -> 95 | J36: =IF('STRG-Merkmal'!$E$9=2,"",INDIRECT('STRG-Indizes'!$B$3&"Z"&'STRG-Indizes'!$B35&"S"&'STRG-Indizes'!J$5,FALSE)) -> 93 | K36: =IF('STRG-Merkmal'!$E$9=2,"",INDIRECT('STRG-Indizes'!$B$3&"Z"&'STRG-Indizes'!$B35&"S"&'STRG-Indizes'!K$5,FALSE)) -> 182 | L36: =IF('STRG-Merkmal'!$E$9=2,"",INDIRECT('STRG-Indizes'!$B$3&"Z"&'STRG-Indizes'!$B35&"S"&'STRG-Indizes'!L$5,FALSE)) -> 90 | M36: =IF('STRG-Merkmal'!$E$9=2,"",INDIRECT('STRG-Indizes'!$B$3&"Z"&'STRG-Indizes'!$B35&"S"&'STRG-Indizes'!M$5,FALSE)) -> 90 | N36: =INDIRECT('STRG-Indizes'!$B$3&"Z"&'STRG-Indizes'!$B35&"S"&'STRG-Indizes'!N$5,FALSE) -> 82 | O36: =INDIRECT('STRG-Indizes'!$B$3 & "Z" & 'STRG-Indizes'!$B35 & "S" & 'STRG-Indizes'!O$5, FALSE) -> 81 | P36: =INDIRECT('STRG-Indizes'!$B$3 & "Z" & 'STRG-Indizes'!$B35 & "S" & 'STRG-Indizes'!P$5, FALSE) -> 84 | Q36: =INDIRECT('STRG-Indizes'!$B$3 & "Z" & 'STRG-Indizes'!$B35 & "S" & 'STRG-Indizes'!Q$5, FALSE) -> 118 | R36: =INDIRECT('STRG-Indizes'!$B$3 & "Z" & 'STRG-Indizes'!$B35 & "S" & 'STRG-Indizes'!R$5, FALSE) -> 151 | S36: =INDIRECT('STRG-Indizes'!$B$3 & "Z" & 'STRG-Indizes'!$B35 & "S" & 'STRG-Indizes'!S$5, FALSE) -> 139 | T36: =INDIRECT('STRG-Indizes'!$B$3 & "Z" & 'STRG-Indizes'!$B35 & "S" & 'STRG-Indizes'!T$5, FALSE) -> 99 | U36: =INDIRECT('STRG-Indizes'!$B$3 & "Z" & 'STRG-Indizes'!$B35 & "S" & 'STRG-Indizes'!U$5, FALSE) -> 115 | V36: =INDIRECT('STRG-Indizes'!$B$3 & "Z" & 'STRG-Indizes'!$B35 & "S" & 'STRG-Indizes'!V$5, FALSE) -> 131 | W36: =INDIRECT('STRG-Indizes'!$B$3 & "Z" & 'STRG-Indizes'!$B35 & "S" & 'STRG-Indizes'!W$5, FALSE) -> 238 | X36: =INDIRECT('STRG-Indizes'!$B$3 & "Z" & 'STRG-Indizes'!$B35 & "S" & 'STRG-Indizes'!X$5, FALSE) -> 128 | Y36: =INDIRECT('STRG-Indizes'!$B$3 & "Z" & 'STRG-Indizes'!$B35 & "S" & 'STRG-Indizes'!Y$5, FALSE) -> 79 | Z36: =INDIRECT('STRG-Indizes'!$B$3 & "Z" & 'STRG-Indizes'!$B35 & "S" & 'STRG-Indizes'!Z$5, FALSE) -> 74 | AA36: =INDIRECT('STRG-Indizes'!$B$3 & "Z" & 'STRG-Indizes'!$B35 & "S" & 'STRG-Indizes'!AA$5, FALSE) -> 75 | AB36: =INDIRECT('STRG-Indizes'!$B$3 & "Z" & 'STRG-Indizes'!$B35 & "S" & 'STRG-Indizes'!AB$5, FALSE) -> 106 | AC36: =INDIRECT('STRG-Indizes'!$B$3 & "Z" & 'STRG-Indizes'!$B35 & "S" & 'STRG-Indizes'!AC$5, FALSE) -> 95 | AD36: =INDIRECT('STRG-Indizes'!$B$3 & "Z" & 'STRG-Indizes'!$B35 & "S" & 'STRG-Indizes'!AD$5, FALSE) -> 147 | AE36: =INDIRECT('STRG-Indizes'!$B$3 & "Z" & 'STRG-Indizes'!$B35 & "S" & 'STRG-Indizes'!AE$5, FALSE) -> 112 | AF36: =INDIRECT('STRG-Indizes'!$B$3 & "Z" & 'STRG-Indizes'!$B35 & "S" & 'STRG-Indizes'!AF$5, FALSE) -> 103 | AG36: =INDIRECT('STRG-Indizes'!$B$3 & "Z" & 'STRG-Indizes'!$B35 & "S" & 'STRG-Indizes'!AG$5, FALSE) -> 87 | AH36: =INDIRECT('STRG-Indizes'!$B$3 & "Z" & 'STRG-Indizes'!$B35 & "S" & 'STRG-Indizes'!AH$5, FALSE) -> 90 | AI36: =INDIRECT('STRG-Indizes'!$B$3 & "Z" & 'STRG-Indizes'!$B35 & "S" & 'STRG-Indizes'!AI$5, FALSE) -> 199 | AJ36: =INDIRECT('STRG-Indizes'!$B$3 & "Z" & 'STRG-Indizes'!$B35 & "S" & 'STRG-Indizes'!AJ$5, FALSE) -> 117
A37: JC Breisgau-Hochschwarzwald | B37: Id | C37: =IF('STRG-Merkmal'!$E$9=2,"",INDIRECT('STRG-Indizes'!$B$3&"Z"&'STRG-Indizes'!$B36&"S"&'STRG-Indizes'!C$5,FALSE)) -> 77 | D37: =IF('STRG-Merkmal'!$E$9=2,"",INDIRECT('STRG-Indizes'!$B$3&"Z"&'STRG-Indizes'!$B36&"S"&'STRG-Indizes'!D$5,FALSE)) -> 124 | E37: =IF('STRG-Merkmal'!$E$9=2,"",INDIRECT('STRG-Indizes'!$B$3&"Z"&'STRG-Indizes'!$B36&"S"&'STRG-Indizes'!E$5,FALSE)) -> 121 | F37: =IF('STRG-Merkmal'!$E$9=2,"",INDIRECT('STRG-Indizes'!$B$3&"Z"&'STRG-Indizes'!$B36&"S"&'STRG-Indizes'!F$5,FALSE)) -> 150 | G37: =IF('STRG-Merkmal'!$E$9=2,"",INDIRECT('STRG-Indizes'!$B$3&"Z"&'STRG-Indizes'!$B36&"S"&'STRG-Indizes'!G$5,FALSE)) -> 159 | H37: =IF('STRG-Merkmal'!$E$9=2,"",INDIRECT('STRG-Indizes'!$B$3&"Z"&'STRG-Indizes'!$B36&"S"&'STRG-Indizes'!H$5,FALSE)) -> 115 | I37: =IF('STRG-Merkmal'!$E$9=2,"",INDIRECT('STRG-Indizes'!$B$3&"Z"&'STRG-Indizes'!$B36&"S"&'STRG-Indizes'!I$5,FALSE)) -> 143 | J37: =IF('STRG-Merkmal'!$E$9=2,"",INDIRECT('STRG-Indizes'!$B$3&"Z"&'STRG-Indizes'!$B36&"S"&'STRG-Indizes'!J$5,FALSE)) -> 169 | K37: =IF('STRG-Merkmal'!$E$9=2,"",INDIRECT('STRG-Indizes'!$B$3&"Z"&'STRG-Indizes'!$B36&"S"&'STRG-Indizes'!K$5,FALSE)) -> 262 | L37: =IF('STRG-Merkmal'!$E$9=2,"",INDIRECT('STRG-Indizes'!$B$3&"Z"&'STRG-Indizes'!$B36&"S"&'STRG-Indizes'!L$5,FALSE)) -> 171 | M37: =IF('STRG-Merkmal'!$E$9=2,"",INDIRECT('STRG-Indizes'!$B$3&"Z"&'STRG-Indizes'!$B36&"S"&'STRG-Indizes'!M$5,FALSE)) -> 130 | N37: =INDIRECT('STRG-Indizes'!$B$3&"Z"&'STRG-Indizes'!$B36&"S"&'STRG-Indizes'!N$5,FALSE) -> 131 | O37: =INDIRECT('STRG-Indizes'!$B$3 & "Z" & 'STRG-Indizes'!$B36 & "S" & 'STRG-Indizes'!O$5, FALSE) -> 112 | P37: =INDIRECT('STRG-Indizes'!$B$3 & "Z" & 'STRG-Indizes'!$B36 & "S" & 'STRG-Indizes'!P$5, FALSE) -> 139 | Q37: =INDIRECT('STRG-Indizes'!$B$3 & "Z" & 'STRG-Indizes'!$B36 & "S" & 'STRG-Indizes'!Q$5, FALSE) -> 150 | R37: =INDIRECT('STRG-Indizes'!$B$3 & "Z" & 'STRG-Indizes'!$B36 & "S" & 'STRG-Indizes'!R$5, FALSE) -> 155 | S37: =INDIRECT('STRG-Indizes'!$B$3 & "Z" & 'STRG-Indizes'!$B36 & "S" & 'STRG-Indizes'!S$5, FALSE) -> 158 | T37: =INDIRECT('STRG-Indizes'!$B$3 & "Z" & 'STRG-Indizes'!$B36 & "S" & 'STRG-Indizes'!T$5, FALSE) -> 138 | U37: =INDIRECT('STRG-Indizes'!$B$3 & "Z" & 'STRG-Indizes'!$B36 & "S" & 'STRG-Indizes'!U$5, FALSE) -> 144 | V37: =INDIRECT('STRG-Indizes'!$B$3 & "Z" & 'STRG-Indizes'!$B36 & "S" & 'STRG-Indizes'!V$5, FALSE) -> 178 | W37: =INDIRECT('STRG-Indizes'!$B$3 & "Z" & 'STRG-Indizes'!$B36 & "S" & 'STRG-Indizes'!W$5, FALSE) -> 257 | X37: =INDIRECT('STRG-Indizes'!$B$3 & "Z" & 'STRG-Indizes'!$B36 & "S" & 'STRG-Indizes'!X$5, FALSE) -> 190 | Y37: =INDIRECT('STRG-Indizes'!$B$3 & "Z" & 'STRG-Indizes'!$B36 & "S" & 'STRG-Indizes'!Y$5, FALSE) -> 140 | Z37: =INDIRECT('STRG-Indizes'!$B$3 & "Z" & 'STRG-Indizes'!$B36 & "S" & 'STRG-Indizes'!Z$5, FALSE) -> 114 | AA37: =INDIRECT('STRG-Indizes'!$B$3 & "Z" & 'STRG-Indizes'!$B36 & "S" & 'STRG-Indizes'!AA$5, FALSE) -> 106 | AB37: =INDIRECT('STRG-Indizes'!$B$3 & "Z" & 'STRG-Indizes'!$B36 & "S" & 'STRG-Indizes'!AB$5, FALSE) -> 107 | AC37: =INDIRECT('STRG-Indizes'!$B$3 & "Z" & 'STRG-Indizes'!$B36 & "S" & 'STRG-Indizes'!AC$5, FALSE) -> 126 | AD37: =INDIRECT('STRG-Indizes'!$B$3 & "Z" & 'STRG-Indizes'!$B36 & "S" & 'STRG-Indizes'!AD$5, FALSE) -> 157 | AE37: =INDIRECT('STRG-Indizes'!$B$3 & "Z" & 'STRG-Indizes'!$B36 & "S" & 'STRG-Indizes'!AE$5, FALSE) -> 164 | AF37: =INDIRECT('STRG-Indizes'!$B$3 & "Z" & 'STRG-Indizes'!$B36 & "S" & 'STRG-Indizes'!AF$5, FALSE) -> 134 | AG37: =INDIRECT('STRG-Indizes'!$B$3 & "Z" & 'STRG-Indizes'!$B36 & "S" & 'STRG-Indizes'!AG$5, FALSE) -> 138 | AH37: =INDIRECT('STRG-Indizes'!$B$3 & "Z" & 'STRG-Indizes'!$B36 & "S" & 'STRG-Indizes'!AH$5, FALSE) -> 160 | AI37: =INDIRECT('STRG-Indizes'!$B$3 & "Z" & 'STRG-Indizes'!$B36 & "S" & 'STRG-Indizes'!AI$5, FALSE) -> 256 | AJ37: =INDIRECT('STRG-Indizes'!$B$3 & "Z" & 'STRG-Indizes'!$B36 & "S" & 'STRG-Indizes'!AJ$5, FALSE) -> 137
A38: JC Calw | B38: Ic | C38: =IF('STRG-Merkmal'!$E$9=2,"",INDIRECT('STRG-Indizes'!$B$3&"Z"&'STRG-Indizes'!$B37&"S"&'STRG-Indizes'!C$5,FALSE)) -> 43 | D38: =IF('STRG-Merkmal'!$E$9=2,"",INDIRECT('STRG-Indizes'!$B$3&"Z"&'STRG-Indizes'!$B37&"S"&'STRG-Indizes'!D$5,FALSE)) -> 79 | E38: =IF('STRG-Merkmal'!$E$9=2,"",INDIRECT('STRG-Indizes'!$B$3&"Z"&'STRG-Indizes'!$B37&"S"&'STRG-Indizes'!E$5,FALSE)) -> 62 | F38: =IF('STRG-Merkmal'!$E$9=2,"",INDIRECT('STRG-Indizes'!$B$3&"Z"&'STRG-Indizes'!$B37&"S"&'STRG-Indizes'!F$5,FALSE)) -> 94 | G38: =IF('STRG-Merkmal'!$E$9=2,"",INDIRECT('STRG-Indizes'!$B$3&"Z"&'STRG-Indizes'!$B37&"S"&'STRG-Indizes'!G$5,FALSE)) -> 103 | H38: =IF('STRG-Merkmal'!$E$9=2,"",INDIRECT('STRG-Indizes'!$B$3&"Z"&'STRG-Indizes'!$B37&"S"&'STRG-Indizes'!H$5,FALSE)) -> 78 | I38: =IF('STRG-Merkmal'!$E$9=2,"",INDIRECT('STRG-Indizes'!$B$3&"Z"&'STRG-Indizes'!$B37&"S"&'STRG-Indizes'!I$5,FALSE)) -> 92 | J38: =IF('STRG-Merkmal'!$E$9=2,"",INDIRECT('STRG-Indizes'!$B$3&"Z"&'STRG-Indizes'!$B37&"S"&'STRG-Indizes'!J$5,FALSE)) -> 76 | K38: =IF('STRG-Merkmal'!$E$9=2,"",INDIRECT('STRG-Indizes'!$B$3&"Z"&'STRG-Indizes'!$B37&"S"&'STRG-Indizes'!K$5,FALSE)) -> 186 | L38: =IF('STRG-Merkmal'!$E$9=2,"",INDIRECT('STRG-Indizes'!$B$3&"Z"&'STRG-Indizes'!$B37&"S"&'STRG-Indizes'!L$5,FALSE)) -> 97 | M38: =IF('STRG-Merkmal'!$E$9=2,"",INDIRECT('STRG-Indizes'!$B$3&"Z"&'STRG-Indizes'!$B37&"S"&'STRG-Indizes'!M$5,FALSE)) -> 101 | N38: =INDIRECT('STRG-Indizes'!$B$3&"Z"&'STRG-Indizes'!$B37&"S"&'STRG-Indizes'!N$5,FALSE) -> 72 | O38: =INDIRECT('STRG-Indizes'!$B$3 & "Z" & 'STRG-Indizes'!$B37 & "S" & 'STRG-Indizes'!O$5, FALSE) -> 56 | P38: =INDIRECT('STRG-Indizes'!$B$3 & "Z" & 'STRG-Indizes'!$B37 & "S" & 'STRG-Indizes'!P$5, FALSE) -> 68 | Q38: =INDIRECT('STRG-Indizes'!$B$3 & "Z" & 'STRG-Indizes'!$B37 & "S" & 'STRG-Indizes'!Q$5, FALSE) -> 75 | R38: =INDIRECT('STRG-Indizes'!$B$3 & "Z" & 'STRG-Indizes'!$B37 & "S" & 'STRG-Indizes'!R$5, FALSE) -> 90 | S38: =INDIRECT('STRG-Indizes'!$B$3 & "Z" & 'STRG-Indizes'!$B37 & "S" & 'STRG-Indizes'!S$5, FALSE) -> 109 | T38: =INDIRECT('STRG-Indizes'!$B$3 & "Z" & 'STRG-Indizes'!$B37 & "S" & 'STRG-Indizes'!T$5, FALSE) -> 100 | U38: =INDIRECT('STRG-Indizes'!$B$3 & "Z" & 'STRG-Indizes'!$B37 & "S" & 'STRG-Indizes'!U$5, FALSE) -> 129 | V38: =INDIRECT('STRG-Indizes'!$B$3 & "Z" & 'STRG-Indizes'!$B37 & "S" & 'STRG-Indizes'!V$5, FALSE) -> 102 | W38: =INDIRECT('STRG-Indizes'!$B$3 & "Z" & 'STRG-Indizes'!$B37 & "S" & 'STRG-Indizes'!W$5, FALSE) -> 170 | X38: =INDIRECT('STRG-Indizes'!$B$3 & "Z" & 'STRG-Indizes'!$B37 & "S" & 'STRG-Indizes'!X$5, FALSE) -> 105 | Y38: =INDIRECT('STRG-Indizes'!$B$3 & "Z" & 'STRG-Indizes'!$B37 & "S" & 'STRG-Indizes'!Y$5, FALSE) -> 87 | Z38: =INDIRECT('STRG-Indizes'!$B$3 & "Z" & 'STRG-Indizes'!$B37 & "S" & 'STRG-Indizes'!Z$5, FALSE) -> 61 | AA38: =INDIRECT('STRG-Indizes'!$B$3 & "Z" & 'STRG-Indizes'!$B37 & "S" & 'STRG-Indizes'!AA$5, FALSE) -> 59 | AB38: =INDIRECT('STRG-Indizes'!$B$3 & "Z" & 'STRG-Indizes'!$B37 & "S" & 'STRG-Indizes'!AB$5, FALSE) -> 88 | AC38: =INDIRECT('STRG-Indizes'!$B$3 & "Z" & 'STRG-Indizes'!$B37 & "S" & 'STRG-Indizes'!AC$5, FALSE) -> 74 | AD38: =INDIRECT('STRG-Indizes'!$B$3 & "Z" & 'STRG-Indizes'!$B37 & "S" & 'STRG-Indizes'!AD$5, FALSE) -> 68 | AE38: =INDIRECT('STRG-Indizes'!$B$3 & "Z" & 'STRG-Indizes'!$B37 & "S" & 'STRG-Indizes'!AE$5, FALSE) -> 97 | AF38: =INDIRECT('STRG-Indizes'!$B$3 & "Z" & 'STRG-Indizes'!$B37 & "S" & 'STRG-Indizes'!AF$5, FALSE) -> 84 | AG38: =INDIRECT('STRG-Indizes'!$B$3 & "Z" & 'STRG-Indizes'!$B37 & "S" & 'STRG-Indizes'!AG$5, FALSE) -> 78 | AH38: =INDIRECT('STRG-Indizes'!$B$3 & "Z" & 'STRG-Indizes'!$B37 & "S" & 'STRG-Indizes'!AH$5, FALSE) -> 81 | AI38: =INDIRECT('STRG-Indizes'!$B$3 & "Z" & 'STRG-Indizes'!$B37 & "S" & 'STRG-Indizes'!AI$5, FALSE) -> 133 | AJ38: =INDIRECT('STRG-Indizes'!$B$3 & "Z" & 'STRG-Indizes'!$B37 & "S" & 'STRG-Indizes'!AJ$5, FALSE) -> 105
A39: JC Emmendingen | B39: Ib | C39: =IF('STRG-Merkmal'!$E$9=2,"",INDIRECT('STRG-Indizes'!$B$3&"Z"&'STRG-Indizes'!$B38&"S"&'STRG-Indizes'!C$5,FALSE)) -> 55 | D39: =IF('STRG-Merkmal'!$E$9=2,"",INDIRECT('STRG-Indizes'!$B$3&"Z"&'STRG-Indizes'!$B38&"S"&'STRG-Indizes'!D$5,FALSE)) -> 80 | E39: =IF('STRG-Merkmal'!$E$9=2,"",INDIRECT('STRG-Indizes'!$B$3&"Z"&'STRG-Indizes'!$B38&"S"&'STRG-Indizes'!E$5,FALSE)) -> 85 | F39: =IF('STRG-Merkmal'!$E$9=2,"",INDIRECT('STRG-Indizes'!$B$3&"Z"&'STRG-Indizes'!$B38&"S"&'STRG-Indizes'!F$5,FALSE)) -> 106 | G39: =IF('STRG-Merkmal'!$E$9=2,"",INDIRECT('STRG-Indizes'!$B$3&"Z"&'STRG-Indizes'!$B38&"S"&'STRG-Indizes'!G$5,FALSE)) -> 113 | H39: =IF('STRG-Merkmal'!$E$9=2,"",INDIRECT('STRG-Indizes'!$B$3&"Z"&'STRG-Indizes'!$B38&"S"&'STRG-Indizes'!H$5,FALSE)) -> 91 | I39: =IF('STRG-Merkmal'!$E$9=2,"",INDIRECT('STRG-Indizes'!$B$3&"Z"&'STRG-Indizes'!$B38&"S"&'STRG-Indizes'!I$5,FALSE)) -> 88 | J39: =IF('STRG-Merkmal'!$E$9=2,"",INDIRECT('STRG-Indizes'!$B$3&"Z"&'STRG-Indizes'!$B38&"S"&'STRG-Indizes'!J$5,FALSE)) -> 101 | K39: =IF('STRG-Merkmal'!$E$9=2,"",INDIRECT('STRG-Indizes'!$B$3&"Z"&'STRG-Indizes'!$B38&"S"&'STRG-Indizes'!K$5,FALSE)) -> 190 | L39: =IF('STRG-Merkmal'!$E$9=2,"",INDIRECT('STRG-Indizes'!$B$3&"Z"&'STRG-Indizes'!$B38&"S"&'STRG-Indizes'!L$5,FALSE)) -> 122 | M39: =IF('STRG-Merkmal'!$E$9=2,"",INDIRECT('STRG-Indizes'!$B$3&"Z"&'STRG-Indizes'!$B38&"S"&'STRG-Indizes'!M$5,FALSE)) -> 104 | N39: =INDIRECT('STRG-Indizes'!$B$3&"Z"&'STRG-Indizes'!$B38&"S"&'STRG-Indizes'!N$5,FALSE) -> 81 | O39: =INDIRECT('STRG-Indizes'!$B$3 & "Z" & 'STRG-Indizes'!$B38 & "S" & 'STRG-Indizes'!O$5, FALSE) -> 63 | P39: =INDIRECT('STRG-Indizes'!$B$3 & "Z" & 'STRG-Indizes'!$B38 & "S" & 'STRG-Indizes'!P$5, FALSE) -> 91 | Q39: =INDIRECT('STRG-Indizes'!$B$3 & "Z" & 'STRG-Indizes'!$B38 & "S" & 'STRG-Indizes'!Q$5, FALSE) -> 80 | R39: =INDIRECT('STRG-Indizes'!$B$3 & "Z" & 'STRG-Indizes'!$B38 & "S" & 'STRG-Indizes'!R$5, FALSE) -> 120 | S39: =INDIRECT('STRG-Indizes'!$B$3 & "Z" & 'STRG-Indizes'!$B38 & "S" & 'STRG-Indizes'!S$5, FALSE) -> 110 | T39: =INDIRECT('STRG-Indizes'!$B$3 & "Z" & 'STRG-Indizes'!$B38 & "S" & 'STRG-Indizes'!T$5, FALSE) -> 68 | U39: =INDIRECT('STRG-Indizes'!$B$3 & "Z" & 'STRG-Indizes'!$B38 & "S" & 'STRG-Indizes'!U$5, FALSE) -> 110 | V39: =INDIRECT('STRG-Indizes'!$B$3 & "Z" & 'STRG-Indizes'!$B38 & "S" & 'STRG-Indizes'!V$5, FALSE) -> 125 | W39: =INDIRECT('STRG-Indizes'!$B$3 & "Z" & 'STRG-Indizes'!$B38 & "S" & 'STRG-Indizes'!W$5, FALSE) -> 179 | X39: =INDIRECT('STRG-Indizes'!$B$3 & "Z" & 'STRG-Indizes'!$B38 & "S" & 'STRG-Indizes'!X$5, FALSE) -> 119 | Y39: =INDIRECT('STRG-Indizes'!$B$3 & "Z" & 'STRG-Indizes'!$B38 & "S" & 'STRG-Indizes'!Y$5, FALSE) -> 114 | Z39: =INDIRECT('STRG-Indizes'!$B$3 & "Z" & 'STRG-Indizes'!$B38 & "S" & 'STRG-Indizes'!Z$5, FALSE) -> 57 | AA39: =INDIRECT('STRG-Indizes'!$B$3 & "Z" & 'STRG-Indizes'!$B38 & "S" & 'STRG-Indizes'!AA$5, FALSE) -> 59 | AB39: =INDIRECT('STRG-Indizes'!$B$3 & "Z" & 'STRG-Indizes'!$B38 & "S" & 'STRG-Indizes'!AB$5, FALSE) -> 71 | AC39: =INDIRECT('STRG-Indizes'!$B$3 & "Z" & 'STRG-Indizes'!$B38 & "S" & 'STRG-Indizes'!AC$5, FALSE) -> 75 | AD39: =INDIRECT('STRG-Indizes'!$B$3 & "Z" & 'STRG-Indizes'!$B38 & "S" & 'STRG-Indizes'!AD$5, FALSE) -> 120 | AE39: =INDIRECT('STRG-Indizes'!$B$3 & "Z" & 'STRG-Indizes'!$B38 & "S" & 'STRG-Indizes'!AE$5, FALSE) -> 98 | AF39: =INDIRECT('STRG-Indizes'!$B$3 & "Z" & 'STRG-Indizes'!$B38 & "S" & 'STRG-Indizes'!AF$5, FALSE) -> 93 | AG39: =INDIRECT('STRG-Indizes'!$B$3 & "Z" & 'STRG-Indizes'!$B38 & "S" & 'STRG-Indizes'!AG$5, FALSE) -> 98 | AH39: =INDIRECT('STRG-Indizes'!$B$3 & "Z" & 'STRG-Indizes'!$B38 & "S" & 'STRG-Indizes'!AH$5, FALSE) -> 104 | AI39: =INDIRECT('STRG-Indizes'!$B$3 & "Z" & 'STRG-Indizes'!$B38 & "S" & 'STRG-Indizes'!AI$5, FALSE) -> 191 | AJ39: =INDIRECT('STRG-Indizes'!$B$3 & "Z" & 'STRG-Indizes'!$B38 & "S" & 'STRG-Indizes'!AJ$5, FALSE) -> 115
A40: JC Enzkreis | B40: Ib | C40: =IF('STRG-Merkmal'!$E$9=2,"",INDIRECT('STRG-Indizes'!$B$3&"Z"&'STRG-Indizes'!$B39&"S"&'STRG-Indizes'!C$5,FALSE)) -> 40 | D40: =IF('STRG-Merkmal'!$E$9=2,"",INDIRECT('STRG-Indizes'!$B$3&"Z"&'STRG-Indizes'!$B39&"S"&'STRG-Indizes'!D$5,FALSE)) -> 58 | E40: =IF('STRG-Merkmal'!$E$9=2,"",INDIRECT('STRG-Indizes'!$B$3&"Z"&'STRG-Indizes'!$B39&"S"&'STRG-Indizes'!E$5,FALSE)) -> 60 | F40: =IF('STRG-Merkmal'!$E$9=2,"",INDIRECT('STRG-Indizes'!$B$3&"Z"&'STRG-Indizes'!$B39&"S"&'STRG-Indizes'!F$5,FALSE)) -> 65 | G40: =IF('STRG-Merkmal'!$E$9=2,"",INDIRECT('STRG-Indizes'!$B$3&"Z"&'STRG-Indizes'!$B39&"S"&'STRG-Indizes'!G$5,FALSE)) -> 64 | H40: =IF('STRG-Merkmal'!$E$9=2,"",INDIRECT('STRG-Indizes'!$B$3&"Z"&'STRG-Indizes'!$B39&"S"&'STRG-Indizes'!H$5,FALSE)) -> 59 | I40: =IF('STRG-Merkmal'!$E$9=2,"",INDIRECT('STRG-Indizes'!$B$3&"Z"&'STRG-Indizes'!$B39&"S"&'STRG-Indizes'!I$5,FALSE)) -> 66 | J40: =IF('STRG-Merkmal'!$E$9=2,"",INDIRECT('STRG-Indizes'!$B$3&"Z"&'STRG-Indizes'!$B39&"S"&'STRG-Indizes'!J$5,FALSE)) -> 61 | K40: =IF('STRG-Merkmal'!$E$9=2,"",INDIRECT('STRG-Indizes'!$B$3&"Z"&'STRG-Indizes'!$B39&"S"&'STRG-Indizes'!K$5,FALSE)) -> 126 | L40: =IF('STRG-Merkmal'!$E$9=2,"",INDIRECT('STRG-Indizes'!$B$3&"Z"&'STRG-Indizes'!$B39&"S"&'STRG-Indizes'!L$5,FALSE)) -> 94 | M40: =IF('STRG-Merkmal'!$E$9=2,"",INDIRECT('STRG-Indizes'!$B$3&"Z"&'STRG-Indizes'!$B39&"S"&'STRG-Indizes'!M$5,FALSE)) -> 90 | N40: =INDIRECT('STRG-Indizes'!$B$3&"Z"&'STRG-Indizes'!$B39&"S"&'STRG-Indizes'!N$5,FALSE) -> 59 | O40: =INDIRECT('STRG-Indizes'!$B$3 & "Z" & 'STRG-Indizes'!$B39 & "S" & 'STRG-Indizes'!O$5, FALSE) -> 44 | P40: =INDIRECT('STRG-Indizes'!$B$3 & "Z" & 'STRG-Indizes'!$B39 & "S" & 'STRG-Indizes'!P$5, FALSE) -> 67 | Q40: =INDIRECT('STRG-Indizes'!$B$3 & "Z" & 'STRG-Indizes'!$B39 & "S" & 'STRG-Indizes'!Q$5, FALSE) -> 80 | R40: =INDIRECT('STRG-Indizes'!$B$3 & "Z" & 'STRG-Indizes'!$B39 & "S" & 'STRG-Indizes'!R$5, FALSE) -> 71 | S40: =INDIRECT('STRG-Indizes'!$B$3 & "Z" & 'STRG-Indizes'!$B39 & "S" & 'STRG-Indizes'!S$5, FALSE) -> 74 | T40: =INDIRECT('STRG-Indizes'!$B$3 & "Z" & 'STRG-Indizes'!$B39 & "S" & 'STRG-Indizes'!T$5, FALSE) -> 69 | U40: =INDIRECT('STRG-Indizes'!$B$3 & "Z" & 'STRG-Indizes'!$B39 & "S" & 'STRG-Indizes'!U$5, FALSE) -> 88 | V40: =INDIRECT('STRG-Indizes'!$B$3 & "Z" & 'STRG-Indizes'!$B39 & "S" & 'STRG-Indizes'!V$5, FALSE) -> 75 | W40: =INDIRECT('STRG-Indizes'!$B$3 & "Z" & 'STRG-Indizes'!$B39 & "S" & 'STRG-Indizes'!W$5, FALSE) -> 163 | X40: =INDIRECT('STRG-Indizes'!$B$3 & "Z" & 'STRG-Indizes'!$B39 & "S" & 'STRG-Indizes'!X$5, FALSE) -> 80 | Y40: =INDIRECT('STRG-Indizes'!$B$3 & "Z" & 'STRG-Indizes'!$B39 & "S" & 'STRG-Indizes'!Y$5, FALSE) -> 78 | Z40: =INDIRECT('STRG-Indizes'!$B$3 & "Z" & 'STRG-Indizes'!$B39 & "S" & 'STRG-Indizes'!Z$5, FALSE) -> 65 | AA40: =INDIRECT('STRG-Indizes'!$B$3 & "Z" & 'STRG-Indizes'!$B39 & "S" & 'STRG-Indizes'!AA$5, FALSE) -> 49 | AB40: =INDIRECT('STRG-Indizes'!$B$3 & "Z" & 'STRG-Indizes'!$B39 & "S" & 'STRG-Indizes'!AB$5, FALSE) -> 51 | AC40: =INDIRECT('STRG-Indizes'!$B$3 & "Z" & 'STRG-Indizes'!$B39 & "S" & 'STRG-Indizes'!AC$5, FALSE) -> 59 | AD40: =INDIRECT('STRG-Indizes'!$B$3 & "Z" & 'STRG-Indizes'!$B39 & "S" & 'STRG-Indizes'!AD$5, FALSE) -> 73 | AE40: =INDIRECT('STRG-Indizes'!$B$3 & "Z" & 'STRG-Indizes'!$B39 & "S" & 'STRG-Indizes'!AE$5, FALSE) -> 62 | AF40: =INDIRECT('STRG-Indizes'!$B$3 & "Z" & 'STRG-Indizes'!$B39 & "S" & 'STRG-Indizes'!AF$5, FALSE) -> 80 | AG40: =INDIRECT('STRG-Indizes'!$B$3 & "Z" & 'STRG-Indizes'!$B39 & "S" & 'STRG-Indizes'!AG$5, FALSE) -> 52 | AH40: =INDIRECT('STRG-Indizes'!$B$3 & "Z" & 'STRG-Indizes'!$B39 & "S" & 'STRG-Indizes'!AH$5, FALSE) -> 74 | AI40: =INDIRECT('STRG-Indizes'!$B$3 & "Z" & 'STRG-Indizes'!$B39 & "S" & 'STRG-Indizes'!AI$5, FALSE) -> 113 | AJ40: =INDIRECT('STRG-Indizes'!$B$3 & "Z" & 'STRG-Indizes'!$B39 & "S" & 'STRG-Indizes'!AJ$5, FALSE) -> 81
A41: JC Esslingen | B41: Id | C41: =IF('STRG-Merkmal'!$E$9=2,"",INDIRECT('STRG-Indizes'!$B$3&"Z"&'STRG-Indizes'!$B40&"S"&'STRG-Indizes'!C$5,FALSE)) -> 183 | D41: =IF('STRG-Merkmal'!$E$9=2,"",INDIRECT('STRG-Indizes'!$B$3&"Z"&'STRG-Indizes'!$B40&"S"&'STRG-Indizes'!D$5,FALSE)) -> 266 | E41: =IF('STRG-Merkmal'!$E$9=2,"",INDIRECT('STRG-Indizes'!$B$3&"Z"&'STRG-Indizes'!$B40&"S"&'STRG-Indizes'!E$5,FALSE)) -> 309 | F41: =IF('STRG-Merkmal'!$E$9=2,"",INDIRECT('STRG-Indizes'!$B$3&"Z"&'STRG-Indizes'!$B40&"S"&'STRG-Indizes'!F$5,FALSE)) -> 352 | G41: =IF('STRG-Merkmal'!$E$9=2,"",INDIRECT('STRG-Indizes'!$B$3&"Z"&'STRG-Indizes'!$B40&"S"&'STRG-Indizes'!G$5,FALSE)) -> 373 | H41: =IF('STRG-Merkmal'!$E$9=2,"",INDIRECT('STRG-Indizes'!$B$3&"Z"&'STRG-Indizes'!$B40&"S"&'STRG-Indizes'!H$5,FALSE)) -> 348 | I41: =IF('STRG-Merkmal'!$E$9=2,"",INDIRECT('STRG-Indizes'!$B$3&"Z"&'STRG-Indizes'!$B40&"S"&'STRG-Indizes'!I$5,FALSE)) -> 384 | J41: =IF('STRG-Merkmal'!$E$9=2,"",INDIRECT('STRG-Indizes'!$B$3&"Z"&'STRG-Indizes'!$B40&"S"&'STRG-Indizes'!J$5,FALSE)) -> 398 | K41: =IF('STRG-Merkmal'!$E$9=2,"",INDIRECT('STRG-Indizes'!$B$3&"Z"&'STRG-Indizes'!$B40&"S"&'STRG-Indizes'!K$5,FALSE)) -> 705 | L41: =IF('STRG-Merkmal'!$E$9=2,"",INDIRECT('STRG-Indizes'!$B$3&"Z"&'STRG-Indizes'!$B40&"S"&'STRG-Indizes'!L$5,FALSE)) -> 496 | M41: =IF('STRG-Merkmal'!$E$9=2,"",INDIRECT('STRG-Indizes'!$B$3&"Z"&'STRG-Indizes'!$B40&"S"&'STRG-Indizes'!M$5,FALSE)) -> 393 | N41: =INDIRECT('STRG-Indizes'!$B$3&"Z"&'STRG-Indizes'!$B40&"S"&'STRG-Indizes'!N$5,FALSE) -> 315 | O41: =INDIRECT('STRG-Indizes'!$B$3 & "Z" & 'STRG-Indizes'!$B40 & "S" & 'STRG-Indizes'!O$5, FALSE) -> 247 | P41: =INDIRECT('STRG-Indizes'!$B$3 & "Z" & 'STRG-Indizes'!$B40 & "S" & 'STRG-Indizes'!P$5, FALSE) -> 333 | Q41: =INDIRECT('STRG-Indizes'!$B$3 & "Z" & 'STRG-Indizes'!$B40 & "S" & 'STRG-Indizes'!Q$5, FALSE) -> 321 | R41: =INDIRECT('STRG-Indizes'!$B$3 & "Z" & 'STRG-Indizes'!$B40 & "S" & 'STRG-Indizes'!R$5, FALSE) -> 358 | S41: =INDIRECT('STRG-Indizes'!$B$3 & "Z" & 'STRG-Indizes'!$B40 & "S" & 'STRG-Indizes'!S$5, FALSE) -> 414 | T41: =INDIRECT('STRG-Indizes'!$B$3 & "Z" & 'STRG-Indizes'!$B40 & "S" & 'STRG-Indizes'!T$5, FALSE) -> 360 | U41: =INDIRECT('STRG-Indizes'!$B$3 & "Z" & 'STRG-Indizes'!$B40 & "S" & 'STRG-Indizes'!U$5, FALSE) -> 402 | V41: =INDIRECT('STRG-Indizes'!$B$3 & "Z" & 'STRG-Indizes'!$B40 & "S" & 'STRG-Indizes'!V$5, FALSE) -> 444 | W41: =INDIRECT('STRG-Indizes'!$B$3 & "Z" & 'STRG-Indizes'!$B40 & "S" & 'STRG-Indizes'!W$5, FALSE) -> 704 | X41: =INDIRECT('STRG-Indizes'!$B$3 & "Z" & 'STRG-Indizes'!$B40 & "S" & 'STRG-Indizes'!X$5, FALSE) -> 457 | Y41: =INDIRECT('STRG-Indizes'!$B$3 & "Z" & 'STRG-Indizes'!$B40 & "S" & 'STRG-Indizes'!Y$5, FALSE) -> 375 | Z41: =INDIRECT('STRG-Indizes'!$B$3 & "Z" & 'STRG-Indizes'!$B40 & "S" & 'STRG-Indizes'!Z$5, FALSE) -> 289 | AA41: =INDIRECT('STRG-Indizes'!$B$3 & "Z" & 'STRG-Indizes'!$B40 & "S" & 'STRG-Indizes'!AA$5, FALSE) -> 274 | AB41: =INDIRECT('STRG-Indizes'!$B$3 & "Z" & 'STRG-Indizes'!$B40 & "S" & 'STRG-Indizes'!AB$5, FALSE) -> 285 | AC41: =INDIRECT('STRG-Indizes'!$B$3 & "Z" & 'STRG-Indizes'!$B40 & "S" & 'STRG-Indizes'!AC$5, FALSE) -> 291 | AD41: =INDIRECT('STRG-Indizes'!$B$3 & "Z" & 'STRG-Indizes'!$B40 & "S" & 'STRG-Indizes'!AD$5, FALSE) -> 353 | AE41: =INDIRECT('STRG-Indizes'!$B$3 & "Z" & 'STRG-Indizes'!$B40 & "S" & 'STRG-Indizes'!AE$5, FALSE) -> 326 | AF41: =INDIRECT('STRG-Indizes'!$B$3 & "Z" & 'STRG-Indizes'!$B40 & "S" & 'STRG-Indizes'!AF$5, FALSE) -> 288 | AG41: =INDIRECT('STRG-Indizes'!$B$3 & "Z" & 'STRG-Indizes'!$B40 & "S" & 'STRG-Indizes'!AG$5, FALSE) -> 336 | AH41: =INDIRECT('STRG-Indizes'!$B$3 & "Z" & 'STRG-Indizes'!$B40 & "S" & 'STRG-Indizes'!AH$5, FALSE) -> 371 | AI41: =INDIRECT('STRG-Indizes'!$B$3 & "Z" & 'STRG-Indizes'!$B40 & "S" & 'STRG-Indizes'!AI$5, FALSE) -> 600 | AJ41: =INDIRECT('STRG-Indizes'!$B$3 & "Z" & 'STRG-Indizes'!$B40 & "S" & 'STRG-Indizes'!AJ$5, FALSE) -> 400
A42: JC Freiburg im Breisgau, Stadt | B42: IIb | C42: =IF('STRG-Merkmal'!$E$9=2,"",INDIRECT('STRG-Indizes'!$B$3&"Z"&'STRG-Indizes'!$B41&"S"&'STRG-Indizes'!C$5,FALSE)) -> 155 | D42: =IF('STRG-Merkmal'!$E$9=2,"",INDIRECT('STRG-Indizes'!$B$3&"Z"&'STRG-Indizes'!$B41&"S"&'STRG-Indizes'!D$5,FALSE)) -> 185 | E42: =IF('STRG-Merkmal'!$E$9=2,"",INDIRECT('STRG-Indizes'!$B$3&"Z"&'STRG-Indizes'!$B41&"S"&'STRG-Indizes'!E$5,FALSE)) -> 216 | F42: =IF('STRG-Merkmal'!$E$9=2,"",INDIRECT('STRG-Indizes'!$B$3&"Z"&'STRG-Indizes'!$B41&"S"&'STRG-Indizes'!F$5,FALSE)) -> 281 | G42: =IF('STRG-Merkmal'!$E$9=2,"",INDIRECT('STRG-Indizes'!$B$3&"Z"&'STRG-Indizes'!$B41&"S"&'STRG-Indizes'!G$5,FALSE)) -> 260 | H42: =IF('STRG-Merkmal'!$E$9=2,"",INDIRECT('STRG-Indizes'!$B$3&"Z"&'STRG-Indizes'!$B41&"S"&'STRG-Indizes'!H$5,FALSE)) -> 179 | I42: =IF('STRG-Merkmal'!$E$9=2,"",INDIRECT('STRG-Indizes'!$B$3&"Z"&'STRG-Indizes'!$B41&"S"&'STRG-Indizes'!I$5,FALSE)) -> 217 | J42: =IF('STRG-Merkmal'!$E$9=2,"",INDIRECT('STRG-Indizes'!$B$3&"Z"&'STRG-Indizes'!$B41&"S"&'STRG-Indizes'!J$5,FALSE)) -> 250 | K42: =IF('STRG-Merkmal'!$E$9=2,"",INDIRECT('STRG-Indizes'!$B$3&"Z"&'STRG-Indizes'!$B41&"S"&'STRG-Indizes'!K$5,FALSE)) -> 477 | L42: =IF('STRG-Merkmal'!$E$9=2,"",INDIRECT('STRG-Indizes'!$B$3&"Z"&'STRG-Indizes'!$B41&"S"&'STRG-Indizes'!L$5,FALSE)) -> 259 | M42: =IF('STRG-Merkmal'!$E$9=2,"",INDIRECT('STRG-Indizes'!$B$3&"Z"&'STRG-Indizes'!$B41&"S"&'STRG-Indizes'!M$5,FALSE)) -> 220 | N42: =INDIRECT('STRG-Indizes'!$B$3&"Z"&'STRG-Indizes'!$B41&"S"&'STRG-Indizes'!N$5,FALSE) -> 183 | O42: =INDIRECT('STRG-Indizes'!$B$3 & "Z" & 'STRG-Indizes'!$B41 & "S" & 'STRG-Indizes'!O$5, FALSE) -> 165 | P42: =INDIRECT('STRG-Indizes'!$B$3 & "Z" & 'STRG-Indizes'!$B41 & "S" & 'STRG-Indizes'!P$5, FALSE) -> 234 | Q42: =INDIRECT('STRG-Indizes'!$B$3 & "Z" & 'STRG-Indizes'!$B41 & "S" & 'STRG-Indizes'!Q$5, FALSE) -> 193 | R42: =INDIRECT('STRG-Indizes'!$B$3 & "Z" & 'STRG-Indizes'!$B41 & "S" & 'STRG-Indizes'!R$5, FALSE) -> 254 | S42: =INDIRECT('STRG-Indizes'!$B$3 & "Z" & 'STRG-Indizes'!$B41 & "S" & 'STRG-Indizes'!S$5, FALSE) -> 259 | T42: =INDIRECT('STRG-Indizes'!$B$3 & "Z" & 'STRG-Indizes'!$B41 & "S" & 'STRG-Indizes'!T$5, FALSE) -> 203 | U42: =INDIRECT('STRG-Indizes'!$B$3 & "Z" & 'STRG-Indizes'!$B41 & "S" & 'STRG-Indizes'!U$5, FALSE) -> 227 | V42: =INDIRECT('STRG-Indizes'!$B$3 & "Z" & 'STRG-Indizes'!$B41 & "S" & 'STRG-Indizes'!V$5, FALSE) -> 243 | W42: =INDIRECT('STRG-Indizes'!$B$3 & "Z" & 'STRG-Indizes'!$B41 & "S" & 'STRG-Indizes'!W$5, FALSE) -> 448 | X42: =INDIRECT('STRG-Indizes'!$B$3 & "Z" & 'STRG-Indizes'!$B41 & "S" & 'STRG-Indizes'!X$5, FALSE) -> 256 | Y42: =INDIRECT('STRG-Indizes'!$B$3 & "Z" & 'STRG-Indizes'!$B41 & "S" & 'STRG-Indizes'!Y$5, FALSE) -> 213 | Z42: =INDIRECT('STRG-Indizes'!$B$3 & "Z" & 'STRG-Indizes'!$B41 & "S" & 'STRG-Indizes'!Z$5, FALSE) -> 161 | AA42: =INDIRECT('STRG-Indizes'!$B$3 & "Z" & 'STRG-Indizes'!$B41 & "S" & 'STRG-Indizes'!AA$5, FALSE) -> 162 | AB42: =INDIRECT('STRG-Indizes'!$B$3 & "Z" & 'STRG-Indizes'!$B41 & "S" & 'STRG-Indizes'!AB$5, FALSE) -> 174 | AC42: =INDIRECT('STRG-Indizes'!$B$3 & "Z" & 'STRG-Indizes'!$B41 & "S" & 'STRG-Indizes'!AC$5, FALSE) -> 216 | AD42: =INDIRECT('STRG-Indizes'!$B$3 & "Z" & 'STRG-Indizes'!$B41 & "S" & 'STRG-Indizes'!AD$5, FALSE) -> 230 | AE42: =INDIRECT('STRG-Indizes'!$B$3 & "Z" & 'STRG-Indizes'!$B41 & "S" & 'STRG-Indizes'!AE$5, FALSE) -> 188 | AF42: =INDIRECT('STRG-Indizes'!$B$3 & "Z" & 'STRG-Indizes'!$B41 & "S" & 'STRG-Indizes'!AF$5, FALSE) -> 197 | AG42: =INDIRECT('STRG-Indizes'!$B$3 & "Z" & 'STRG-Indizes'!$B41 & "S" & 'STRG-Indizes'!AG$5, FALSE) -> 197 | AH42: =INDIRECT('STRG-Indizes'!$B$3 & "Z" & 'STRG-Indizes'!$B41 & "S" & 'STRG-Indizes'!AH$5, FALSE) -> 227 | AI42: =INDIRECT('STRG-Indizes'!$B$3 & "Z" & 'STRG-Indizes'!$B41 & "S" & 'STRG-Indizes'!AI$5, FALSE) -> 472 | AJ42: =INDIRECT('STRG-Indizes'!$B$3 & "Z" & 'STRG-Indizes'!$B41 & "S" & 'STRG-Indizes'!AJ$5, FALSE) -> 267
A43: JC Freudenstadt | B43: Ic | C43: =IF('STRG-Merkmal'!$E$9=2,"",INDIRECT('STRG-Indizes'!$B$3&"Z"&'STRG-Indizes'!$B42&"S"&'STRG-Indizes'!C$5,FALSE)) -> 41 | D43: =IF('STRG-Merkmal'!$E$9=2,"",INDIRECT('STRG-Indizes'!$B$3&"Z"&'STRG-Indizes'!$B42&"S"&'STRG-Indizes'!D$5,FALSE)) -> 33 | E43: =IF('STRG-Merkmal'!$E$9=2,"",INDIRECT('STRG-Indizes'!$B$3&"Z"&'STRG-Indizes'!$B42&"S"&'STRG-Indizes'!E$5,FALSE)) -> 45 | F43: =IF('STRG-Merkmal'!$E$9=2,"",INDIRECT('STRG-Indizes'!$B$3&"Z"&'STRG-Indizes'!$B42&"S"&'STRG-Indizes'!F$5,FALSE)) -> 58 | G43: =IF('STRG-Merkmal'!$E$9=2,"",INDIRECT('STRG-Indizes'!$B$3&"Z"&'STRG-Indizes'!$B42&"S"&'STRG-Indizes'!G$5,FALSE)) -> 72 | H43: =IF('STRG-Merkmal'!$E$9=2,"",INDIRECT('STRG-Indizes'!$B$3&"Z"&'STRG-Indizes'!$B42&"S"&'STRG-Indizes'!H$5,FALSE)) -> 88 | I43: =IF('STRG-Merkmal'!$E$9=2,"",INDIRECT('STRG-Indizes'!$B$3&"Z"&'STRG-Indizes'!$B42&"S"&'STRG-Indizes'!I$5,FALSE)) -> 77 | J43: =IF('STRG-Merkmal'!$E$9=2,"",INDIRECT('STRG-Indizes'!$B$3&"Z"&'STRG-Indizes'!$B42&"S"&'STRG-Indizes'!J$5,FALSE)) -> 95 | K43: =IF('STRG-Merkmal'!$E$9=2,"",INDIRECT('STRG-Indizes'!$B$3&"Z"&'STRG-Indizes'!$B42&"S"&'STRG-Indizes'!K$5,FALSE)) -> 142 | L43: =IF('STRG-Merkmal'!$E$9=2,"",INDIRECT('STRG-Indizes'!$B$3&"Z"&'STRG-Indizes'!$B42&"S"&'STRG-Indizes'!L$5,FALSE)) -> 88 | M43: =IF('STRG-Merkmal'!$E$9=2,"",INDIRECT('STRG-Indizes'!$B$3&"Z"&'STRG-Indizes'!$B42&"S"&'STRG-Indizes'!M$5,FALSE)) -> 52 | N43: =INDIRECT('STRG-Indizes'!$B$3&"Z"&'STRG-Indizes'!$B42&"S"&'STRG-Indizes'!N$5,FALSE) -> 60 | O43: =INDIRECT('STRG-Indizes'!$B$3 & "Z" & 'STRG-Indizes'!$B42 & "S" & 'STRG-Indizes'!O$5, FALSE) -> 45 | P43: =INDIRECT('STRG-Indizes'!$B$3 & "Z" & 'STRG-Indizes'!$B42 & "S" & 'STRG-Indizes'!P$5, FALSE) -> 56 | Q43: =INDIRECT('STRG-Indizes'!$B$3 & "Z" & 'STRG-Indizes'!$B42 & "S" & 'STRG-Indizes'!Q$5, FALSE) -> 64 | R43: =INDIRECT('STRG-Indizes'!$B$3 & "Z" & 'STRG-Indizes'!$B42 & "S" & 'STRG-Indizes'!R$5, FALSE) -> 87 | S43: =INDIRECT('STRG-Indizes'!$B$3 & "Z" & 'STRG-Indizes'!$B42 & "S" & 'STRG-Indizes'!S$5, FALSE) -> 85 | T43: =INDIRECT('STRG-Indizes'!$B$3 & "Z" & 'STRG-Indizes'!$B42 & "S" & 'STRG-Indizes'!T$5, FALSE) -> 61 | U43: =INDIRECT('STRG-Indizes'!$B$3 & "Z" & 'STRG-Indizes'!$B42 & "S" & 'STRG-Indizes'!U$5, FALSE) -> 76 | V43: =INDIRECT('STRG-Indizes'!$B$3 & "Z" & 'STRG-Indizes'!$B42 & "S" & 'STRG-Indizes'!V$5, FALSE) -> 54 | W43: =INDIRECT('STRG-Indizes'!$B$3 & "Z" & 'STRG-Indizes'!$B42 & "S" & 'STRG-Indizes'!W$5, FALSE) -> 104 | X43: =INDIRECT('STRG-Indizes'!$B$3 & "Z" & 'STRG-Indizes'!$B42 & "S" & 'STRG-Indizes'!X$5, FALSE) -> 66 | Y43: =INDIRECT('STRG-Indizes'!$B$3 & "Z" & 'STRG-Indizes'!$B42 & "S" & 'STRG-Indizes'!Y$5, FALSE) -> 49 | Z43: =INDIRECT('STRG-Indizes'!$B$3 & "Z" & 'STRG-Indizes'!$B42 & "S" & 'STRG-Indizes'!Z$5, FALSE) -> 42 | AA43: =INDIRECT('STRG-Indizes'!$B$3 & "Z" & 'STRG-Indizes'!$B42 & "S" & 'STRG-Indizes'!AA$5, FALSE) -> 37 | AB43: =INDIRECT('STRG-Indizes'!$B$3 & "Z" & 'STRG-Indizes'!$B42 & "S" & 'STRG-Indizes'!AB$5, FALSE) -> 45 | AC43: =INDIRECT('STRG-Indizes'!$B$3 & "Z" & 'STRG-Indizes'!$B42 & "S" & 'STRG-Indizes'!AC$5, FALSE) -> 54 | AD43: =INDIRECT('STRG-Indizes'!$B$3 & "Z" & 'STRG-Indizes'!$B42 & "S" & 'STRG-Indizes'!AD$5, FALSE) -> 55 | AE43: =INDIRECT('STRG-Indizes'!$B$3 & "Z" & 'STRG-Indizes'!$B42 & "S" & 'STRG-Indizes'!AE$5, FALSE) -> 58 | AF43: =INDIRECT('STRG-Indizes'!$B$3 & "Z" & 'STRG-Indizes'!$B42 & "S" & 'STRG-Indizes'!AF$5, FALSE) -> 56 | AG43: =INDIRECT('STRG-Indizes'!$B$3 & "Z" & 'STRG-Indizes'!$B42 & "S" & 'STRG-Indizes'!AG$5, FALSE) -> 55 | AH43: =INDIRECT('STRG-Indizes'!$B$3 & "Z" & 'STRG-Indizes'!$B42 & "S" & 'STRG-Indizes'!AH$5, FALSE) -> 62 | AI43: =INDIRECT('STRG-Indizes'!$B$3 & "Z" & 'STRG-Indizes'!$B42 & "S" & 'STRG-Indizes'!AI$5, FALSE) -> 103 | AJ43: =INDIRECT('STRG-Indizes'!$B$3 & "Z" & 'STRG-Indizes'!$B42 & "S" & 'STRG-Indizes'!AJ$5, FALSE) -> 57
A44: JC Göppingen | B44: Id | C44: =IF('STRG-Merkmal'!$E$9=2,"",INDIRECT('STRG-Indizes'!$B$3&"Z"&'STRG-Indizes'!$B43&"S"&'STRG-Indizes'!C$5,FALSE)) -> 137 | D44: =IF('STRG-Merkmal'!$E$9=2,"",INDIRECT('STRG-Indizes'!$B$3&"Z"&'STRG-Indizes'!$B43&"S"&'STRG-Indizes'!D$5,FALSE)) -> 165 | E44: =IF('STRG-Merkmal'!$E$9=2,"",INDIRECT('STRG-Indizes'!$B$3&"Z"&'STRG-Indizes'!$B43&"S"&'STRG-Indizes'!E$5,FALSE)) -> 195 | F44: =IF('STRG-Merkmal'!$E$9=2,"",INDIRECT('STRG-Indizes'!$B$3&"Z"&'STRG-Indizes'!$B43&"S"&'STRG-Indizes'!F$5,FALSE)) -> 242 | G44: =IF('STRG-Merkmal'!$E$9=2,"",INDIRECT('STRG-Indizes'!$B$3&"Z"&'STRG-Indizes'!$B43&"S"&'STRG-Indizes'!G$5,FALSE)) -> 268 | H44: =IF('STRG-Merkmal'!$E$9=2,"",INDIRECT('STRG-Indizes'!$B$3&"Z"&'STRG-Indizes'!$B43&"S"&'STRG-Indizes'!H$5,FALSE)) -> 220 | I44: =IF('STRG-Merkmal'!$E$9=2,"",INDIRECT('STRG-Indizes'!$B$3&"Z"&'STRG-Indizes'!$B43&"S"&'STRG-Indizes'!I$5,FALSE)) -> 255 | J44: =IF('STRG-Merkmal'!$E$9=2,"",INDIRECT('STRG-Indizes'!$B$3&"Z"&'STRG-Indizes'!$B43&"S"&'STRG-Indizes'!J$5,FALSE)) -> 249 | K44: =IF('STRG-Merkmal'!$E$9=2,"",INDIRECT('STRG-Indizes'!$B$3&"Z"&'STRG-Indizes'!$B43&"S"&'STRG-Indizes'!K$5,FALSE)) -> 433 | L44: =IF('STRG-Merkmal'!$E$9=2,"",INDIRECT('STRG-Indizes'!$B$3&"Z"&'STRG-Indizes'!$B43&"S"&'STRG-Indizes'!L$5,FALSE)) -> 256 | M44: =IF('STRG-Merkmal'!$E$9=2,"",INDIRECT('STRG-Indizes'!$B$3&"Z"&'STRG-Indizes'!$B43&"S"&'STRG-Indizes'!M$5,FALSE)) -> 212 | N44: =INDIRECT('STRG-Indizes'!$B$3&"Z"&'STRG-Indizes'!$B43&"S"&'STRG-Indizes'!N$5,FALSE) -> 171 | O44: =INDIRECT('STRG-Indizes'!$B$3 & "Z" & 'STRG-Indizes'!$B43 & "S" & 'STRG-Indizes'!O$5, FALSE) -> 161 | P44: =INDIRECT('STRG-Indizes'!$B$3 & "Z" & 'STRG-Indizes'!$B43 & "S" & 'STRG-Indizes'!P$5, FALSE) -> 209 | Q44: =INDIRECT('STRG-Indizes'!$B$3 & "Z" & 'STRG-Indizes'!$B43 & "S" & 'STRG-Indizes'!Q$5, FALSE) -> 210 | R44: =INDIRECT('STRG-Indizes'!$B$3 & "Z" & 'STRG-Indizes'!$B43 & "S" & 'STRG-Indizes'!R$5, FALSE) -> 248 | S44: =INDIRECT('STRG-Indizes'!$B$3 & "Z" & 'STRG-Indizes'!$B43 & "S" & 'STRG-Indizes'!S$5, FALSE) -> 251 | T44: =INDIRECT('STRG-Indizes'!$B$3 & "Z" & 'STRG-Indizes'!$B43 & "S" & 'STRG-Indizes'!T$5, FALSE) -> 221 | U44: =INDIRECT('STRG-Indizes'!$B$3 & "Z" & 'STRG-Indizes'!$B43 & "S" & 'STRG-Indizes'!U$5, FALSE) -> 237 | V44: =INDIRECT('STRG-Indizes'!$B$3 & "Z" & 'STRG-Indizes'!$B43 & "S" & 'STRG-Indizes'!V$5, FALSE) -> 243 | W44: =INDIRECT('STRG-Indizes'!$B$3 & "Z" & 'STRG-Indizes'!$B43 & "S" & 'STRG-Indizes'!W$5, FALSE) -> 407 | X44: =INDIRECT('STRG-Indizes'!$B$3 & "Z" & 'STRG-Indizes'!$B43 & "S" & 'STRG-Indizes'!X$5, FALSE) -> 258 | Y44: =INDIRECT('STRG-Indizes'!$B$3 & "Z" & 'STRG-Indizes'!$B43 & "S" & 'STRG-Indizes'!Y$5, FALSE) -> 243 | Z44: =INDIRECT('STRG-Indizes'!$B$3 & "Z" & 'STRG-Indizes'!$B43 & "S" & 'STRG-Indizes'!Z$5, FALSE) -> 176 | AA44: =INDIRECT('STRG-Indizes'!$B$3 & "Z" & 'STRG-Indizes'!$B43 & "S" & 'STRG-Indizes'!AA$5, FALSE) -> 157 | AB44: =INDIRECT('STRG-Indizes'!$B$3 & "Z" & 'STRG-Indizes'!$B43 & "S" & 'STRG-Indizes'!AB$5, FALSE) -> 186 | AC44: =INDIRECT('STRG-Indizes'!$B$3 & "Z" & 'STRG-Indizes'!$B43 & "S" & 'STRG-Indizes'!AC$5, FALSE) -> 226 | AD44: =INDIRECT('STRG-Indizes'!$B$3 & "Z" & 'STRG-Indizes'!$B43 & "S" & 'STRG-Indizes'!AD$5, FALSE) -> 244 | AE44: =INDIRECT('STRG-Indizes'!$B$3 & "Z" & 'STRG-Indizes'!$B43 & "S" & 'STRG-Indizes'!AE$5, FALSE) -> 224 | AF44: =INDIRECT('STRG-Indizes'!$B$3 & "Z" & 'STRG-Indizes'!$B43 & "S" & 'STRG-Indizes'!AF$5, FALSE) -> 213 | AG44: =INDIRECT('STRG-Indizes'!$B$3 & "Z" & 'STRG-Indizes'!$B43 & "S" & 'STRG-Indizes'!AG$5, FALSE) -> 171 | AH44: =INDIRECT('STRG-Indizes'!$B$3 & "Z" & 'STRG-Indizes'!$B43 & "S" & 'STRG-Indizes'!AH$5, FALSE) -> 232 | AI44: =INDIRECT('STRG-Indizes'!$B$3 & "Z" & 'STRG-Indizes'!$B43 & "S" & 'STRG-Indizes'!AI$5, FALSE) -> 360 | AJ44: =INDIRECT('STRG-Indizes'!$B$3 & "Z" & 'STRG-Indizes'!$B43 & "S" & 'STRG-Indizes'!AJ$5, FALSE) -> 200
A45: JC Heidelberg, Stadt | B45: IIb | C45: =IF('STRG-Merkmal'!$E$9=2,"",INDIRECT('STRG-Indizes'!$B$3&"Z"&'STRG-Indizes'!$B44&"S"&'STRG-Indizes'!C$5,FALSE)) -> 71 | D45: =IF('STRG-Merkmal'!$E$9=2,"",INDIRECT('STRG-Indizes'!$B$3&"Z"&'STRG-Indizes'!$B44&"S"&'STRG-Indizes'!D$5,FALSE)) -> 92 | E45: =IF('STRG-Merkmal'!$E$9=2,"",INDIRECT('STRG-Indizes'!$B$3&"Z"&'STRG-Indizes'!$B44&"S"&'STRG-Indizes'!E$5,FALSE)) -> 105 | F45: =IF('STRG-Merkmal'!$E$9=2,"",INDIRECT('STRG-Indizes'!$B$3&"Z"&'STRG-Indizes'!$B44&"S"&'STRG-Indizes'!F$5,FALSE)) -> 124 | G45: =IF('STRG-Merkmal'!$E$9=2,"",INDIRECT('STRG-Indizes'!$B$3&"Z"&'STRG-Indizes'!$B44&"S"&'STRG-Indizes'!G$5,FALSE)) -> 118 | H45: =IF('STRG-Merkmal'!$E$9=2,"",INDIRECT('STRG-Indizes'!$B$3&"Z"&'STRG-Indizes'!$B44&"S"&'STRG-Indizes'!H$5,FALSE)) -> 90 | I45: =IF('STRG-Merkmal'!$E$9=2,"",INDIRECT('STRG-Indizes'!$B$3&"Z"&'STRG-Indizes'!$B44&"S"&'STRG-Indizes'!I$5,FALSE)) -> 91 | J45: =IF('STRG-Merkmal'!$E$9=2,"",INDIRECT('STRG-Indizes'!$B$3&"Z"&'STRG-Indizes'!$B44&"S"&'STRG-Indizes'!J$5,FALSE)) -> 101 | K45: =IF('STRG-Merkmal'!$E$9=2,"",INDIRECT('STRG-Indizes'!$B$3&"Z"&'STRG-Indizes'!$B44&"S"&'STRG-Indizes'!K$5,FALSE)) -> 182 | L45: =IF('STRG-Merkmal'!$E$9=2,"",INDIRECT('STRG-Indizes'!$B$3&"Z"&'STRG-Indizes'!$B44&"S"&'STRG-Indizes'!L$5,FALSE)) -> 131 | M45: =IF('STRG-Merkmal'!$E$9=2,"",INDIRECT('STRG-Indizes'!$B$3&"Z"&'STRG-Indizes'!$B44&"S"&'STRG-Indizes'!M$5,FALSE)) -> 117 | N45: =INDIRECT('STRG-Indizes'!$B$3&"Z"&'STRG-Indizes'!$B44&"S"&'STRG-Indizes'!N$5,FALSE) -> 57 | O45: =INDIRECT('STRG-Indizes'!$B$3 & "Z" & 'STRG-Indizes'!$B44 & "S" & 'STRG-Indizes'!O$5, FALSE) -> 57 | P45: =INDIRECT('STRG-Indizes'!$B$3 & "Z" & 'STRG-Indizes'!$B44 & "S" & 'STRG-Indizes'!P$5, FALSE) -> 93 | Q45: =INDIRECT('STRG-Indizes'!$B$3 & "Z" & 'STRG-Indizes'!$B44 & "S" & 'STRG-Indizes'!Q$5, FALSE) -> 93 | R45: =INDIRECT('STRG-Indizes'!$B$3 & "Z" & 'STRG-Indizes'!$B44 & "S" & 'STRG-Indizes'!R$5, FALSE) -> 87 | S45: =INDIRECT('STRG-Indizes'!$B$3 & "Z" & 'STRG-Indizes'!$B44 & "S" & 'STRG-Indizes'!S$5, FALSE) -> 99 | T45: =INDIRECT('STRG-Indizes'!$B$3 & "Z" & 'STRG-Indizes'!$B44 & "S" & 'STRG-Indizes'!T$5, FALSE) -> 95 | U45: =INDIRECT('STRG-Indizes'!$B$3 & "Z" & 'STRG-Indizes'!$B44 & "S" & 'STRG-Indizes'!U$5, FALSE) -> 101 | V45: =INDIRECT('STRG-Indizes'!$B$3 & "Z" & 'STRG-Indizes'!$B44 & "S" & 'STRG-Indizes'!V$5, FALSE) -> 120 | W45: =INDIRECT('STRG-Indizes'!$B$3 & "Z" & 'STRG-Indizes'!$B44 & "S" & 'STRG-Indizes'!W$5, FALSE) -> 212 | X45: =INDIRECT('STRG-Indizes'!$B$3 & "Z" & 'STRG-Indizes'!$B44 & "S" & 'STRG-Indizes'!X$5, FALSE) -> 127 | Y45: =INDIRECT('STRG-Indizes'!$B$3 & "Z" & 'STRG-Indizes'!$B44 & "S" & 'STRG-Indizes'!Y$5, FALSE) -> 110 | Z45: =INDIRECT('STRG-Indizes'!$B$3 & "Z" & 'STRG-Indizes'!$B44 & "S" & 'STRG-Indizes'!Z$5, FALSE) -> 64 | AA45: =INDIRECT('STRG-Indizes'!$B$3 & "Z" & 'STRG-Indizes'!$B44 & "S" & 'STRG-Indizes'!AA$5, FALSE) -> 79 | AB45: =INDIRECT('STRG-Indizes'!$B$3 & "Z" & 'STRG-Indizes'!$B44 & "S" & 'STRG-Indizes'!AB$5, FALSE) -> 63 | AC45: =INDIRECT('STRG-Indizes'!$B$3 & "Z" & 'STRG-Indizes'!$B44 & "S" & 'STRG-Indizes'!AC$5, FALSE) -> 97 | AD45: =INDIRECT('STRG-Indizes'!$B$3 & "Z" & 'STRG-Indizes'!$B44 & "S" & 'STRG-Indizes'!AD$5, FALSE) -> 106 | AE45: =INDIRECT('STRG-Indizes'!$B$3 & "Z" & 'STRG-Indizes'!$B44 & "S" & 'STRG-Indizes'!AE$5, FALSE) -> 73 | AF45: =INDIRECT('STRG-Indizes'!$B$3 & "Z" & 'STRG-Indizes'!$B44 & "S" & 'STRG-Indizes'!AF$5, FALSE) -> 68 | AG45: =INDIRECT('STRG-Indizes'!$B$3 & "Z" & 'STRG-Indizes'!$B44 & "S" & 'STRG-Indizes'!AG$5, FALSE) -> 87 | AH45: =INDIRECT('STRG-Indizes'!$B$3 & "Z" & 'STRG-Indizes'!$B44 & "S" & 'STRG-Indizes'!AH$5, FALSE) -> 93 | AI45: =INDIRECT('STRG-Indizes'!$B$3 & "Z" & 'STRG-Indizes'!$B44 & "S" & 'STRG-Indizes'!AI$5, FALSE) -> 196 | AJ45: =INDIRECT('STRG-Indizes'!$B$3 & "Z" & 'STRG-Indizes'!$B44 & "S" & 'STRG-Indizes'!AJ$5, FALSE) -> 121
A46: JC Heidenheim | B46: Id | C46: =IF('STRG-Merkmal'!$E$9=2,"",INDIRECT('STRG-Indizes'!$B$3&"Z"&'STRG-Indizes'!$B45&"S"&'STRG-Indizes'!C$5,FALSE)) -> 74 | D46: =IF('STRG-Merkmal'!$E$9=2,"",INDIRECT('STRG-Indizes'!$B$3&"Z"&'STRG-Indizes'!$B45&"S"&'STRG-Indizes'!D$5,FALSE)) -> 97 | E46: =IF('STRG-Merkmal'!$E$9=2,"",INDIRECT('STRG-Indizes'!$B$3&"Z"&'STRG-Indizes'!$B45&"S"&'STRG-Indizes'!E$5,FALSE)) -> 105 | F46: =IF('STRG-Merkmal'!$E$9=2,"",INDIRECT('STRG-Indizes'!$B$3&"Z"&'STRG-Indizes'!$B45&"S"&'STRG-Indizes'!F$5,FALSE)) -> 142 | G46: =IF('STRG-Merkmal'!$E$9=2,"",INDIRECT('STRG-Indizes'!$B$3&"Z"&'STRG-Indizes'!$B45&"S"&'STRG-Indizes'!G$5,FALSE)) -> 124 | H46: =IF('STRG-Merkmal'!$E$9=2,"",INDIRECT('STRG-Indizes'!$B$3&"Z"&'STRG-Indizes'!$B45&"S"&'STRG-Indizes'!H$5,FALSE)) -> 109 | I46: =IF('STRG-Merkmal'!$E$9=2,"",INDIRECT('STRG-Indizes'!$B$3&"Z"&'STRG-Indizes'!$B45&"S"&'STRG-Indizes'!I$5,FALSE)) -> 113 | J46: =IF('STRG-Merkmal'!$E$9=2,"",INDIRECT('STRG-Indizes'!$B$3&"Z"&'STRG-Indizes'!$B45&"S"&'STRG-Indizes'!J$5,FALSE)) -> 146 | K46: =IF('STRG-Merkmal'!$E$9=2,"",INDIRECT('STRG-Indizes'!$B$3&"Z"&'STRG-Indizes'!$B45&"S"&'STRG-Indizes'!K$5,FALSE)) -> 256 | L46: =IF('STRG-Merkmal'!$E$9=2,"",INDIRECT('STRG-Indizes'!$B$3&"Z"&'STRG-Indizes'!$B45&"S"&'STRG-Indizes'!L$5,FALSE)) -> 140 | M46: =IF('STRG-Merkmal'!$E$9=2,"",INDIRECT('STRG-Indizes'!$B$3&"Z"&'STRG-Indizes'!$B45&"S"&'STRG-Indizes'!M$5,FALSE)) -> 112 | N46: =INDIRECT('STRG-Indizes'!$B$3&"Z"&'STRG-Indizes'!$B45&"S"&'STRG-Indizes'!N$5,FALSE) -> 79 | O46: =INDIRECT('STRG-Indizes'!$B$3 & "Z" & 'STRG-Indizes'!$B45 & "S" & 'STRG-Indizes'!O$5, FALSE) -> 72 | P46: =INDIRECT('STRG-Indizes'!$B$3 & "Z" & 'STRG-Indizes'!$B45 & "S" & 'STRG-Indizes'!P$5, FALSE) -> 101 | Q46: =INDIRECT('STRG-Indizes'!$B$3 & "Z" & 'STRG-Indizes'!$B45 & "S" & 'STRG-Indizes'!Q$5, FALSE) -> 87 | R46: =INDIRECT('STRG-Indizes'!$B$3 & "Z" & 'STRG-Indizes'!$B45 & "S" & 'STRG-Indizes'!R$5, FALSE) -> 87 | S46: =INDIRECT('STRG-Indizes'!$B$3 & "Z" & 'STRG-Indizes'!$B45 & "S" & 'STRG-Indizes'!S$5, FALSE) -> 108 | T46: =INDIRECT('STRG-Indizes'!$B$3 & "Z" & 'STRG-Indizes'!$B45 & "S" & 'STRG-Indizes'!T$5, FALSE) -> 107 | U46: =INDIRECT('STRG-Indizes'!$B$3 & "Z" & 'STRG-Indizes'!$B45 & "S" & 'STRG-Indizes'!U$5, FALSE) -> 140 | V46: =INDIRECT('STRG-Indizes'!$B$3 & "Z" & 'STRG-Indizes'!$B45 & "S" & 'STRG-Indizes'!V$5, FALSE) -> 113 | W46: =INDIRECT('STRG-Indizes'!$B$3 & "Z" & 'STRG-Indizes'!$B45 & "S" & 'STRG-Indizes'!W$5, FALSE) -> 189 | X46: =INDIRECT('STRG-Indizes'!$B$3 & "Z" & 'STRG-Indizes'!$B45 & "S" & 'STRG-Indizes'!X$5, FALSE) -> 105 | Y46: =INDIRECT('STRG-Indizes'!$B$3 & "Z" & 'STRG-Indizes'!$B45 & "S" & 'STRG-Indizes'!Y$5, FALSE) -> 85 | Z46: =INDIRECT('STRG-Indizes'!$B$3 & "Z" & 'STRG-Indizes'!$B45 & "S" & 'STRG-Indizes'!Z$5, FALSE) -> 54 | AA46: =INDIRECT('STRG-Indizes'!$B$3 & "Z" & 'STRG-Indizes'!$B45 & "S" & 'STRG-Indizes'!AA$5, FALSE) -> 65 | AB46: =INDIRECT('STRG-Indizes'!$B$3 & "Z" & 'STRG-Indizes'!$B45 & "S" & 'STRG-Indizes'!AB$5, FALSE) -> 80 | AC46: =INDIRECT('STRG-Indizes'!$B$3 & "Z" & 'STRG-Indizes'!$B45 & "S" & 'STRG-Indizes'!AC$5, FALSE) -> 77 | AD46: =INDIRECT('STRG-Indizes'!$B$3 & "Z" & 'STRG-Indizes'!$B45 & "S" & 'STRG-Indizes'!AD$5, FALSE) -> 82 | AE46: =INDIRECT('STRG-Indizes'!$B$3 & "Z" & 'STRG-Indizes'!$B45 & "S" & 'STRG-Indizes'!AE$5, FALSE) -> 89 | AF46: =INDIRECT('STRG-Indizes'!$B$3 & "Z" & 'STRG-Indizes'!$B45 & "S" & 'STRG-Indizes'!AF$5, FALSE) -> 88 | AG46: =INDIRECT('STRG-Indizes'!$B$3 & "Z" & 'STRG-Indizes'!$B45 & "S" & 'STRG-Indizes'!AG$5, FALSE) -> 98 | AH46: =INDIRECT('STRG-Indizes'!$B$3 & "Z" & 'STRG-Indizes'!$B45 & "S" & 'STRG-Indizes'!AH$5, FALSE) -> 101 | AI46: =INDIRECT('STRG-Indizes'!$B$3 & "Z" & 'STRG-Indizes'!$B45 & "S" & 'STRG-Indizes'!AI$5, FALSE) -> 195 | AJ46: =INDIRECT('STRG-Indizes'!$B$3 & "Z" & 'STRG-Indizes'!$B45 & "S" & 'STRG-Indizes'!AJ$5, FALSE) -> 92
A47: JC Heilbronn | B47: Id | C47: =IF('STRG-Merkmal'!$E$9=2,"",INDIRECT('STRG-Indizes'!$B$3&"Z"&'STRG-Indizes'!$B46&"S"&'STRG-Indizes'!C$5,FALSE)) -> 99 | D47: =IF('STRG-Merkmal'!$E$9=2,"",INDIRECT('STRG-Indizes'!$B$3&"Z"&'STRG-Indizes'!$B46&"S"&'STRG-Indizes'!D$5,FALSE)) -> 155 | E47: =IF('STRG-Merkmal'!$E$9=2,"",INDIRECT('STRG-Indizes'!$B$3&"Z"&'STRG-Indizes'!$B46&"S"&'STRG-Indizes'!E$5,FALSE)) -> 139 | F47: =IF('STRG-Merkmal'!$E$9=2,"",INDIRECT('STRG-Indizes'!$B$3&"Z"&'STRG-Indizes'!$B46&"S"&'STRG-Indizes'!F$5,FALSE)) -> 178 | G47: =IF('STRG-Merkmal'!$E$9=2,"",INDIRECT('STRG-Indizes'!$B$3&"Z"&'STRG-Indizes'!$B46&"S"&'STRG-Indizes'!G$5,FALSE)) -> 198 | H47: =IF('STRG-Merkmal'!$E$9=2,"",INDIRECT('STRG-Indizes'!$B$3&"Z"&'STRG-Indizes'!$B46&"S"&'STRG-Indizes'!H$5,FALSE)) -> 145 | I47: =IF('STRG-Merkmal'!$E$9=2,"",INDIRECT('STRG-Indizes'!$B$3&"Z"&'STRG-Indizes'!$B46&"S"&'STRG-Indizes'!I$5,FALSE)) -> 186 | J47: =IF('STRG-Merkmal'!$E$9=2,"",INDIRECT('STRG-Indizes'!$B$3&"Z"&'STRG-Indizes'!$B46&"S"&'STRG-Indizes'!J$5,FALSE)) -> 220 | K47: =IF('STRG-Merkmal'!$E$9=2,"",INDIRECT('STRG-Indizes'!$B$3&"Z"&'STRG-Indizes'!$B46&"S"&'STRG-Indizes'!K$5,FALSE)) -> 315 | L47: =IF('STRG-Merkmal'!$E$9=2,"",INDIRECT('STRG-Indizes'!$B$3&"Z"&'STRG-Indizes'!$B46&"S"&'STRG-Indizes'!L$5,FALSE)) -> 203 | M47: =IF('STRG-Merkmal'!$E$9=2,"",INDIRECT('STRG-Indizes'!$B$3&"Z"&'STRG-Indizes'!$B46&"S"&'STRG-Indizes'!M$5,FALSE)) -> 169 | N47: =INDIRECT('STRG-Indizes'!$B$3&"Z"&'STRG-Indizes'!$B46&"S"&'STRG-Indizes'!N$5,FALSE) -> 153 | O47: =INDIRECT('STRG-Indizes'!$B$3 & "Z" & 'STRG-Indizes'!$B46 & "S" & 'STRG-Indizes'!O$5, FALSE) -> 121 | P47: =INDIRECT('STRG-Indizes'!$B$3 & "Z" & 'STRG-Indizes'!$B46 & "S" & 'STRG-Indizes'!P$5, FALSE) -> 177 | Q47: =INDIRECT('STRG-Indizes'!$B$3 & "Z" & 'STRG-Indizes'!$B46 & "S" & 'STRG-Indizes'!Q$5, FALSE) -> 190 | R47: =INDIRECT('STRG-Indizes'!$B$3 & "Z" & 'STRG-Indizes'!$B46 & "S" & 'STRG-Indizes'!R$5, FALSE) -> 189 | S47: =INDIRECT('STRG-Indizes'!$B$3 & "Z" & 'STRG-Indizes'!$B46 & "S" & 'STRG-Indizes'!S$5, FALSE) -> 212 | T47: =INDIRECT('STRG-Indizes'!$B$3 & "Z" & 'STRG-Indizes'!$B46 & "S" & 'STRG-Indizes'!T$5, FALSE) -> 171 | U47: =INDIRECT('STRG-Indizes'!$B$3 & "Z" & 'STRG-Indizes'!$B46 & "S" & 'STRG-Indizes'!U$5, FALSE) -> 195 | V47: =INDIRECT('STRG-Indizes'!$B$3 & "Z" & 'STRG-Indizes'!$B46 & "S" & 'STRG-Indizes'!V$5, FALSE) -> 214 | W47: =INDIRECT('STRG-Indizes'!$B$3 & "Z" & 'STRG-Indizes'!$B46 & "S" & 'STRG-Indizes'!W$5, FALSE) -> 369 | X47: =INDIRECT('STRG-Indizes'!$B$3 & "Z" & 'STRG-Indizes'!$B46 & "S" & 'STRG-Indizes'!X$5, FALSE) -> 212 | Y47: =INDIRECT('STRG-Indizes'!$B$3 & "Z" & 'STRG-Indizes'!$B46 & "S" & 'STRG-Indizes'!Y$5, FALSE) -> 162 | Z47: =INDIRECT('STRG-Indizes'!$B$3 & "Z" & 'STRG-Indizes'!$B46 & "S" & 'STRG-Indizes'!Z$5, FALSE) -> 136 | AA47: =INDIRECT('STRG-Indizes'!$B$3 & "Z" & 'STRG-Indizes'!$B46 & "S" & 'STRG-Indizes'!AA$5, FALSE) -> 128 | AB47: =INDIRECT('STRG-Indizes'!$B$3 & "Z" & 'STRG-Indizes'!$B46 & "S" & 'STRG-Indizes'!AB$5, FALSE) -> 158 | AC47: =INDIRECT('STRG-Indizes'!$B$3 & "Z" & 'STRG-Indizes'!$B46 & "S" & 'STRG-Indizes'!AC$5, FALSE) -> 173 | AD47: =INDIRECT('STRG-Indizes'!$B$3 & "Z" & 'STRG-Indizes'!$B46 & "S" & 'STRG-Indizes'!AD$5, FALSE) -> 160 | AE47: =INDIRECT('STRG-Indizes'!$B$3 & "Z" & 'STRG-Indizes'!$B46 & "S" & 'STRG-Indizes'!AE$5, FALSE) -> 185 | AF47: =INDIRECT('STRG-Indizes'!$B$3 & "Z" & 'STRG-Indizes'!$B46 & "S" & 'STRG-Indizes'!AF$5, FALSE) -> 138 | AG47: =INDIRECT('STRG-Indizes'!$B$3 & "Z" & 'STRG-Indizes'!$B46 & "S" & 'STRG-Indizes'!AG$5, FALSE) -> 157 | AH47: =INDIRECT('STRG-Indizes'!$B$3 & "Z" & 'STRG-Indizes'!$B46 & "S" & 'STRG-Indizes'!AH$5, FALSE) -> 172 | AI47: =INDIRECT('STRG-Indizes'!$B$3 & "Z" & 'STRG-Indizes'!$B46 & "S" & 'STRG-Indizes'!AI$5, FALSE) -> 349 | AJ47: =INDIRECT('STRG-Indizes'!$B$3 & "Z" & 'STRG-Indizes'!$B46 & "S" & 'STRG-Indizes'!AJ$5, FALSE) -> 172
A48: JC Heilbronn, Stadt | B48: IIb | C48: =IF('STRG-Merkmal'!$E$9=2,"",INDIRECT('STRG-Indizes'!$B$3&"Z"&'STRG-Indizes'!$B47&"S"&'STRG-Indizes'!C$5,FALSE)) -> 83 | D48: =IF('STRG-Merkmal'!$E$9=2,"",INDIRECT('STRG-Indizes'!$B$3&"Z"&'STRG-Indizes'!$B47&"S"&'STRG-Indizes'!D$5,FALSE)) -> 130 | E48: =IF('STRG-Merkmal'!$E$9=2,"",INDIRECT('STRG-Indizes'!$B$3&"Z"&'STRG-Indizes'!$B47&"S"&'STRG-Indizes'!E$5,FALSE)) -> 153 | F48: =IF('STRG-Merkmal'!$E$9=2,"",INDIRECT('STRG-Indizes'!$B$3&"Z"&'STRG-Indizes'!$B47&"S"&'STRG-Indizes'!F$5,FALSE)) -> 156 | G48: =IF('STRG-Merkmal'!$E$9=2,"",INDIRECT('STRG-Indizes'!$B$3&"Z"&'STRG-Indizes'!$B47&"S"&'STRG-Indizes'!G$5,FALSE)) -> 170 | H48: =IF('STRG-Merkmal'!$E$9=2,"",INDIRECT('STRG-Indizes'!$B$3&"Z"&'STRG-Indizes'!$B47&"S"&'STRG-Indizes'!H$5,FALSE)) -> 158 | I48: =IF('STRG-Merkmal'!$E$9=2,"",INDIRECT('STRG-Indizes'!$B$3&"Z"&'STRG-Indizes'!$B47&"S"&'STRG-Indizes'!I$5,FALSE)) -> 180 | J48: =IF('STRG-Merkmal'!$E$9=2,"",INDIRECT('STRG-Indizes'!$B$3&"Z"&'STRG-Indizes'!$B47&"S"&'STRG-Indizes'!J$5,FALSE)) -> 181 | K48: =IF('STRG-Merkmal'!$E$9=2,"",INDIRECT('STRG-Indizes'!$B$3&"Z"&'STRG-Indizes'!$B47&"S"&'STRG-Indizes'!K$5,FALSE)) -> 328 | L48: =IF('STRG-Merkmal'!$E$9=2,"",INDIRECT('STRG-Indizes'!$B$3&"Z"&'STRG-Indizes'!$B47&"S"&'STRG-Indizes'!L$5,FALSE)) -> 170 | M48: =IF('STRG-Merkmal'!$E$9=2,"",INDIRECT('STRG-Indizes'!$B$3&"Z"&'STRG-Indizes'!$B47&"S"&'STRG-Indizes'!M$5,FALSE)) -> 157 | N48: =INDIRECT('STRG-Indizes'!$B$3&"Z"&'STRG-Indizes'!$B47&"S"&'STRG-Indizes'!N$5,FALSE) -> 123 | O48: =INDIRECT('STRG-Indizes'!$B$3 & "Z" & 'STRG-Indizes'!$B47 & "S" & 'STRG-Indizes'!O$5, FALSE) -> 111 | P48: =INDIRECT('STRG-Indizes'!$B$3 & "Z" & 'STRG-Indizes'!$B47 & "S" & 'STRG-Indizes'!P$5, FALSE) -> 170 | Q48: =INDIRECT('STRG-Indizes'!$B$3 & "Z" & 'STRG-Indizes'!$B47 & "S" & 'STRG-Indizes'!Q$5, FALSE) -> 158 | R48: =INDIRECT('STRG-Indizes'!$B$3 & "Z" & 'STRG-Indizes'!$B47 & "S" & 'STRG-Indizes'!R$5, FALSE) -> 182 | S48: =INDIRECT('STRG-Indizes'!$B$3 & "Z" & 'STRG-Indizes'!$B47 & "S" & 'STRG-Indizes'!S$5, FALSE) -> 177 | T48: =INDIRECT('STRG-Indizes'!$B$3 & "Z" & 'STRG-Indizes'!$B47 & "S" & 'STRG-Indizes'!T$5, FALSE) -> 155 | U48: =INDIRECT('STRG-Indizes'!$B$3 & "Z" & 'STRG-Indizes'!$B47 & "S" & 'STRG-Indizes'!U$5, FALSE) -> 151 | V48: =INDIRECT('STRG-Indizes'!$B$3 & "Z" & 'STRG-Indizes'!$B47 & "S" & 'STRG-Indizes'!V$5, FALSE) -> 193 | W48: =INDIRECT('STRG-Indizes'!$B$3 & "Z" & 'STRG-Indizes'!$B47 & "S" & 'STRG-Indizes'!W$5, FALSE) -> 332 | X48: =INDIRECT('STRG-Indizes'!$B$3 & "Z" & 'STRG-Indizes'!$B47 & "S" & 'STRG-Indizes'!X$5, FALSE) -> 184 | Y48: =INDIRECT('STRG-Indizes'!$B$3 & "Z" & 'STRG-Indizes'!$B47 & "S" & 'STRG-Indizes'!Y$5, FALSE) -> 182 | Z48: =INDIRECT('STRG-Indizes'!$B$3 & "Z" & 'STRG-Indizes'!$B47 & "S" & 'STRG-Indizes'!Z$5, FALSE) -> 142 | AA48: =INDIRECT('STRG-Indizes'!$B$3 & "Z" & 'STRG-Indizes'!$B47 & "S" & 'STRG-Indizes'!AA$5, FALSE) -> 103 | AB48: =INDIRECT('STRG-Indizes'!$B$3 & "Z" & 'STRG-Indizes'!$B47 & "S" & 'STRG-Indizes'!AB$5, FALSE) -> 121 | AC48: =INDIRECT('STRG-Indizes'!$B$3 & "Z" & 'STRG-Indizes'!$B47 & "S" & 'STRG-Indizes'!AC$5, FALSE) -> 163 | AD48: =INDIRECT('STRG-Indizes'!$B$3 & "Z" & 'STRG-Indizes'!$B47 & "S" & 'STRG-Indizes'!AD$5, FALSE) -> 185 | AE48: =INDIRECT('STRG-Indizes'!$B$3 & "Z" & 'STRG-Indizes'!$B47 & "S" & 'STRG-Indizes'!AE$5, FALSE) -> 165 | AF48: =INDIRECT('STRG-Indizes'!$B$3 & "Z" & 'STRG-Indizes'!$B47 & "S" & 'STRG-Indizes'!AF$5, FALSE) -> 150 | AG48: =INDIRECT('STRG-Indizes'!$B$3 & "Z" & 'STRG-Indizes'!$B47 & "S" & 'STRG-Indizes'!AG$5, FALSE) -> 123 | AH48: =INDIRECT('STRG-Indizes'!$B$3 & "Z" & 'STRG-Indizes'!$B47 & "S" & 'STRG-Indizes'!AH$5, FALSE) -> 196 | AI48: =INDIRECT('STRG-Indizes'!$B$3 & "Z" & 'STRG-Indizes'!$B47 & "S" & 'STRG-Indizes'!AI$5, FALSE) -> 271 | AJ48: =INDIRECT('STRG-Indizes'!$B$3 & "Z" & 'STRG-Indizes'!$B47 & "S" & 'STRG-Indizes'!AJ$5, FALSE) -> 170
A49: JC Hohenlohekreis | B49: Ic | C49: =IF('STRG-Merkmal'!$E$9=2,"",INDIRECT('STRG-Indizes'!$B$3&"Z"&'STRG-Indizes'!$B48&"S"&'STRG-Indizes'!C$5,FALSE)) -> 25 | D49: =IF('STRG-Merkmal'!$E$9=2,"",INDIRECT('STRG-Indizes'!$B$3&"Z"&'STRG-Indizes'!$B48&"S"&'STRG-Indizes'!D$5,FALSE)) -> 23 | E49: =IF('STRG-Merkmal'!$E$9=2,"",INDIRECT('STRG-Indizes'!$B$3&"Z"&'STRG-Indizes'!$B48&"S"&'STRG-Indizes'!E$5,FALSE)) -> 36 | F49: =IF('STRG-Merkmal'!$E$9=2,"",INDIRECT('STRG-Indizes'!$B$3&"Z"&'STRG-Indizes'!$B48&"S"&'STRG-Indizes'!F$5,FALSE)) -> 51 | G49: =IF('STRG-Merkmal'!$E$9=2,"",INDIRECT('STRG-Indizes'!$B$3&"Z"&'STRG-Indizes'!$B48&"S"&'STRG-Indizes'!G$5,FALSE)) -> 56 | H49: =IF('STRG-Merkmal'!$E$9=2,"",INDIRECT('STRG-Indizes'!$B$3&"Z"&'STRG-Indizes'!$B48&"S"&'STRG-Indizes'!H$5,FALSE)) -> 55 | I49: =IF('STRG-Merkmal'!$E$9=2,"",INDIRECT('STRG-Indizes'!$B$3&"Z"&'STRG-Indizes'!$B48&"S"&'STRG-Indizes'!I$5,FALSE)) -> 72 | J49: =IF('STRG-Merkmal'!$E$9=2,"",INDIRECT('STRG-Indizes'!$B$3&"Z"&'STRG-Indizes'!$B48&"S"&'STRG-Indizes'!J$5,FALSE)) -> 80 | K49: =IF('STRG-Merkmal'!$E$9=2,"",INDIRECT('STRG-Indizes'!$B$3&"Z"&'STRG-Indizes'!$B48&"S"&'STRG-Indizes'!K$5,FALSE)) -> 98 | L49: =IF('STRG-Merkmal'!$E$9=2,"",INDIRECT('STRG-Indizes'!$B$3&"Z"&'STRG-Indizes'!$B48&"S"&'STRG-Indizes'!L$5,FALSE)) -> 79 | M49: =IF('STRG-Merkmal'!$E$9=2,"",INDIRECT('STRG-Indizes'!$B$3&"Z"&'STRG-Indizes'!$B48&"S"&'STRG-Indizes'!M$5,FALSE)) -> 49 | N49: =INDIRECT('STRG-Indizes'!$B$3&"Z"&'STRG-Indizes'!$B48&"S"&'STRG-Indizes'!N$5,FALSE) -> 40 | O49: =INDIRECT('STRG-Indizes'!$B$3 & "Z" & 'STRG-Indizes'!$B48 & "S" & 'STRG-Indizes'!O$5, FALSE) -> 30 | P49: =INDIRECT('STRG-Indizes'!$B$3 & "Z" & 'STRG-Indizes'!$B48 & "S" & 'STRG-Indizes'!P$5, FALSE) -> 60 | Q49: =INDIRECT('STRG-Indizes'!$B$3 & "Z" & 'STRG-Indizes'!$B48 & "S" & 'STRG-Indizes'!Q$5, FALSE) -> 53 | R49: =INDIRECT('STRG-Indizes'!$B$3 & "Z" & 'STRG-Indizes'!$B48 & "S" & 'STRG-Indizes'!R$5, FALSE) -> 45 | S49: =INDIRECT('STRG-Indizes'!$B$3 & "Z" & 'STRG-Indizes'!$B48 & "S" & 'STRG-Indizes'!S$5, FALSE) -> 67 | T49: =INDIRECT('STRG-Indizes'!$B$3 & "Z" & 'STRG-Indizes'!$B48 & "S" & 'STRG-Indizes'!T$5, FALSE) -> 42 | U49: =INDIRECT('STRG-Indizes'!$B$3 & "Z" & 'STRG-Indizes'!$B48 & "S" & 'STRG-Indizes'!U$5, FALSE) -> 66 | V49: =INDIRECT('STRG-Indizes'!$B$3 & "Z" & 'STRG-Indizes'!$B48 & "S" & 'STRG-Indizes'!V$5, FALSE) -> 83 | W49: =INDIRECT('STRG-Indizes'!$B$3 & "Z" & 'STRG-Indizes'!$B48 & "S" & 'STRG-Indizes'!W$5, FALSE) -> 105 | X49: =INDIRECT('STRG-Indizes'!$B$3 & "Z" & 'STRG-Indizes'!$B48 & "S" & 'STRG-Indizes'!X$5, FALSE) -> 60 | Y49: =INDIRECT('STRG-Indizes'!$B$3 & "Z" & 'STRG-Indizes'!$B48 & "S" & 'STRG-Indizes'!Y$5, FALSE) -> 46 | Z49: =INDIRECT('STRG-Indizes'!$B$3 & "Z" & 'STRG-Indizes'!$B48 & "S" & 'STRG-Indizes'!Z$5, FALSE) -> 39 | AA49: =INDIRECT('STRG-Indizes'!$B$3 & "Z" & 'STRG-Indizes'!$B48 & "S" & 'STRG-Indizes'!AA$5, FALSE) -> 22 | AB49: =INDIRECT('STRG-Indizes'!$B$3 & "Z" & 'STRG-Indizes'!$B48 & "S" & 'STRG-Indizes'!AB$5, FALSE) -> 49 | AC49: =INDIRECT('STRG-Indizes'!$B$3 & "Z" & 'STRG-Indizes'!$B48 & "S" & 'STRG-Indizes'!AC$5, FALSE) -> 35 | AD49: =INDIRECT('STRG-Indizes'!$B$3 & "Z" & 'STRG-Indizes'!$B48 & "S" & 'STRG-Indizes'!AD$5, FALSE) -> 49 | AE49: =INDIRECT('STRG-Indizes'!$B$3 & "Z" & 'STRG-Indizes'!$B48 & "S" & 'STRG-Indizes'!AE$5, FALSE) -> 51 | AF49: =INDIRECT('STRG-Indizes'!$B$3 & "Z" & 'STRG-Indizes'!$B48 & "S" & 'STRG-Indizes'!AF$5, FALSE) -> 54 | AG49: =INDIRECT('STRG-Indizes'!$B$3 & "Z" & 'STRG-Indizes'!$B48 & "S" & 'STRG-Indizes'!AG$5, FALSE) -> 39 | AH49: =INDIRECT('STRG-Indizes'!$B$3 & "Z" & 'STRG-Indizes'!$B48 & "S" & 'STRG-Indizes'!AH$5, FALSE) -> 72 | AI49: =INDIRECT('STRG-Indizes'!$B$3 & "Z" & 'STRG-Indizes'!$B48 & "S" & 'STRG-Indizes'!AI$5, FALSE) -> 77 | AJ49: =INDIRECT('STRG-Indizes'!$B$3 & "Z" & 'STRG-Indizes'!$B48 & "S" & 'STRG-Indizes'!AJ$5, FALSE) -> 39
A50: JC Karlsruhe | B50: Id | C50: =IF('STRG-Merkmal'!$E$9=2,"",INDIRECT('STRG-Indizes'!$B$3&"Z"&'STRG-Indizes'!$B49&"S"&'STRG-Indizes'!C$5,FALSE)) -> 154 | D50: =IF('STRG-Merkmal'!$E$9=2,"",INDIRECT('STRG-Indizes'!$B$3&"Z"&'STRG-Indizes'!$B49&"S"&'STRG-Indizes'!D$5,FALSE)) -> 174 | E50: =IF('STRG-Merkmal'!$E$9=2,"",INDIRECT('STRG-Indizes'!$B$3&"Z"&'STRG-Indizes'!$B49&"S"&'STRG-Indizes'!E$5,FALSE)) -> 206 | F50: =IF('STRG-Merkmal'!$E$9=2,"",INDIRECT('STRG-Indizes'!$B$3&"Z"&'STRG-Indizes'!$B49&"S"&'STRG-Indizes'!F$5,FALSE)) -> 282 | G50: =IF('STRG-Merkmal'!$E$9=2,"",INDIRECT('STRG-Indizes'!$B$3&"Z"&'STRG-Indizes'!$B49&"S"&'STRG-Indizes'!G$5,FALSE)) -> 267 | H50: =IF('STRG-Merkmal'!$E$9=2,"",INDIRECT('STRG-Indizes'!$B$3&"Z"&'STRG-Indizes'!$B49&"S"&'STRG-Indizes'!H$5,FALSE)) -> 189 | I50: =IF('STRG-Merkmal'!$E$9=2,"",INDIRECT('STRG-Indizes'!$B$3&"Z"&'STRG-Indizes'!$B49&"S"&'STRG-Indizes'!I$5,FALSE)) -> 242 | J50: =IF('STRG-Merkmal'!$E$9=2,"",INDIRECT('STRG-Indizes'!$B$3&"Z"&'STRG-Indizes'!$B49&"S"&'STRG-Indizes'!J$5,FALSE)) -> 266 | K50: =IF('STRG-Merkmal'!$E$9=2,"",INDIRECT('STRG-Indizes'!$B$3&"Z"&'STRG-Indizes'!$B49&"S"&'STRG-Indizes'!K$5,FALSE)) -> 494 | L50: =IF('STRG-Merkmal'!$E$9=2,"",INDIRECT('STRG-Indizes'!$B$3&"Z"&'STRG-Indizes'!$B49&"S"&'STRG-Indizes'!L$5,FALSE)) -> 288 | M50: =IF('STRG-Merkmal'!$E$9=2,"",INDIRECT('STRG-Indizes'!$B$3&"Z"&'STRG-Indizes'!$B49&"S"&'STRG-Indizes'!M$5,FALSE)) -> 274 | N50: =INDIRECT('STRG-Indizes'!$B$3&"Z"&'STRG-Indizes'!$B49&"S"&'STRG-Indizes'!N$5,FALSE) -> 194 | O50: =INDIRECT('STRG-Indizes'!$B$3 & "Z" & 'STRG-Indizes'!$B49 & "S" & 'STRG-Indizes'!O$5, FALSE) -> 164 | P50: =INDIRECT('STRG-Indizes'!$B$3 & "Z" & 'STRG-Indizes'!$B49 & "S" & 'STRG-Indizes'!P$5, FALSE) -> 236 | Q50: =INDIRECT('STRG-Indizes'!$B$3 & "Z" & 'STRG-Indizes'!$B49 & "S" & 'STRG-Indizes'!Q$5, FALSE) -> 255 | R50: =INDIRECT('STRG-Indizes'!$B$3 & "Z" & 'STRG-Indizes'!$B49 & "S" & 'STRG-Indizes'!R$5, FALSE) -> 303 | S50: =INDIRECT('STRG-Indizes'!$B$3 & "Z" & 'STRG-Indizes'!$B49 & "S" & 'STRG-Indizes'!S$5, FALSE) -> 315 | T50: =INDIRECT('STRG-Indizes'!$B$3 & "Z" & 'STRG-Indizes'!$B49 & "S" & 'STRG-Indizes'!T$5, FALSE) -> 263 | U50: =INDIRECT('STRG-Indizes'!$B$3 & "Z" & 'STRG-Indizes'!$B49 & "S" & 'STRG-Indizes'!U$5, FALSE) -> 240 | V50: =INDIRECT('STRG-Indizes'!$B$3 & "Z" & 'STRG-Indizes'!$B49 & "S" & 'STRG-Indizes'!V$5, FALSE) -> 313 | W50: =INDIRECT('STRG-Indizes'!$B$3 & "Z" & 'STRG-Indizes'!$B49 & "S" & 'STRG-Indizes'!W$5, FALSE) -> 481 | X50: =INDIRECT('STRG-Indizes'!$B$3 & "Z" & 'STRG-Indizes'!$B49 & "S" & 'STRG-Indizes'!X$5, FALSE) -> 296 | Y50: =INDIRECT('STRG-Indizes'!$B$3 & "Z" & 'STRG-Indizes'!$B49 & "S" & 'STRG-Indizes'!Y$5, FALSE) -> 245 | Z50: =INDIRECT('STRG-Indizes'!$B$3 & "Z" & 'STRG-Indizes'!$B49 & "S" & 'STRG-Indizes'!Z$5, FALSE) -> 179 | AA50: =INDIRECT('STRG-Indizes'!$B$3 & "Z" & 'STRG-Indizes'!$B49 & "S" & 'STRG-Indizes'!AA$5, FALSE) -> 169 | AB50: =INDIRECT('STRG-Indizes'!$B$3 & "Z" & 'STRG-Indizes'!$B49 & "S" & 'STRG-Indizes'!AB$5, FALSE) -> 173 | AC50: =INDIRECT('STRG-Indizes'!$B$3 & "Z" & 'STRG-Indizes'!$B49 & "S" & 'STRG-Indizes'!AC$5, FALSE) -> 234 | AD50: =INDIRECT('STRG-Indizes'!$B$3 & "Z" & 'STRG-Indizes'!$B49 & "S" & 'STRG-Indizes'!AD$5, FALSE) -> 258 | AE50: =INDIRECT('STRG-Indizes'!$B$3 & "Z" & 'STRG-Indizes'!$B49 & "S" & 'STRG-Indizes'!AE$5, FALSE) -> 227 | AF50: =INDIRECT('STRG-Indizes'!$B$3 & "Z" & 'STRG-Indizes'!$B49 & "S" & 'STRG-Indizes'!AF$5, FALSE) -> 224 | AG50: =INDIRECT('STRG-Indizes'!$B$3 & "Z" & 'STRG-Indizes'!$B49 & "S" & 'STRG-Indizes'!AG$5, FALSE) -> 228 | AH50: =INDIRECT('STRG-Indizes'!$B$3 & "Z" & 'STRG-Indizes'!$B49 & "S" & 'STRG-Indizes'!AH$5, FALSE) -> 267 | AI50: =INDIRECT('STRG-Indizes'!$B$3 & "Z" & 'STRG-Indizes'!$B49 & "S" & 'STRG-Indizes'!AI$5, FALSE) -> 437 | AJ50: =INDIRECT('STRG-Indizes'!$B$3 & "Z" & 'STRG-Indizes'!$B49 & "S" & 'STRG-Indizes'!AJ$5, FALSE) -> 249
A51: JC Karlsruhe, Stadt | B51: IIb | C51: =IF('STRG-Merkmal'!$E$9=2,"",INDIRECT('STRG-Indizes'!$B$3&"Z"&'STRG-Indizes'!$B50&"S"&'STRG-Indizes'!C$5,FALSE)) -> 231 | D51: =IF('STRG-Merkmal'!$E$9=2,"",INDIRECT('STRG-Indizes'!$B$3&"Z"&'STRG-Indizes'!$B50&"S"&'STRG-Indizes'!D$5,FALSE)) -> 346 | E51: =IF('STRG-Merkmal'!$E$9=2,"",INDIRECT('STRG-Indizes'!$B$3&"Z"&'STRG-Indizes'!$B50&"S"&'STRG-Indizes'!E$5,FALSE)) -> 360 | F51: =IF('STRG-Merkmal'!$E$9=2,"",INDIRECT('STRG-Indizes'!$B$3&"Z"&'STRG-Indizes'!$B50&"S"&'STRG-Indizes'!F$5,FALSE)) -> 408 | G51: =IF('STRG-Merkmal'!$E$9=2,"",INDIRECT('STRG-Indizes'!$B$3&"Z"&'STRG-Indizes'!$B50&"S"&'STRG-Indizes'!G$5,FALSE)) -> 364 | H51: =IF('STRG-Merkmal'!$E$9=2,"",INDIRECT('STRG-Indizes'!$B$3&"Z"&'STRG-Indizes'!$B50&"S"&'STRG-Indizes'!H$5,FALSE)) -> 280 | I51: =IF('STRG-Merkmal'!$E$9=2,"",INDIRECT('STRG-Indizes'!$B$3&"Z"&'STRG-Indizes'!$B50&"S"&'STRG-Indizes'!I$5,FALSE)) -> 354 | J51: =IF('STRG-Merkmal'!$E$9=2,"",INDIRECT('STRG-Indizes'!$B$3&"Z"&'STRG-Indizes'!$B50&"S"&'STRG-Indizes'!J$5,FALSE)) -> 366 | K51: =IF('STRG-Merkmal'!$E$9=2,"",INDIRECT('STRG-Indizes'!$B$3&"Z"&'STRG-Indizes'!$B50&"S"&'STRG-Indizes'!K$5,FALSE)) -> 569 | L51: =IF('STRG-Merkmal'!$E$9=2,"",INDIRECT('STRG-Indizes'!$B$3&"Z"&'STRG-Indizes'!$B50&"S"&'STRG-Indizes'!L$5,FALSE)) -> 396 | M51: =IF('STRG-Merkmal'!$E$9=2,"",INDIRECT('STRG-Indizes'!$B$3&"Z"&'STRG-Indizes'!$B50&"S"&'STRG-Indizes'!M$5,FALSE)) -> 307 | N51: =INDIRECT('STRG-Indizes'!$B$3&"Z"&'STRG-Indizes'!$B50&"S"&'STRG-Indizes'!N$5,FALSE) -> 256 | O51: =INDIRECT('STRG-Indizes'!$B$3 & "Z" & 'STRG-Indizes'!$B50 & "S" & 'STRG-Indizes'!O$5, FALSE) -> 272 | P51: =INDIRECT('STRG-Indizes'!$B$3 & "Z" & 'STRG-Indizes'!$B50 & "S" & 'STRG-Indizes'!P$5, FALSE) -> 333 | Q51: =INDIRECT('STRG-Indizes'!$B$3 & "Z" & 'STRG-Indizes'!$B50 & "S" & 'STRG-Indizes'!Q$5, FALSE) -> 339 | R51: =INDIRECT('STRG-Indizes'!$B$3 & "Z" & 'STRG-Indizes'!$B50 & "S" & 'STRG-Indizes'!R$5, FALSE) -> 326 | S51: =INDIRECT('STRG-Indizes'!$B$3 & "Z" & 'STRG-Indizes'!$B50 & "S" & 'STRG-Indizes'!S$5, FALSE) -> 375 | T51: =INDIRECT('STRG-Indizes'!$B$3 & "Z" & 'STRG-Indizes'!$B50 & "S" & 'STRG-Indizes'!T$5, FALSE) -> 330 | U51: =INDIRECT('STRG-Indizes'!$B$3 & "Z" & 'STRG-Indizes'!$B50 & "S" & 'STRG-Indizes'!U$5, FALSE) -> 316 | V51: =INDIRECT('STRG-Indizes'!$B$3 & "Z" & 'STRG-Indizes'!$B50 & "S" & 'STRG-Indizes'!V$5, FALSE) -> 355 | W51: =INDIRECT('STRG-Indizes'!$B$3 & "Z" & 'STRG-Indizes'!$B50 & "S" & 'STRG-Indizes'!W$5, FALSE) -> 573 | X51: =INDIRECT('STRG-Indizes'!$B$3 & "Z" & 'STRG-Indizes'!$B50 & "S" & 'STRG-Indizes'!X$5, FALSE) -> 379 | Y51: =INDIRECT('STRG-Indizes'!$B$3 & "Z" & 'STRG-Indizes'!$B50 & "S" & 'STRG-Indizes'!Y$5, FALSE) -> 307 | Z51: =INDIRECT('STRG-Indizes'!$B$3 & "Z" & 'STRG-Indizes'!$B50 & "S" & 'STRG-Indizes'!Z$5, FALSE) -> 258 | AA51: =INDIRECT('STRG-Indizes'!$B$3 & "Z" & 'STRG-Indizes'!$B50 & "S" & 'STRG-Indizes'!AA$5, FALSE) -> 225 | AB51: =INDIRECT('STRG-Indizes'!$B$3 & "Z" & 'STRG-Indizes'!$B50 & "S" & 'STRG-Indizes'!AB$5, FALSE) -> 283 | AC51: =INDIRECT('STRG-Indizes'!$B$3 & "Z" & 'STRG-Indizes'!$B50 & "S" & 'STRG-Indizes'!AC$5, FALSE) -> 309 | AD51: =INDIRECT('STRG-Indizes'!$B$3 & "Z" & 'STRG-Indizes'!$B50 & "S" & 'STRG-Indizes'!AD$5, FALSE) -> 329 | AE51: =INDIRECT('STRG-Indizes'!$B$3 & "Z" & 'STRG-Indizes'!$B50 & "S" & 'STRG-Indizes'!AE$5, FALSE) -> 296 | AF51: =INDIRECT('STRG-Indizes'!$B$3 & "Z" & 'STRG-Indizes'!$B50 & "S" & 'STRG-Indizes'!AF$5, FALSE) -> 306 | AG51: =INDIRECT('STRG-Indizes'!$B$3 & "Z" & 'STRG-Indizes'!$B50 & "S" & 'STRG-Indizes'!AG$5, FALSE) -> 325 | AH51: =INDIRECT('STRG-Indizes'!$B$3 & "Z" & 'STRG-Indizes'!$B50 & "S" & 'STRG-Indizes'!AH$5, FALSE) -> 324 | AI51: =INDIRECT('STRG-Indizes'!$B$3 & "Z" & 'STRG-Indizes'!$B50 & "S" & 'STRG-Indizes'!AI$5, FALSE) -> 492 | AJ51: =INDIRECT('STRG-Indizes'!$B$3 & "Z" & 'STRG-Indizes'!$B50 & "S" & 'STRG-Indizes'!AJ$5, FALSE) -> 323
A52: JC Konstanz | B52: Id | C52: =IF('STRG-Merkmal'!$E$9=2,"",INDIRECT('STRG-Indizes'!$B$3&"Z"&'STRG-Indizes'!$B51&"S"&'STRG-Indizes'!C$5,FALSE)) -> 114 | D52: =IF('STRG-Merkmal'!$E$9=2,"",INDIRECT('STRG-Indizes'!$B$3&"Z"&'STRG-Indizes'!$B51&"S"&'STRG-Indizes'!D$5,FALSE)) -> 156 | E52: =IF('STRG-Merkmal'!$E$9=2,"",INDIRECT('STRG-Indizes'!$B$3&"Z"&'STRG-Indizes'!$B51&"S"&'STRG-Indizes'!E$5,FALSE)) -> 189 | F52: =IF('STRG-Merkmal'!$E$9=2,"",INDIRECT('STRG-Indizes'!$B$3&"Z"&'STRG-Indizes'!$B51&"S"&'STRG-Indizes'!F$5,FALSE)) -> 247 | G52: =IF('STRG-Merkmal'!$E$9=2,"",INDIRECT('STRG-Indizes'!$B$3&"Z"&'STRG-Indizes'!$B51&"S"&'STRG-Indizes'!G$5,FALSE)) -> 216 | H52: =IF('STRG-Merkmal'!$E$9=2,"",INDIRECT('STRG-Indizes'!$B$3&"Z"&'STRG-Indizes'!$B51&"S"&'STRG-Indizes'!H$5,FALSE)) -> 170 | I52: =IF('STRG-Merkmal'!$E$9=2,"",INDIRECT('STRG-Indizes'!$B$3&"Z"&'STRG-Indizes'!$B51&"S"&'STRG-Indizes'!I$5,FALSE)) -> 192 | J52: =IF('STRG-Merkmal'!$E$9=2,"",INDIRECT('STRG-Indizes'!$B$3&"Z"&'STRG-Indizes'!$B51&"S"&'STRG-Indizes'!J$5,FALSE)) -> 197 | K52: =IF('STRG-Merkmal'!$E$9=2,"",INDIRECT('STRG-Indizes'!$B$3&"Z"&'STRG-Indizes'!$B51&"S"&'STRG-Indizes'!K$5,FALSE)) -> 386 | L52: =IF('STRG-Merkmal'!$E$9=2,"",INDIRECT('STRG-Indizes'!$B$3&"Z"&'STRG-Indizes'!$B51&"S"&'STRG-Indizes'!L$5,FALSE)) -> 225 | M52: =IF('STRG-Merkmal'!$E$9=2,"",INDIRECT('STRG-Indizes'!$B$3&"Z"&'STRG-Indizes'!$B51&"S"&'STRG-Indizes'!M$5,FALSE)) -> 190 | N52: =INDIRECT('STRG-Indizes'!$B$3&"Z"&'STRG-Indizes'!$B51&"S"&'STRG-Indizes'!N$5,FALSE) -> 156 | O52: =INDIRECT('STRG-Indizes'!$B$3 & "Z" & 'STRG-Indizes'!$B51 & "S" & 'STRG-Indizes'!O$5, FALSE) -> 122 | P52: =INDIRECT('STRG-Indizes'!$B$3 & "Z" & 'STRG-Indizes'!$B51 & "S" & 'STRG-Indizes'!P$5, FALSE) -> 145 | Q52: =INDIRECT('STRG-Indizes'!$B$3 & "Z" & 'STRG-Indizes'!$B51 & "S" & 'STRG-Indizes'!Q$5, FALSE) -> 147 | R52: =INDIRECT('STRG-Indizes'!$B$3 & "Z" & 'STRG-Indizes'!$B51 & "S" & 'STRG-Indizes'!R$5, FALSE) -> 236 | S52: =INDIRECT('STRG-Indizes'!$B$3 & "Z" & 'STRG-Indizes'!$B51 & "S" & 'STRG-Indizes'!S$5, FALSE) -> 219 | T52: =INDIRECT('STRG-Indizes'!$B$3 & "Z" & 'STRG-Indizes'!$B51 & "S" & 'STRG-Indizes'!T$5, FALSE) -> 187 | U52: =INDIRECT('STRG-Indizes'!$B$3 & "Z" & 'STRG-Indizes'!$B51 & "S" & 'STRG-Indizes'!U$5, FALSE) -> 183 | V52: =INDIRECT('STRG-Indizes'!$B$3 & "Z" & 'STRG-Indizes'!$B51 & "S" & 'STRG-Indizes'!V$5, FALSE) -> 212 | W52: =INDIRECT('STRG-Indizes'!$B$3 & "Z" & 'STRG-Indizes'!$B51 & "S" & 'STRG-Indizes'!W$5, FALSE) -> 384 | X52: =INDIRECT('STRG-Indizes'!$B$3 & "Z" & 'STRG-Indizes'!$B51 & "S" & 'STRG-Indizes'!X$5, FALSE) -> 206 | Y52: =INDIRECT('STRG-Indizes'!$B$3 & "Z" & 'STRG-Indizes'!$B51 & "S" & 'STRG-Indizes'!Y$5, FALSE) -> 173 | Z52: =INDIRECT('STRG-Indizes'!$B$3 & "Z" & 'STRG-Indizes'!$B51 & "S" & 'STRG-Indizes'!Z$5, FALSE) -> 153 | AA52: =INDIRECT('STRG-Indizes'!$B$3 & "Z" & 'STRG-Indizes'!$B51 & "S" & 'STRG-Indizes'!AA$5, FALSE) -> 158 | AB52: =INDIRECT('STRG-Indizes'!$B$3 & "Z" & 'STRG-Indizes'!$B51 & "S" & 'STRG-Indizes'!AB$5, FALSE) -> 175 | AC52: =INDIRECT('STRG-Indizes'!$B$3 & "Z" & 'STRG-Indizes'!$B51 & "S" & 'STRG-Indizes'!AC$5, FALSE) -> 170 | AD52: =INDIRECT('STRG-Indizes'!$B$3 & "Z" & 'STRG-Indizes'!$B51 & "S" & 'STRG-Indizes'!AD$5, FALSE) -> 247 | AE52: =INDIRECT('STRG-Indizes'!$B$3 & "Z" & 'STRG-Indizes'!$B51 & "S" & 'STRG-Indizes'!AE$5, FALSE) -> 220 | AF52: =INDIRECT('STRG-Indizes'!$B$3 & "Z" & 'STRG-Indizes'!$B51 & "S" & 'STRG-Indizes'!AF$5, FALSE) -> 177 | AG52: =INDIRECT('STRG-Indizes'!$B$3 & "Z" & 'STRG-Indizes'!$B51 & "S" & 'STRG-Indizes'!AG$5, FALSE) -> 194 | AH52: =INDIRECT('STRG-Indizes'!$B$3 & "Z" & 'STRG-Indizes'!$B51 & "S" & 'STRG-Indizes'!AH$5, FALSE) -> 209 | AI52: =INDIRECT('STRG-Indizes'!$B$3 & "Z" & 'STRG-Indizes'!$B51 & "S" & 'STRG-Indizes'!AI$5, FALSE) -> 384 | AJ52: =INDIRECT('STRG-Indizes'!$B$3 & "Z" & 'STRG-Indizes'!$B51 & "S" & 'STRG-Indizes'!AJ$5, FALSE) -> 233
A53: JC Lörrach | B53: Id | C53: =IF('STRG-Merkmal'!$E$9=2,"",INDIRECT('STRG-Indizes'!$B$3&"Z"&'STRG-Indizes'!$B52&"S"&'STRG-Indizes'!C$5,FALSE)) -> 111 | D53: =IF('STRG-Merkmal'!$E$9=2,"",INDIRECT('STRG-Indizes'!$B$3&"Z"&'STRG-Indizes'!$B52&"S"&'STRG-Indizes'!D$5,FALSE)) -> 121 | E53: =IF('STRG-Merkmal'!$E$9=2,"",INDIRECT('STRG-Indizes'!$B$3&"Z"&'STRG-Indizes'!$B52&"S"&'STRG-Indizes'!E$5,FALSE)) -> 117 | F53: =IF('STRG-Merkmal'!$E$9=2,"",INDIRECT('STRG-Indizes'!$B$3&"Z"&'STRG-Indizes'!$B52&"S"&'STRG-Indizes'!F$5,FALSE)) -> 136 | G53: =IF('STRG-Merkmal'!$E$9=2,"",INDIRECT('STRG-Indizes'!$B$3&"Z"&'STRG-Indizes'!$B52&"S"&'STRG-Indizes'!G$5,FALSE)) -> 179 | H53: =IF('STRG-Merkmal'!$E$9=2,"",INDIRECT('STRG-Indizes'!$B$3&"Z"&'STRG-Indizes'!$B52&"S"&'STRG-Indizes'!H$5,FALSE)) -> 115 | I53: =IF('STRG-Merkmal'!$E$9=2,"",INDIRECT('STRG-Indizes'!$B$3&"Z"&'STRG-Indizes'!$B52&"S"&'STRG-Indizes'!I$5,FALSE)) -> 135 | J53: =IF('STRG-Merkmal'!$E$9=2,"",INDIRECT('STRG-Indizes'!$B$3&"Z"&'STRG-Indizes'!$B52&"S"&'STRG-Indizes'!J$5,FALSE)) -> 157 | K53: =IF('STRG-Merkmal'!$E$9=2,"",INDIRECT('STRG-Indizes'!$B$3&"Z"&'STRG-Indizes'!$B52&"S"&'STRG-Indizes'!K$5,FALSE)) -> 256 | L53: =IF('STRG-Merkmal'!$E$9=2,"",INDIRECT('STRG-Indizes'!$B$3&"Z"&'STRG-Indizes'!$B52&"S"&'STRG-Indizes'!L$5,FALSE)) -> 161 | M53: =IF('STRG-Merkmal'!$E$9=2,"",INDIRECT('STRG-Indizes'!$B$3&"Z"&'STRG-Indizes'!$B52&"S"&'STRG-Indizes'!M$5,FALSE)) -> 130 | N53: =INDIRECT('STRG-Indizes'!$B$3&"Z"&'STRG-Indizes'!$B52&"S"&'STRG-Indizes'!N$5,FALSE) -> 95 | O53: =INDIRECT('STRG-Indizes'!$B$3 & "Z" & 'STRG-Indizes'!$B52 & "S" & 'STRG-Indizes'!O$5, FALSE) -> 99 | P53: =INDIRECT('STRG-Indizes'!$B$3 & "Z" & 'STRG-Indizes'!$B52 & "S" & 'STRG-Indizes'!P$5, FALSE) -> 152 | Q53: =INDIRECT('STRG-Indizes'!$B$3 & "Z" & 'STRG-Indizes'!$B52 & "S" & 'STRG-Indizes'!Q$5, FALSE) -> 134 | R53: =INDIRECT('STRG-Indizes'!$B$3 & "Z" & 'STRG-Indizes'!$B52 & "S" & 'STRG-Indizes'!R$5, FALSE) -> 107 | S53: =INDIRECT('STRG-Indizes'!$B$3 & "Z" & 'STRG-Indizes'!$B52 & "S" & 'STRG-Indizes'!S$5, FALSE) -> 164 | T53: =INDIRECT('STRG-Indizes'!$B$3 & "Z" & 'STRG-Indizes'!$B52 & "S" & 'STRG-Indizes'!T$5, FALSE) -> 122 | U53: =INDIRECT('STRG-Indizes'!$B$3 & "Z" & 'STRG-Indizes'!$B52 & "S" & 'STRG-Indizes'!U$5, FALSE) -> 130 | V53: =INDIRECT('STRG-Indizes'!$B$3 & "Z" & 'STRG-Indizes'!$B52 & "S" & 'STRG-Indizes'!V$5, FALSE) -> 152 | W53: =INDIRECT('STRG-Indizes'!$B$3 & "Z" & 'STRG-Indizes'!$B52 & "S" & 'STRG-Indizes'!W$5, FALSE) -> 250 | X53: =INDIRECT('STRG-Indizes'!$B$3 & "Z" & 'STRG-Indizes'!$B52 & "S" & 'STRG-Indizes'!X$5, FALSE) -> 142 | Y53: =INDIRECT('STRG-Indizes'!$B$3 & "Z" & 'STRG-Indizes'!$B52 & "S" & 'STRG-Indizes'!Y$5, FALSE) -> 101 | Z53: =INDIRECT('STRG-Indizes'!$B$3 & "Z" & 'STRG-Indizes'!$B52 & "S" & 'STRG-Indizes'!Z$5, FALSE) -> 88 | AA53: =INDIRECT('STRG-Indizes'!$B$3 & "Z" & 'STRG-Indizes'!$B52 & "S" & 'STRG-Indizes'!AA$5, FALSE) -> 71 | AB53: =INDIRECT('STRG-Indizes'!$B$3 & "Z" & 'STRG-Indizes'!$B52 & "S" & 'STRG-Indizes'!AB$5, FALSE) -> 91 | AC53: =INDIRECT('STRG-Indizes'!$B$3 & "Z" & 'STRG-Indizes'!$B52 & "S" & 'STRG-Indizes'!AC$5, FALSE) -> 125 | AD53: =INDIRECT('STRG-Indizes'!$B$3 & "Z" & 'STRG-Indizes'!$B52 & "S" & 'STRG-Indizes'!AD$5, FALSE) -> 124 | AE53: =INDIRECT('STRG-Indizes'!$B$3 & "Z" & 'STRG-Indizes'!$B52 & "S" & 'STRG-Indizes'!AE$5, FALSE) -> 115 | AF53: =INDIRECT('STRG-Indizes'!$B$3 & "Z" & 'STRG-Indizes'!$B52 & "S" & 'STRG-Indizes'!AF$5, FALSE) -> 108 | AG53: =INDIRECT('STRG-Indizes'!$B$3 & "Z" & 'STRG-Indizes'!$B52 & "S" & 'STRG-Indizes'!AG$5, FALSE) -> 119 | AH53: =INDIRECT('STRG-Indizes'!$B$3 & "Z" & 'STRG-Indizes'!$B52 & "S" & 'STRG-Indizes'!AH$5, FALSE) -> 147 | AI53: =INDIRECT('STRG-Indizes'!$B$3 & "Z" & 'STRG-Indizes'!$B52 & "S" & 'STRG-Indizes'!AI$5, FALSE) -> 237 | AJ53: =INDIRECT('STRG-Indizes'!$B$3 & "Z" & 'STRG-Indizes'!$B52 & "S" & 'STRG-Indizes'!AJ$5, FALSE) -> 154
A54: JC Ludwigsburg | B54: Id | C54: =IF('STRG-Merkmal'!$E$9=2,"",INDIRECT('STRG-Indizes'!$B$3&"Z"&'STRG-Indizes'!$B53&"S"&'STRG-Indizes'!C$5,FALSE)) -> 246 | D54: =IF('STRG-Merkmal'!$E$9=2,"",INDIRECT('STRG-Indizes'!$B$3&"Z"&'STRG-Indizes'!$B53&"S"&'STRG-Indizes'!D$5,FALSE)) -> 299 | E54: =IF('STRG-Merkmal'!$E$9=2,"",INDIRECT('STRG-Indizes'!$B$3&"Z"&'STRG-Indizes'!$B53&"S"&'STRG-Indizes'!E$5,FALSE)) -> 318 | F54: =IF('STRG-Merkmal'!$E$9=2,"",INDIRECT('STRG-Indizes'!$B$3&"Z"&'STRG-Indizes'!$B53&"S"&'STRG-Indizes'!F$5,FALSE)) -> 378 | G54: =IF('STRG-Merkmal'!$E$9=2,"",INDIRECT('STRG-Indizes'!$B$3&"Z"&'STRG-Indizes'!$B53&"S"&'STRG-Indizes'!G$5,FALSE)) -> 398 | H54: =IF('STRG-Merkmal'!$E$9=2,"",INDIRECT('STRG-Indizes'!$B$3&"Z"&'STRG-Indizes'!$B53&"S"&'STRG-Indizes'!H$5,FALSE)) -> 310 | I54: =IF('STRG-Merkmal'!$E$9=2,"",INDIRECT('STRG-Indizes'!$B$3&"Z"&'STRG-Indizes'!$B53&"S"&'STRG-Indizes'!I$5,FALSE)) -> 389 | J54: =IF('STRG-Merkmal'!$E$9=2,"",INDIRECT('STRG-Indizes'!$B$3&"Z"&'STRG-Indizes'!$B53&"S"&'STRG-Indizes'!J$5,FALSE)) -> 348 | K54: =IF('STRG-Merkmal'!$E$9=2,"",INDIRECT('STRG-Indizes'!$B$3&"Z"&'STRG-Indizes'!$B53&"S"&'STRG-Indizes'!K$5,FALSE)) -> 715 | L54: =IF('STRG-Merkmal'!$E$9=2,"",INDIRECT('STRG-Indizes'!$B$3&"Z"&'STRG-Indizes'!$B53&"S"&'STRG-Indizes'!L$5,FALSE)) -> 410 | M54: =IF('STRG-Merkmal'!$E$9=2,"",INDIRECT('STRG-Indizes'!$B$3&"Z"&'STRG-Indizes'!$B53&"S"&'STRG-Indizes'!M$5,FALSE)) -> 395 | N54: =INDIRECT('STRG-Indizes'!$B$3&"Z"&'STRG-Indizes'!$B53&"S"&'STRG-Indizes'!N$5,FALSE) -> 328 | O54: =INDIRECT('STRG-Indizes'!$B$3 & "Z" & 'STRG-Indizes'!$B53 & "S" & 'STRG-Indizes'!O$5, FALSE) -> 235 | P54: =INDIRECT('STRG-Indizes'!$B$3 & "Z" & 'STRG-Indizes'!$B53 & "S" & 'STRG-Indizes'!P$5, FALSE) -> 271 | Q54: =INDIRECT('STRG-Indizes'!$B$3 & "Z" & 'STRG-Indizes'!$B53 & "S" & 'STRG-Indizes'!Q$5, FALSE) -> 340 | R54: =INDIRECT('STRG-Indizes'!$B$3 & "Z" & 'STRG-Indizes'!$B53 & "S" & 'STRG-Indizes'!R$5, FALSE) -> 316 | S54: =INDIRECT('STRG-Indizes'!$B$3 & "Z" & 'STRG-Indizes'!$B53 & "S" & 'STRG-Indizes'!S$5, FALSE) -> 361 | T54: =INDIRECT('STRG-Indizes'!$B$3 & "Z" & 'STRG-Indizes'!$B53 & "S" & 'STRG-Indizes'!T$5, FALSE) -> 283 | U54: =INDIRECT('STRG-Indizes'!$B$3 & "Z" & 'STRG-Indizes'!$B53 & "S" & 'STRG-Indizes'!U$5, FALSE) -> 376 | V54: =INDIRECT('STRG-Indizes'!$B$3 & "Z" & 'STRG-Indizes'!$B53 & "S" & 'STRG-Indizes'!V$5, FALSE) -> 376 | W54: =INDIRECT('STRG-Indizes'!$B$3 & "Z" & 'STRG-Indizes'!$B53 & "S" & 'STRG-Indizes'!W$5, FALSE) -> 663 | X54: =INDIRECT('STRG-Indizes'!$B$3 & "Z" & 'STRG-Indizes'!$B53 & "S" & 'STRG-Indizes'!X$5, FALSE) -> 385 | Y54: =INDIRECT('STRG-Indizes'!$B$3 & "Z" & 'STRG-Indizes'!$B53 & "S" & 'STRG-Indizes'!Y$5, FALSE) -> 331 | Z54: =INDIRECT('STRG-Indizes'!$B$3 & "Z" & 'STRG-Indizes'!$B53 & "S" & 'STRG-Indizes'!Z$5, FALSE) -> 279 | AA54: =INDIRECT('STRG-Indizes'!$B$3 & "Z" & 'STRG-Indizes'!$B53 & "S" & 'STRG-Indizes'!AA$5, FALSE) -> 232 | AB54: =INDIRECT('STRG-Indizes'!$B$3 & "Z" & 'STRG-Indizes'!$B53 & "S" & 'STRG-Indizes'!AB$5, FALSE) -> 291 | AC54: =INDIRECT('STRG-Indizes'!$B$3 & "Z" & 'STRG-Indizes'!$B53 & "S" & 'STRG-Indizes'!AC$5, FALSE) -> 293 | AD54: =INDIRECT('STRG-Indizes'!$B$3 & "Z" & 'STRG-Indizes'!$B53 & "S" & 'STRG-Indizes'!AD$5, FALSE) -> 318 | AE54: =INDIRECT('STRG-Indizes'!$B$3 & "Z" & 'STRG-Indizes'!$B53 & "S" & 'STRG-Indizes'!AE$5, FALSE) -> 319 | AF54: =INDIRECT('STRG-Indizes'!$B$3 & "Z" & 'STRG-Indizes'!$B53 & "S" & 'STRG-Indizes'!AF$5, FALSE) -> 244 | AG54: =INDIRECT('STRG-Indizes'!$B$3 & "Z" & 'STRG-Indizes'!$B53 & "S" & 'STRG-Indizes'!AG$5, FALSE) -> 284 | AH54: =INDIRECT('STRG-Indizes'!$B$3 & "Z" & 'STRG-Indizes'!$B53 & "S" & 'STRG-Indizes'!AH$5, FALSE) -> 316 | AI54: =INDIRECT('STRG-Indizes'!$B$3 & "Z" & 'STRG-Indizes'!$B53 & "S" & 'STRG-Indizes'!AI$5, FALSE) -> 612 | AJ54: =INDIRECT('STRG-Indizes'!$B$3 & "Z" & 'STRG-Indizes'!$B53 & "S" & 'STRG-Indizes'!AJ$5, FALSE) -> 348
A55: JC Main-Tauber-Kreis | B55: Ic | C55: =IF('STRG-Merkmal'!$E$9=2,"",INDIRECT('STRG-Indizes'!$B$3&"Z"&'STRG-Indizes'!$B54&"S"&'STRG-Indizes'!C$5,FALSE)) -> 45 | D55: =IF('STRG-Merkmal'!$E$9=2,"",INDIRECT('STRG-Indizes'!$B$3&"Z"&'STRG-Indizes'!$B54&"S"&'STRG-Indizes'!D$5,FALSE)) -> 62 | E55: =IF('STRG-Merkmal'!$E$9=2,"",INDIRECT('STRG-Indizes'!$B$3&"Z"&'STRG-Indizes'!$B54&"S"&'STRG-Indizes'!E$5,FALSE)) -> 70 | F55: =IF('STRG-Merkmal'!$E$9=2,"",INDIRECT('STRG-Indizes'!$B$3&"Z"&'STRG-Indizes'!$B54&"S"&'STRG-Indizes'!F$5,FALSE)) -> 101 | G55: =IF('STRG-Merkmal'!$E$9=2,"",INDIRECT('STRG-Indizes'!$B$3&"Z"&'STRG-Indizes'!$B54&"S"&'STRG-Indizes'!G$5,FALSE)) -> 108 | H55: =IF('STRG-Merkmal'!$E$9=2,"",INDIRECT('STRG-Indizes'!$B$3&"Z"&'STRG-Indizes'!$B54&"S"&'STRG-Indizes'!H$5,FALSE)) -> 82 | I55: =IF('STRG-Merkmal'!$E$9=2,"",INDIRECT('STRG-Indizes'!$B$3&"Z"&'STRG-Indizes'!$B54&"S"&'STRG-Indizes'!I$5,FALSE)) -> 104 | J55: =IF('STRG-Merkmal'!$E$9=2,"",INDIRECT('STRG-Indizes'!$B$3&"Z"&'STRG-Indizes'!$B54&"S"&'STRG-Indizes'!J$5,FALSE)) -> 125 | K55: =IF('STRG-Merkmal'!$E$9=2,"",INDIRECT('STRG-Indizes'!$B$3&"Z"&'STRG-Indizes'!$B54&"S"&'STRG-Indizes'!K$5,FALSE)) -> 158 | L55: =IF('STRG-Merkmal'!$E$9=2,"",INDIRECT('STRG-Indizes'!$B$3&"Z"&'STRG-Indizes'!$B54&"S"&'STRG-Indizes'!L$5,FALSE)) -> 117 | M55: =IF('STRG-Merkmal'!$E$9=2,"",INDIRECT('STRG-Indizes'!$B$3&"Z"&'STRG-Indizes'!$B54&"S"&'STRG-Indizes'!M$5,FALSE)) -> 88 | N55: =INDIRECT('STRG-Indizes'!$B$3&"Z"&'STRG-Indizes'!$B54&"S"&'STRG-Indizes'!N$5,FALSE) -> 70 | O55: =INDIRECT('STRG-Indizes'!$B$3 & "Z" & 'STRG-Indizes'!$B54 & "S" & 'STRG-Indizes'!O$5, FALSE) -> 76 | P55: =INDIRECT('STRG-Indizes'!$B$3 & "Z" & 'STRG-Indizes'!$B54 & "S" & 'STRG-Indizes'!P$5, FALSE) -> 94 | Q55: =INDIRECT('STRG-Indizes'!$B$3 & "Z" & 'STRG-Indizes'!$B54 & "S" & 'STRG-Indizes'!Q$5, FALSE) -> 94 | R55: =INDIRECT('STRG-Indizes'!$B$3 & "Z" & 'STRG-Indizes'!$B54 & "S" & 'STRG-Indizes'!R$5, FALSE) -> 97 | S55: =INDIRECT('STRG-Indizes'!$B$3 & "Z" & 'STRG-Indizes'!$B54 & "S" & 'STRG-Indizes'!S$5, FALSE) -> 105 | T55: =INDIRECT('STRG-Indizes'!$B$3 & "Z" & 'STRG-Indizes'!$B54 & "S" & 'STRG-Indizes'!T$5, FALSE) -> 71 | U55: =INDIRECT('STRG-Indizes'!$B$3 & "Z" & 'STRG-Indizes'!$B54 & "S" & 'STRG-Indizes'!U$5, FALSE) -> 88 | V55: =INDIRECT('STRG-Indizes'!$B$3 & "Z" & 'STRG-Indizes'!$B54 & "S" & 'STRG-Indizes'!V$5, FALSE) -> 113 | W55: =INDIRECT('STRG-Indizes'!$B$3 & "Z" & 'STRG-Indizes'!$B54 & "S" & 'STRG-Indizes'!W$5, FALSE) -> 177 | X55: =INDIRECT('STRG-Indizes'!$B$3 & "Z" & 'STRG-Indizes'!$B54 & "S" & 'STRG-Indizes'!X$5, FALSE) -> 106 | Y55: =INDIRECT('STRG-Indizes'!$B$3 & "Z" & 'STRG-Indizes'!$B54 & "S" & 'STRG-Indizes'!Y$5, FALSE) -> 76 | Z55: =INDIRECT('STRG-Indizes'!$B$3 & "Z" & 'STRG-Indizes'!$B54 & "S" & 'STRG-Indizes'!Z$5, FALSE) -> 64 | AA55: =INDIRECT('STRG-Indizes'!$B$3 & "Z" & 'STRG-Indizes'!$B54 & "S" & 'STRG-Indizes'!AA$5, FALSE) -> 58 | AB55: =INDIRECT('STRG-Indizes'!$B$3 & "Z" & 'STRG-Indizes'!$B54 & "S" & 'STRG-Indizes'!AB$5, FALSE) -> 70 | AC55: =INDIRECT('STRG-Indizes'!$B$3 & "Z" & 'STRG-Indizes'!$B54 & "S" & 'STRG-Indizes'!AC$5, FALSE) -> 70 | AD55: =INDIRECT('STRG-Indizes'!$B$3 & "Z" & 'STRG-Indizes'!$B54 & "S" & 'STRG-Indizes'!AD$5, FALSE) -> 61 | AE55: =INDIRECT('STRG-Indizes'!$B$3 & "Z" & 'STRG-Indizes'!$B54 & "S" & 'STRG-Indizes'!AE$5, FALSE) -> 85 | AF55: =INDIRECT('STRG-Indizes'!$B$3 & "Z" & 'STRG-Indizes'!$B54 & "S" & 'STRG-Indizes'!AF$5, FALSE) -> 73 | AG55: =INDIRECT('STRG-Indizes'!$B$3 & "Z" & 'STRG-Indizes'!$B54 & "S" & 'STRG-Indizes'!AG$5, FALSE) -> 79 | AH55: =INDIRECT('STRG-Indizes'!$B$3 & "Z" & 'STRG-Indizes'!$B54 & "S" & 'STRG-Indizes'!AH$5, FALSE) -> 94 | AI55: =INDIRECT('STRG-Indizes'!$B$3 & "Z" & 'STRG-Indizes'!$B54 & "S" & 'STRG-Indizes'!AI$5, FALSE) -> 143 | AJ55: =INDIRECT('STRG-Indizes'!$B$3 & "Z" & 'STRG-Indizes'!$B54 & "S" & 'STRG-Indizes'!AJ$5, FALSE) -> 69
A56: JC Mannheim, Universitätsstadt | B56: IIIb | C56: =IF('STRG-Merkmal'!$E$9=2,"",INDIRECT('STRG-Indizes'!$B$3&"Z"&'STRG-Indizes'!$B55&"S"&'STRG-Indizes'!C$5,FALSE)) -> 253 | D56: =IF('STRG-Merkmal'!$E$9=2,"",INDIRECT('STRG-Indizes'!$B$3&"Z"&'STRG-Indizes'!$B55&"S"&'STRG-Indizes'!D$5,FALSE)) -> 364 | E56: =IF('STRG-Merkmal'!$E$9=2,"",INDIRECT('STRG-Indizes'!$B$3&"Z"&'STRG-Indizes'!$B55&"S"&'STRG-Indizes'!E$5,FALSE)) -> 380 | F56: =IF('STRG-Merkmal'!$E$9=2,"",INDIRECT('STRG-Indizes'!$B$3&"Z"&'STRG-Indizes'!$B55&"S"&'STRG-Indizes'!F$5,FALSE)) -> 521 | G56: =IF('STRG-Merkmal'!$E$9=2,"",INDIRECT('STRG-Indizes'!$B$3&"Z"&'STRG-Indizes'!$B55&"S"&'STRG-Indizes'!G$5,FALSE)) -> 501 | H56: =IF('STRG-Merkmal'!$E$9=2,"",INDIRECT('STRG-Indizes'!$B$3&"Z"&'STRG-Indizes'!$B55&"S"&'STRG-Indizes'!H$5,FALSE)) -> 456 | I56: =IF('STRG-Merkmal'!$E$9=2,"",INDIRECT('STRG-Indizes'!$B$3&"Z"&'STRG-Indizes'!$B55&"S"&'STRG-Indizes'!I$5,FALSE)) -> 525 | J56: =IF('STRG-Merkmal'!$E$9=2,"",INDIRECT('STRG-Indizes'!$B$3&"Z"&'STRG-Indizes'!$B55&"S"&'STRG-Indizes'!J$5,FALSE)) -> 550 | K56: =IF('STRG-Merkmal'!$E$9=2,"",INDIRECT('STRG-Indizes'!$B$3&"Z"&'STRG-Indizes'!$B55&"S"&'STRG-Indizes'!K$5,FALSE)) -> 761 | L56: =IF('STRG-Merkmal'!$E$9=2,"",INDIRECT('STRG-Indizes'!$B$3&"Z"&'STRG-Indizes'!$B55&"S"&'STRG-Indizes'!L$5,FALSE)) -> 563 | M56: =IF('STRG-Merkmal'!$E$9=2,"",INDIRECT('STRG-Indizes'!$B$3&"Z"&'STRG-Indizes'!$B55&"S"&'STRG-Indizes'!M$5,FALSE)) -> 463 | N56: =INDIRECT('STRG-Indizes'!$B$3&"Z"&'STRG-Indizes'!$B55&"S"&'STRG-Indizes'!N$5,FALSE) -> 380 | O56: =INDIRECT('STRG-Indizes'!$B$3 & "Z" & 'STRG-Indizes'!$B55 & "S" & 'STRG-Indizes'!O$5, FALSE) -> 321 | P56: =INDIRECT('STRG-Indizes'!$B$3 & "Z" & 'STRG-Indizes'!$B55 & "S" & 'STRG-Indizes'!P$5, FALSE) -> 484 | Q56: =INDIRECT('STRG-Indizes'!$B$3 & "Z" & 'STRG-Indizes'!$B55 & "S" & 'STRG-Indizes'!Q$5, FALSE) -> 429 | R56: =INDIRECT('STRG-Indizes'!$B$3 & "Z" & 'STRG-Indizes'!$B55 & "S" & 'STRG-Indizes'!R$5, FALSE) -> 446 | S56: =INDIRECT('STRG-Indizes'!$B$3 & "Z" & 'STRG-Indizes'!$B55 & "S" & 'STRG-Indizes'!S$5, FALSE) -> 489 | T56: =INDIRECT('STRG-Indizes'!$B$3 & "Z" & 'STRG-Indizes'!$B55 & "S" & 'STRG-Indizes'!T$5, FALSE) -> 389 | U56: =INDIRECT('STRG-Indizes'!$B$3 & "Z" & 'STRG-Indizes'!$B55 & "S" & 'STRG-Indizes'!U$5, FALSE) -> 494 | V56: =INDIRECT('STRG-Indizes'!$B$3 & "Z" & 'STRG-Indizes'!$B55 & "S" & 'STRG-Indizes'!V$5, FALSE) -> 523 | W56: =INDIRECT('STRG-Indizes'!$B$3 & "Z" & 'STRG-Indizes'!$B55 & "S" & 'STRG-Indizes'!W$5, FALSE) -> 763 | X56: =INDIRECT('STRG-Indizes'!$B$3 & "Z" & 'STRG-Indizes'!$B55 & "S" & 'STRG-Indizes'!X$5, FALSE) -> 516 | Y56: =INDIRECT('STRG-Indizes'!$B$3 & "Z" & 'STRG-Indizes'!$B55 & "S" & 'STRG-Indizes'!Y$5, FALSE) -> 435 | Z56: =INDIRECT('STRG-Indizes'!$B$3 & "Z" & 'STRG-Indizes'!$B55 & "S" & 'STRG-Indizes'!Z$5, FALSE) -> 358 | AA56: =INDIRECT('STRG-Indizes'!$B$3 & "Z" & 'STRG-Indizes'!$B55 & "S" & 'STRG-Indizes'!AA$5, FALSE) -> 288 | AB56: =INDIRECT('STRG-Indizes'!$B$3 & "Z" & 'STRG-Indizes'!$B55 & "S" & 'STRG-Indizes'!AB$5, FALSE) -> 362 | AC56: =INDIRECT('STRG-Indizes'!$B$3 & "Z" & 'STRG-Indizes'!$B55 & "S" & 'STRG-Indizes'!AC$5, FALSE) -> 370 | AD56: =INDIRECT('STRG-Indizes'!$B$3 & "Z" & 'STRG-Indizes'!$B55 & "S" & 'STRG-Indizes'!AD$5, FALSE) -> 425 | AE56: =INDIRECT('STRG-Indizes'!$B$3 & "Z" & 'STRG-Indizes'!$B55 & "S" & 'STRG-Indizes'!AE$5, FALSE) -> 399 | AF56: =INDIRECT('STRG-Indizes'!$B$3 & "Z" & 'STRG-Indizes'!$B55 & "S" & 'STRG-Indizes'!AF$5, FALSE) -> 347 | AG56: =INDIRECT('STRG-Indizes'!$B$3 & "Z" & 'STRG-Indizes'!$B55 & "S" & 'STRG-Indizes'!AG$5, FALSE) -> 357 | AH56: =INDIRECT('STRG-Indizes'!$B$3 & "Z" & 'STRG-Indizes'!$B55 & "S" & 'STRG-Indizes'!AH$5, FALSE) -> 485 | AI56: =INDIRECT('STRG-Indizes'!$B$3 & "Z" & 'STRG-Indizes'!$B55 & "S" & 'STRG-Indizes'!AI$5, FALSE) -> 636 | AJ56: =INDIRECT('STRG-Indizes'!$B$3 & "Z" & 'STRG-Indizes'!$B55 & "S" & 'STRG-Indizes'!AJ$5, FALSE) -> 494
A57: JC Neckar-Odenwald-Kreis | B57: Ic | C57: =IF('STRG-Merkmal'!$E$9=2,"",INDIRECT('STRG-Indizes'!$B$3&"Z"&'STRG-Indizes'!$B56&"S"&'STRG-Indizes'!C$5,FALSE)) -> 38 | D57: =IF('STRG-Merkmal'!$E$9=2,"",INDIRECT('STRG-Indizes'!$B$3&"Z"&'STRG-Indizes'!$B56&"S"&'STRG-Indizes'!D$5,FALSE)) -> 65 | E57: =IF('STRG-Merkmal'!$E$9=2,"",INDIRECT('STRG-Indizes'!$B$3&"Z"&'STRG-Indizes'!$B56&"S"&'STRG-Indizes'!E$5,FALSE)) -> 74 | F57: =IF('STRG-Merkmal'!$E$9=2,"",INDIRECT('STRG-Indizes'!$B$3&"Z"&'STRG-Indizes'!$B56&"S"&'STRG-Indizes'!F$5,FALSE)) -> 82 | G57: =IF('STRG-Merkmal'!$E$9=2,"",INDIRECT('STRG-Indizes'!$B$3&"Z"&'STRG-Indizes'!$B56&"S"&'STRG-Indizes'!G$5,FALSE)) -> 81 | H57: =IF('STRG-Merkmal'!$E$9=2,"",INDIRECT('STRG-Indizes'!$B$3&"Z"&'STRG-Indizes'!$B56&"S"&'STRG-Indizes'!H$5,FALSE)) -> 79 | I57: =IF('STRG-Merkmal'!$E$9=2,"",INDIRECT('STRG-Indizes'!$B$3&"Z"&'STRG-Indizes'!$B56&"S"&'STRG-Indizes'!I$5,FALSE)) -> 94 | J57: =IF('STRG-Merkmal'!$E$9=2,"",INDIRECT('STRG-Indizes'!$B$3&"Z"&'STRG-Indizes'!$B56&"S"&'STRG-Indizes'!J$5,FALSE)) -> 100 | K57: =IF('STRG-Merkmal'!$E$9=2,"",INDIRECT('STRG-Indizes'!$B$3&"Z"&'STRG-Indizes'!$B56&"S"&'STRG-Indizes'!K$5,FALSE)) -> 152 | L57: =IF('STRG-Merkmal'!$E$9=2,"",INDIRECT('STRG-Indizes'!$B$3&"Z"&'STRG-Indizes'!$B56&"S"&'STRG-Indizes'!L$5,FALSE)) -> 99 | M57: =IF('STRG-Merkmal'!$E$9=2,"",INDIRECT('STRG-Indizes'!$B$3&"Z"&'STRG-Indizes'!$B56&"S"&'STRG-Indizes'!M$5,FALSE)) -> 62 | N57: =INDIRECT('STRG-Indizes'!$B$3&"Z"&'STRG-Indizes'!$B56&"S"&'STRG-Indizes'!N$5,FALSE) -> 66 | O57: =INDIRECT('STRG-Indizes'!$B$3 & "Z" & 'STRG-Indizes'!$B56 & "S" & 'STRG-Indizes'!O$5, FALSE) -> 44 | P57: =INDIRECT('STRG-Indizes'!$B$3 & "Z" & 'STRG-Indizes'!$B56 & "S" & 'STRG-Indizes'!P$5, FALSE) -> 66 | Q57: =INDIRECT('STRG-Indizes'!$B$3 & "Z" & 'STRG-Indizes'!$B56 & "S" & 'STRG-Indizes'!Q$5, FALSE) -> 79 | R57: =INDIRECT('STRG-Indizes'!$B$3 & "Z" & 'STRG-Indizes'!$B56 & "S" & 'STRG-Indizes'!R$5, FALSE) -> 79 | S57: =INDIRECT('STRG-Indizes'!$B$3 & "Z" & 'STRG-Indizes'!$B56 & "S" & 'STRG-Indizes'!S$5, FALSE) -> 95 | T57: =INDIRECT('STRG-Indizes'!$B$3 & "Z" & 'STRG-Indizes'!$B56 & "S" & 'STRG-Indizes'!T$5, FALSE) -> 85 | U57: =INDIRECT('STRG-Indizes'!$B$3 & "Z" & 'STRG-Indizes'!$B56 & "S" & 'STRG-Indizes'!U$5, FALSE) -> 93 | V57: =INDIRECT('STRG-Indizes'!$B$3 & "Z" & 'STRG-Indizes'!$B56 & "S" & 'STRG-Indizes'!V$5, FALSE) -> 98 | W57: =INDIRECT('STRG-Indizes'!$B$3 & "Z" & 'STRG-Indizes'!$B56 & "S" & 'STRG-Indizes'!W$5, FALSE) -> 168 | X57: =INDIRECT('STRG-Indizes'!$B$3 & "Z" & 'STRG-Indizes'!$B56 & "S" & 'STRG-Indizes'!X$5, FALSE) -> 88 | Y57: =INDIRECT('STRG-Indizes'!$B$3 & "Z" & 'STRG-Indizes'!$B56 & "S" & 'STRG-Indizes'!Y$5, FALSE) -> 91 | Z57: =INDIRECT('STRG-Indizes'!$B$3 & "Z" & 'STRG-Indizes'!$B56 & "S" & 'STRG-Indizes'!Z$5, FALSE) -> 60 | AA57: =INDIRECT('STRG-Indizes'!$B$3 & "Z" & 'STRG-Indizes'!$B56 & "S" & 'STRG-Indizes'!AA$5, FALSE) -> 66 | AB57: =INDIRECT('STRG-Indizes'!$B$3 & "Z" & 'STRG-Indizes'!$B56 & "S" & 'STRG-Indizes'!AB$5, FALSE) -> 66 | AC57: =INDIRECT('STRG-Indizes'!$B$3 & "Z" & 'STRG-Indizes'!$B56 & "S" & 'STRG-Indizes'!AC$5, FALSE) -> 82 | AD57: =INDIRECT('STRG-Indizes'!$B$3 & "Z" & 'STRG-Indizes'!$B56 & "S" & 'STRG-Indizes'!AD$5, FALSE) -> 78 | AE57: =INDIRECT('STRG-Indizes'!$B$3 & "Z" & 'STRG-Indizes'!$B56 & "S" & 'STRG-Indizes'!AE$5, FALSE) -> 78 | AF57: =INDIRECT('STRG-Indizes'!$B$3 & "Z" & 'STRG-Indizes'!$B56 & "S" & 'STRG-Indizes'!AF$5, FALSE) -> 55 | AG57: =INDIRECT('STRG-Indizes'!$B$3 & "Z" & 'STRG-Indizes'!$B56 & "S" & 'STRG-Indizes'!AG$5, FALSE) -> 58 | AH57: =INDIRECT('STRG-Indizes'!$B$3 & "Z" & 'STRG-Indizes'!$B56 & "S" & 'STRG-Indizes'!AH$5, FALSE) -> 82 | AI57: =INDIRECT('STRG-Indizes'!$B$3 & "Z" & 'STRG-Indizes'!$B56 & "S" & 'STRG-Indizes'!AI$5, FALSE) -> 122 | AJ57: =INDIRECT('STRG-Indizes'!$B$3 & "Z" & 'STRG-Indizes'!$B56 & "S" & 'STRG-Indizes'!AJ$5, FALSE) -> 79
A58: JC Ortenaukreis | B58: Id | C58: =IF('STRG-Merkmal'!$E$9=2,"",INDIRECT('STRG-Indizes'!$B$3&"Z"&'STRG-Indizes'!$B57&"S"&'STRG-Indizes'!C$5,FALSE)) -> 162 | D58: =IF('STRG-Merkmal'!$E$9=2,"",INDIRECT('STRG-Indizes'!$B$3&"Z"&'STRG-Indizes'!$B57&"S"&'STRG-Indizes'!D$5,FALSE)) -> 203 | E58: =IF('STRG-Merkmal'!$E$9=2,"",INDIRECT('STRG-Indizes'!$B$3&"Z"&'STRG-Indizes'!$B57&"S"&'STRG-Indizes'!E$5,FALSE)) -> 229 | F58: =IF('STRG-Merkmal'!$E$9=2,"",INDIRECT('STRG-Indizes'!$B$3&"Z"&'STRG-Indizes'!$B57&"S"&'STRG-Indizes'!F$5,FALSE)) -> 330 | G58: =IF('STRG-Merkmal'!$E$9=2,"",INDIRECT('STRG-Indizes'!$B$3&"Z"&'STRG-Indizes'!$B57&"S"&'STRG-Indizes'!G$5,FALSE)) -> 249 | H58: =IF('STRG-Merkmal'!$E$9=2,"",INDIRECT('STRG-Indizes'!$B$3&"Z"&'STRG-Indizes'!$B57&"S"&'STRG-Indizes'!H$5,FALSE)) -> 209 | I58: =IF('STRG-Merkmal'!$E$9=2,"",INDIRECT('STRG-Indizes'!$B$3&"Z"&'STRG-Indizes'!$B57&"S"&'STRG-Indizes'!I$5,FALSE)) -> 251 | J58: =IF('STRG-Merkmal'!$E$9=2,"",INDIRECT('STRG-Indizes'!$B$3&"Z"&'STRG-Indizes'!$B57&"S"&'STRG-Indizes'!J$5,FALSE)) -> 299 | K58: =IF('STRG-Merkmal'!$E$9=2,"",INDIRECT('STRG-Indizes'!$B$3&"Z"&'STRG-Indizes'!$B57&"S"&'STRG-Indizes'!K$5,FALSE)) -> 509 | L58: =IF('STRG-Merkmal'!$E$9=2,"",INDIRECT('STRG-Indizes'!$B$3&"Z"&'STRG-Indizes'!$B57&"S"&'STRG-Indizes'!L$5,FALSE)) -> 326 | M58: =IF('STRG-Merkmal'!$E$9=2,"",INDIRECT('STRG-Indizes'!$B$3&"Z"&'STRG-Indizes'!$B57&"S"&'STRG-Indizes'!M$5,FALSE)) -> 259 | N58: =INDIRECT('STRG-Indizes'!$B$3&"Z"&'STRG-Indizes'!$B57&"S"&'STRG-Indizes'!N$5,FALSE) -> 208 | O58: =INDIRECT('STRG-Indizes'!$B$3 & "Z" & 'STRG-Indizes'!$B57 & "S" & 'STRG-Indizes'!O$5, FALSE) -> 175 | P58: =INDIRECT('STRG-Indizes'!$B$3 & "Z" & 'STRG-Indizes'!$B57 & "S" & 'STRG-Indizes'!P$5, FALSE) -> 217 | Q58: =INDIRECT('STRG-Indizes'!$B$3 & "Z" & 'STRG-Indizes'!$B57 & "S" & 'STRG-Indizes'!Q$5, FALSE) -> 221 | R58: =INDIRECT('STRG-Indizes'!$B$3 & "Z" & 'STRG-Indizes'!$B57 & "S" & 'STRG-Indizes'!R$5, FALSE) -> 318 | S58: =INDIRECT('STRG-Indizes'!$B$3 & "Z" & 'STRG-Indizes'!$B57 & "S" & 'STRG-Indizes'!S$5, FALSE) -> 269 | T58: =INDIRECT('STRG-Indizes'!$B$3 & "Z" & 'STRG-Indizes'!$B57 & "S" & 'STRG-Indizes'!T$5, FALSE) -> 215 | U58: =INDIRECT('STRG-Indizes'!$B$3 & "Z" & 'STRG-Indizes'!$B57 & "S" & 'STRG-Indizes'!U$5, FALSE) -> 253 | V58: =INDIRECT('STRG-Indizes'!$B$3 & "Z" & 'STRG-Indizes'!$B57 & "S" & 'STRG-Indizes'!V$5, FALSE) -> 297 | W58: =INDIRECT('STRG-Indizes'!$B$3 & "Z" & 'STRG-Indizes'!$B57 & "S" & 'STRG-Indizes'!W$5, FALSE) -> 475 | X58: =INDIRECT('STRG-Indizes'!$B$3 & "Z" & 'STRG-Indizes'!$B57 & "S" & 'STRG-Indizes'!X$5, FALSE) -> 298 | Y58: =INDIRECT('STRG-Indizes'!$B$3 & "Z" & 'STRG-Indizes'!$B57 & "S" & 'STRG-Indizes'!Y$5, FALSE) -> 234 | Z58: =INDIRECT('STRG-Indizes'!$B$3 & "Z" & 'STRG-Indizes'!$B57 & "S" & 'STRG-Indizes'!Z$5, FALSE) -> 188 | AA58: =INDIRECT('STRG-Indizes'!$B$3 & "Z" & 'STRG-Indizes'!$B57 & "S" & 'STRG-Indizes'!AA$5, FALSE) -> 153 | AB58: =INDIRECT('STRG-Indizes'!$B$3 & "Z" & 'STRG-Indizes'!$B57 & "S" & 'STRG-Indizes'!AB$5, FALSE) -> 159 | AC58: =INDIRECT('STRG-Indizes'!$B$3 & "Z" & 'STRG-Indizes'!$B57 & "S" & 'STRG-Indizes'!AC$5, FALSE) -> 166 | AD58: =INDIRECT('STRG-Indizes'!$B$3 & "Z" & 'STRG-Indizes'!$B57 & "S" & 'STRG-Indizes'!AD$5, FALSE) -> 285 | AE58: =INDIRECT('STRG-Indizes'!$B$3 & "Z" & 'STRG-Indizes'!$B57 & "S" & 'STRG-Indizes'!AE$5, FALSE) -> 213 | AF58: =INDIRECT('STRG-Indizes'!$B$3 & "Z" & 'STRG-Indizes'!$B57 & "S" & 'STRG-Indizes'!AF$5, FALSE) -> 220 | AG58: =INDIRECT('STRG-Indizes'!$B$3 & "Z" & 'STRG-Indizes'!$B57 & "S" & 'STRG-Indizes'!AG$5, FALSE) -> 187 | AH58: =INDIRECT('STRG-Indizes'!$B$3 & "Z" & 'STRG-Indizes'!$B57 & "S" & 'STRG-Indizes'!AH$5, FALSE) -> 221 | AI58: =INDIRECT('STRG-Indizes'!$B$3 & "Z" & 'STRG-Indizes'!$B57 & "S" & 'STRG-Indizes'!AI$5, FALSE) -> 434 | AJ58: =INDIRECT('STRG-Indizes'!$B$3 & "Z" & 'STRG-Indizes'!$B57 & "S" & 'STRG-Indizes'!AJ$5, FALSE) -> 270
A59: JC Ostalbkreis | B59: Id | C59: =IF('STRG-Merkmal'!$E$9=2,"",INDIRECT('STRG-Indizes'!$B$3&"Z"&'STRG-Indizes'!$B58&"S"&'STRG-Indizes'!C$5,FALSE)) -> 119 | D59: =IF('STRG-Merkmal'!$E$9=2,"",INDIRECT('STRG-Indizes'!$B$3&"Z"&'STRG-Indizes'!$B58&"S"&'STRG-Indizes'!D$5,FALSE)) -> 140 | E59: =IF('STRG-Merkmal'!$E$9=2,"",INDIRECT('STRG-Indizes'!$B$3&"Z"&'STRG-Indizes'!$B58&"S"&'STRG-Indizes'!E$5,FALSE)) -> 161 | F59: =IF('STRG-Merkmal'!$E$9=2,"",INDIRECT('STRG-Indizes'!$B$3&"Z"&'STRG-Indizes'!$B58&"S"&'STRG-Indizes'!F$5,FALSE)) -> 204 | G59: =IF('STRG-Merkmal'!$E$9=2,"",INDIRECT('STRG-Indizes'!$B$3&"Z"&'STRG-Indizes'!$B58&"S"&'STRG-Indizes'!G$5,FALSE)) -> 178 | H59: =IF('STRG-Merkmal'!$E$9=2,"",INDIRECT('STRG-Indizes'!$B$3&"Z"&'STRG-Indizes'!$B58&"S"&'STRG-Indizes'!H$5,FALSE)) -> 125 | I59: =IF('STRG-Merkmal'!$E$9=2,"",INDIRECT('STRG-Indizes'!$B$3&"Z"&'STRG-Indizes'!$B58&"S"&'STRG-Indizes'!I$5,FALSE)) -> 203 | J59: =IF('STRG-Merkmal'!$E$9=2,"",INDIRECT('STRG-Indizes'!$B$3&"Z"&'STRG-Indizes'!$B58&"S"&'STRG-Indizes'!J$5,FALSE)) -> 210 | K59: =IF('STRG-Merkmal'!$E$9=2,"",INDIRECT('STRG-Indizes'!$B$3&"Z"&'STRG-Indizes'!$B58&"S"&'STRG-Indizes'!K$5,FALSE)) -> 361 | L59: =IF('STRG-Merkmal'!$E$9=2,"",INDIRECT('STRG-Indizes'!$B$3&"Z"&'STRG-Indizes'!$B58&"S"&'STRG-Indizes'!L$5,FALSE)) -> 220 | M59: =IF('STRG-Merkmal'!$E$9=2,"",INDIRECT('STRG-Indizes'!$B$3&"Z"&'STRG-Indizes'!$B58&"S"&'STRG-Indizes'!M$5,FALSE)) -> 165 | N59: =INDIRECT('STRG-Indizes'!$B$3&"Z"&'STRG-Indizes'!$B58&"S"&'STRG-Indizes'!N$5,FALSE) -> 152 | O59: =INDIRECT('STRG-Indizes'!$B$3 & "Z" & 'STRG-Indizes'!$B58 & "S" & 'STRG-Indizes'!O$5, FALSE) -> 134 | P59: =INDIRECT('STRG-Indizes'!$B$3 & "Z" & 'STRG-Indizes'!$B58 & "S" & 'STRG-Indizes'!P$5, FALSE) -> 134 | Q59: =INDIRECT('STRG-Indizes'!$B$3 & "Z" & 'STRG-Indizes'!$B58 & "S" & 'STRG-Indizes'!Q$5, FALSE) -> 144 | R59: =INDIRECT('STRG-Indizes'!$B$3 & "Z" & 'STRG-Indizes'!$B58 & "S" & 'STRG-Indizes'!R$5, FALSE) -> 165 | S59: =INDIRECT('STRG-Indizes'!$B$3 & "Z" & 'STRG-Indizes'!$B58 & "S" & 'STRG-Indizes'!S$5, FALSE) -> 187 | T59: =INDIRECT('STRG-Indizes'!$B$3 & "Z" & 'STRG-Indizes'!$B58 & "S" & 'STRG-Indizes'!T$5, FALSE) -> 165 | U59: =INDIRECT('STRG-Indizes'!$B$3 & "Z" & 'STRG-Indizes'!$B58 & "S" & 'STRG-Indizes'!U$5, FALSE) -> 178 | V59: =INDIRECT('STRG-Indizes'!$B$3 & "Z" & 'STRG-Indizes'!$B58 & "S" & 'STRG-Indizes'!V$5, FALSE) -> 146 | W59: =INDIRECT('STRG-Indizes'!$B$3 & "Z" & 'STRG-Indizes'!$B58 & "S" & 'STRG-Indizes'!W$5, FALSE) -> 283 | X59: =INDIRECT('STRG-Indizes'!$B$3 & "Z" & 'STRG-Indizes'!$B58 & "S" & 'STRG-Indizes'!X$5, FALSE) -> 174 | Y59: =INDIRECT('STRG-Indizes'!$B$3 & "Z" & 'STRG-Indizes'!$B58 & "S" & 'STRG-Indizes'!Y$5, FALSE) -> 174 | Z59: =INDIRECT('STRG-Indizes'!$B$3 & "Z" & 'STRG-Indizes'!$B58 & "S" & 'STRG-Indizes'!Z$5, FALSE) -> 134 | AA59: =INDIRECT('STRG-Indizes'!$B$3 & "Z" & 'STRG-Indizes'!$B58 & "S" & 'STRG-Indizes'!AA$5, FALSE) -> 102 | AB59: =INDIRECT('STRG-Indizes'!$B$3 & "Z" & 'STRG-Indizes'!$B58 & "S" & 'STRG-Indizes'!AB$5, FALSE) -> 119 | AC59: =INDIRECT('STRG-Indizes'!$B$3 & "Z" & 'STRG-Indizes'!$B58 & "S" & 'STRG-Indizes'!AC$5, FALSE) -> 136 | AD59: =INDIRECT('STRG-Indizes'!$B$3 & "Z" & 'STRG-Indizes'!$B58 & "S" & 'STRG-Indizes'!AD$5, FALSE) -> 138 | AE59: =INDIRECT('STRG-Indizes'!$B$3 & "Z" & 'STRG-Indizes'!$B58 & "S" & 'STRG-Indizes'!AE$5, FALSE) -> 142 | AF59: =INDIRECT('STRG-Indizes'!$B$3 & "Z" & 'STRG-Indizes'!$B58 & "S" & 'STRG-Indizes'!AF$5, FALSE) -> 117 | AG59: =INDIRECT('STRG-Indizes'!$B$3 & "Z" & 'STRG-Indizes'!$B58 & "S" & 'STRG-Indizes'!AG$5, FALSE) -> 106 | AH59: =INDIRECT('STRG-Indizes'!$B$3 & "Z" & 'STRG-Indizes'!$B58 & "S" & 'STRG-Indizes'!AH$5, FALSE) -> 160 | AI59: =INDIRECT('STRG-Indizes'!$B$3 & "Z" & 'STRG-Indizes'!$B58 & "S" & 'STRG-Indizes'!AI$5, FALSE) -> 267 | AJ59: =INDIRECT('STRG-Indizes'!$B$3 & "Z" & 'STRG-Indizes'!$B58 & "S" & 'STRG-Indizes'!AJ$5, FALSE) -> 182
A60: JC Pforzheim, Stadt | B60: IIb | C60: =IF('STRG-Merkmal'!$E$9=2,"",INDIRECT('STRG-Indizes'!$B$3&"Z"&'STRG-Indizes'!$B59&"S"&'STRG-Indizes'!C$5,FALSE)) -> 86 | D60: =IF('STRG-Merkmal'!$E$9=2,"",INDIRECT('STRG-Indizes'!$B$3&"Z"&'STRG-Indizes'!$B59&"S"&'STRG-Indizes'!D$5,FALSE)) -> 119 | E60: =IF('STRG-Merkmal'!$E$9=2,"",INDIRECT('STRG-Indizes'!$B$3&"Z"&'STRG-Indizes'!$B59&"S"&'STRG-Indizes'!E$5,FALSE)) -> 146 | F60: =IF('STRG-Merkmal'!$E$9=2,"",INDIRECT('STRG-Indizes'!$B$3&"Z"&'STRG-Indizes'!$B59&"S"&'STRG-Indizes'!F$5,FALSE)) -> 142 | G60: =IF('STRG-Merkmal'!$E$9=2,"",INDIRECT('STRG-Indizes'!$B$3&"Z"&'STRG-Indizes'!$B59&"S"&'STRG-Indizes'!G$5,FALSE)) -> 156 | H60: =IF('STRG-Merkmal'!$E$9=2,"",INDIRECT('STRG-Indizes'!$B$3&"Z"&'STRG-Indizes'!$B59&"S"&'STRG-Indizes'!H$5,FALSE)) -> 122 | I60: =IF('STRG-Merkmal'!$E$9=2,"",INDIRECT('STRG-Indizes'!$B$3&"Z"&'STRG-Indizes'!$B59&"S"&'STRG-Indizes'!I$5,FALSE)) -> 166 | J60: =IF('STRG-Merkmal'!$E$9=2,"",INDIRECT('STRG-Indizes'!$B$3&"Z"&'STRG-Indizes'!$B59&"S"&'STRG-Indizes'!J$5,FALSE)) -> 151 | K60: =IF('STRG-Merkmal'!$E$9=2,"",INDIRECT('STRG-Indizes'!$B$3&"Z"&'STRG-Indizes'!$B59&"S"&'STRG-Indizes'!K$5,FALSE)) -> 303 | L60: =IF('STRG-Merkmal'!$E$9=2,"",INDIRECT('STRG-Indizes'!$B$3&"Z"&'STRG-Indizes'!$B59&"S"&'STRG-Indizes'!L$5,FALSE)) -> 191 | M60: =IF('STRG-Merkmal'!$E$9=2,"",INDIRECT('STRG-Indizes'!$B$3&"Z"&'STRG-Indizes'!$B59&"S"&'STRG-Indizes'!M$5,FALSE)) -> 195 | N60: =INDIRECT('STRG-Indizes'!$B$3&"Z"&'STRG-Indizes'!$B59&"S"&'STRG-Indizes'!N$5,FALSE) -> 122 | O60: =INDIRECT('STRG-Indizes'!$B$3 & "Z" & 'STRG-Indizes'!$B59 & "S" & 'STRG-Indizes'!O$5, FALSE) -> 97 | P60: =INDIRECT('STRG-Indizes'!$B$3 & "Z" & 'STRG-Indizes'!$B59 & "S" & 'STRG-Indizes'!P$5, FALSE) -> 145 | Q60: =INDIRECT('STRG-Indizes'!$B$3 & "Z" & 'STRG-Indizes'!$B59 & "S" & 'STRG-Indizes'!Q$5, FALSE) -> 176 | R60: =INDIRECT('STRG-Indizes'!$B$3 & "Z" & 'STRG-Indizes'!$B59 & "S" & 'STRG-Indizes'!R$5, FALSE) -> 145 | S60: =INDIRECT('STRG-Indizes'!$B$3 & "Z" & 'STRG-Indizes'!$B59 & "S" & 'STRG-Indizes'!S$5, FALSE) -> 148 | T60: =INDIRECT('STRG-Indizes'!$B$3 & "Z" & 'STRG-Indizes'!$B59 & "S" & 'STRG-Indizes'!T$5, FALSE) -> 124 | U60: =INDIRECT('STRG-Indizes'!$B$3 & "Z" & 'STRG-Indizes'!$B59 & "S" & 'STRG-Indizes'!U$5, FALSE) -> 147 | V60: =INDIRECT('STRG-Indizes'!$B$3 & "Z" & 'STRG-Indizes'!$B59 & "S" & 'STRG-Indizes'!V$5, FALSE) -> 127 | W60: =INDIRECT('STRG-Indizes'!$B$3 & "Z" & 'STRG-Indizes'!$B59 & "S" & 'STRG-Indizes'!W$5, FALSE) -> 261 | X60: =INDIRECT('STRG-Indizes'!$B$3 & "Z" & 'STRG-Indizes'!$B59 & "S" & 'STRG-Indizes'!X$5, FALSE) -> 183 | Y60: =INDIRECT('STRG-Indizes'!$B$3 & "Z" & 'STRG-Indizes'!$B59 & "S" & 'STRG-Indizes'!Y$5, FALSE) -> 130 | Z60: =INDIRECT('STRG-Indizes'!$B$3 & "Z" & 'STRG-Indizes'!$B59 & "S" & 'STRG-Indizes'!Z$5, FALSE) -> 99 | AA60: =INDIRECT('STRG-Indizes'!$B$3 & "Z" & 'STRG-Indizes'!$B59 & "S" & 'STRG-Indizes'!AA$5, FALSE) -> 108 | AB60: =INDIRECT('STRG-Indizes'!$B$3 & "Z" & 'STRG-Indizes'!$B59 & "S" & 'STRG-Indizes'!AB$5, FALSE) -> 121 | AC60: =INDIRECT('STRG-Indizes'!$B$3 & "Z" & 'STRG-Indizes'!$B59 & "S" & 'STRG-Indizes'!AC$5, FALSE) -> 128 | AD60: =INDIRECT('STRG-Indizes'!$B$3 & "Z" & 'STRG-Indizes'!$B59 & "S" & 'STRG-Indizes'!AD$5, FALSE) -> 126 | AE60: =INDIRECT('STRG-Indizes'!$B$3 & "Z" & 'STRG-Indizes'!$B59 & "S" & 'STRG-Indizes'!AE$5, FALSE) -> 136 | AF60: =INDIRECT('STRG-Indizes'!$B$3 & "Z" & 'STRG-Indizes'!$B59 & "S" & 'STRG-Indizes'!AF$5, FALSE) -> 119 | AG60: =INDIRECT('STRG-Indizes'!$B$3 & "Z" & 'STRG-Indizes'!$B59 & "S" & 'STRG-Indizes'!AG$5, FALSE) -> 112 | AH60: =INDIRECT('STRG-Indizes'!$B$3 & "Z" & 'STRG-Indizes'!$B59 & "S" & 'STRG-Indizes'!AH$5, FALSE) -> 147 | AI60: =INDIRECT('STRG-Indizes'!$B$3 & "Z" & 'STRG-Indizes'!$B59 & "S" & 'STRG-Indizes'!AI$5, FALSE) -> 259 | AJ60: =INDIRECT('STRG-Indizes'!$B$3 & "Z" & 'STRG-Indizes'!$B59 & "S" & 'STRG-Indizes'!AJ$5, FALSE) -> 157
A61: JC Rastatt | B61: Id | C61: =IF('STRG-Merkmal'!$E$9=2,"",INDIRECT('STRG-Indizes'!$B$3&"Z"&'STRG-Indizes'!$B60&"S"&'STRG-Indizes'!C$5,FALSE)) -> 82 | D61: =IF('STRG-Merkmal'!$E$9=2,"",INDIRECT('STRG-Indizes'!$B$3&"Z"&'STRG-Indizes'!$B60&"S"&'STRG-Indizes'!D$5,FALSE)) -> 138 | E61: =IF('STRG-Merkmal'!$E$9=2,"",INDIRECT('STRG-Indizes'!$B$3&"Z"&'STRG-Indizes'!$B60&"S"&'STRG-Indizes'!E$5,FALSE)) -> 158 | F61: =IF('STRG-Merkmal'!$E$9=2,"",INDIRECT('STRG-Indizes'!$B$3&"Z"&'STRG-Indizes'!$B60&"S"&'STRG-Indizes'!F$5,FALSE)) -> 170 | G61: =IF('STRG-Merkmal'!$E$9=2,"",INDIRECT('STRG-Indizes'!$B$3&"Z"&'STRG-Indizes'!$B60&"S"&'STRG-Indizes'!G$5,FALSE)) -> 149 | H61: =IF('STRG-Merkmal'!$E$9=2,"",INDIRECT('STRG-Indizes'!$B$3&"Z"&'STRG-Indizes'!$B60&"S"&'STRG-Indizes'!H$5,FALSE)) -> 101 | I61: =IF('STRG-Merkmal'!$E$9=2,"",INDIRECT('STRG-Indizes'!$B$3&"Z"&'STRG-Indizes'!$B60&"S"&'STRG-Indizes'!I$5,FALSE)) -> 137 | J61: =IF('STRG-Merkmal'!$E$9=2,"",INDIRECT('STRG-Indizes'!$B$3&"Z"&'STRG-Indizes'!$B60&"S"&'STRG-Indizes'!J$5,FALSE)) -> 192 | K61: =IF('STRG-Merkmal'!$E$9=2,"",INDIRECT('STRG-Indizes'!$B$3&"Z"&'STRG-Indizes'!$B60&"S"&'STRG-Indizes'!K$5,FALSE)) -> 247 | L61: =IF('STRG-Merkmal'!$E$9=2,"",INDIRECT('STRG-Indizes'!$B$3&"Z"&'STRG-Indizes'!$B60&"S"&'STRG-Indizes'!L$5,FALSE)) -> 144 | M61: =IF('STRG-Merkmal'!$E$9=2,"",INDIRECT('STRG-Indizes'!$B$3&"Z"&'STRG-Indizes'!$B60&"S"&'STRG-Indizes'!M$5,FALSE)) -> 141 | N61: =INDIRECT('STRG-Indizes'!$B$3&"Z"&'STRG-Indizes'!$B60&"S"&'STRG-Indizes'!N$5,FALSE) -> 107 | O61: =INDIRECT('STRG-Indizes'!$B$3 & "Z" & 'STRG-Indizes'!$B60 & "S" & 'STRG-Indizes'!O$5, FALSE) -> 88 | P61: =INDIRECT('STRG-Indizes'!$B$3 & "Z" & 'STRG-Indizes'!$B60 & "S" & 'STRG-Indizes'!P$5, FALSE) -> 151 | Q61: =INDIRECT('STRG-Indizes'!$B$3 & "Z" & 'STRG-Indizes'!$B60 & "S" & 'STRG-Indizes'!Q$5, FALSE) -> 142 | R61: =INDIRECT('STRG-Indizes'!$B$3 & "Z" & 'STRG-Indizes'!$B60 & "S" & 'STRG-Indizes'!R$5, FALSE) -> 135 | S61: =INDIRECT('STRG-Indizes'!$B$3 & "Z" & 'STRG-Indizes'!$B60 & "S" & 'STRG-Indizes'!S$5, FALSE) -> 124 | T61: =INDIRECT('STRG-Indizes'!$B$3 & "Z" & 'STRG-Indizes'!$B60 & "S" & 'STRG-Indizes'!T$5, FALSE) -> 122 | U61: =INDIRECT('STRG-Indizes'!$B$3 & "Z" & 'STRG-Indizes'!$B60 & "S" & 'STRG-Indizes'!U$5, FALSE) -> 146 | V61: =INDIRECT('STRG-Indizes'!$B$3 & "Z" & 'STRG-Indizes'!$B60 & "S" & 'STRG-Indizes'!V$5, FALSE) -> 174 | W61: =INDIRECT('STRG-Indizes'!$B$3 & "Z" & 'STRG-Indizes'!$B60 & "S" & 'STRG-Indizes'!W$5, FALSE) -> 222 | X61: =INDIRECT('STRG-Indizes'!$B$3 & "Z" & 'STRG-Indizes'!$B60 & "S" & 'STRG-Indizes'!X$5, FALSE) -> 131 | Y61: =INDIRECT('STRG-Indizes'!$B$3 & "Z" & 'STRG-Indizes'!$B60 & "S" & 'STRG-Indizes'!Y$5, FALSE) -> 126 | Z61: =INDIRECT('STRG-Indizes'!$B$3 & "Z" & 'STRG-Indizes'!$B60 & "S" & 'STRG-Indizes'!Z$5, FALSE) -> 77 | AA61: =INDIRECT('STRG-Indizes'!$B$3 & "Z" & 'STRG-Indizes'!$B60 & "S" & 'STRG-Indizes'!AA$5, FALSE) -> 86 | AB61: =INDIRECT('STRG-Indizes'!$B$3 & "Z" & 'STRG-Indizes'!$B60 & "S" & 'STRG-Indizes'!AB$5, FALSE) -> 129 | AC61: =INDIRECT('STRG-Indizes'!$B$3 & "Z" & 'STRG-Indizes'!$B60 & "S" & 'STRG-Indizes'!AC$5, FALSE) -> 134 | AD61: =INDIRECT('STRG-Indizes'!$B$3 & "Z" & 'STRG-Indizes'!$B60 & "S" & 'STRG-Indizes'!AD$5, FALSE) -> 126 | AE61: =INDIRECT('STRG-Indizes'!$B$3 & "Z" & 'STRG-Indizes'!$B60 & "S" & 'STRG-Indizes'!AE$5, FALSE) -> 110 | AF61: =INDIRECT('STRG-Indizes'!$B$3 & "Z" & 'STRG-Indizes'!$B60 & "S" & 'STRG-Indizes'!AF$5, FALSE) -> 119 | AG61: =INDIRECT('STRG-Indizes'!$B$3 & "Z" & 'STRG-Indizes'!$B60 & "S" & 'STRG-Indizes'!AG$5, FALSE) -> 139 | AH61: =INDIRECT('STRG-Indizes'!$B$3 & "Z" & 'STRG-Indizes'!$B60 & "S" & 'STRG-Indizes'!AH$5, FALSE) -> 152 | AI61: =INDIRECT('STRG-Indizes'!$B$3 & "Z" & 'STRG-Indizes'!$B60 & "S" & 'STRG-Indizes'!AI$5, FALSE) -> 228 | AJ61: =INDIRECT('STRG-Indizes'!$B$3 & "Z" & 'STRG-Indizes'!$B60 & "S" & 'STRG-Indizes'!AJ$5, FALSE) -> 125
A62: JC Ravensburg | B62: Ic | C62: =IF('STRG-Merkmal'!$E$9=2,"",INDIRECT('STRG-Indizes'!$B$3&"Z"&'STRG-Indizes'!$B61&"S"&'STRG-Indizes'!C$5,FALSE)) -> 81 | D62: =IF('STRG-Merkmal'!$E$9=2,"",INDIRECT('STRG-Indizes'!$B$3&"Z"&'STRG-Indizes'!$B61&"S"&'STRG-Indizes'!D$5,FALSE)) -> 98 | E62: =IF('STRG-Merkmal'!$E$9=2,"",INDIRECT('STRG-Indizes'!$B$3&"Z"&'STRG-Indizes'!$B61&"S"&'STRG-Indizes'!E$5,FALSE)) -> 129 | F62: =IF('STRG-Merkmal'!$E$9=2,"",INDIRECT('STRG-Indizes'!$B$3&"Z"&'STRG-Indizes'!$B61&"S"&'STRG-Indizes'!F$5,FALSE)) -> 144 | G62: =IF('STRG-Merkmal'!$E$9=2,"",INDIRECT('STRG-Indizes'!$B$3&"Z"&'STRG-Indizes'!$B61&"S"&'STRG-Indizes'!G$5,FALSE)) -> 125 | H62: =IF('STRG-Merkmal'!$E$9=2,"",INDIRECT('STRG-Indizes'!$B$3&"Z"&'STRG-Indizes'!$B61&"S"&'STRG-Indizes'!H$5,FALSE)) -> 125 | I62: =IF('STRG-Merkmal'!$E$9=2,"",INDIRECT('STRG-Indizes'!$B$3&"Z"&'STRG-Indizes'!$B61&"S"&'STRG-Indizes'!I$5,FALSE)) -> 126 | J62: =IF('STRG-Merkmal'!$E$9=2,"",INDIRECT('STRG-Indizes'!$B$3&"Z"&'STRG-Indizes'!$B61&"S"&'STRG-Indizes'!J$5,FALSE)) -> 150 | K62: =IF('STRG-Merkmal'!$E$9=2,"",INDIRECT('STRG-Indizes'!$B$3&"Z"&'STRG-Indizes'!$B61&"S"&'STRG-Indizes'!K$5,FALSE)) -> 229 | L62: =IF('STRG-Merkmal'!$E$9=2,"",INDIRECT('STRG-Indizes'!$B$3&"Z"&'STRG-Indizes'!$B61&"S"&'STRG-Indizes'!L$5,FALSE)) -> 123 | M62: =IF('STRG-Merkmal'!$E$9=2,"",INDIRECT('STRG-Indizes'!$B$3&"Z"&'STRG-Indizes'!$B61&"S"&'STRG-Indizes'!M$5,FALSE)) -> 122 | N62: =INDIRECT('STRG-Indizes'!$B$3&"Z"&'STRG-Indizes'!$B61&"S"&'STRG-Indizes'!N$5,FALSE) -> 111 | O62: =INDIRECT('STRG-Indizes'!$B$3 & "Z" & 'STRG-Indizes'!$B61 & "S" & 'STRG-Indizes'!O$5, FALSE) -> 116 | P62: =INDIRECT('STRG-Indizes'!$B$3 & "Z" & 'STRG-Indizes'!$B61 & "S" & 'STRG-Indizes'!P$5, FALSE) -> 111 | Q62: =INDIRECT('STRG-Indizes'!$B$3 & "Z" & 'STRG-Indizes'!$B61 & "S" & 'STRG-Indizes'!Q$5, FALSE) -> 142 | R62: =INDIRECT('STRG-Indizes'!$B$3 & "Z" & 'STRG-Indizes'!$B61 & "S" & 'STRG-Indizes'!R$5, FALSE) -> 127 | S62: =INDIRECT('STRG-Indizes'!$B$3 & "Z" & 'STRG-Indizes'!$B61 & "S" & 'STRG-Indizes'!S$5, FALSE) -> 130 | T62: =INDIRECT('STRG-Indizes'!$B$3 & "Z" & 'STRG-Indizes'!$B61 & "S" & 'STRG-Indizes'!T$5, FALSE) -> . | U62: =INDIRECT('STRG-Indizes'!$B$3 & "Z" & 'STRG-Indizes'!$B61 & "S" & 'STRG-Indizes'!U$5, FALSE) -> 131 | V62: =INDIRECT('STRG-Indizes'!$B$3 & "Z" & 'STRG-Indizes'!$B61 & "S" & 'STRG-Indizes'!V$5, FALSE) -> 159 | W62: =INDIRECT('STRG-Indizes'!$B$3 & "Z" & 'STRG-Indizes'!$B61 & "S" & 'STRG-Indizes'!W$5, FALSE) -> 284 | X62: =INDIRECT('STRG-Indizes'!$B$3 & "Z" & 'STRG-Indizes'!$B61 & "S" & 'STRG-Indizes'!X$5, FALSE) -> 172 | Y62: =INDIRECT('STRG-Indizes'!$B$3 & "Z" & 'STRG-Indizes'!$B61 & "S" & 'STRG-Indizes'!Y$5, FALSE) -> 114 | Z62: =INDIRECT('STRG-Indizes'!$B$3 & "Z" & 'STRG-Indizes'!$B61 & "S" & 'STRG-Indizes'!Z$5, FALSE) -> 96 | AA62: =INDIRECT('STRG-Indizes'!$B$3 & "Z" & 'STRG-Indizes'!$B61 & "S" & 'STRG-Indizes'!AA$5, FALSE) -> 91 | AB62: =INDIRECT('STRG-Indizes'!$B$3 & "Z" & 'STRG-Indizes'!$B61 & "S" & 'STRG-Indizes'!AB$5, FALSE) -> 101 | AC62: =INDIRECT('STRG-Indizes'!$B$3 & "Z" & 'STRG-Indizes'!$B61 & "S" & 'STRG-Indizes'!AC$5, FALSE) -> 108 | AD62: =INDIRECT('STRG-Indizes'!$B$3 & "Z" & 'STRG-Indizes'!$B61 & "S" & 'STRG-Indizes'!AD$5, FALSE) -> 156 | AE62: =INDIRECT('STRG-Indizes'!$B$3 & "Z" & 'STRG-Indizes'!$B61 & "S" & 'STRG-Indizes'!AE$5, FALSE) -> 106 | AF62: =INDIRECT('STRG-Indizes'!$B$3 & "Z" & 'STRG-Indizes'!$B61 & "S" & 'STRG-Indizes'!AF$5, FALSE) -> 115 | AG62: =INDIRECT('STRG-Indizes'!$B$3 & "Z" & 'STRG-Indizes'!$B61 & "S" & 'STRG-Indizes'!AG$5, FALSE) -> 95 | AH62: =INDIRECT('STRG-Indizes'!$B$3 & "Z" & 'STRG-Indizes'!$B61 & "S" & 'STRG-Indizes'!AH$5, FALSE) -> 128 | AI62: =INDIRECT('STRG-Indizes'!$B$3 & "Z" & 'STRG-Indizes'!$B61 & "S" & 'STRG-Indizes'!AI$5, FALSE) -> 280 | AJ62: =INDIRECT('STRG-Indizes'!$B$3 & "Z" & 'STRG-Indizes'!$B61 & "S" & 'STRG-Indizes'!AJ$5, FALSE) -> 161
A63: JC Rems-Murr-Kreis | B63: Id | C63: =IF('STRG-Merkmal'!$E$9=2,"",INDIRECT('STRG-Indizes'!$B$3&"Z"&'STRG-Indizes'!$B62&"S"&'STRG-Indizes'!C$5,FALSE)) -> 174 | D63: =IF('STRG-Merkmal'!$E$9=2,"",INDIRECT('STRG-Indizes'!$B$3&"Z"&'STRG-Indizes'!$B62&"S"&'STRG-Indizes'!D$5,FALSE)) -> 277 | E63: =IF('STRG-Merkmal'!$E$9=2,"",INDIRECT('STRG-Indizes'!$B$3&"Z"&'STRG-Indizes'!$B62&"S"&'STRG-Indizes'!E$5,FALSE)) -> 249 | F63: =IF('STRG-Merkmal'!$E$9=2,"",INDIRECT('STRG-Indizes'!$B$3&"Z"&'STRG-Indizes'!$B62&"S"&'STRG-Indizes'!F$5,FALSE)) -> 302 | G63: =IF('STRG-Merkmal'!$E$9=2,"",INDIRECT('STRG-Indizes'!$B$3&"Z"&'STRG-Indizes'!$B62&"S"&'STRG-Indizes'!G$5,FALSE)) -> 287 | H63: =IF('STRG-Merkmal'!$E$9=2,"",INDIRECT('STRG-Indizes'!$B$3&"Z"&'STRG-Indizes'!$B62&"S"&'STRG-Indizes'!H$5,FALSE)) -> 218 | I63: =IF('STRG-Merkmal'!$E$9=2,"",INDIRECT('STRG-Indizes'!$B$3&"Z"&'STRG-Indizes'!$B62&"S"&'STRG-Indizes'!I$5,FALSE)) -> 296 | J63: =IF('STRG-Merkmal'!$E$9=2,"",INDIRECT('STRG-Indizes'!$B$3&"Z"&'STRG-Indizes'!$B62&"S"&'STRG-Indizes'!J$5,FALSE)) -> 340 | K63: =IF('STRG-Merkmal'!$E$9=2,"",INDIRECT('STRG-Indizes'!$B$3&"Z"&'STRG-Indizes'!$B62&"S"&'STRG-Indizes'!K$5,FALSE)) -> 608 | L63: =IF('STRG-Merkmal'!$E$9=2,"",INDIRECT('STRG-Indizes'!$B$3&"Z"&'STRG-Indizes'!$B62&"S"&'STRG-Indizes'!L$5,FALSE)) -> 412 | M63: =IF('STRG-Merkmal'!$E$9=2,"",INDIRECT('STRG-Indizes'!$B$3&"Z"&'STRG-Indizes'!$B62&"S"&'STRG-Indizes'!M$5,FALSE)) -> 352 | N63: =INDIRECT('STRG-Indizes'!$B$3&"Z"&'STRG-Indizes'!$B62&"S"&'STRG-Indizes'!N$5,FALSE) -> 225 | O63: =INDIRECT('STRG-Indizes'!$B$3 & "Z" & 'STRG-Indizes'!$B62 & "S" & 'STRG-Indizes'!O$5, FALSE) -> 208 | P63: =INDIRECT('STRG-Indizes'!$B$3 & "Z" & 'STRG-Indizes'!$B62 & "S" & 'STRG-Indizes'!P$5, FALSE) -> 288 | Q63: =INDIRECT('STRG-Indizes'!$B$3 & "Z" & 'STRG-Indizes'!$B62 & "S" & 'STRG-Indizes'!Q$5, FALSE) -> 287 | R63: =INDIRECT('STRG-Indizes'!$B$3 & "Z" & 'STRG-Indizes'!$B62 & "S" & 'STRG-Indizes'!R$5, FALSE) -> 292 | S63: =INDIRECT('STRG-Indizes'!$B$3 & "Z" & 'STRG-Indizes'!$B62 & "S" & 'STRG-Indizes'!S$5, FALSE) -> 338 | T63: =INDIRECT('STRG-Indizes'!$B$3 & "Z" & 'STRG-Indizes'!$B62 & "S" & 'STRG-Indizes'!T$5, FALSE) -> 289 | U63: =INDIRECT('STRG-Indizes'!$B$3 & "Z" & 'STRG-Indizes'!$B62 & "S" & 'STRG-Indizes'!U$5, FALSE) -> 384 | V63: =INDIRECT('STRG-Indizes'!$B$3 & "Z" & 'STRG-Indizes'!$B62 & "S" & 'STRG-Indizes'!V$5, FALSE) -> 355 | W63: =INDIRECT('STRG-Indizes'!$B$3 & "Z" & 'STRG-Indizes'!$B62 & "S" & 'STRG-Indizes'!W$5, FALSE) -> 584 | X63: =INDIRECT('STRG-Indizes'!$B$3 & "Z" & 'STRG-Indizes'!$B62 & "S" & 'STRG-Indizes'!X$5, FALSE) -> 363 | Y63: =INDIRECT('STRG-Indizes'!$B$3 & "Z" & 'STRG-Indizes'!$B62 & "S" & 'STRG-Indizes'!Y$5, FALSE) -> 287 | Z63: =INDIRECT('STRG-Indizes'!$B$3 & "Z" & 'STRG-Indizes'!$B62 & "S" & 'STRG-Indizes'!Z$5, FALSE) -> 240 | AA63: =INDIRECT('STRG-Indizes'!$B$3 & "Z" & 'STRG-Indizes'!$B62 & "S" & 'STRG-Indizes'!AA$5, FALSE) -> 229 | AB63: =INDIRECT('STRG-Indizes'!$B$3 & "Z" & 'STRG-Indizes'!$B62 & "S" & 'STRG-Indizes'!AB$5, FALSE) -> 300 | AC63: =INDIRECT('STRG-Indizes'!$B$3 & "Z" & 'STRG-Indizes'!$B62 & "S" & 'STRG-Indizes'!AC$5, FALSE) -> 269 | AD63: =INDIRECT('STRG-Indizes'!$B$3 & "Z" & 'STRG-Indizes'!$B62 & "S" & 'STRG-Indizes'!AD$5, FALSE) -> 269 | AE63: =INDIRECT('STRG-Indizes'!$B$3 & "Z" & 'STRG-Indizes'!$B62 & "S" & 'STRG-Indizes'!AE$5, FALSE) -> 300 | AF63: =INDIRECT('STRG-Indizes'!$B$3 & "Z" & 'STRG-Indizes'!$B62 & "S" & 'STRG-Indizes'!AF$5, FALSE) -> 241 | AG63: =INDIRECT('STRG-Indizes'!$B$3 & "Z" & 'STRG-Indizes'!$B62 & "S" & 'STRG-Indizes'!AG$5, FALSE) -> 227 | AH63: =INDIRECT('STRG-Indizes'!$B$3 & "Z" & 'STRG-Indizes'!$B62 & "S" & 'STRG-Indizes'!AH$5, FALSE) -> 290 | AI63: =INDIRECT('STRG-Indizes'!$B$3 & "Z" & 'STRG-Indizes'!$B62 & "S" & 'STRG-Indizes'!AI$5, FALSE) -> 526 | AJ63: =INDIRECT('STRG-Indizes'!$B$3 & "Z" & 'STRG-Indizes'!$B62 & "S" & 'STRG-Indizes'!AJ$5, FALSE) -> 308
A64: JC Reutlingen | B64: Id | C64: =IF('STRG-Merkmal'!$E$9=2,"",INDIRECT('STRG-Indizes'!$B$3&"Z"&'STRG-Indizes'!$B63&"S"&'STRG-Indizes'!C$5,FALSE)) -> 106 | D64: =IF('STRG-Merkmal'!$E$9=2,"",INDIRECT('STRG-Indizes'!$B$3&"Z"&'STRG-Indizes'!$B63&"S"&'STRG-Indizes'!D$5,FALSE)) -> 127 | E64: =IF('STRG-Merkmal'!$E$9=2,"",INDIRECT('STRG-Indizes'!$B$3&"Z"&'STRG-Indizes'!$B63&"S"&'STRG-Indizes'!E$5,FALSE)) -> 161 | F64: =IF('STRG-Merkmal'!$E$9=2,"",INDIRECT('STRG-Indizes'!$B$3&"Z"&'STRG-Indizes'!$B63&"S"&'STRG-Indizes'!F$5,FALSE)) -> 204 | G64: =IF('STRG-Merkmal'!$E$9=2,"",INDIRECT('STRG-Indizes'!$B$3&"Z"&'STRG-Indizes'!$B63&"S"&'STRG-Indizes'!G$5,FALSE)) -> 185 | H64: =IF('STRG-Merkmal'!$E$9=2,"",INDIRECT('STRG-Indizes'!$B$3&"Z"&'STRG-Indizes'!$B63&"S"&'STRG-Indizes'!H$5,FALSE)) -> 173 | I64: =IF('STRG-Merkmal'!$E$9=2,"",INDIRECT('STRG-Indizes'!$B$3&"Z"&'STRG-Indizes'!$B63&"S"&'STRG-Indizes'!I$5,FALSE)) -> 219 | J64: =IF('STRG-Merkmal'!$E$9=2,"",INDIRECT('STRG-Indizes'!$B$3&"Z"&'STRG-Indizes'!$B63&"S"&'STRG-Indizes'!J$5,FALSE)) -> 230 | K64: =IF('STRG-Merkmal'!$E$9=2,"",INDIRECT('STRG-Indizes'!$B$3&"Z"&'STRG-Indizes'!$B63&"S"&'STRG-Indizes'!K$5,FALSE)) -> 376 | L64: =IF('STRG-Merkmal'!$E$9=2,"",INDIRECT('STRG-Indizes'!$B$3&"Z"&'STRG-Indizes'!$B63&"S"&'STRG-Indizes'!L$5,FALSE)) -> 225 | M64: =IF('STRG-Merkmal'!$E$9=2,"",INDIRECT('STRG-Indizes'!$B$3&"Z"&'STRG-Indizes'!$B63&"S"&'STRG-Indizes'!M$5,FALSE)) -> 166 | N64: =INDIRECT('STRG-Indizes'!$B$3&"Z"&'STRG-Indizes'!$B63&"S"&'STRG-Indizes'!N$5,FALSE) -> 172 | O64: =INDIRECT('STRG-Indizes'!$B$3 & "Z" & 'STRG-Indizes'!$B63 & "S" & 'STRG-Indizes'!O$5, FALSE) -> 124 | P64: =INDIRECT('STRG-Indizes'!$B$3 & "Z" & 'STRG-Indizes'!$B63 & "S" & 'STRG-Indizes'!P$5, FALSE) -> 173 | Q64: =INDIRECT('STRG-Indizes'!$B$3 & "Z" & 'STRG-Indizes'!$B63 & "S" & 'STRG-Indizes'!Q$5, FALSE) -> 157 | R64: =INDIRECT('STRG-Indizes'!$B$3 & "Z" & 'STRG-Indizes'!$B63 & "S" & 'STRG-Indizes'!R$5, FALSE) -> 185 | S64: =INDIRECT('STRG-Indizes'!$B$3 & "Z" & 'STRG-Indizes'!$B63 & "S" & 'STRG-Indizes'!S$5, FALSE) -> 214 | T64: =INDIRECT('STRG-Indizes'!$B$3 & "Z" & 'STRG-Indizes'!$B63 & "S" & 'STRG-Indizes'!T$5, FALSE) -> 176 | U64: =INDIRECT('STRG-Indizes'!$B$3 & "Z" & 'STRG-Indizes'!$B63 & "S" & 'STRG-Indizes'!U$5, FALSE) -> 230 | V64: =INDIRECT('STRG-Indizes'!$B$3 & "Z" & 'STRG-Indizes'!$B63 & "S" & 'STRG-Indizes'!V$5, FALSE) -> 247 | W64: =INDIRECT('STRG-Indizes'!$B$3 & "Z" & 'STRG-Indizes'!$B63 & "S" & 'STRG-Indizes'!W$5, FALSE) -> 374 | X64: =INDIRECT('STRG-Indizes'!$B$3 & "Z" & 'STRG-Indizes'!$B63 & "S" & 'STRG-Indizes'!X$5, FALSE) -> 230 | Y64: =INDIRECT('STRG-Indizes'!$B$3 & "Z" & 'STRG-Indizes'!$B63 & "S" & 'STRG-Indizes'!Y$5, FALSE) -> 195 | Z64: =INDIRECT('STRG-Indizes'!$B$3 & "Z" & 'STRG-Indizes'!$B63 & "S" & 'STRG-Indizes'!Z$5, FALSE) -> 172 | AA64: =INDIRECT('STRG-Indizes'!$B$3 & "Z" & 'STRG-Indizes'!$B63 & "S" & 'STRG-Indizes'!AA$5, FALSE) -> 115 | AB64: =INDIRECT('STRG-Indizes'!$B$3 & "Z" & 'STRG-Indizes'!$B63 & "S" & 'STRG-Indizes'!AB$5, FALSE) -> 158 | AC64: =INDIRECT('STRG-Indizes'!$B$3 & "Z" & 'STRG-Indizes'!$B63 & "S" & 'STRG-Indizes'!AC$5, FALSE) -> 173 | AD64: =INDIRECT('STRG-Indizes'!$B$3 & "Z" & 'STRG-Indizes'!$B63 & "S" & 'STRG-Indizes'!AD$5, FALSE) -> 209 | AE64: =INDIRECT('STRG-Indizes'!$B$3 & "Z" & 'STRG-Indizes'!$B63 & "S" & 'STRG-Indizes'!AE$5, FALSE) -> 191 | AF64: =INDIRECT('STRG-Indizes'!$B$3 & "Z" & 'STRG-Indizes'!$B63 & "S" & 'STRG-Indizes'!AF$5, FALSE) -> 176 | AG64: =INDIRECT('STRG-Indizes'!$B$3 & "Z" & 'STRG-Indizes'!$B63 & "S" & 'STRG-Indizes'!AG$5, FALSE) -> 185 | AH64: =INDIRECT('STRG-Indizes'!$B$3 & "Z" & 'STRG-Indizes'!$B63 & "S" & 'STRG-Indizes'!AH$5, FALSE) -> 216 | AI64: =INDIRECT('STRG-Indizes'!$B$3 & "Z" & 'STRG-Indizes'!$B63 & "S" & 'STRG-Indizes'!AI$5, FALSE) -> 379 | AJ64: =INDIRECT('STRG-Indizes'!$B$3 & "Z" & 'STRG-Indizes'!$B63 & "S" & 'STRG-Indizes'!AJ$5, FALSE) -> 233
A65: JC Rhein-Neckar-Kreis | B65: Id | C65: =IF('STRG-Merkmal'!$E$9=2,"",INDIRECT('STRG-Indizes'!$B$3&"Z"&'STRG-Indizes'!$B64&"S"&'STRG-Indizes'!C$5,FALSE)) -> 204 | D65: =IF('STRG-Merkmal'!$E$9=2,"",INDIRECT('STRG-Indizes'!$B$3&"Z"&'STRG-Indizes'!$B64&"S"&'STRG-Indizes'!D$5,FALSE)) -> 296 | E65: =IF('STRG-Merkmal'!$E$9=2,"",INDIRECT('STRG-Indizes'!$B$3&"Z"&'STRG-Indizes'!$B64&"S"&'STRG-Indizes'!E$5,FALSE)) -> 300 | F65: =IF('STRG-Merkmal'!$E$9=2,"",INDIRECT('STRG-Indizes'!$B$3&"Z"&'STRG-Indizes'!$B64&"S"&'STRG-Indizes'!F$5,FALSE)) -> 354 | G65: =IF('STRG-Merkmal'!$E$9=2,"",INDIRECT('STRG-Indizes'!$B$3&"Z"&'STRG-Indizes'!$B64&"S"&'STRG-Indizes'!G$5,FALSE)) -> 373 | H65: =IF('STRG-Merkmal'!$E$9=2,"",INDIRECT('STRG-Indizes'!$B$3&"Z"&'STRG-Indizes'!$B64&"S"&'STRG-Indizes'!H$5,FALSE)) -> 320 | I65: =IF('STRG-Merkmal'!$E$9=2,"",INDIRECT('STRG-Indizes'!$B$3&"Z"&'STRG-Indizes'!$B64&"S"&'STRG-Indizes'!I$5,FALSE)) -> 333 | J65: =IF('STRG-Merkmal'!$E$9=2,"",INDIRECT('STRG-Indizes'!$B$3&"Z"&'STRG-Indizes'!$B64&"S"&'STRG-Indizes'!J$5,FALSE)) -> 420 | K65: =IF('STRG-Merkmal'!$E$9=2,"",INDIRECT('STRG-Indizes'!$B$3&"Z"&'STRG-Indizes'!$B64&"S"&'STRG-Indizes'!K$5,FALSE)) -> 701 | L65: =IF('STRG-Merkmal'!$E$9=2,"",INDIRECT('STRG-Indizes'!$B$3&"Z"&'STRG-Indizes'!$B64&"S"&'STRG-Indizes'!L$5,FALSE)) -> 462 | M65: =IF('STRG-Merkmal'!$E$9=2,"",INDIRECT('STRG-Indizes'!$B$3&"Z"&'STRG-Indizes'!$B64&"S"&'STRG-Indizes'!M$5,FALSE)) -> 340 | N65: =INDIRECT('STRG-Indizes'!$B$3&"Z"&'STRG-Indizes'!$B64&"S"&'STRG-Indizes'!N$5,FALSE) -> 256 | O65: =INDIRECT('STRG-Indizes'!$B$3 & "Z" & 'STRG-Indizes'!$B64 & "S" & 'STRG-Indizes'!O$5, FALSE) -> 250 | P65: =INDIRECT('STRG-Indizes'!$B$3 & "Z" & 'STRG-Indizes'!$B64 & "S" & 'STRG-Indizes'!P$5, FALSE) -> 341 | Q65: =INDIRECT('STRG-Indizes'!$B$3 & "Z" & 'STRG-Indizes'!$B64 & "S" & 'STRG-Indizes'!Q$5, FALSE) -> 371 | R65: =INDIRECT('STRG-Indizes'!$B$3 & "Z" & 'STRG-Indizes'!$B64 & "S" & 'STRG-Indizes'!R$5, FALSE) -> 381 | S65: =INDIRECT('STRG-Indizes'!$B$3 & "Z" & 'STRG-Indizes'!$B64 & "S" & 'STRG-Indizes'!S$5, FALSE) -> 394 | T65: =INDIRECT('STRG-Indizes'!$B$3 & "Z" & 'STRG-Indizes'!$B64 & "S" & 'STRG-Indizes'!T$5, FALSE) -> 326 | U65: =INDIRECT('STRG-Indizes'!$B$3 & "Z" & 'STRG-Indizes'!$B64 & "S" & 'STRG-Indizes'!U$5, FALSE) -> 316 | V65: =INDIRECT('STRG-Indizes'!$B$3 & "Z" & 'STRG-Indizes'!$B64 & "S" & 'STRG-Indizes'!V$5, FALSE) -> 360 | W65: =INDIRECT('STRG-Indizes'!$B$3 & "Z" & 'STRG-Indizes'!$B64 & "S" & 'STRG-Indizes'!W$5, FALSE) -> 746 | X65: =INDIRECT('STRG-Indizes'!$B$3 & "Z" & 'STRG-Indizes'!$B64 & "S" & 'STRG-Indizes'!X$5, FALSE) -> 433 | Y65: =INDIRECT('STRG-Indizes'!$B$3 & "Z" & 'STRG-Indizes'!$B64 & "S" & 'STRG-Indizes'!Y$5, FALSE) -> 358 | Z65: =INDIRECT('STRG-Indizes'!$B$3 & "Z" & 'STRG-Indizes'!$B64 & "S" & 'STRG-Indizes'!Z$5, FALSE) -> 317 | AA65: =INDIRECT('STRG-Indizes'!$B$3 & "Z" & 'STRG-Indizes'!$B64 & "S" & 'STRG-Indizes'!AA$5, FALSE) -> 240 | AB65: =INDIRECT('STRG-Indizes'!$B$3 & "Z" & 'STRG-Indizes'!$B64 & "S" & 'STRG-Indizes'!AB$5, FALSE) -> 260 | AC65: =INDIRECT('STRG-Indizes'!$B$3 & "Z" & 'STRG-Indizes'!$B64 & "S" & 'STRG-Indizes'!AC$5, FALSE) -> 314 | AD65: =INDIRECT('STRG-Indizes'!$B$3 & "Z" & 'STRG-Indizes'!$B64 & "S" & 'STRG-Indizes'!AD$5, FALSE) -> 328 | AE65: =INDIRECT('STRG-Indizes'!$B$3 & "Z" & 'STRG-Indizes'!$B64 & "S" & 'STRG-Indizes'!AE$5, FALSE) -> 289 | AF65: =INDIRECT('STRG-Indizes'!$B$3 & "Z" & 'STRG-Indizes'!$B64 & "S" & 'STRG-Indizes'!AF$5, FALSE) -> 279 | AG65: =INDIRECT('STRG-Indizes'!$B$3 & "Z" & 'STRG-Indizes'!$B64 & "S" & 'STRG-Indizes'!AG$5, FALSE) -> 308 | AH65: =INDIRECT('STRG-Indizes'!$B$3 & "Z" & 'STRG-Indizes'!$B64 & "S" & 'STRG-Indizes'!AH$5, FALSE) -> 364 | AI65: =INDIRECT('STRG-Indizes'!$B$3 & "Z" & 'STRG-Indizes'!$B64 & "S" & 'STRG-Indizes'!AI$5, FALSE) -> 687 | AJ65: =INDIRECT('STRG-Indizes'!$B$3 & "Z" & 'STRG-Indizes'!$B64 & "S" & 'STRG-Indizes'!AJ$5, FALSE) -> 421
A66: JC Rottweil | B66: Ic | C66: =IF('STRG-Merkmal'!$E$9=2,"",INDIRECT('STRG-Indizes'!$B$3&"Z"&'STRG-Indizes'!$B65&"S"&'STRG-Indizes'!C$5,FALSE)) -> 37 | D66: =IF('STRG-Merkmal'!$E$9=2,"",INDIRECT('STRG-Indizes'!$B$3&"Z"&'STRG-Indizes'!$B65&"S"&'STRG-Indizes'!D$5,FALSE)) -> 61 | E66: =IF('STRG-Merkmal'!$E$9=2,"",INDIRECT('STRG-Indizes'!$B$3&"Z"&'STRG-Indizes'!$B65&"S"&'STRG-Indizes'!E$5,FALSE)) -> 62 | F66: =IF('STRG-Merkmal'!$E$9=2,"",INDIRECT('STRG-Indizes'!$B$3&"Z"&'STRG-Indizes'!$B65&"S"&'STRG-Indizes'!F$5,FALSE)) -> 65 | G66: =IF('STRG-Merkmal'!$E$9=2,"",INDIRECT('STRG-Indizes'!$B$3&"Z"&'STRG-Indizes'!$B65&"S"&'STRG-Indizes'!G$5,FALSE)) -> 70 | H66: =IF('STRG-Merkmal'!$E$9=2,"",INDIRECT('STRG-Indizes'!$B$3&"Z"&'STRG-Indizes'!$B65&"S"&'STRG-Indizes'!H$5,FALSE)) -> 70 | I66: =IF('STRG-Merkmal'!$E$9=2,"",INDIRECT('STRG-Indizes'!$B$3&"Z"&'STRG-Indizes'!$B65&"S"&'STRG-Indizes'!I$5,FALSE)) -> 90 | J66: =IF('STRG-Merkmal'!$E$9=2,"",INDIRECT('STRG-Indizes'!$B$3&"Z"&'STRG-Indizes'!$B65&"S"&'STRG-Indizes'!J$5,FALSE)) -> 69 | K66: =IF('STRG-Merkmal'!$E$9=2,"",INDIRECT('STRG-Indizes'!$B$3&"Z"&'STRG-Indizes'!$B65&"S"&'STRG-Indizes'!K$5,FALSE)) -> 117 | L66: =IF('STRG-Merkmal'!$E$9=2,"",INDIRECT('STRG-Indizes'!$B$3&"Z"&'STRG-Indizes'!$B65&"S"&'STRG-Indizes'!L$5,FALSE)) -> 70 | M66: =IF('STRG-Merkmal'!$E$9=2,"",INDIRECT('STRG-Indizes'!$B$3&"Z"&'STRG-Indizes'!$B65&"S"&'STRG-Indizes'!M$5,FALSE)) -> 70 | N66: =INDIRECT('STRG-Indizes'!$B$3&"Z"&'STRG-Indizes'!$B65&"S"&'STRG-Indizes'!N$5,FALSE) -> 53 | O66: =INDIRECT('STRG-Indizes'!$B$3 & "Z" & 'STRG-Indizes'!$B65 & "S" & 'STRG-Indizes'!O$5, FALSE) -> 48 | P66: =INDIRECT('STRG-Indizes'!$B$3 & "Z" & 'STRG-Indizes'!$B65 & "S" & 'STRG-Indizes'!P$5, FALSE) -> 49 | Q66: =INDIRECT('STRG-Indizes'!$B$3 & "Z" & 'STRG-Indizes'!$B65 & "S" & 'STRG-Indizes'!Q$5, FALSE) -> 79 | R66: =INDIRECT('STRG-Indizes'!$B$3 & "Z" & 'STRG-Indizes'!$B65 & "S" & 'STRG-Indizes'!R$5, FALSE) -> 73 | S66: =INDIRECT('STRG-Indizes'!$B$3 & "Z" & 'STRG-Indizes'!$B65 & "S" & 'STRG-Indizes'!S$5, FALSE) -> 63 | T66: =INDIRECT('STRG-Indizes'!$B$3 & "Z" & 'STRG-Indizes'!$B65 & "S" & 'STRG-Indizes'!T$5, FALSE) -> 56 | U66: =INDIRECT('STRG-Indizes'!$B$3 & "Z" & 'STRG-Indizes'!$B65 & "S" & 'STRG-Indizes'!U$5, FALSE) -> 79 | V66: =INDIRECT('STRG-Indizes'!$B$3 & "Z" & 'STRG-Indizes'!$B65 & "S" & 'STRG-Indizes'!V$5, FALSE) -> 66 | W66: =INDIRECT('STRG-Indizes'!$B$3 & "Z" & 'STRG-Indizes'!$B65 & "S" & 'STRG-Indizes'!W$5, FALSE) -> 148 | X66: =INDIRECT('STRG-Indizes'!$B$3 & "Z" & 'STRG-Indizes'!$B65 & "S" & 'STRG-Indizes'!X$5, FALSE) -> 79 | Y66: =INDIRECT('STRG-Indizes'!$B$3 & "Z" & 'STRG-Indizes'!$B65 & "S" & 'STRG-Indizes'!Y$5, FALSE) -> 79 | Z66: =INDIRECT('STRG-Indizes'!$B$3 & "Z" & 'STRG-Indizes'!$B65 & "S" & 'STRG-Indizes'!Z$5, FALSE) -> 68 | AA66: =INDIRECT('STRG-Indizes'!$B$3 & "Z" & 'STRG-Indizes'!$B65 & "S" & 'STRG-Indizes'!AA$5, FALSE) -> 43 | AB66: =INDIRECT('STRG-Indizes'!$B$3 & "Z" & 'STRG-Indizes'!$B65 & "S" & 'STRG-Indizes'!AB$5, FALSE) -> 52 | AC66: =INDIRECT('STRG-Indizes'!$B$3 & "Z" & 'STRG-Indizes'!$B65 & "S" & 'STRG-Indizes'!AC$5, FALSE) -> 61 | AD66: =INDIRECT('STRG-Indizes'!$B$3 & "Z" & 'STRG-Indizes'!$B65 & "S" & 'STRG-Indizes'!AD$5, FALSE) -> 69 | AE66: =INDIRECT('STRG-Indizes'!$B$3 & "Z" & 'STRG-Indizes'!$B65 & "S" & 'STRG-Indizes'!AE$5, FALSE) -> 68 | AF66: =INDIRECT('STRG-Indizes'!$B$3 & "Z" & 'STRG-Indizes'!$B65 & "S" & 'STRG-Indizes'!AF$5, FALSE) -> 58 | AG66: =INDIRECT('STRG-Indizes'!$B$3 & "Z" & 'STRG-Indizes'!$B65 & "S" & 'STRG-Indizes'!AG$5, FALSE) -> 54 | AH66: =INDIRECT('STRG-Indizes'!$B$3 & "Z" & 'STRG-Indizes'!$B65 & "S" & 'STRG-Indizes'!AH$5, FALSE) -> 69 | AI66: =INDIRECT('STRG-Indizes'!$B$3 & "Z" & 'STRG-Indizes'!$B65 & "S" & 'STRG-Indizes'!AI$5, FALSE) -> 119 | AJ66: =INDIRECT('STRG-Indizes'!$B$3 & "Z" & 'STRG-Indizes'!$B65 & "S" & 'STRG-Indizes'!AJ$5, FALSE) -> 70
A67: JC Schwäbisch Hall | B67: Ic | C67: =IF('STRG-Merkmal'!$E$9=2,"",INDIRECT('STRG-Indizes'!$B$3&"Z"&'STRG-Indizes'!$B66&"S"&'STRG-Indizes'!C$5,FALSE)) -> 74 | D67: =IF('STRG-Merkmal'!$E$9=2,"",INDIRECT('STRG-Indizes'!$B$3&"Z"&'STRG-Indizes'!$B66&"S"&'STRG-Indizes'!D$5,FALSE)) -> 66 | E67: =IF('STRG-Merkmal'!$E$9=2,"",INDIRECT('STRG-Indizes'!$B$3&"Z"&'STRG-Indizes'!$B66&"S"&'STRG-Indizes'!E$5,FALSE)) -> 79 | F67: =IF('STRG-Merkmal'!$E$9=2,"",INDIRECT('STRG-Indizes'!$B$3&"Z"&'STRG-Indizes'!$B66&"S"&'STRG-Indizes'!F$5,FALSE)) -> 84 | G67: =IF('STRG-Merkmal'!$E$9=2,"",INDIRECT('STRG-Indizes'!$B$3&"Z"&'STRG-Indizes'!$B66&"S"&'STRG-Indizes'!G$5,FALSE)) -> 113 | H67: =IF('STRG-Merkmal'!$E$9=2,"",INDIRECT('STRG-Indizes'!$B$3&"Z"&'STRG-Indizes'!$B66&"S"&'STRG-Indizes'!H$5,FALSE)) -> 78 | I67: =IF('STRG-Merkmal'!$E$9=2,"",INDIRECT('STRG-Indizes'!$B$3&"Z"&'STRG-Indizes'!$B66&"S"&'STRG-Indizes'!I$5,FALSE)) -> 108 | J67: =IF('STRG-Merkmal'!$E$9=2,"",INDIRECT('STRG-Indizes'!$B$3&"Z"&'STRG-Indizes'!$B66&"S"&'STRG-Indizes'!J$5,FALSE)) -> 141 | K67: =IF('STRG-Merkmal'!$E$9=2,"",INDIRECT('STRG-Indizes'!$B$3&"Z"&'STRG-Indizes'!$B66&"S"&'STRG-Indizes'!K$5,FALSE)) -> 211 | L67: =IF('STRG-Merkmal'!$E$9=2,"",INDIRECT('STRG-Indizes'!$B$3&"Z"&'STRG-Indizes'!$B66&"S"&'STRG-Indizes'!L$5,FALSE)) -> 115 | M67: =IF('STRG-Merkmal'!$E$9=2,"",INDIRECT('STRG-Indizes'!$B$3&"Z"&'STRG-Indizes'!$B66&"S"&'STRG-Indizes'!M$5,FALSE)) -> 114 | N67: =INDIRECT('STRG-Indizes'!$B$3&"Z"&'STRG-Indizes'!$B66&"S"&'STRG-Indizes'!N$5,FALSE) -> 91 | O67: =INDIRECT('STRG-Indizes'!$B$3 & "Z" & 'STRG-Indizes'!$B66 & "S" & 'STRG-Indizes'!O$5, FALSE) -> 67 | P67: =INDIRECT('STRG-Indizes'!$B$3 & "Z" & 'STRG-Indizes'!$B66 & "S" & 'STRG-Indizes'!P$5, FALSE) -> 101 | Q67: =INDIRECT('STRG-Indizes'!$B$3 & "Z" & 'STRG-Indizes'!$B66 & "S" & 'STRG-Indizes'!Q$5, FALSE) -> 99 | R67: =INDIRECT('STRG-Indizes'!$B$3 & "Z" & 'STRG-Indizes'!$B66 & "S" & 'STRG-Indizes'!R$5, FALSE) -> 89 | S67: =INDIRECT('STRG-Indizes'!$B$3 & "Z" & 'STRG-Indizes'!$B66 & "S" & 'STRG-Indizes'!S$5, FALSE) -> 115 | T67: =INDIRECT('STRG-Indizes'!$B$3 & "Z" & 'STRG-Indizes'!$B66 & "S" & 'STRG-Indizes'!T$5, FALSE) -> 94 | U67: =INDIRECT('STRG-Indizes'!$B$3 & "Z" & 'STRG-Indizes'!$B66 & "S" & 'STRG-Indizes'!U$5, FALSE) -> 128 | V67: =INDIRECT('STRG-Indizes'!$B$3 & "Z" & 'STRG-Indizes'!$B66 & "S" & 'STRG-Indizes'!V$5, FALSE) -> 103 | W67: =INDIRECT('STRG-Indizes'!$B$3 & "Z" & 'STRG-Indizes'!$B66 & "S" & 'STRG-Indizes'!W$5, FALSE) -> 184 | X67: =INDIRECT('STRG-Indizes'!$B$3 & "Z" & 'STRG-Indizes'!$B66 & "S" & 'STRG-Indizes'!X$5, FALSE) -> 124 | Y67: =INDIRECT('STRG-Indizes'!$B$3 & "Z" & 'STRG-Indizes'!$B66 & "S" & 'STRG-Indizes'!Y$5, FALSE) -> 88 | Z67: =INDIRECT('STRG-Indizes'!$B$3 & "Z" & 'STRG-Indizes'!$B66 & "S" & 'STRG-Indizes'!Z$5, FALSE) -> 76 | AA67: =INDIRECT('STRG-Indizes'!$B$3 & "Z" & 'STRG-Indizes'!$B66 & "S" & 'STRG-Indizes'!AA$5, FALSE) -> 73 | AB67: =INDIRECT('STRG-Indizes'!$B$3 & "Z" & 'STRG-Indizes'!$B66 & "S" & 'STRG-Indizes'!AB$5, FALSE) -> 86 | AC67: =INDIRECT('STRG-Indizes'!$B$3 & "Z" & 'STRG-Indizes'!$B66 & "S" & 'STRG-Indizes'!AC$5, FALSE) -> 106 | AD67: =INDIRECT('STRG-Indizes'!$B$3 & "Z" & 'STRG-Indizes'!$B66 & "S" & 'STRG-Indizes'!AD$5, FALSE) -> 104 | AE67: =INDIRECT('STRG-Indizes'!$B$3 & "Z" & 'STRG-Indizes'!$B66 & "S" & 'STRG-Indizes'!AE$5, FALSE) -> 79 | AF67: =INDIRECT('STRG-Indizes'!$B$3 & "Z" & 'STRG-Indizes'!$B66 & "S" & 'STRG-Indizes'!AF$5, FALSE) -> 79 | AG67: =INDIRECT('STRG-Indizes'!$B$3 & "Z" & 'STRG-Indizes'!$B66 & "S" & 'STRG-Indizes'!AG$5, FALSE) -> 83 | AH67: =INDIRECT('STRG-Indizes'!$B$3 & "Z" & 'STRG-Indizes'!$B66 & "S" & 'STRG-Indizes'!AH$5, FALSE) -> 73 | AI67: =INDIRECT('STRG-Indizes'!$B$3 & "Z" & 'STRG-Indizes'!$B66 & "S" & 'STRG-Indizes'!AI$5, FALSE) -> 155 | AJ67: =INDIRECT('STRG-Indizes'!$B$3 & "Z" & 'STRG-Indizes'!$B66 & "S" & 'STRG-Indizes'!AJ$5, FALSE) -> 94
A68: JC Schwarzwald-Baar-Kreis | B68: Id | C68: =IF('STRG-Merkmal'!$E$9=2,"",INDIRECT('STRG-Indizes'!$B$3&"Z"&'STRG-Indizes'!$B67&"S"&'STRG-Indizes'!C$5,FALSE)) -> 96 | D68: =IF('STRG-Merkmal'!$E$9=2,"",INDIRECT('STRG-Indizes'!$B$3&"Z"&'STRG-Indizes'!$B67&"S"&'STRG-Indizes'!D$5,FALSE)) -> 142 | E68: =IF('STRG-Merkmal'!$E$9=2,"",INDIRECT('STRG-Indizes'!$B$3&"Z"&'STRG-Indizes'!$B67&"S"&'STRG-Indizes'!E$5,FALSE)) -> 138 | F68: =IF('STRG-Merkmal'!$E$9=2,"",INDIRECT('STRG-Indizes'!$B$3&"Z"&'STRG-Indizes'!$B67&"S"&'STRG-Indizes'!F$5,FALSE)) -> 180 | G68: =IF('STRG-Merkmal'!$E$9=2,"",INDIRECT('STRG-Indizes'!$B$3&"Z"&'STRG-Indizes'!$B67&"S"&'STRG-Indizes'!G$5,FALSE)) -> 188 | H68: =IF('STRG-Merkmal'!$E$9=2,"",INDIRECT('STRG-Indizes'!$B$3&"Z"&'STRG-Indizes'!$B67&"S"&'STRG-Indizes'!H$5,FALSE)) -> 150 | I68: =IF('STRG-Merkmal'!$E$9=2,"",INDIRECT('STRG-Indizes'!$B$3&"Z"&'STRG-Indizes'!$B67&"S"&'STRG-Indizes'!I$5,FALSE)) -> 126 | J68: =IF('STRG-Merkmal'!$E$9=2,"",INDIRECT('STRG-Indizes'!$B$3&"Z"&'STRG-Indizes'!$B67&"S"&'STRG-Indizes'!J$5,FALSE)) -> 185 | K68: =IF('STRG-Merkmal'!$E$9=2,"",INDIRECT('STRG-Indizes'!$B$3&"Z"&'STRG-Indizes'!$B67&"S"&'STRG-Indizes'!K$5,FALSE)) -> 290 | L68: =IF('STRG-Merkmal'!$E$9=2,"",INDIRECT('STRG-Indizes'!$B$3&"Z"&'STRG-Indizes'!$B67&"S"&'STRG-Indizes'!L$5,FALSE)) -> 214 | M68: =IF('STRG-Merkmal'!$E$9=2,"",INDIRECT('STRG-Indizes'!$B$3&"Z"&'STRG-Indizes'!$B67&"S"&'STRG-Indizes'!M$5,FALSE)) -> 190 | N68: =INDIRECT('STRG-Indizes'!$B$3&"Z"&'STRG-Indizes'!$B67&"S"&'STRG-Indizes'!N$5,FALSE) -> 121 | O68: =INDIRECT('STRG-Indizes'!$B$3 & "Z" & 'STRG-Indizes'!$B67 & "S" & 'STRG-Indizes'!O$5, FALSE) -> 134 | P68: =INDIRECT('STRG-Indizes'!$B$3 & "Z" & 'STRG-Indizes'!$B67 & "S" & 'STRG-Indizes'!P$5, FALSE) -> 158 | Q68: =INDIRECT('STRG-Indizes'!$B$3 & "Z" & 'STRG-Indizes'!$B67 & "S" & 'STRG-Indizes'!Q$5, FALSE) -> 153 | R68: =INDIRECT('STRG-Indizes'!$B$3 & "Z" & 'STRG-Indizes'!$B67 & "S" & 'STRG-Indizes'!R$5, FALSE) -> 164 | S68: =INDIRECT('STRG-Indizes'!$B$3 & "Z" & 'STRG-Indizes'!$B67 & "S" & 'STRG-Indizes'!S$5, FALSE) -> 162 | T68: =INDIRECT('STRG-Indizes'!$B$3 & "Z" & 'STRG-Indizes'!$B67 & "S" & 'STRG-Indizes'!T$5, FALSE) -> 113 | U68: =INDIRECT('STRG-Indizes'!$B$3 & "Z" & 'STRG-Indizes'!$B67 & "S" & 'STRG-Indizes'!U$5, FALSE) -> 179 | V68: =INDIRECT('STRG-Indizes'!$B$3 & "Z" & 'STRG-Indizes'!$B67 & "S" & 'STRG-Indizes'!V$5, FALSE) -> 205 | W68: =INDIRECT('STRG-Indizes'!$B$3 & "Z" & 'STRG-Indizes'!$B67 & "S" & 'STRG-Indizes'!W$5, FALSE) -> 263 | X68: =INDIRECT('STRG-Indizes'!$B$3 & "Z" & 'STRG-Indizes'!$B67 & "S" & 'STRG-Indizes'!X$5, FALSE) -> 141 | Y68: =INDIRECT('STRG-Indizes'!$B$3 & "Z" & 'STRG-Indizes'!$B67 & "S" & 'STRG-Indizes'!Y$5, FALSE) -> 109 | Z68: =INDIRECT('STRG-Indizes'!$B$3 & "Z" & 'STRG-Indizes'!$B67 & "S" & 'STRG-Indizes'!Z$5, FALSE) -> 91 | AA68: =INDIRECT('STRG-Indizes'!$B$3 & "Z" & 'STRG-Indizes'!$B67 & "S" & 'STRG-Indizes'!AA$5, FALSE) -> 82 | AB68: =INDIRECT('STRG-Indizes'!$B$3 & "Z" & 'STRG-Indizes'!$B67 & "S" & 'STRG-Indizes'!AB$5, FALSE) -> 118 | AC68: =INDIRECT('STRG-Indizes'!$B$3 & "Z" & 'STRG-Indizes'!$B67 & "S" & 'STRG-Indizes'!AC$5, FALSE) -> 120 | AD68: =INDIRECT('STRG-Indizes'!$B$3 & "Z" & 'STRG-Indizes'!$B67 & "S" & 'STRG-Indizes'!AD$5, FALSE) -> 123 | AE68: =INDIRECT('STRG-Indizes'!$B$3 & "Z" & 'STRG-Indizes'!$B67 & "S" & 'STRG-Indizes'!AE$5, FALSE) -> 113 | AF68: =INDIRECT('STRG-Indizes'!$B$3 & "Z" & 'STRG-Indizes'!$B67 & "S" & 'STRG-Indizes'!AF$5, FALSE) -> 113 | AG68: =INDIRECT('STRG-Indizes'!$B$3 & "Z" & 'STRG-Indizes'!$B67 & "S" & 'STRG-Indizes'!AG$5, FALSE) -> 98 | AH68: =INDIRECT('STRG-Indizes'!$B$3 & "Z" & 'STRG-Indizes'!$B67 & "S" & 'STRG-Indizes'!AH$5, FALSE) -> 119 | AI68: =INDIRECT('STRG-Indizes'!$B$3 & "Z" & 'STRG-Indizes'!$B67 & "S" & 'STRG-Indizes'!AI$5, FALSE) -> 231 | AJ68: =INDIRECT('STRG-Indizes'!$B$3 & "Z" & 'STRG-Indizes'!$B67 & "S" & 'STRG-Indizes'!AJ$5, FALSE) -> 129
A69: JC Sigmaringen | B69: Ic | C69: =IF('STRG-Merkmal'!$E$9=2,"",INDIRECT('STRG-Indizes'!$B$3&"Z"&'STRG-Indizes'!$B68&"S"&'STRG-Indizes'!C$5,FALSE)) -> 56 | D69: =IF('STRG-Merkmal'!$E$9=2,"",INDIRECT('STRG-Indizes'!$B$3&"Z"&'STRG-Indizes'!$B68&"S"&'STRG-Indizes'!D$5,FALSE)) -> 71 | E69: =IF('STRG-Merkmal'!$E$9=2,"",INDIRECT('STRG-Indizes'!$B$3&"Z"&'STRG-Indizes'!$B68&"S"&'STRG-Indizes'!E$5,FALSE)) -> 64 | F69: =IF('STRG-Merkmal'!$E$9=2,"",INDIRECT('STRG-Indizes'!$B$3&"Z"&'STRG-Indizes'!$B68&"S"&'STRG-Indizes'!F$5,FALSE)) -> 82 | G69: =IF('STRG-Merkmal'!$E$9=2,"",INDIRECT('STRG-Indizes'!$B$3&"Z"&'STRG-Indizes'!$B68&"S"&'STRG-Indizes'!G$5,FALSE)) -> 87 | H69: =IF('STRG-Merkmal'!$E$9=2,"",INDIRECT('STRG-Indizes'!$B$3&"Z"&'STRG-Indizes'!$B68&"S"&'STRG-Indizes'!H$5,FALSE)) -> 56 | I69: =IF('STRG-Merkmal'!$E$9=2,"",INDIRECT('STRG-Indizes'!$B$3&"Z"&'STRG-Indizes'!$B68&"S"&'STRG-Indizes'!I$5,FALSE)) -> 68 | J69: =IF('STRG-Merkmal'!$E$9=2,"",INDIRECT('STRG-Indizes'!$B$3&"Z"&'STRG-Indizes'!$B68&"S"&'STRG-Indizes'!J$5,FALSE)) -> 62 | K69: =IF('STRG-Merkmal'!$E$9=2,"",INDIRECT('STRG-Indizes'!$B$3&"Z"&'STRG-Indizes'!$B68&"S"&'STRG-Indizes'!K$5,FALSE)) -> 115 | L69: =IF('STRG-Merkmal'!$E$9=2,"",INDIRECT('STRG-Indizes'!$B$3&"Z"&'STRG-Indizes'!$B68&"S"&'STRG-Indizes'!L$5,FALSE)) -> 63 | M69: =IF('STRG-Merkmal'!$E$9=2,"",INDIRECT('STRG-Indizes'!$B$3&"Z"&'STRG-Indizes'!$B68&"S"&'STRG-Indizes'!M$5,FALSE)) -> 74 | N69: =INDIRECT('STRG-Indizes'!$B$3&"Z"&'STRG-Indizes'!$B68&"S"&'STRG-Indizes'!N$5,FALSE) -> 67 | O69: =INDIRECT('STRG-Indizes'!$B$3 & "Z" & 'STRG-Indizes'!$B68 & "S" & 'STRG-Indizes'!O$5, FALSE) -> 46 | P69: =INDIRECT('STRG-Indizes'!$B$3 & "Z" & 'STRG-Indizes'!$B68 & "S" & 'STRG-Indizes'!P$5, FALSE) -> 54 | Q69: =INDIRECT('STRG-Indizes'!$B$3 & "Z" & 'STRG-Indizes'!$B68 & "S" & 'STRG-Indizes'!Q$5, FALSE) -> 85 | R69: =INDIRECT('STRG-Indizes'!$B$3 & "Z" & 'STRG-Indizes'!$B68 & "S" & 'STRG-Indizes'!R$5, FALSE) -> 82 | S69: =INDIRECT('STRG-Indizes'!$B$3 & "Z" & 'STRG-Indizes'!$B68 & "S" & 'STRG-Indizes'!S$5, FALSE) -> 70 | T69: =INDIRECT('STRG-Indizes'!$B$3 & "Z" & 'STRG-Indizes'!$B68 & "S" & 'STRG-Indizes'!T$5, FALSE) -> 59 | U69: =INDIRECT('STRG-Indizes'!$B$3 & "Z" & 'STRG-Indizes'!$B68 & "S" & 'STRG-Indizes'!U$5, FALSE) -> 66 | V69: =INDIRECT('STRG-Indizes'!$B$3 & "Z" & 'STRG-Indizes'!$B68 & "S" & 'STRG-Indizes'!V$5, FALSE) -> 58 | W69: =INDIRECT('STRG-Indizes'!$B$3 & "Z" & 'STRG-Indizes'!$B68 & "S" & 'STRG-Indizes'!W$5, FALSE) -> 105 | X69: =INDIRECT('STRG-Indizes'!$B$3 & "Z" & 'STRG-Indizes'!$B68 & "S" & 'STRG-Indizes'!X$5, FALSE) -> 66 | Y69: =INDIRECT('STRG-Indizes'!$B$3 & "Z" & 'STRG-Indizes'!$B68 & "S" & 'STRG-Indizes'!Y$5, FALSE) -> 55 | Z69: =INDIRECT('STRG-Indizes'!$B$3 & "Z" & 'STRG-Indizes'!$B68 & "S" & 'STRG-Indizes'!Z$5, FALSE) -> 58 | AA69: =INDIRECT('STRG-Indizes'!$B$3 & "Z" & 'STRG-Indizes'!$B68 & "S" & 'STRG-Indizes'!AA$5, FALSE) -> 37 | AB69: =INDIRECT('STRG-Indizes'!$B$3 & "Z" & 'STRG-Indizes'!$B68 & "S" & 'STRG-Indizes'!AB$5, FALSE) -> 58 | AC69: =INDIRECT('STRG-Indizes'!$B$3 & "Z" & 'STRG-Indizes'!$B68 & "S" & 'STRG-Indizes'!AC$5, FALSE) -> 47 | AD69: =INDIRECT('STRG-Indizes'!$B$3 & "Z" & 'STRG-Indizes'!$B68 & "S" & 'STRG-Indizes'!AD$5, FALSE) -> 72 | AE69: =INDIRECT('STRG-Indizes'!$B$3 & "Z" & 'STRG-Indizes'!$B68 & "S" & 'STRG-Indizes'!AE$5, FALSE) -> 67 | AF69: =INDIRECT('STRG-Indizes'!$B$3 & "Z" & 'STRG-Indizes'!$B68 & "S" & 'STRG-Indizes'!AF$5, FALSE) -> 48 | AG69: =INDIRECT('STRG-Indizes'!$B$3 & "Z" & 'STRG-Indizes'!$B68 & "S" & 'STRG-Indizes'!AG$5, FALSE) -> 63 | AH69: =INDIRECT('STRG-Indizes'!$B$3 & "Z" & 'STRG-Indizes'!$B68 & "S" & 'STRG-Indizes'!AH$5, FALSE) -> 69 | AI69: =INDIRECT('STRG-Indizes'!$B$3 & "Z" & 'STRG-Indizes'!$B68 & "S" & 'STRG-Indizes'!AI$5, FALSE) -> 118 | AJ69: =INDIRECT('STRG-Indizes'!$B$3 & "Z" & 'STRG-Indizes'!$B68 & "S" & 'STRG-Indizes'!AJ$5, FALSE) -> 68
A70: JC Stuttgart, Landeshauptstadt | B70: IIb | C70: =IF('STRG-Merkmal'!$E$9=2,"",INDIRECT('STRG-Indizes'!$B$3&"Z"&'STRG-Indizes'!$B69&"S"&'STRG-Indizes'!C$5,FALSE)) -> 417 | D70: =IF('STRG-Merkmal'!$E$9=2,"",INDIRECT('STRG-Indizes'!$B$3&"Z"&'STRG-Indizes'!$B69&"S"&'STRG-Indizes'!D$5,FALSE)) -> 482 | E70: =IF('STRG-Merkmal'!$E$9=2,"",INDIRECT('STRG-Indizes'!$B$3&"Z"&'STRG-Indizes'!$B69&"S"&'STRG-Indizes'!E$5,FALSE)) -> 517 | F70: =IF('STRG-Merkmal'!$E$9=2,"",INDIRECT('STRG-Indizes'!$B$3&"Z"&'STRG-Indizes'!$B69&"S"&'STRG-Indizes'!F$5,FALSE)) -> 619 | G70: =IF('STRG-Merkmal'!$E$9=2,"",INDIRECT('STRG-Indizes'!$B$3&"Z"&'STRG-Indizes'!$B69&"S"&'STRG-Indizes'!G$5,FALSE)) -> 651 | H70: =IF('STRG-Merkmal'!$E$9=2,"",INDIRECT('STRG-Indizes'!$B$3&"Z"&'STRG-Indizes'!$B69&"S"&'STRG-Indizes'!H$5,FALSE)) -> 505 | I70: =IF('STRG-Merkmal'!$E$9=2,"",INDIRECT('STRG-Indizes'!$B$3&"Z"&'STRG-Indizes'!$B69&"S"&'STRG-Indizes'!I$5,FALSE)) -> 599 | J70: =IF('STRG-Merkmal'!$E$9=2,"",INDIRECT('STRG-Indizes'!$B$3&"Z"&'STRG-Indizes'!$B69&"S"&'STRG-Indizes'!J$5,FALSE)) -> 713 | K70: =IF('STRG-Merkmal'!$E$9=2,"",INDIRECT('STRG-Indizes'!$B$3&"Z"&'STRG-Indizes'!$B69&"S"&'STRG-Indizes'!K$5,FALSE)) -> 1132 | L70: =IF('STRG-Merkmal'!$E$9=2,"",INDIRECT('STRG-Indizes'!$B$3&"Z"&'STRG-Indizes'!$B69&"S"&'STRG-Indizes'!L$5,FALSE)) -> 779 | M70: =IF('STRG-Merkmal'!$E$9=2,"",INDIRECT('STRG-Indizes'!$B$3&"Z"&'STRG-Indizes'!$B69&"S"&'STRG-Indizes'!M$5,FALSE)) -> 642 | N70: =INDIRECT('STRG-Indizes'!$B$3&"Z"&'STRG-Indizes'!$B69&"S"&'STRG-Indizes'!N$5,FALSE) -> 576 | O70: =INDIRECT('STRG-Indizes'!$B$3 & "Z" & 'STRG-Indizes'!$B69 & "S" & 'STRG-Indizes'!O$5, FALSE) -> 514 | P70: =INDIRECT('STRG-Indizes'!$B$3 & "Z" & 'STRG-Indizes'!$B69 & "S" & 'STRG-Indizes'!P$5, FALSE) -> 622 | Q70: =INDIRECT('STRG-Indizes'!$B$3 & "Z" & 'STRG-Indizes'!$B69 & "S" & 'STRG-Indizes'!Q$5, FALSE) -> 608 | R70: =INDIRECT('STRG-Indizes'!$B$3 & "Z" & 'STRG-Indizes'!$B69 & "S" & 'STRG-Indizes'!R$5, FALSE) -> 661 | S70: =INDIRECT('STRG-Indizes'!$B$3 & "Z" & 'STRG-Indizes'!$B69 & "S" & 'STRG-Indizes'!S$5, FALSE) -> 711 | T70: =INDIRECT('STRG-Indizes'!$B$3 & "Z" & 'STRG-Indizes'!$B69 & "S" & 'STRG-Indizes'!T$5, FALSE) -> 567 | U70: =INDIRECT('STRG-Indizes'!$B$3 & "Z" & 'STRG-Indizes'!$B69 & "S" & 'STRG-Indizes'!U$5, FALSE) -> 673 | V70: =INDIRECT('STRG-Indizes'!$B$3 & "Z" & 'STRG-Indizes'!$B69 & "S" & 'STRG-Indizes'!V$5, FALSE) -> 717 | W70: =INDIRECT('STRG-Indizes'!$B$3 & "Z" & 'STRG-Indizes'!$B69 & "S" & 'STRG-Indizes'!W$5, FALSE) -> 1212 | X70: =INDIRECT('STRG-Indizes'!$B$3 & "Z" & 'STRG-Indizes'!$B69 & "S" & 'STRG-Indizes'!X$5, FALSE) -> 813 | Y70: =INDIRECT('STRG-Indizes'!$B$3 & "Z" & 'STRG-Indizes'!$B69 & "S" & 'STRG-Indizes'!Y$5, FALSE) -> 696 | Z70: =INDIRECT('STRG-Indizes'!$B$3 & "Z" & 'STRG-Indizes'!$B69 & "S" & 'STRG-Indizes'!Z$5, FALSE) -> 576 | AA70: =INDIRECT('STRG-Indizes'!$B$3 & "Z" & 'STRG-Indizes'!$B69 & "S" & 'STRG-Indizes'!AA$5, FALSE) -> 494 | AB70: =INDIRECT('STRG-Indizes'!$B$3 & "Z" & 'STRG-Indizes'!$B69 & "S" & 'STRG-Indizes'!AB$5, FALSE) -> 616 | AC70: =INDIRECT('STRG-Indizes'!$B$3 & "Z" & 'STRG-Indizes'!$B69 & "S" & 'STRG-Indizes'!AC$5, FALSE) -> 662 | AD70: =INDIRECT('STRG-Indizes'!$B$3 & "Z" & 'STRG-Indizes'!$B69 & "S" & 'STRG-Indizes'!AD$5, FALSE) -> 689 | AE70: =INDIRECT('STRG-Indizes'!$B$3 & "Z" & 'STRG-Indizes'!$B69 & "S" & 'STRG-Indizes'!AE$5, FALSE) -> 655 | AF70: =INDIRECT('STRG-Indizes'!$B$3 & "Z" & 'STRG-Indizes'!$B69 & "S" & 'STRG-Indizes'!AF$5, FALSE) -> 594 | AG70: =INDIRECT('STRG-Indizes'!$B$3 & "Z" & 'STRG-Indizes'!$B69 & "S" & 'STRG-Indizes'!AG$5, FALSE) -> 523 | AH70: =INDIRECT('STRG-Indizes'!$B$3 & "Z" & 'STRG-Indizes'!$B69 & "S" & 'STRG-Indizes'!AH$5, FALSE) -> 675 | AI70: =INDIRECT('STRG-Indizes'!$B$3 & "Z" & 'STRG-Indizes'!$B69 & "S" & 'STRG-Indizes'!AI$5, FALSE) -> 1160 | AJ70: =INDIRECT('STRG-Indizes'!$B$3 & "Z" & 'STRG-Indizes'!$B69 & "S" & 'STRG-Indizes'!AJ$5, FALSE) -> 838
A71: JC Tübingen | B71: Id | C71: =IF('STRG-Merkmal'!$E$9=2,"",INDIRECT('STRG-Indizes'!$B$3&"Z"&'STRG-Indizes'!$B70&"S"&'STRG-Indizes'!C$5,FALSE)) -> 65 | D71: =IF('STRG-Merkmal'!$E$9=2,"",INDIRECT('STRG-Indizes'!$B$3&"Z"&'STRG-Indizes'!$B70&"S"&'STRG-Indizes'!D$5,FALSE)) -> 87 | E71: =IF('STRG-Merkmal'!$E$9=2,"",INDIRECT('STRG-Indizes'!$B$3&"Z"&'STRG-Indizes'!$B70&"S"&'STRG-Indizes'!E$5,FALSE)) -> 123 | F71: =IF('STRG-Merkmal'!$E$9=2,"",INDIRECT('STRG-Indizes'!$B$3&"Z"&'STRG-Indizes'!$B70&"S"&'STRG-Indizes'!F$5,FALSE)) -> 141 | G71: =IF('STRG-Merkmal'!$E$9=2,"",INDIRECT('STRG-Indizes'!$B$3&"Z"&'STRG-Indizes'!$B70&"S"&'STRG-Indizes'!G$5,FALSE)) -> 138 | H71: =IF('STRG-Merkmal'!$E$9=2,"",INDIRECT('STRG-Indizes'!$B$3&"Z"&'STRG-Indizes'!$B70&"S"&'STRG-Indizes'!H$5,FALSE)) -> 108 | I71: =IF('STRG-Merkmal'!$E$9=2,"",INDIRECT('STRG-Indizes'!$B$3&"Z"&'STRG-Indizes'!$B70&"S"&'STRG-Indizes'!I$5,FALSE)) -> 117 | J71: =IF('STRG-Merkmal'!$E$9=2,"",INDIRECT('STRG-Indizes'!$B$3&"Z"&'STRG-Indizes'!$B70&"S"&'STRG-Indizes'!J$5,FALSE)) -> 120 | K71: =IF('STRG-Merkmal'!$E$9=2,"",INDIRECT('STRG-Indizes'!$B$3&"Z"&'STRG-Indizes'!$B70&"S"&'STRG-Indizes'!K$5,FALSE)) -> 254 | L71: =IF('STRG-Merkmal'!$E$9=2,"",INDIRECT('STRG-Indizes'!$B$3&"Z"&'STRG-Indizes'!$B70&"S"&'STRG-Indizes'!L$5,FALSE)) -> 133 | M71: =IF('STRG-Merkmal'!$E$9=2,"",INDIRECT('STRG-Indizes'!$B$3&"Z"&'STRG-Indizes'!$B70&"S"&'STRG-Indizes'!M$5,FALSE)) -> 109 | N71: =INDIRECT('STRG-Indizes'!$B$3&"Z"&'STRG-Indizes'!$B70&"S"&'STRG-Indizes'!N$5,FALSE) -> 88 | O71: =INDIRECT('STRG-Indizes'!$B$3 & "Z" & 'STRG-Indizes'!$B70 & "S" & 'STRG-Indizes'!O$5, FALSE) -> 92 | P71: =INDIRECT('STRG-Indizes'!$B$3 & "Z" & 'STRG-Indizes'!$B70 & "S" & 'STRG-Indizes'!P$5, FALSE) -> 109 | Q71: =INDIRECT('STRG-Indizes'!$B$3 & "Z" & 'STRG-Indizes'!$B70 & "S" & 'STRG-Indizes'!Q$5, FALSE) -> 102 | R71: =INDIRECT('STRG-Indizes'!$B$3 & "Z" & 'STRG-Indizes'!$B70 & "S" & 'STRG-Indizes'!R$5, FALSE) -> 117 | S71: =INDIRECT('STRG-Indizes'!$B$3 & "Z" & 'STRG-Indizes'!$B70 & "S" & 'STRG-Indizes'!S$5, FALSE) -> 131 | T71: =INDIRECT('STRG-Indizes'!$B$3 & "Z" & 'STRG-Indizes'!$B70 & "S" & 'STRG-Indizes'!T$5, FALSE) -> 136 | U71: =INDIRECT('STRG-Indizes'!$B$3 & "Z" & 'STRG-Indizes'!$B70 & "S" & 'STRG-Indizes'!U$5, FALSE) -> 126 | V71: =INDIRECT('STRG-Indizes'!$B$3 & "Z" & 'STRG-Indizes'!$B70 & "S" & 'STRG-Indizes'!V$5, FALSE) -> 128 | W71: =INDIRECT('STRG-Indizes'!$B$3 & "Z" & 'STRG-Indizes'!$B70 & "S" & 'STRG-Indizes'!W$5, FALSE) -> 295 | X71: =INDIRECT('STRG-Indizes'!$B$3 & "Z" & 'STRG-Indizes'!$B70 & "S" & 'STRG-Indizes'!X$5, FALSE) -> 149 | Y71: =INDIRECT('STRG-Indizes'!$B$3 & "Z" & 'STRG-Indizes'!$B70 & "S" & 'STRG-Indizes'!Y$5, FALSE) -> 107 | Z71: =INDIRECT('STRG-Indizes'!$B$3 & "Z" & 'STRG-Indizes'!$B70 & "S" & 'STRG-Indizes'!Z$5, FALSE) -> 113 | AA71: =INDIRECT('STRG-Indizes'!$B$3 & "Z" & 'STRG-Indizes'!$B70 & "S" & 'STRG-Indizes'!AA$5, FALSE) -> 94 | AB71: =INDIRECT('STRG-Indizes'!$B$3 & "Z" & 'STRG-Indizes'!$B70 & "S" & 'STRG-Indizes'!AB$5, FALSE) -> 99 | AC71: =INDIRECT('STRG-Indizes'!$B$3 & "Z" & 'STRG-Indizes'!$B70 & "S" & 'STRG-Indizes'!AC$5, FALSE) -> 104 | AD71: =INDIRECT('STRG-Indizes'!$B$3 & "Z" & 'STRG-Indizes'!$B70 & "S" & 'STRG-Indizes'!AD$5, FALSE) -> 133 | AE71: =INDIRECT('STRG-Indizes'!$B$3 & "Z" & 'STRG-Indizes'!$B70 & "S" & 'STRG-Indizes'!AE$5, FALSE) -> 104 | AF71: =INDIRECT('STRG-Indizes'!$B$3 & "Z" & 'STRG-Indizes'!$B70 & "S" & 'STRG-Indizes'!AF$5, FALSE) -> 109 | AG71: =INDIRECT('STRG-Indizes'!$B$3 & "Z" & 'STRG-Indizes'!$B70 & "S" & 'STRG-Indizes'!AG$5, FALSE) -> 94 | AH71: =INDIRECT('STRG-Indizes'!$B$3 & "Z" & 'STRG-Indizes'!$B70 & "S" & 'STRG-Indizes'!AH$5, FALSE) -> 127 | AI71: =INDIRECT('STRG-Indizes'!$B$3 & "Z" & 'STRG-Indizes'!$B70 & "S" & 'STRG-Indizes'!AI$5, FALSE) -> 249 | AJ71: =INDIRECT('STRG-Indizes'!$B$3 & "Z" & 'STRG-Indizes'!$B70 & "S" & 'STRG-Indizes'!AJ$5, FALSE) -> 163
A72: JC Tuttlingen | B72: Ic | C72: =IF('STRG-Merkmal'!$E$9=2,"",INDIRECT('STRG-Indizes'!$B$3&"Z"&'STRG-Indizes'!$B71&"S"&'STRG-Indizes'!C$5,FALSE)) -> 32 | D72: =IF('STRG-Merkmal'!$E$9=2,"",INDIRECT('STRG-Indizes'!$B$3&"Z"&'STRG-Indizes'!$B71&"S"&'STRG-Indizes'!D$5,FALSE)) -> 40 | E72: =IF('STRG-Merkmal'!$E$9=2,"",INDIRECT('STRG-Indizes'!$B$3&"Z"&'STRG-Indizes'!$B71&"S"&'STRG-Indizes'!E$5,FALSE)) -> 37 | F72: =IF('STRG-Merkmal'!$E$9=2,"",INDIRECT('STRG-Indizes'!$B$3&"Z"&'STRG-Indizes'!$B71&"S"&'STRG-Indizes'!F$5,FALSE)) -> 52 | G72: =IF('STRG-Merkmal'!$E$9=2,"",INDIRECT('STRG-Indizes'!$B$3&"Z"&'STRG-Indizes'!$B71&"S"&'STRG-Indizes'!G$5,FALSE)) -> 50 | H72: =IF('STRG-Merkmal'!$E$9=2,"",INDIRECT('STRG-Indizes'!$B$3&"Z"&'STRG-Indizes'!$B71&"S"&'STRG-Indizes'!H$5,FALSE)) -> 42 | I72: =IF('STRG-Merkmal'!$E$9=2,"",INDIRECT('STRG-Indizes'!$B$3&"Z"&'STRG-Indizes'!$B71&"S"&'STRG-Indizes'!I$5,FALSE)) -> 64 | J72: =IF('STRG-Merkmal'!$E$9=2,"",INDIRECT('STRG-Indizes'!$B$3&"Z"&'STRG-Indizes'!$B71&"S"&'STRG-Indizes'!J$5,FALSE)) -> 67 | K72: =IF('STRG-Merkmal'!$E$9=2,"",INDIRECT('STRG-Indizes'!$B$3&"Z"&'STRG-Indizes'!$B71&"S"&'STRG-Indizes'!K$5,FALSE)) -> 86 | L72: =IF('STRG-Merkmal'!$E$9=2,"",INDIRECT('STRG-Indizes'!$B$3&"Z"&'STRG-Indizes'!$B71&"S"&'STRG-Indizes'!L$5,FALSE)) -> 57 | M72: =IF('STRG-Merkmal'!$E$9=2,"",INDIRECT('STRG-Indizes'!$B$3&"Z"&'STRG-Indizes'!$B71&"S"&'STRG-Indizes'!M$5,FALSE)) -> 56 | N72: =INDIRECT('STRG-Indizes'!$B$3&"Z"&'STRG-Indizes'!$B71&"S"&'STRG-Indizes'!N$5,FALSE) -> 45 | O72: =INDIRECT('STRG-Indizes'!$B$3 & "Z" & 'STRG-Indizes'!$B71 & "S" & 'STRG-Indizes'!O$5, FALSE) -> 41 | P72: =INDIRECT('STRG-Indizes'!$B$3 & "Z" & 'STRG-Indizes'!$B71 & "S" & 'STRG-Indizes'!P$5, FALSE) -> 41 | Q72: =INDIRECT('STRG-Indizes'!$B$3 & "Z" & 'STRG-Indizes'!$B71 & "S" & 'STRG-Indizes'!Q$5, FALSE) -> 70 | R72: =INDIRECT('STRG-Indizes'!$B$3 & "Z" & 'STRG-Indizes'!$B71 & "S" & 'STRG-Indizes'!R$5, FALSE) -> 58 | S72: =INDIRECT('STRG-Indizes'!$B$3 & "Z" & 'STRG-Indizes'!$B71 & "S" & 'STRG-Indizes'!S$5, FALSE) -> 71 | T72: =INDIRECT('STRG-Indizes'!$B$3 & "Z" & 'STRG-Indizes'!$B71 & "S" & 'STRG-Indizes'!T$5, FALSE) -> 52 | U72: =INDIRECT('STRG-Indizes'!$B$3 & "Z" & 'STRG-Indizes'!$B71 & "S" & 'STRG-Indizes'!U$5, FALSE) -> 64 | V72: =INDIRECT('STRG-Indizes'!$B$3 & "Z" & 'STRG-Indizes'!$B71 & "S" & 'STRG-Indizes'!V$5, FALSE) -> 55 | W72: =INDIRECT('STRG-Indizes'!$B$3 & "Z" & 'STRG-Indizes'!$B71 & "S" & 'STRG-Indizes'!W$5, FALSE) -> 111 | X72: =INDIRECT('STRG-Indizes'!$B$3 & "Z" & 'STRG-Indizes'!$B71 & "S" & 'STRG-Indizes'!X$5, FALSE) -> 75 | Y72: =INDIRECT('STRG-Indizes'!$B$3 & "Z" & 'STRG-Indizes'!$B71 & "S" & 'STRG-Indizes'!Y$5, FALSE) -> 49 | Z72: =INDIRECT('STRG-Indizes'!$B$3 & "Z" & 'STRG-Indizes'!$B71 & "S" & 'STRG-Indizes'!Z$5, FALSE) -> 34 | AA72: =INDIRECT('STRG-Indizes'!$B$3 & "Z" & 'STRG-Indizes'!$B71 & "S" & 'STRG-Indizes'!AA$5, FALSE) -> 32 | AB72: =INDIRECT('STRG-Indizes'!$B$3 & "Z" & 'STRG-Indizes'!$B71 & "S" & 'STRG-Indizes'!AB$5, FALSE) -> 44 | AC72: =INDIRECT('STRG-Indizes'!$B$3 & "Z" & 'STRG-Indizes'!$B71 & "S" & 'STRG-Indizes'!AC$5, FALSE) -> 31 | AD72: =INDIRECT('STRG-Indizes'!$B$3 & "Z" & 'STRG-Indizes'!$B71 & "S" & 'STRG-Indizes'!AD$5, FALSE) -> 41 | AE72: =INDIRECT('STRG-Indizes'!$B$3 & "Z" & 'STRG-Indizes'!$B71 & "S" & 'STRG-Indizes'!AE$5, FALSE) -> 40 | AF72: =INDIRECT('STRG-Indizes'!$B$3 & "Z" & 'STRG-Indizes'!$B71 & "S" & 'STRG-Indizes'!AF$5, FALSE) -> 46 | AG72: =INDIRECT('STRG-Indizes'!$B$3 & "Z" & 'STRG-Indizes'!$B71 & "S" & 'STRG-Indizes'!AG$5, FALSE) -> 37 | AH72: =INDIRECT('STRG-Indizes'!$B$3 & "Z" & 'STRG-Indizes'!$B71 & "S" & 'STRG-Indizes'!AH$5, FALSE) -> 54 | AI72: =INDIRECT('STRG-Indizes'!$B$3 & "Z" & 'STRG-Indizes'!$B71 & "S" & 'STRG-Indizes'!AI$5, FALSE) -> 98 | AJ72: =INDIRECT('STRG-Indizes'!$B$3 & "Z" & 'STRG-Indizes'!$B71 & "S" & 'STRG-Indizes'!AJ$5, FALSE) -> 70
A73: JC Ulm, Universitätsstadt | B73: IIb | C73: =IF('STRG-Merkmal'!$E$9=2,"",INDIRECT('STRG-Indizes'!$B$3&"Z"&'STRG-Indizes'!$B72&"S"&'STRG-Indizes'!C$5,FALSE)) -> 78 | D73: =IF('STRG-Merkmal'!$E$9=2,"",INDIRECT('STRG-Indizes'!$B$3&"Z"&'STRG-Indizes'!$B72&"S"&'STRG-Indizes'!D$5,FALSE)) -> 85 | E73: =IF('STRG-Merkmal'!$E$9=2,"",INDIRECT('STRG-Indizes'!$B$3&"Z"&'STRG-Indizes'!$B72&"S"&'STRG-Indizes'!E$5,FALSE)) -> 121 | F73: =IF('STRG-Merkmal'!$E$9=2,"",INDIRECT('STRG-Indizes'!$B$3&"Z"&'STRG-Indizes'!$B72&"S"&'STRG-Indizes'!F$5,FALSE)) -> 121 | G73: =IF('STRG-Merkmal'!$E$9=2,"",INDIRECT('STRG-Indizes'!$B$3&"Z"&'STRG-Indizes'!$B72&"S"&'STRG-Indizes'!G$5,FALSE)) -> 112 | H73: =IF('STRG-Merkmal'!$E$9=2,"",INDIRECT('STRG-Indizes'!$B$3&"Z"&'STRG-Indizes'!$B72&"S"&'STRG-Indizes'!H$5,FALSE)) -> 100 | I73: =IF('STRG-Merkmal'!$E$9=2,"",INDIRECT('STRG-Indizes'!$B$3&"Z"&'STRG-Indizes'!$B72&"S"&'STRG-Indizes'!I$5,FALSE)) -> 99 | J73: =IF('STRG-Merkmal'!$E$9=2,"",INDIRECT('STRG-Indizes'!$B$3&"Z"&'STRG-Indizes'!$B72&"S"&'STRG-Indizes'!J$5,FALSE)) -> 133 | K73: =IF('STRG-Merkmal'!$E$9=2,"",INDIRECT('STRG-Indizes'!$B$3&"Z"&'STRG-Indizes'!$B72&"S"&'STRG-Indizes'!K$5,FALSE)) -> 254 | L73: =IF('STRG-Merkmal'!$E$9=2,"",INDIRECT('STRG-Indizes'!$B$3&"Z"&'STRG-Indizes'!$B72&"S"&'STRG-Indizes'!L$5,FALSE)) -> 133 | M73: =IF('STRG-Merkmal'!$E$9=2,"",INDIRECT('STRG-Indizes'!$B$3&"Z"&'STRG-Indizes'!$B72&"S"&'STRG-Indizes'!M$5,FALSE)) -> 109 | N73: =INDIRECT('STRG-Indizes'!$B$3&"Z"&'STRG-Indizes'!$B72&"S"&'STRG-Indizes'!N$5,FALSE) -> 78 | O73: =INDIRECT('STRG-Indizes'!$B$3 & "Z" & 'STRG-Indizes'!$B72 & "S" & 'STRG-Indizes'!O$5, FALSE) -> 61 | P73: =INDIRECT('STRG-Indizes'!$B$3 & "Z" & 'STRG-Indizes'!$B72 & "S" & 'STRG-Indizes'!P$5, FALSE) -> 117 | Q73: =INDIRECT('STRG-Indizes'!$B$3 & "Z" & 'STRG-Indizes'!$B72 & "S" & 'STRG-Indizes'!Q$5, FALSE) -> 87 | R73: =INDIRECT('STRG-Indizes'!$B$3 & "Z" & 'STRG-Indizes'!$B72 & "S" & 'STRG-Indizes'!R$5, FALSE) -> 130 | S73: =INDIRECT('STRG-Indizes'!$B$3 & "Z" & 'STRG-Indizes'!$B72 & "S" & 'STRG-Indizes'!S$5, FALSE) -> 129 | T73: =INDIRECT('STRG-Indizes'!$B$3 & "Z" & 'STRG-Indizes'!$B72 & "S" & 'STRG-Indizes'!T$5, FALSE) -> 129 | U73: =INDIRECT('STRG-Indizes'!$B$3 & "Z" & 'STRG-Indizes'!$B72 & "S" & 'STRG-Indizes'!U$5, FALSE) -> 111 | V73: =INDIRECT('STRG-Indizes'!$B$3 & "Z" & 'STRG-Indizes'!$B72 & "S" & 'STRG-Indizes'!V$5, FALSE) -> 134 | W73: =INDIRECT('STRG-Indizes'!$B$3 & "Z" & 'STRG-Indizes'!$B72 & "S" & 'STRG-Indizes'!W$5, FALSE) -> 209 | X73: =INDIRECT('STRG-Indizes'!$B$3 & "Z" & 'STRG-Indizes'!$B72 & "S" & 'STRG-Indizes'!X$5, FALSE) -> 114 | Y73: =INDIRECT('STRG-Indizes'!$B$3 & "Z" & 'STRG-Indizes'!$B72 & "S" & 'STRG-Indizes'!Y$5, FALSE) -> 105 | Z73: =INDIRECT('STRG-Indizes'!$B$3 & "Z" & 'STRG-Indizes'!$B72 & "S" & 'STRG-Indizes'!Z$5, FALSE) -> 94 | AA73: =INDIRECT('STRG-Indizes'!$B$3 & "Z" & 'STRG-Indizes'!$B72 & "S" & 'STRG-Indizes'!AA$5, FALSE) -> 82 | AB73: =INDIRECT('STRG-Indizes'!$B$3 & "Z" & 'STRG-Indizes'!$B72 & "S" & 'STRG-Indizes'!AB$5, FALSE) -> 97 | AC73: =INDIRECT('STRG-Indizes'!$B$3 & "Z" & 'STRG-Indizes'!$B72 & "S" & 'STRG-Indizes'!AC$5, FALSE) -> 122 | AD73: =INDIRECT('STRG-Indizes'!$B$3 & "Z" & 'STRG-Indizes'!$B72 & "S" & 'STRG-Indizes'!AD$5, FALSE) -> 114 | AE73: =INDIRECT('STRG-Indizes'!$B$3 & "Z" & 'STRG-Indizes'!$B72 & "S" & 'STRG-Indizes'!AE$5, FALSE) -> 95 | AF73: =INDIRECT('STRG-Indizes'!$B$3 & "Z" & 'STRG-Indizes'!$B72 & "S" & 'STRG-Indizes'!AF$5, FALSE) -> 80 | AG73: =INDIRECT('STRG-Indizes'!$B$3 & "Z" & 'STRG-Indizes'!$B72 & "S" & 'STRG-Indizes'!AG$5, FALSE) -> 79 | AH73: =INDIRECT('STRG-Indizes'!$B$3 & "Z" & 'STRG-Indizes'!$B72 & "S" & 'STRG-Indizes'!AH$5, FALSE) -> 126 | AI73: =INDIRECT('STRG-Indizes'!$B$3 & "Z" & 'STRG-Indizes'!$B72 & "S" & 'STRG-Indizes'!AI$5, FALSE) -> 225 | AJ73: =INDIRECT('STRG-Indizes'!$B$3 & "Z" & 'STRG-Indizes'!$B72 & "S" & 'STRG-Indizes'!AJ$5, FALSE) -> 130
A74: JC Waldshut | B74: Id | C74: =IF('STRG-Merkmal'!$E$9=2,"",INDIRECT('STRG-Indizes'!$B$3&"Z"&'STRG-Indizes'!$B73&"S"&'STRG-Indizes'!C$5,FALSE)) -> 48 | D74: =IF('STRG-Merkmal'!$E$9=2,"",INDIRECT('STRG-Indizes'!$B$3&"Z"&'STRG-Indizes'!$B73&"S"&'STRG-Indizes'!D$5,FALSE)) -> 87 | E74: =IF('STRG-Merkmal'!$E$9=2,"",INDIRECT('STRG-Indizes'!$B$3&"Z"&'STRG-Indizes'!$B73&"S"&'STRG-Indizes'!E$5,FALSE)) -> 82 | F74: =IF('STRG-Merkmal'!$E$9=2,"",INDIRECT('STRG-Indizes'!$B$3&"Z"&'STRG-Indizes'!$B73&"S"&'STRG-Indizes'!F$5,FALSE)) -> 92 | G74: =IF('STRG-Merkmal'!$E$9=2,"",INDIRECT('STRG-Indizes'!$B$3&"Z"&'STRG-Indizes'!$B73&"S"&'STRG-Indizes'!G$5,FALSE)) -> 90 | H74: =IF('STRG-Merkmal'!$E$9=2,"",INDIRECT('STRG-Indizes'!$B$3&"Z"&'STRG-Indizes'!$B73&"S"&'STRG-Indizes'!H$5,FALSE)) -> 77 | I74: =IF('STRG-Merkmal'!$E$9=2,"",INDIRECT('STRG-Indizes'!$B$3&"Z"&'STRG-Indizes'!$B73&"S"&'STRG-Indizes'!I$5,FALSE)) -> 88 | J74: =IF('STRG-Merkmal'!$E$9=2,"",INDIRECT('STRG-Indizes'!$B$3&"Z"&'STRG-Indizes'!$B73&"S"&'STRG-Indizes'!J$5,FALSE)) -> 110 | K74: =IF('STRG-Merkmal'!$E$9=2,"",INDIRECT('STRG-Indizes'!$B$3&"Z"&'STRG-Indizes'!$B73&"S"&'STRG-Indizes'!K$5,FALSE)) -> 139 | L74: =IF('STRG-Merkmal'!$E$9=2,"",INDIRECT('STRG-Indizes'!$B$3&"Z"&'STRG-Indizes'!$B73&"S"&'STRG-Indizes'!L$5,FALSE)) -> 77 | M74: =IF('STRG-Merkmal'!$E$9=2,"",INDIRECT('STRG-Indizes'!$B$3&"Z"&'STRG-Indizes'!$B73&"S"&'STRG-Indizes'!M$5,FALSE)) -> 76 | N74: =INDIRECT('STRG-Indizes'!$B$3&"Z"&'STRG-Indizes'!$B73&"S"&'STRG-Indizes'!N$5,FALSE) -> 81 | O74: =INDIRECT('STRG-Indizes'!$B$3 & "Z" & 'STRG-Indizes'!$B73 & "S" & 'STRG-Indizes'!O$5, FALSE) -> 65 | P74: =INDIRECT('STRG-Indizes'!$B$3 & "Z" & 'STRG-Indizes'!$B73 & "S" & 'STRG-Indizes'!P$5, FALSE) -> 75 | Q74: =INDIRECT('STRG-Indizes'!$B$3 & "Z" & 'STRG-Indizes'!$B73 & "S" & 'STRG-Indizes'!Q$5, FALSE) -> 60 | R74: =INDIRECT('STRG-Indizes'!$B$3 & "Z" & 'STRG-Indizes'!$B73 & "S" & 'STRG-Indizes'!R$5, FALSE) -> 83 | S74: =INDIRECT('STRG-Indizes'!$B$3 & "Z" & 'STRG-Indizes'!$B73 & "S" & 'STRG-Indizes'!S$5, FALSE) -> 73 | T74: =INDIRECT('STRG-Indizes'!$B$3 & "Z" & 'STRG-Indizes'!$B73 & "S" & 'STRG-Indizes'!T$5, FALSE) -> 69 | U74: =INDIRECT('STRG-Indizes'!$B$3 & "Z" & 'STRG-Indizes'!$B73 & "S" & 'STRG-Indizes'!U$5, FALSE) -> 81 | V74: =INDIRECT('STRG-Indizes'!$B$3 & "Z" & 'STRG-Indizes'!$B73 & "S" & 'STRG-Indizes'!V$5, FALSE) -> 112 | W74: =INDIRECT('STRG-Indizes'!$B$3 & "Z" & 'STRG-Indizes'!$B73 & "S" & 'STRG-Indizes'!W$5, FALSE) -> 181 | X74: =INDIRECT('STRG-Indizes'!$B$3 & "Z" & 'STRG-Indizes'!$B73 & "S" & 'STRG-Indizes'!X$5, FALSE) -> 90 | Y74: =INDIRECT('STRG-Indizes'!$B$3 & "Z" & 'STRG-Indizes'!$B73 & "S" & 'STRG-Indizes'!Y$5, FALSE) -> 73 | Z74: =INDIRECT('STRG-Indizes'!$B$3 & "Z" & 'STRG-Indizes'!$B73 & "S" & 'STRG-Indizes'!Z$5, FALSE) -> 63 | AA74: =INDIRECT('STRG-Indizes'!$B$3 & "Z" & 'STRG-Indizes'!$B73 & "S" & 'STRG-Indizes'!AA$5, FALSE) -> 87 | AB74: =INDIRECT('STRG-Indizes'!$B$3 & "Z" & 'STRG-Indizes'!$B73 & "S" & 'STRG-Indizes'!AB$5, FALSE) -> 64 | AC74: =INDIRECT('STRG-Indizes'!$B$3 & "Z" & 'STRG-Indizes'!$B73 & "S" & 'STRG-Indizes'!AC$5, FALSE) -> 82 | AD74: =INDIRECT('STRG-Indizes'!$B$3 & "Z" & 'STRG-Indizes'!$B73 & "S" & 'STRG-Indizes'!AD$5, FALSE) -> 100 | AE74: =INDIRECT('STRG-Indizes'!$B$3 & "Z" & 'STRG-Indizes'!$B73 & "S" & 'STRG-Indizes'!AE$5, FALSE) -> 79 | AF74: =INDIRECT('STRG-Indizes'!$B$3 & "Z" & 'STRG-Indizes'!$B73 & "S" & 'STRG-Indizes'!AF$5, FALSE) -> 88 | AG74: =INDIRECT('STRG-Indizes'!$B$3 & "Z" & 'STRG-Indizes'!$B73 & "S" & 'STRG-Indizes'!AG$5, FALSE) -> 66 | AH74: =INDIRECT('STRG-Indizes'!$B$3 & "Z" & 'STRG-Indizes'!$B73 & "S" & 'STRG-Indizes'!AH$5, FALSE) -> 97 | AI74: =INDIRECT('STRG-Indizes'!$B$3 & "Z" & 'STRG-Indizes'!$B73 & "S" & 'STRG-Indizes'!AI$5, FALSE) -> 152 | AJ74: =INDIRECT('STRG-Indizes'!$B$3 & "Z" & 'STRG-Indizes'!$B73 & "S" & 'STRG-Indizes'!AJ$5, FALSE) -> 84
A75: JC Zollernalbkreis | B75: Ic | C75: =IF('STRG-Merkmal'!$E$9=2,"",INDIRECT('STRG-Indizes'!$B$3&"Z"&'STRG-Indizes'!$B74&"S"&'STRG-Indizes'!C$5,FALSE)) -> 70 | D75: =IF('STRG-Merkmal'!$E$9=2,"",INDIRECT('STRG-Indizes'!$B$3&"Z"&'STRG-Indizes'!$B74&"S"&'STRG-Indizes'!D$5,FALSE)) -> 98 | E75: =IF('STRG-Merkmal'!$E$9=2,"",INDIRECT('STRG-Indizes'!$B$3&"Z"&'STRG-Indizes'!$B74&"S"&'STRG-Indizes'!E$5,FALSE)) -> 84 | F75: =IF('STRG-Merkmal'!$E$9=2,"",INDIRECT('STRG-Indizes'!$B$3&"Z"&'STRG-Indizes'!$B74&"S"&'STRG-Indizes'!F$5,FALSE)) -> 90 | G75: =IF('STRG-Merkmal'!$E$9=2,"",INDIRECT('STRG-Indizes'!$B$3&"Z"&'STRG-Indizes'!$B74&"S"&'STRG-Indizes'!G$5,FALSE)) -> 105 | H75: =IF('STRG-Merkmal'!$E$9=2,"",INDIRECT('STRG-Indizes'!$B$3&"Z"&'STRG-Indizes'!$B74&"S"&'STRG-Indizes'!H$5,FALSE)) -> 95 | I75: =IF('STRG-Merkmal'!$E$9=2,"",INDIRECT('STRG-Indizes'!$B$3&"Z"&'STRG-Indizes'!$B74&"S"&'STRG-Indizes'!I$5,FALSE)) -> 107 | J75: =IF('STRG-Merkmal'!$E$9=2,"",INDIRECT('STRG-Indizes'!$B$3&"Z"&'STRG-Indizes'!$B74&"S"&'STRG-Indizes'!J$5,FALSE)) -> 94 | K75: =IF('STRG-Merkmal'!$E$9=2,"",INDIRECT('STRG-Indizes'!$B$3&"Z"&'STRG-Indizes'!$B74&"S"&'STRG-Indizes'!K$5,FALSE)) -> 200 | L75: =IF('STRG-Merkmal'!$E$9=2,"",INDIRECT('STRG-Indizes'!$B$3&"Z"&'STRG-Indizes'!$B74&"S"&'STRG-Indizes'!L$5,FALSE)) -> 116 | M75: =IF('STRG-Merkmal'!$E$9=2,"",INDIRECT('STRG-Indizes'!$B$3&"Z"&'STRG-Indizes'!$B74&"S"&'STRG-Indizes'!M$5,FALSE)) -> 98 | N75: =INDIRECT('STRG-Indizes'!$B$3&"Z"&'STRG-Indizes'!$B74&"S"&'STRG-Indizes'!N$5,FALSE) -> 85 | O75: =INDIRECT('STRG-Indizes'!$B$3 & "Z" & 'STRG-Indizes'!$B74 & "S" & 'STRG-Indizes'!O$5, FALSE) -> 65 | P75: =INDIRECT('STRG-Indizes'!$B$3 & "Z" & 'STRG-Indizes'!$B74 & "S" & 'STRG-Indizes'!P$5, FALSE) -> 96 | Q75: =INDIRECT('STRG-Indizes'!$B$3 & "Z" & 'STRG-Indizes'!$B74 & "S" & 'STRG-Indizes'!Q$5, FALSE) -> 97 | R75: =INDIRECT('STRG-Indizes'!$B$3 & "Z" & 'STRG-Indizes'!$B74 & "S" & 'STRG-Indizes'!R$5, FALSE) -> 93 | S75: =INDIRECT('STRG-Indizes'!$B$3 & "Z" & 'STRG-Indizes'!$B74 & "S" & 'STRG-Indizes'!S$5, FALSE) -> 119 | T75: =INDIRECT('STRG-Indizes'!$B$3 & "Z" & 'STRG-Indizes'!$B74 & "S" & 'STRG-Indizes'!T$5, FALSE) -> 93 | U75: =INDIRECT('STRG-Indizes'!$B$3 & "Z" & 'STRG-Indizes'!$B74 & "S" & 'STRG-Indizes'!U$5, FALSE) -> 100 | V75: =INDIRECT('STRG-Indizes'!$B$3 & "Z" & 'STRG-Indizes'!$B74 & "S" & 'STRG-Indizes'!V$5, FALSE) -> 91 | W75: =INDIRECT('STRG-Indizes'!$B$3 & "Z" & 'STRG-Indizes'!$B74 & "S" & 'STRG-Indizes'!W$5, FALSE) -> 181 | X75: =INDIRECT('STRG-Indizes'!$B$3 & "Z" & 'STRG-Indizes'!$B74 & "S" & 'STRG-Indizes'!X$5, FALSE) -> 116 | Y75: =INDIRECT('STRG-Indizes'!$B$3 & "Z" & 'STRG-Indizes'!$B74 & "S" & 'STRG-Indizes'!Y$5, FALSE) -> 92 | Z75: =INDIRECT('STRG-Indizes'!$B$3 & "Z" & 'STRG-Indizes'!$B74 & "S" & 'STRG-Indizes'!Z$5, FALSE) -> 63 | AA75: =INDIRECT('STRG-Indizes'!$B$3 & "Z" & 'STRG-Indizes'!$B74 & "S" & 'STRG-Indizes'!AA$5, FALSE) -> 48 | AB75: =INDIRECT('STRG-Indizes'!$B$3 & "Z" & 'STRG-Indizes'!$B74 & "S" & 'STRG-Indizes'!AB$5, FALSE) -> 75 | AC75: =INDIRECT('STRG-Indizes'!$B$3 & "Z" & 'STRG-Indizes'!$B74 & "S" & 'STRG-Indizes'!AC$5, FALSE) -> 73 | AD75: =INDIRECT('STRG-Indizes'!$B$3 & "Z" & 'STRG-Indizes'!$B74 & "S" & 'STRG-Indizes'!AD$5, FALSE) -> 112 | AE75: =INDIRECT('STRG-Indizes'!$B$3 & "Z" & 'STRG-Indizes'!$B74 & "S" & 'STRG-Indizes'!AE$5, FALSE) -> 69 | AF75: =INDIRECT('STRG-Indizes'!$B$3 & "Z" & 'STRG-Indizes'!$B74 & "S" & 'STRG-Indizes'!AF$5, FALSE) -> 76 | AG75: =INDIRECT('STRG-Indizes'!$B$3 & "Z" & 'STRG-Indizes'!$B74 & "S" & 'STRG-Indizes'!AG$5, FALSE) -> 55 | AH75: =INDIRECT('STRG-Indizes'!$B$3 & "Z" & 'STRG-Indizes'!$B74 & "S" & 'STRG-Indizes'!AH$5, FALSE) -> 87 | AI75: =INDIRECT('STRG-Indizes'!$B$3 & "Z" & 'STRG-Indizes'!$B74 & "S" & 'STRG-Indizes'!AI$5, FALSE) -> 147 | AJ75: =INDIRECT('STRG-Indizes'!$B$3 & "Z" & 'STRG-Indizes'!$B74 & "S" & 'STRG-Indizes'!AJ$5, FALSE) -> 101
A76: Bayern | C76: =IF('STRG-Merkmal'!$E$9=2,"",INDIRECT('STRG-Indizes'!$B$3&"Z"&'STRG-Indizes'!$B75&"S"&'STRG-Indizes'!C$5,FALSE)) -> 5180 | D76: =IF('STRG-Merkmal'!$E$9=2,"",INDIRECT('STRG-Indizes'!$B$3&"Z"&'STRG-Indizes'!$B75&"S"&'STRG-Indizes'!D$5,FALSE)) -> 6657 | E76: =IF('STRG-Merkmal'!$E$9=2,"",INDIRECT('STRG-Indizes'!$B$3&"Z"&'STRG-Indizes'!$B75&"S"&'STRG-Indizes'!E$5,FALSE)) -> 7702 | F76: =IF('STRG-Merkmal'!$E$9=2,"",INDIRECT('STRG-Indizes'!$B$3&"Z"&'STRG-Indizes'!$B75&"S"&'STRG-Indizes'!F$5,FALSE)) -> 9017 | G76: =IF('STRG-Merkmal'!$E$9=2,"",INDIRECT('STRG-Indizes'!$B$3&"Z"&'STRG-Indizes'!$B75&"S"&'STRG-Indizes'!G$5,FALSE)) -> 8897 | H76: =IF('STRG-Merkmal'!$E$9=2,"",INDIRECT('STRG-Indizes'!$B$3&"Z"&'STRG-Indizes'!$B75&"S"&'STRG-Indizes'!H$5,FALSE)) -> 7596 | I76: =IF('STRG-Merkmal'!$E$9=2,"",INDIRECT('STRG-Indizes'!$B$3&"Z"&'STRG-Indizes'!$B75&"S"&'STRG-Indizes'!I$5,FALSE)) -> 8438 | J76: =IF('STRG-Merkmal'!$E$9=2,"",INDIRECT('STRG-Indizes'!$B$3&"Z"&'STRG-Indizes'!$B75&"S"&'STRG-Indizes'!J$5,FALSE)) -> 9294 | K76: =IF('STRG-Merkmal'!$E$9=2,"",INDIRECT('STRG-Indizes'!$B$3&"Z"&'STRG-Indizes'!$B75&"S"&'STRG-Indizes'!K$5,FALSE)) -> 15612 | L76: =IF('STRG-Merkmal'!$E$9=2,"",INDIRECT('STRG-Indizes'!$B$3&"Z"&'STRG-Indizes'!$B75&"S"&'STRG-Indizes'!L$5,FALSE)) -> 9825 | M76: =IF('STRG-Merkmal'!$E$9=2,"",INDIRECT('STRG-Indizes'!$B$3&"Z"&'STRG-Indizes'!$B75&"S"&'STRG-Indizes'!M$5,FALSE)) -> 8065 | N76: =INDIRECT('STRG-Indizes'!$B$3&"Z"&'STRG-Indizes'!$B75&"S"&'STRG-Indizes'!N$5,FALSE) -> 6579 | O76: =INDIRECT('STRG-Indizes'!$B$3 & "Z" & 'STRG-Indizes'!$B75 & "S" & 'STRG-Indizes'!O$5, FALSE) -> 5627 | P76: =INDIRECT('STRG-Indizes'!$B$3 & "Z" & 'STRG-Indizes'!$B75 & "S" & 'STRG-Indizes'!P$5, FALSE) -> 7359 | Q76: =INDIRECT('STRG-Indizes'!$B$3 & "Z" & 'STRG-Indizes'!$B75 & "S" & 'STRG-Indizes'!Q$5, FALSE) -> 8169 | R76: =INDIRECT('STRG-Indizes'!$B$3 & "Z" & 'STRG-Indizes'!$B75 & "S" & 'STRG-Indizes'!R$5, FALSE) -> 8685 | S76: =INDIRECT('STRG-Indizes'!$B$3 & "Z" & 'STRG-Indizes'!$B75 & "S" & 'STRG-Indizes'!S$5, FALSE) -> 9488 | T76: =INDIRECT('STRG-Indizes'!$B$3 & "Z" & 'STRG-Indizes'!$B75 & "S" & 'STRG-Indizes'!T$5, FALSE) -> 7787 | U76: =INDIRECT('STRG-Indizes'!$B$3 & "Z" & 'STRG-Indizes'!$B75 & "S" & 'STRG-Indizes'!U$5, FALSE) -> 8291 | V76: =INDIRECT('STRG-Indizes'!$B$3 & "Z" & 'STRG-Indizes'!$B75 & "S" & 'STRG-Indizes'!V$5, FALSE) -> 8966 | W76: =INDIRECT('STRG-Indizes'!$B$3 & "Z" & 'STRG-Indizes'!$B75 & "S" & 'STRG-Indizes'!W$5, FALSE) -> 15284 | X76: =INDIRECT('STRG-Indizes'!$B$3 & "Z" & 'STRG-Indizes'!$B75 & "S" & 'STRG-Indizes'!X$5, FALSE) -> 9425 | Y76: =INDIRECT('STRG-Indizes'!$B$3 & "Z" & 'STRG-Indizes'!$B75 & "S" & 'STRG-Indizes'!Y$5, FALSE) -> 7613 | Z76: =INDIRECT('STRG-Indizes'!$B$3 & "Z" & 'STRG-Indizes'!$B75 & "S" & 'STRG-Indizes'!Z$5, FALSE) -> 6146 | AA76: =INDIRECT('STRG-Indizes'!$B$3 & "Z" & 'STRG-Indizes'!$B75 & "S" & 'STRG-Indizes'!AA$5, FALSE) -> 5558 | AB76: =INDIRECT('STRG-Indizes'!$B$3 & "Z" & 'STRG-Indizes'!$B75 & "S" & 'STRG-Indizes'!AB$5, FALSE) -> 6302 | AC76: =INDIRECT('STRG-Indizes'!$B$3 & "Z" & 'STRG-Indizes'!$B75 & "S" & 'STRG-Indizes'!AC$5, FALSE) -> 7374 | AD76: =INDIRECT('STRG-Indizes'!$B$3 & "Z" & 'STRG-Indizes'!$B75 & "S" & 'STRG-Indizes'!AD$5, FALSE) -> 8200 | AE76: =INDIRECT('STRG-Indizes'!$B$3 & "Z" & 'STRG-Indizes'!$B75 & "S" & 'STRG-Indizes'!AE$5, FALSE) -> 7475 | AF76: =INDIRECT('STRG-Indizes'!$B$3 & "Z" & 'STRG-Indizes'!$B75 & "S" & 'STRG-Indizes'!AF$5, FALSE) -> 6891 | AG76: =INDIRECT('STRG-Indizes'!$B$3 & "Z" & 'STRG-Indizes'!$B75 & "S" & 'STRG-Indizes'!AG$5, FALSE) -> 6643 | AH76: =INDIRECT('STRG-Indizes'!$B$3 & "Z" & 'STRG-Indizes'!$B75 & "S" & 'STRG-Indizes'!AH$5, FALSE) -> 7671 | AI76: =INDIRECT('STRG-Indizes'!$B$3 & "Z" & 'STRG-Indizes'!$B75 & "S" & 'STRG-Indizes'!AI$5, FALSE) -> 13553 | AJ76: =INDIRECT('STRG-Indizes'!$B$3 & "Z" & 'STRG-Indizes'!$B75 & "S" & 'STRG-Indizes'!AJ$5, FALSE) -> 8616
A77: JC Aichach-Friedberg | B77: Ib | C77: =IF('STRG-Merkmal'!$E$9=2,"",INDIRECT('STRG-Indizes'!$B$3&"Z"&'STRG-Indizes'!$B76&"S"&'STRG-Indizes'!C$5,FALSE)) -> 17 | D77: =IF('STRG-Merkmal'!$E$9=2,"",INDIRECT('STRG-Indizes'!$B$3&"Z"&'STRG-Indizes'!$B76&"S"&'STRG-Indizes'!D$5,FALSE)) -> 34 | E77: =IF('STRG-Merkmal'!$E$9=2,"",INDIRECT('STRG-Indizes'!$B$3&"Z"&'STRG-Indizes'!$B76&"S"&'STRG-Indizes'!E$5,FALSE)) -> 53 | F77: =IF('STRG-Merkmal'!$E$9=2,"",INDIRECT('STRG-Indizes'!$B$3&"Z"&'STRG-Indizes'!$B76&"S"&'STRG-Indizes'!F$5,FALSE)) -> 28 | G77: =IF('STRG-Merkmal'!$E$9=2,"",INDIRECT('STRG-Indizes'!$B$3&"Z"&'STRG-Indizes'!$B76&"S"&'STRG-Indizes'!G$5,FALSE)) -> 37 | H77: =IF('STRG-Merkmal'!$E$9=2,"",INDIRECT('STRG-Indizes'!$B$3&"Z"&'STRG-Indizes'!$B76&"S"&'STRG-Indizes'!H$5,FALSE)) -> 35 | I77: =IF('STRG-Merkmal'!$E$9=2,"",INDIRECT('STRG-Indizes'!$B$3&"Z"&'STRG-Indizes'!$B76&"S"&'STRG-Indizes'!I$5,FALSE)) -> 28 | J77: =IF('STRG-Merkmal'!$E$9=2,"",INDIRECT('STRG-Indizes'!$B$3&"Z"&'STRG-Indizes'!$B76&"S"&'STRG-Indizes'!J$5,FALSE)) -> 60 | K77: =IF('STRG-Merkmal'!$E$9=2,"",INDIRECT('STRG-Indizes'!$B$3&"Z"&'STRG-Indizes'!$B76&"S"&'STRG-Indizes'!K$5,FALSE)) -> 76 | L77: =IF('STRG-Merkmal'!$E$9=2,"",INDIRECT('STRG-Indizes'!$B$3&"Z"&'STRG-Indizes'!$B76&"S"&'STRG-Indizes'!L$5,FALSE)) -> 52 | M77: =IF('STRG-Merkmal'!$E$9=2,"",INDIRECT('STRG-Indizes'!$B$3&"Z"&'STRG-Indizes'!$B76&"S"&'STRG-Indizes'!M$5,FALSE)) -> 47 | N77: =INDIRECT('STRG-Indizes'!$B$3&"Z"&'STRG-Indizes'!$B76&"S"&'STRG-Indizes'!N$5,FALSE) -> 33 | O77: =INDIRECT('STRG-Indizes'!$B$3 & "Z" & 'STRG-Indizes'!$B76 & "S" & 'STRG-Indizes'!O$5, FALSE) -> 22 | P77: =INDIRECT('STRG-Indizes'!$B$3 & "Z" & 'STRG-Indizes'!$B76 & "S" & 'STRG-Indizes'!P$5, FALSE) -> 43 | Q77: =INDIRECT('STRG-Indizes'!$B$3 & "Z" & 'STRG-Indizes'!$B76 & "S" & 'STRG-Indizes'!Q$5, FALSE) -> 24 | R77: =INDIRECT('STRG-Indizes'!$B$3 & "Z" & 'STRG-Indizes'!$B76 & "S" & 'STRG-Indizes'!R$5, FALSE) -> 50 | S77: =INDIRECT('STRG-Indizes'!$B$3 & "Z" & 'STRG-Indizes'!$B76 & "S" & 'STRG-Indizes'!S$5, FALSE) -> 54 | T77: =INDIRECT('STRG-Indizes'!$B$3 & "Z" & 'STRG-Indizes'!$B76 & "S" & 'STRG-Indizes'!T$5, FALSE) -> 41 | U77: =INDIRECT('STRG-Indizes'!$B$3 & "Z" & 'STRG-Indizes'!$B76 & "S" & 'STRG-Indizes'!U$5, FALSE) -> 41 | V77: =INDIRECT('STRG-Indizes'!$B$3 & "Z" & 'STRG-Indizes'!$B76 & "S" & 'STRG-Indizes'!V$5, FALSE) -> 38 | W77: =INDIRECT('STRG-Indizes'!$B$3 & "Z" & 'STRG-Indizes'!$B76 & "S" & 'STRG-Indizes'!W$5, FALSE) -> 88 | X77: =INDIRECT('STRG-Indizes'!$B$3 & "Z" & 'STRG-Indizes'!$B76 & "S" & 'STRG-Indizes'!X$5, FALSE) -> 62 | Y77: =INDIRECT('STRG-Indizes'!$B$3 & "Z" & 'STRG-Indizes'!$B76 & "S" & 'STRG-Indizes'!Y$5, FALSE) -> 35 | Z77: =INDIRECT('STRG-Indizes'!$B$3 & "Z" & 'STRG-Indizes'!$B76 & "S" & 'STRG-Indizes'!Z$5, FALSE) -> 27 | AA77: =INDIRECT('STRG-Indizes'!$B$3 & "Z" & 'STRG-Indizes'!$B76 & "S" & 'STRG-Indizes'!AA$5, FALSE) -> 25 | AB77: =INDIRECT('STRG-Indizes'!$B$3 & "Z" & 'STRG-Indizes'!$B76 & "S" & 'STRG-Indizes'!AB$5, FALSE) -> 31 | AC77: =INDIRECT('STRG-Indizes'!$B$3 & "Z" & 'STRG-Indizes'!$B76 & "S" & 'STRG-Indizes'!AC$5, FALSE) -> 55 | AD77: =INDIRECT('STRG-Indizes'!$B$3 & "Z" & 'STRG-Indizes'!$B76 & "S" & 'STRG-Indizes'!AD$5, FALSE) -> 55 | AE77: =INDIRECT('STRG-Indizes'!$B$3 & "Z" & 'STRG-Indizes'!$B76 & "S" & 'STRG-Indizes'!AE$5, FALSE) -> 38 | AF77: =INDIRECT('STRG-Indizes'!$B$3 & "Z" & 'STRG-Indizes'!$B76 & "S" & 'STRG-Indizes'!AF$5, FALSE) -> 30 | AG77: =INDIRECT('STRG-Indizes'!$B$3 & "Z" & 'STRG-Indizes'!$B76 & "S" & 'STRG-Indizes'!AG$5, FALSE) -> 34 | AH77: =INDIRECT('STRG-Indizes'!$B$3 & "Z" & 'STRG-Indizes'!$B76 & "S" & 'STRG-Indizes'!AH$5, FALSE) -> 44 | AI77: =INDIRECT('STRG-Indizes'!$B$3 & "Z" & 'STRG-Indizes'!$B76 & "S" & 'STRG-Indizes'!AI$5, FALSE) -> 84 | AJ77: =INDIRECT('STRG-Indizes'!$B$3 & "Z" & 'STRG-Indizes'!$B76 & "S" & 'STRG-Indizes'!AJ$5, FALSE) -> 38
A78: JC Altötting | B78: Ic | C78: =IF('STRG-Merkmal'!$E$9=2,"",INDIRECT('STRG-Indizes'!$B$3&"Z"&'STRG-Indizes'!$B77&"S"&'STRG-Indizes'!C$5,FALSE)) -> 39 | D78: =IF('STRG-Merkmal'!$E$9=2,"",INDIRECT('STRG-Indizes'!$B$3&"Z"&'STRG-Indizes'!$B77&"S"&'STRG-Indizes'!D$5,FALSE)) -> 43 | E78: =IF('STRG-Merkmal'!$E$9=2,"",INDIRECT('STRG-Indizes'!$B$3&"Z"&'STRG-Indizes'!$B77&"S"&'STRG-Indizes'!E$5,FALSE)) -> 56 | F78: =IF('STRG-Merkmal'!$E$9=2,"",INDIRECT('STRG-Indizes'!$B$3&"Z"&'STRG-Indizes'!$B77&"S"&'STRG-Indizes'!F$5,FALSE)) -> 63 | G78: =IF('STRG-Merkmal'!$E$9=2,"",INDIRECT('STRG-Indizes'!$B$3&"Z"&'STRG-Indizes'!$B77&"S"&'STRG-Indizes'!G$5,FALSE)) -> 58 | H78: =IF('STRG-Merkmal'!$E$9=2,"",INDIRECT('STRG-Indizes'!$B$3&"Z"&'STRG-Indizes'!$B77&"S"&'STRG-Indizes'!H$5,FALSE)) -> 48 | I78: =IF('STRG-Merkmal'!$E$9=2,"",INDIRECT('STRG-Indizes'!$B$3&"Z"&'STRG-Indizes'!$B77&"S"&'STRG-Indizes'!I$5,FALSE)) -> 62 | J78: =IF('STRG-Merkmal'!$E$9=2,"",INDIRECT('STRG-Indizes'!$B$3&"Z"&'STRG-Indizes'!$B77&"S"&'STRG-Indizes'!J$5,FALSE)) -> 68 | K78: =IF('STRG-Merkmal'!$E$9=2,"",INDIRECT('STRG-Indizes'!$B$3&"Z"&'STRG-Indizes'!$B77&"S"&'STRG-Indizes'!K$5,FALSE)) -> 113 | L78: =IF('STRG-Merkmal'!$E$9=2,"",INDIRECT('STRG-Indizes'!$B$3&"Z"&'STRG-Indizes'!$B77&"S"&'STRG-Indizes'!L$5,FALSE)) -> 57 | M78: =IF('STRG-Merkmal'!$E$9=2,"",INDIRECT('STRG-Indizes'!$B$3&"Z"&'STRG-Indizes'!$B77&"S"&'STRG-Indizes'!M$5,FALSE)) -> 57 | N78: =INDIRECT('STRG-Indizes'!$B$3&"Z"&'STRG-Indizes'!$B77&"S"&'STRG-Indizes'!N$5,FALSE) -> 52 | O78: =INDIRECT('STRG-Indizes'!$B$3 & "Z" & 'STRG-Indizes'!$B77 & "S" & 'STRG-Indizes'!O$5, FALSE) -> 32 | P78: =INDIRECT('STRG-Indizes'!$B$3 & "Z" & 'STRG-Indizes'!$B77 & "S" & 'STRG-Indizes'!P$5, FALSE) -> 63 | Q78: =INDIRECT('STRG-Indizes'!$B$3 & "Z" & 'STRG-Indizes'!$B77 & "S" & 'STRG-Indizes'!Q$5, FALSE) -> 55 | R78: =INDIRECT('STRG-Indizes'!$B$3 & "Z" & 'STRG-Indizes'!$B77 & "S" & 'STRG-Indizes'!R$5, FALSE) -> 64 | S78: =INDIRECT('STRG-Indizes'!$B$3 & "Z" & 'STRG-Indizes'!$B77 & "S" & 'STRG-Indizes'!S$5, FALSE) -> 74 | T78: =INDIRECT('STRG-Indizes'!$B$3 & "Z" & 'STRG-Indizes'!$B77 & "S" & 'STRG-Indizes'!T$5, FALSE) -> 62 | U78: =INDIRECT('STRG-Indizes'!$B$3 & "Z" & 'STRG-Indizes'!$B77 & "S" & 'STRG-Indizes'!U$5, FALSE) -> 75 | V78: =INDIRECT('STRG-Indizes'!$B$3 & "Z" & 'STRG-Indizes'!$B77 & "S" & 'STRG-Indizes'!V$5, FALSE) -> 62 | W78: =INDIRECT('STRG-Indizes'!$B$3 & "Z" & 'STRG-Indizes'!$B77 & "S" & 'STRG-Indizes'!W$5, FALSE) -> 131 | X78: =INDIRECT('STRG-Indizes'!$B$3 & "Z" & 'STRG-Indizes'!$B77 & "S" & 'STRG-Indizes'!X$5, FALSE) -> 70 | Y78: =INDIRECT('STRG-Indizes'!$B$3 & "Z" & 'STRG-Indizes'!$B77 & "S" & 'STRG-Indizes'!Y$5, FALSE) -> 54 | Z78: =INDIRECT('STRG-Indizes'!$B$3 & "Z" & 'STRG-Indizes'!$B77 & "S" & 'STRG-Indizes'!Z$5, FALSE) -> 40 | AA78: =INDIRECT('STRG-Indizes'!$B$3 & "Z" & 'STRG-Indizes'!$B77 & "S" & 'STRG-Indizes'!AA$5, FALSE) -> 43 | AB78: =INDIRECT('STRG-Indizes'!$B$3 & "Z" & 'STRG-Indizes'!$B77 & "S" & 'STRG-Indizes'!AB$5, FALSE) -> 52 | AC78: =INDIRECT('STRG-Indizes'!$B$3 & "Z" & 'STRG-Indizes'!$B77 & "S" & 'STRG-Indizes'!AC$5, FALSE) -> 72 | AD78: =INDIRECT('STRG-Indizes'!$B$3 & "Z" & 'STRG-Indizes'!$B77 & "S" & 'STRG-Indizes'!AD$5, FALSE) -> 81 | AE78: =INDIRECT('STRG-Indizes'!$B$3 & "Z" & 'STRG-Indizes'!$B77 & "S" & 'STRG-Indizes'!AE$5, FALSE) -> 62 | AF78: =INDIRECT('STRG-Indizes'!$B$3 & "Z" & 'STRG-Indizes'!$B77 & "S" & 'STRG-Indizes'!AF$5, FALSE) -> 54 | AG78: =INDIRECT('STRG-Indizes'!$B$3 & "Z" & 'STRG-Indizes'!$B77 & "S" & 'STRG-Indizes'!AG$5, FALSE) -> 57 | AH78: =INDIRECT('STRG-Indizes'!$B$3 & "Z" & 'STRG-Indizes'!$B77 & "S" & 'STRG-Indizes'!AH$5, FALSE) -> 59 | AI78: =INDIRECT('STRG-Indizes'!$B$3 & "Z" & 'STRG-Indizes'!$B77 & "S" & 'STRG-Indizes'!AI$5, FALSE) -> 109 | AJ78: =INDIRECT('STRG-Indizes'!$B$3 & "Z" & 'STRG-Indizes'!$B77 & "S" & 'STRG-Indizes'!AJ$5, FALSE) -> 53
A79: JC Amberg-Sulzbach | B79: Ic | C79: =IF('STRG-Merkmal'!$E$9=2,"",INDIRECT('STRG-Indizes'!$B$3&"Z"&'STRG-Indizes'!$B78&"S"&'STRG-Indizes'!C$5,FALSE)) -> 46 | D79: =IF('STRG-Merkmal'!$E$9=2,"",INDIRECT('STRG-Indizes'!$B$3&"Z"&'STRG-Indizes'!$B78&"S"&'STRG-Indizes'!D$5,FALSE)) -> 86 | E79: =IF('STRG-Merkmal'!$E$9=2,"",INDIRECT('STRG-Indizes'!$B$3&"Z"&'STRG-Indizes'!$B78&"S"&'STRG-Indizes'!E$5,FALSE)) -> 88 | F79: =IF('STRG-Merkmal'!$E$9=2,"",INDIRECT('STRG-Indizes'!$B$3&"Z"&'STRG-Indizes'!$B78&"S"&'STRG-Indizes'!F$5,FALSE)) -> 111 | G79: =IF('STRG-Merkmal'!$E$9=2,"",INDIRECT('STRG-Indizes'!$B$3&"Z"&'STRG-Indizes'!$B78&"S"&'STRG-Indizes'!G$5,FALSE)) -> 111 | H79: =IF('STRG-Merkmal'!$E$9=2,"",INDIRECT('STRG-Indizes'!$B$3&"Z"&'STRG-Indizes'!$B78&"S"&'STRG-Indizes'!H$5,FALSE)) -> 100 | I79: =IF('STRG-Merkmal'!$E$9=2,"",INDIRECT('STRG-Indizes'!$B$3&"Z"&'STRG-Indizes'!$B78&"S"&'STRG-Indizes'!I$5,FALSE)) -> 114 | J79: =IF('STRG-Merkmal'!$E$9=2,"",INDIRECT('STRG-Indizes'!$B$3&"Z"&'STRG-Indizes'!$B78&"S"&'STRG-Indizes'!J$5,FALSE)) -> 125 | K79: =IF('STRG-Merkmal'!$E$9=2,"",INDIRECT('STRG-Indizes'!$B$3&"Z"&'STRG-Indizes'!$B78&"S"&'STRG-Indizes'!K$5,FALSE)) -> 188 | L79: =IF('STRG-Merkmal'!$E$9=2,"",INDIRECT('STRG-Indizes'!$B$3&"Z"&'STRG-Indizes'!$B78&"S"&'STRG-Indizes'!L$5,FALSE)) -> 118 | M79: =IF('STRG-Merkmal'!$E$9=2,"",INDIRECT('STRG-Indizes'!$B$3&"Z"&'STRG-Indizes'!$B78&"S"&'STRG-Indizes'!M$5,FALSE)) -> 84 | N79: =INDIRECT('STRG-Indizes'!$B$3&"Z"&'STRG-Indizes'!$B78&"S"&'STRG-Indizes'!N$5,FALSE) -> 77 | O79: =INDIRECT('STRG-Indizes'!$B$3 & "Z" & 'STRG-Indizes'!$B78 & "S" & 'STRG-Indizes'!O$5, FALSE) -> 62 | P79: =INDIRECT('STRG-Indizes'!$B$3 & "Z" & 'STRG-Indizes'!$B78 & "S" & 'STRG-Indizes'!P$5, FALSE) -> 75 | Q79: =INDIRECT('STRG-Indizes'!$B$3 & "Z" & 'STRG-Indizes'!$B78 & "S" & 'STRG-Indizes'!Q$5, FALSE) -> 105 | R79: =INDIRECT('STRG-Indizes'!$B$3 & "Z" & 'STRG-Indizes'!$B78 & "S" & 'STRG-Indizes'!R$5, FALSE) -> 107 | S79: =INDIRECT('STRG-Indizes'!$B$3 & "Z" & 'STRG-Indizes'!$B78 & "S" & 'STRG-Indizes'!S$5, FALSE) -> 148 | T79: =INDIRECT('STRG-Indizes'!$B$3 & "Z" & 'STRG-Indizes'!$B78 & "S" & 'STRG-Indizes'!T$5, FALSE) -> 106 | U79: =INDIRECT('STRG-Indizes'!$B$3 & "Z" & 'STRG-Indizes'!$B78 & "S" & 'STRG-Indizes'!U$5, FALSE) -> 98 | V79: =INDIRECT('STRG-Indizes'!$B$3 & "Z" & 'STRG-Indizes'!$B78 & "S" & 'STRG-Indizes'!V$5, FALSE) -> 87 | W79: =INDIRECT('STRG-Indizes'!$B$3 & "Z" & 'STRG-Indizes'!$B78 & "S" & 'STRG-Indizes'!W$5, FALSE) -> 160 | X79: =INDIRECT('STRG-Indizes'!$B$3 & "Z" & 'STRG-Indizes'!$B78 & "S" & 'STRG-Indizes'!X$5, FALSE) -> 102 | Y79: =INDIRECT('STRG-Indizes'!$B$3 & "Z" & 'STRG-Indizes'!$B78 & "S" & 'STRG-Indizes'!Y$5, FALSE) -> 85 | Z79: =INDIRECT('STRG-Indizes'!$B$3 & "Z" & 'STRG-Indizes'!$B78 & "S" & 'STRG-Indizes'!Z$5, FALSE) -> 63 | AA79: =INDIRECT('STRG-Indizes'!$B$3 & "Z" & 'STRG-Indizes'!$B78 & "S" & 'STRG-Indizes'!AA$5, FALSE) -> 45 | AB79: =INDIRECT('STRG-Indizes'!$B$3 & "Z" & 'STRG-Indizes'!$B78 & "S" & 'STRG-Indizes'!AB$5, FALSE) -> 51 | AC79: =INDIRECT('STRG-Indizes'!$B$3 & "Z" & 'STRG-Indizes'!$B78 & "S" & 'STRG-Indizes'!AC$5, FALSE) -> 99 | AD79: =INDIRECT('STRG-Indizes'!$B$3 & "Z" & 'STRG-Indizes'!$B78 & "S" & 'STRG-Indizes'!AD$5, FALSE) -> 97 | AE79: =INDIRECT('STRG-Indizes'!$B$3 & "Z" & 'STRG-Indizes'!$B78 & "S" & 'STRG-Indizes'!AE$5, FALSE) -> 87 | AF79: =INDIRECT('STRG-Indizes'!$B$3 & "Z" & 'STRG-Indizes'!$B78 & "S" & 'STRG-Indizes'!AF$5, FALSE) -> 64 | AG79: =INDIRECT('STRG-Indizes'!$B$3 & "Z" & 'STRG-Indizes'!$B78 & "S" & 'STRG-Indizes'!AG$5, FALSE) -> 80 | AH79: =INDIRECT('STRG-Indizes'!$B$3 & "Z" & 'STRG-Indizes'!$B78 & "S" & 'STRG-Indizes'!AH$5, FALSE) -> 80 | AI79: =INDIRECT('STRG-Indizes'!$B$3 & "Z" & 'STRG-Indizes'!$B78 & "S" & 'STRG-Indizes'!AI$5, FALSE) -> 127 | AJ79: =INDIRECT('STRG-Indizes'!$B$3 & "Z" & 'STRG-Indizes'!$B78 & "S" & 'STRG-Indizes'!AJ$5, FALSE) -> 89
A80: JC Ansbach | B80: Ib | C80: =IF('STRG-Merkmal'!$E$9=2,"",INDIRECT('STRG-Indizes'!$B$3&"Z"&'STRG-Indizes'!$B79&"S"&'STRG-Indizes'!C$5,FALSE)) -> 31 | D80: =IF('STRG-Merkmal'!$E$9=2,"",INDIRECT('STRG-Indizes'!$B$3&"Z"&'STRG-Indizes'!$B79&"S"&'STRG-Indizes'!D$5,FALSE)) -> 41 | E80: =IF('STRG-Merkmal'!$E$9=2,"",INDIRECT('STRG-Indizes'!$B$3&"Z"&'STRG-Indizes'!$B79&"S"&'STRG-Indizes'!E$5,FALSE)) -> 51 | F80: =IF('STRG-Merkmal'!$E$9=2,"",INDIRECT('STRG-Indizes'!$B$3&"Z"&'STRG-Indizes'!$B79&"S"&'STRG-Indizes'!F$5,FALSE)) -> 74 | G80: =IF('STRG-Merkmal'!$E$9=2,"",INDIRECT('STRG-Indizes'!$B$3&"Z"&'STRG-Indizes'!$B79&"S"&'STRG-Indizes'!G$5,FALSE)) -> 79 | H80: =IF('STRG-Merkmal'!$E$9=2,"",INDIRECT('STRG-Indizes'!$B$3&"Z"&'STRG-Indizes'!$B79&"S"&'STRG-Indizes'!H$5,FALSE)) -> 57 | I80: =IF('STRG-Merkmal'!$E$9=2,"",INDIRECT('STRG-Indizes'!$B$3&"Z"&'STRG-Indizes'!$B79&"S"&'STRG-Indizes'!I$5,FALSE)) -> 83 | J80: =IF('STRG-Merkmal'!$E$9=2,"",INDIRECT('STRG-Indizes'!$B$3&"Z"&'STRG-Indizes'!$B79&"S"&'STRG-Indizes'!J$5,FALSE)) -> 81 | K80: =IF('STRG-Merkmal'!$E$9=2,"",INDIRECT('STRG-Indizes'!$B$3&"Z"&'STRG-Indizes'!$B79&"S"&'STRG-Indizes'!K$5,FALSE)) -> 163 | L80: =IF('STRG-Merkmal'!$E$9=2,"",INDIRECT('STRG-Indizes'!$B$3&"Z"&'STRG-Indizes'!$B79&"S"&'STRG-Indizes'!L$5,FALSE)) -> 92 | M80: =IF('STRG-Merkmal'!$E$9=2,"",INDIRECT('STRG-Indizes'!$B$3&"Z"&'STRG-Indizes'!$B79&"S"&'STRG-Indizes'!M$5,FALSE)) -> 70 | N80: =INDIRECT('STRG-Indizes'!$B$3&"Z"&'STRG-Indizes'!$B79&"S"&'STRG-Indizes'!N$5,FALSE) -> 55 | O80: =INDIRECT('STRG-Indizes'!$B$3 & "Z" & 'STRG-Indizes'!$B79 & "S" & 'STRG-Indizes'!O$5, FALSE) -> 37 | P80: =INDIRECT('STRG-Indizes'!$B$3 & "Z" & 'STRG-Indizes'!$B79 & "S" & 'STRG-Indizes'!P$5, FALSE) -> 62 | Q80: =INDIRECT('STRG-Indizes'!$B$3 & "Z" & 'STRG-Indizes'!$B79 & "S" & 'STRG-Indizes'!Q$5, FALSE) -> 46 | R80: =INDIRECT('STRG-Indizes'!$B$3 & "Z" & 'STRG-Indizes'!$B79 & "S" & 'STRG-Indizes'!R$5, FALSE) -> 72 | S80: =INDIRECT('STRG-Indizes'!$B$3 & "Z" & 'STRG-Indizes'!$B79 & "S" & 'STRG-Indizes'!S$5, FALSE) -> 92 | T80: =INDIRECT('STRG-Indizes'!$B$3 & "Z" & 'STRG-Indizes'!$B79 & "S" & 'STRG-Indizes'!T$5, FALSE) -> 73 | U80: =INDIRECT('STRG-Indizes'!$B$3 & "Z" & 'STRG-Indizes'!$B79 & "S" & 'STRG-Indizes'!U$5, FALSE) -> 61 | V80: =INDIRECT('STRG-Indizes'!$B$3 & "Z" & 'STRG-Indizes'!$B79 & "S" & 'STRG-Indizes'!V$5, FALSE) -> 62 | W80: =INDIRECT('STRG-Indizes'!$B$3 & "Z" & 'STRG-Indizes'!$B79 & "S" & 'STRG-Indizes'!W$5, FALSE) -> 106 | X80: =INDIRECT('STRG-Indizes'!$B$3 & "Z" & 'STRG-Indizes'!$B79 & "S" & 'STRG-Indizes'!X$5, FALSE) -> 79 | Y80: =INDIRECT('STRG-Indizes'!$B$3 & "Z" & 'STRG-Indizes'!$B79 & "S" & 'STRG-Indizes'!Y$5, FALSE) -> 44 | Z80: =INDIRECT('STRG-Indizes'!$B$3 & "Z" & 'STRG-Indizes'!$B79 & "S" & 'STRG-Indizes'!Z$5, FALSE) -> 41 | AA80: =INDIRECT('STRG-Indizes'!$B$3 & "Z" & 'STRG-Indizes'!$B79 & "S" & 'STRG-Indizes'!AA$5, FALSE) -> 35 | AB80: =INDIRECT('STRG-Indizes'!$B$3 & "Z" & 'STRG-Indizes'!$B79 & "S" & 'STRG-Indizes'!AB$5, FALSE) -> 47 | AC80: =INDIRECT('STRG-Indizes'!$B$3 & "Z" & 'STRG-Indizes'!$B79 & "S" & 'STRG-Indizes'!AC$5, FALSE) -> 54 | AD80: =INDIRECT('STRG-Indizes'!$B$3 & "Z" & 'STRG-Indizes'!$B79 & "S" & 'STRG-Indizes'!AD$5, FALSE) -> 59 | AE80: =INDIRECT('STRG-Indizes'!$B$3 & "Z" & 'STRG-Indizes'!$B79 & "S" & 'STRG-Indizes'!AE$5, FALSE) -> 44 | AF80: =INDIRECT('STRG-Indizes'!$B$3 & "Z" & 'STRG-Indizes'!$B79 & "S" & 'STRG-Indizes'!AF$5, FALSE) -> 45 | AG80: =INDIRECT('STRG-Indizes'!$B$3 & "Z" & 'STRG-Indizes'!$B79 & "S" & 'STRG-Indizes'!AG$5, FALSE) -> 45 | AH80: =INDIRECT('STRG-Indizes'!$B$3 & "Z" & 'STRG-Indizes'!$B79 & "S" & 'STRG-Indizes'!AH$5, FALSE) -> 53 | AI80: =INDIRECT('STRG-Indizes'!$B$3 & "Z" & 'STRG-Indizes'!$B79 & "S" & 'STRG-Indizes'!AI$5, FALSE) -> 79 | AJ80: =INDIRECT('STRG-Indizes'!$B$3 & "Z" & 'STRG-Indizes'!$B79 & "S" & 'STRG-Indizes'!AJ$5, FALSE) -> 65
A81: JC Ansbach, Stadt | B81: IIb | C81: =IF('STRG-Merkmal'!$E$9=2,"",INDIRECT('STRG-Indizes'!$B$3&"Z"&'STRG-Indizes'!$B80&"S"&'STRG-Indizes'!C$5,FALSE)) -> 41 | D81: =IF('STRG-Merkmal'!$E$9=2,"",INDIRECT('STRG-Indizes'!$B$3&"Z"&'STRG-Indizes'!$B80&"S"&'STRG-Indizes'!D$5,FALSE)) -> 48 | E81: =IF('STRG-Merkmal'!$E$9=2,"",INDIRECT('STRG-Indizes'!$B$3&"Z"&'STRG-Indizes'!$B80&"S"&'STRG-Indizes'!E$5,FALSE)) -> 52 | F81: =IF('STRG-Merkmal'!$E$9=2,"",INDIRECT('STRG-Indizes'!$B$3&"Z"&'STRG-Indizes'!$B80&"S"&'STRG-Indizes'!F$5,FALSE)) -> 70 | G81: =IF('STRG-Merkmal'!$E$9=2,"",INDIRECT('STRG-Indizes'!$B$3&"Z"&'STRG-Indizes'!$B80&"S"&'STRG-Indizes'!G$5,FALSE)) -> 84 | H81: =IF('STRG-Merkmal'!$E$9=2,"",INDIRECT('STRG-Indizes'!$B$3&"Z"&'STRG-Indizes'!$B80&"S"&'STRG-Indizes'!H$5,FALSE)) -> 83 | I81: =IF('STRG-Merkmal'!$E$9=2,"",INDIRECT('STRG-Indizes'!$B$3&"Z"&'STRG-Indizes'!$B80&"S"&'STRG-Indizes'!I$5,FALSE)) -> 79 | J81: =IF('STRG-Merkmal'!$E$9=2,"",INDIRECT('STRG-Indizes'!$B$3&"Z"&'STRG-Indizes'!$B80&"S"&'STRG-Indizes'!J$5,FALSE)) -> 100 | K81: =IF('STRG-Merkmal'!$E$9=2,"",INDIRECT('STRG-Indizes'!$B$3&"Z"&'STRG-Indizes'!$B80&"S"&'STRG-Indizes'!K$5,FALSE)) -> 121 | L81: =IF('STRG-Merkmal'!$E$9=2,"",INDIRECT('STRG-Indizes'!$B$3&"Z"&'STRG-Indizes'!$B80&"S"&'STRG-Indizes'!L$5,FALSE)) -> 96 | M81: =IF('STRG-Merkmal'!$E$9=2,"",INDIRECT('STRG-Indizes'!$B$3&"Z"&'STRG-Indizes'!$B80&"S"&'STRG-Indizes'!M$5,FALSE)) -> 69 | N81: =INDIRECT('STRG-Indizes'!$B$3&"Z"&'STRG-Indizes'!$B80&"S"&'STRG-Indizes'!N$5,FALSE) -> 60 | O81: =INDIRECT('STRG-Indizes'!$B$3 & "Z" & 'STRG-Indizes'!$B80 & "S" & 'STRG-Indizes'!O$5, FALSE) -> 44 | P81: =INDIRECT('STRG-Indizes'!$B$3 & "Z" & 'STRG-Indizes'!$B80 & "S" & 'STRG-Indizes'!P$5, FALSE) -> 55 | Q81: =INDIRECT('STRG-Indizes'!$B$3 & "Z" & 'STRG-Indizes'!$B80 & "S" & 'STRG-Indizes'!Q$5, FALSE) -> 57 | R81: =INDIRECT('STRG-Indizes'!$B$3 & "Z" & 'STRG-Indizes'!$B80 & "S" & 'STRG-Indizes'!R$5, FALSE) -> 59 | S81: =INDIRECT('STRG-Indizes'!$B$3 & "Z" & 'STRG-Indizes'!$B80 & "S" & 'STRG-Indizes'!S$5, FALSE) -> 97 | T81: =INDIRECT('STRG-Indizes'!$B$3 & "Z" & 'STRG-Indizes'!$B80 & "S" & 'STRG-Indizes'!T$5, FALSE) -> 69 | U81: =INDIRECT('STRG-Indizes'!$B$3 & "Z" & 'STRG-Indizes'!$B80 & "S" & 'STRG-Indizes'!U$5, FALSE) -> 79 | V81: =INDIRECT('STRG-Indizes'!$B$3 & "Z" & 'STRG-Indizes'!$B80 & "S" & 'STRG-Indizes'!V$5, FALSE) -> 78 | W81: =INDIRECT('STRG-Indizes'!$B$3 & "Z" & 'STRG-Indizes'!$B80 & "S" & 'STRG-Indizes'!W$5, FALSE) -> 165 | X81: =INDIRECT('STRG-Indizes'!$B$3 & "Z" & 'STRG-Indizes'!$B80 & "S" & 'STRG-Indizes'!X$5, FALSE) -> 84 | Y81: =INDIRECT('STRG-Indizes'!$B$3 & "Z" & 'STRG-Indizes'!$B80 & "S" & 'STRG-Indizes'!Y$5, FALSE) -> 58 | Z81: =INDIRECT('STRG-Indizes'!$B$3 & "Z" & 'STRG-Indizes'!$B80 & "S" & 'STRG-Indizes'!Z$5, FALSE) -> 54 | AA81: =INDIRECT('STRG-Indizes'!$B$3 & "Z" & 'STRG-Indizes'!$B80 & "S" & 'STRG-Indizes'!AA$5, FALSE) -> 60 | AB81: =INDIRECT('STRG-Indizes'!$B$3 & "Z" & 'STRG-Indizes'!$B80 & "S" & 'STRG-Indizes'!AB$5, FALSE) -> 46 | AC81: =INDIRECT('STRG-Indizes'!$B$3 & "Z" & 'STRG-Indizes'!$B80 & "S" & 'STRG-Indizes'!AC$5, FALSE) -> 50 | AD81: =INDIRECT('STRG-Indizes'!$B$3 & "Z" & 'STRG-Indizes'!$B80 & "S" & 'STRG-Indizes'!AD$5, FALSE) -> 58 | AE81: =INDIRECT('STRG-Indizes'!$B$3 & "Z" & 'STRG-Indizes'!$B80 & "S" & 'STRG-Indizes'!AE$5, FALSE) -> 64 | AF81: =INDIRECT('STRG-Indizes'!$B$3 & "Z" & 'STRG-Indizes'!$B80 & "S" & 'STRG-Indizes'!AF$5, FALSE) -> 58 | AG81: =INDIRECT('STRG-Indizes'!$B$3 & "Z" & 'STRG-Indizes'!$B80 & "S" & 'STRG-Indizes'!AG$5, FALSE) -> 52 | AH81: =INDIRECT('STRG-Indizes'!$B$3 & "Z" & 'STRG-Indizes'!$B80 & "S" & 'STRG-Indizes'!AH$5, FALSE) -> 65 | AI81: =INDIRECT('STRG-Indizes'!$B$3 & "Z" & 'STRG-Indizes'!$B80 & "S" & 'STRG-Indizes'!AI$5, FALSE) -> 114 | AJ81: =INDIRECT('STRG-Indizes'!$B$3 & "Z" & 'STRG-Indizes'!$B80 & "S" & 'STRG-Indizes'!AJ$5, FALSE) -> 92
A82: JC Aschaffenburg | B82: Ib | C82: =IF('STRG-Merkmal'!$E$9=2,"",INDIRECT('STRG-Indizes'!$B$3&"Z"&'STRG-Indizes'!$B81&"S"&'STRG-Indizes'!C$5,FALSE)) -> 63 | D82: =IF('STRG-Merkmal'!$E$9=2,"",INDIRECT('STRG-Indizes'!$B$3&"Z"&'STRG-Indizes'!$B81&"S"&'STRG-Indizes'!D$5,FALSE)) -> 71 | E82: =IF('STRG-Merkmal'!$E$9=2,"",INDIRECT('STRG-Indizes'!$B$3&"Z"&'STRG-Indizes'!$B81&"S"&'STRG-Indizes'!E$5,FALSE)) -> 86 | F82: =IF('STRG-Merkmal'!$E$9=2,"",INDIRECT('STRG-Indizes'!$B$3&"Z"&'STRG-Indizes'!$B81&"S"&'STRG-Indizes'!F$5,FALSE)) -> 102 | G82: =IF('STRG-Merkmal'!$E$9=2,"",INDIRECT('STRG-Indizes'!$B$3&"Z"&'STRG-Indizes'!$B81&"S"&'STRG-Indizes'!G$5,FALSE)) -> 89 | H82: =IF('STRG-Merkmal'!$E$9=2,"",INDIRECT('STRG-Indizes'!$B$3&"Z"&'STRG-Indizes'!$B81&"S"&'STRG-Indizes'!H$5,FALSE)) -> 84 | I82: =IF('STRG-Merkmal'!$E$9=2,"",INDIRECT('STRG-Indizes'!$B$3&"Z"&'STRG-Indizes'!$B81&"S"&'STRG-Indizes'!I$5,FALSE)) -> 88 | J82: =IF('STRG-Merkmal'!$E$9=2,"",INDIRECT('STRG-Indizes'!$B$3&"Z"&'STRG-Indizes'!$B81&"S"&'STRG-Indizes'!J$5,FALSE)) -> 107 | K82: =IF('STRG-Merkmal'!$E$9=2,"",INDIRECT('STRG-Indizes'!$B$3&"Z"&'STRG-Indizes'!$B81&"S"&'STRG-Indizes'!K$5,FALSE)) -> 153 | L82: =IF('STRG-Merkmal'!$E$9=2,"",INDIRECT('STRG-Indizes'!$B$3&"Z"&'STRG-Indizes'!$B81&"S"&'STRG-Indizes'!L$5,FALSE)) -> 81 | M82: =IF('STRG-Merkmal'!$E$9=2,"",INDIRECT('STRG-Indizes'!$B$3&"Z"&'STRG-Indizes'!$B81&"S"&'STRG-Indizes'!M$5,FALSE)) -> 76 | N82: =INDIRECT('STRG-Indizes'!$B$3&"Z"&'STRG-Indizes'!$B81&"S"&'STRG-Indizes'!N$5,FALSE) -> 67 | O82: =INDIRECT('STRG-Indizes'!$B$3 & "Z" & 'STRG-Indizes'!$B81 & "S" & 'STRG-Indizes'!O$5, FALSE) -> 48 | P82: =INDIRECT('STRG-Indizes'!$B$3 & "Z" & 'STRG-Indizes'!$B81 & "S" & 'STRG-Indizes'!P$5, FALSE) -> 86 | Q82: =INDIRECT('STRG-Indizes'!$B$3 & "Z" & 'STRG-Indizes'!$B81 & "S" & 'STRG-Indizes'!Q$5, FALSE) -> 99 | R82: =INDIRECT('STRG-Indizes'!$B$3 & "Z" & 'STRG-Indizes'!$B81 & "S" & 'STRG-Indizes'!R$5, FALSE) -> 84 | S82: =INDIRECT('STRG-Indizes'!$B$3 & "Z" & 'STRG-Indizes'!$B81 & "S" & 'STRG-Indizes'!S$5, FALSE) -> 93 | T82: =INDIRECT('STRG-Indizes'!$B$3 & "Z" & 'STRG-Indizes'!$B81 & "S" & 'STRG-Indizes'!T$5, FALSE) -> 90 | U82: =INDIRECT('STRG-Indizes'!$B$3 & "Z" & 'STRG-Indizes'!$B81 & "S" & 'STRG-Indizes'!U$5, FALSE) -> 110 | V82: =INDIRECT('STRG-Indizes'!$B$3 & "Z" & 'STRG-Indizes'!$B81 & "S" & 'STRG-Indizes'!V$5, FALSE) -> 103 | W82: =INDIRECT('STRG-Indizes'!$B$3 & "Z" & 'STRG-Indizes'!$B81 & "S" & 'STRG-Indizes'!W$5, FALSE) -> 158 | X82: =INDIRECT('STRG-Indizes'!$B$3 & "Z" & 'STRG-Indizes'!$B81 & "S" & 'STRG-Indizes'!X$5, FALSE) -> 100 | Y82: =INDIRECT('STRG-Indizes'!$B$3 & "Z" & 'STRG-Indizes'!$B81 & "S" & 'STRG-Indizes'!Y$5, FALSE) -> 79 | Z82: =INDIRECT('STRG-Indizes'!$B$3 & "Z" & 'STRG-Indizes'!$B81 & "S" & 'STRG-Indizes'!Z$5, FALSE) -> 61 | AA82: =INDIRECT('STRG-Indizes'!$B$3 & "Z" & 'STRG-Indizes'!$B81 & "S" & 'STRG-Indizes'!AA$5, FALSE) -> 54 | AB82: =INDIRECT('STRG-Indizes'!$B$3 & "Z" & 'STRG-Indizes'!$B81 & "S" & 'STRG-Indizes'!AB$5, FALSE) -> 75 | AC82: =INDIRECT('STRG-Indizes'!$B$3 & "Z" & 'STRG-Indizes'!$B81 & "S" & 'STRG-Indizes'!AC$5, FALSE) -> 86 | AD82: =INDIRECT('STRG-Indizes'!$B$3 & "Z" & 'STRG-Indizes'!$B81 & "S" & 'STRG-Indizes'!AD$5, FALSE) -> 100 | AE82: =INDIRECT('STRG-Indizes'!$B$3 & "Z" & 'STRG-Indizes'!$B81 & "S" & 'STRG-Indizes'!AE$5, FALSE) -> 75 | AF82: =INDIRECT('STRG-Indizes'!$B$3 & "Z" & 'STRG-Indizes'!$B81 & "S" & 'STRG-Indizes'!AF$5, FALSE) -> 70 | AG82: =INDIRECT('STRG-Indizes'!$B$3 & "Z" & 'STRG-Indizes'!$B81 & "S" & 'STRG-Indizes'!AG$5, FALSE) -> 65 | AH82: =INDIRECT('STRG-Indizes'!$B$3 & "Z" & 'STRG-Indizes'!$B81 & "S" & 'STRG-Indizes'!AH$5, FALSE) -> 92 | AI82: =INDIRECT('STRG-Indizes'!$B$3 & "Z" & 'STRG-Indizes'!$B81 & "S" & 'STRG-Indizes'!AI$5, FALSE) -> 171 | AJ82: =INDIRECT('STRG-Indizes'!$B$3 & "Z" & 'STRG-Indizes'!$B81 & "S" & 'STRG-Indizes'!AJ$5, FALSE) -> 101
A83: JC Aschaffenburg, Stadt | B83: IIb | C83: =IF('STRG-Merkmal'!$E$9=2,"",INDIRECT('STRG-Indizes'!$B$3&"Z"&'STRG-Indizes'!$B82&"S"&'STRG-Indizes'!C$5,FALSE)) -> 61 | D83: =IF('STRG-Merkmal'!$E$9=2,"",INDIRECT('STRG-Indizes'!$B$3&"Z"&'STRG-Indizes'!$B82&"S"&'STRG-Indizes'!D$5,FALSE)) -> 78 | E83: =IF('STRG-Merkmal'!$E$9=2,"",INDIRECT('STRG-Indizes'!$B$3&"Z"&'STRG-Indizes'!$B82&"S"&'STRG-Indizes'!E$5,FALSE)) -> 66 | F83: =IF('STRG-Merkmal'!$E$9=2,"",INDIRECT('STRG-Indizes'!$B$3&"Z"&'STRG-Indizes'!$B82&"S"&'STRG-Indizes'!F$5,FALSE)) -> 78 | G83: =IF('STRG-Merkmal'!$E$9=2,"",INDIRECT('STRG-Indizes'!$B$3&"Z"&'STRG-Indizes'!$B82&"S"&'STRG-Indizes'!G$5,FALSE)) -> 95 | H83: =IF('STRG-Merkmal'!$E$9=2,"",INDIRECT('STRG-Indizes'!$B$3&"Z"&'STRG-Indizes'!$B82&"S"&'STRG-Indizes'!H$5,FALSE)) -> 85 | I83: =IF('STRG-Merkmal'!$E$9=2,"",INDIRECT('STRG-Indizes'!$B$3&"Z"&'STRG-Indizes'!$B82&"S"&'STRG-Indizes'!I$5,FALSE)) -> 81 | J83: =IF('STRG-Merkmal'!$E$9=2,"",INDIRECT('STRG-Indizes'!$B$3&"Z"&'STRG-Indizes'!$B82&"S"&'STRG-Indizes'!J$5,FALSE)) -> 99 | K83: =IF('STRG-Merkmal'!$E$9=2,"",INDIRECT('STRG-Indizes'!$B$3&"Z"&'STRG-Indizes'!$B82&"S"&'STRG-Indizes'!K$5,FALSE)) -> 147 | L83: =IF('STRG-Merkmal'!$E$9=2,"",INDIRECT('STRG-Indizes'!$B$3&"Z"&'STRG-Indizes'!$B82&"S"&'STRG-Indizes'!L$5,FALSE)) -> 111 | M83: =IF('STRG-Merkmal'!$E$9=2,"",INDIRECT('STRG-Indizes'!$B$3&"Z"&'STRG-Indizes'!$B82&"S"&'STRG-Indizes'!M$5,FALSE)) -> 75 | N83: =INDIRECT('STRG-Indizes'!$B$3&"Z"&'STRG-Indizes'!$B82&"S"&'STRG-Indizes'!N$5,FALSE) -> 79 | O83: =INDIRECT('STRG-Indizes'!$B$3 & "Z" & 'STRG-Indizes'!$B82 & "S" & 'STRG-Indizes'!O$5, FALSE) -> 68 | P83: =INDIRECT('STRG-Indizes'!$B$3 & "Z" & 'STRG-Indizes'!$B82 & "S" & 'STRG-Indizes'!P$5, FALSE) -> 82 | Q83: =INDIRECT('STRG-Indizes'!$B$3 & "Z" & 'STRG-Indizes'!$B82 & "S" & 'STRG-Indizes'!Q$5, FALSE) -> 82 | R83: =INDIRECT('STRG-Indizes'!$B$3 & "Z" & 'STRG-Indizes'!$B82 & "S" & 'STRG-Indizes'!R$5, FALSE) -> 87 | S83: =INDIRECT('STRG-Indizes'!$B$3 & "Z" & 'STRG-Indizes'!$B82 & "S" & 'STRG-Indizes'!S$5, FALSE) -> 95 | T83: =INDIRECT('STRG-Indizes'!$B$3 & "Z" & 'STRG-Indizes'!$B82 & "S" & 'STRG-Indizes'!T$5, FALSE) -> 87 | U83: =INDIRECT('STRG-Indizes'!$B$3 & "Z" & 'STRG-Indizes'!$B82 & "S" & 'STRG-Indizes'!U$5, FALSE) -> 105 | V83: =INDIRECT('STRG-Indizes'!$B$3 & "Z" & 'STRG-Indizes'!$B82 & "S" & 'STRG-Indizes'!V$5, FALSE) -> 115 | W83: =INDIRECT('STRG-Indizes'!$B$3 & "Z" & 'STRG-Indizes'!$B82 & "S" & 'STRG-Indizes'!W$5, FALSE) -> 180 | X83: =INDIRECT('STRG-Indizes'!$B$3 & "Z" & 'STRG-Indizes'!$B82 & "S" & 'STRG-Indizes'!X$5, FALSE) -> 112 | Y83: =INDIRECT('STRG-Indizes'!$B$3 & "Z" & 'STRG-Indizes'!$B82 & "S" & 'STRG-Indizes'!Y$5, FALSE) -> 98 | Z83: =INDIRECT('STRG-Indizes'!$B$3 & "Z" & 'STRG-Indizes'!$B82 & "S" & 'STRG-Indizes'!Z$5, FALSE) -> 72 | AA83: =INDIRECT('STRG-Indizes'!$B$3 & "Z" & 'STRG-Indizes'!$B82 & "S" & 'STRG-Indizes'!AA$5, FALSE) -> 85 | AB83: =INDIRECT('STRG-Indizes'!$B$3 & "Z" & 'STRG-Indizes'!$B82 & "S" & 'STRG-Indizes'!AB$5, FALSE) -> 103 | AC83: =INDIRECT('STRG-Indizes'!$B$3 & "Z" & 'STRG-Indizes'!$B82 & "S" & 'STRG-Indizes'!AC$5, FALSE) -> 83 | AD83: =INDIRECT('STRG-Indizes'!$B$3 & "Z" & 'STRG-Indizes'!$B82 & "S" & 'STRG-Indizes'!AD$5, FALSE) -> 93 | AE83: =INDIRECT('STRG-Indizes'!$B$3 & "Z" & 'STRG-Indizes'!$B82 & "S" & 'STRG-Indizes'!AE$5, FALSE) -> 83 | AF83: =INDIRECT('STRG-Indizes'!$B$3 & "Z" & 'STRG-Indizes'!$B82 & "S" & 'STRG-Indizes'!AF$5, FALSE) -> 103 | AG83: =INDIRECT('STRG-Indizes'!$B$3 & "Z" & 'STRG-Indizes'!$B82 & "S" & 'STRG-Indizes'!AG$5, FALSE) -> 85 | AH83: =INDIRECT('STRG-Indizes'!$B$3 & "Z" & 'STRG-Indizes'!$B82 & "S" & 'STRG-Indizes'!AH$5, FALSE) -> 120 | AI83: =INDIRECT('STRG-Indizes'!$B$3 & "Z" & 'STRG-Indizes'!$B82 & "S" & 'STRG-Indizes'!AI$5, FALSE) -> 184 | AJ83: =INDIRECT('STRG-Indizes'!$B$3 & "Z" & 'STRG-Indizes'!$B82 & "S" & 'STRG-Indizes'!AJ$5, FALSE) -> 110
A84: JC Augsburg | B84: Ib | C84: =IF('STRG-Merkmal'!$E$9=2,"",INDIRECT('STRG-Indizes'!$B$3&"Z"&'STRG-Indizes'!$B83&"S"&'STRG-Indizes'!C$5,FALSE)) -> 57 | D84: =IF('STRG-Merkmal'!$E$9=2,"",INDIRECT('STRG-Indizes'!$B$3&"Z"&'STRG-Indizes'!$B83&"S"&'STRG-Indizes'!D$5,FALSE)) -> 94 | E84: =IF('STRG-Merkmal'!$E$9=2,"",INDIRECT('STRG-Indizes'!$B$3&"Z"&'STRG-Indizes'!$B83&"S"&'STRG-Indizes'!E$5,FALSE)) -> 89 | F84: =IF('STRG-Merkmal'!$E$9=2,"",INDIRECT('STRG-Indizes'!$B$3&"Z"&'STRG-Indizes'!$B83&"S"&'STRG-Indizes'!F$5,FALSE)) -> 127 | G84: =IF('STRG-Merkmal'!$E$9=2,"",INDIRECT('STRG-Indizes'!$B$3&"Z"&'STRG-Indizes'!$B83&"S"&'STRG-Indizes'!G$5,FALSE)) -> 107 | H84: =IF('STRG-Merkmal'!$E$9=2,"",INDIRECT('STRG-Indizes'!$B$3&"Z"&'STRG-Indizes'!$B83&"S"&'STRG-Indizes'!H$5,FALSE)) -> 97 | I84: =IF('STRG-Merkmal'!$E$9=2,"",INDIRECT('STRG-Indizes'!$B$3&"Z"&'STRG-Indizes'!$B83&"S"&'STRG-Indizes'!I$5,FALSE)) -> 106 | J84: =IF('STRG-Merkmal'!$E$9=2,"",INDIRECT('STRG-Indizes'!$B$3&"Z"&'STRG-Indizes'!$B83&"S"&'STRG-Indizes'!J$5,FALSE)) -> 116 | K84: =IF('STRG-Merkmal'!$E$9=2,"",INDIRECT('STRG-Indizes'!$B$3&"Z"&'STRG-Indizes'!$B83&"S"&'STRG-Indizes'!K$5,FALSE)) -> 241 | L84: =IF('STRG-Merkmal'!$E$9=2,"",INDIRECT('STRG-Indizes'!$B$3&"Z"&'STRG-Indizes'!$B83&"S"&'STRG-Indizes'!L$5,FALSE)) -> 162 | M84: =IF('STRG-Merkmal'!$E$9=2,"",INDIRECT('STRG-Indizes'!$B$3&"Z"&'STRG-Indizes'!$B83&"S"&'STRG-Indizes'!M$5,FALSE)) -> 126 | N84: =INDIRECT('STRG-Indizes'!$B$3&"Z"&'STRG-Indizes'!$B83&"S"&'STRG-Indizes'!N$5,FALSE) -> 96 | O84: =INDIRECT('STRG-Indizes'!$B$3 & "Z" & 'STRG-Indizes'!$B83 & "S" & 'STRG-Indizes'!O$5, FALSE) -> 80 | P84: =INDIRECT('STRG-Indizes'!$B$3 & "Z" & 'STRG-Indizes'!$B83 & "S" & 'STRG-Indizes'!P$5, FALSE) -> 104 | Q84: =INDIRECT('STRG-Indizes'!$B$3 & "Z" & 'STRG-Indizes'!$B83 & "S" & 'STRG-Indizes'!Q$5, FALSE) -> 129 | R84: =INDIRECT('STRG-Indizes'!$B$3 & "Z" & 'STRG-Indizes'!$B83 & "S" & 'STRG-Indizes'!R$5, FALSE) -> 117 | S84: =INDIRECT('STRG-Indizes'!$B$3 & "Z" & 'STRG-Indizes'!$B83 & "S" & 'STRG-Indizes'!S$5, FALSE) -> 113 | T84: =INDIRECT('STRG-Indizes'!$B$3 & "Z" & 'STRG-Indizes'!$B83 & "S" & 'STRG-Indizes'!T$5, FALSE) -> 107 | U84: =INDIRECT('STRG-Indizes'!$B$3 & "Z" & 'STRG-Indizes'!$B83 & "S" & 'STRG-Indizes'!U$5, FALSE) -> 104 | V84: =INDIRECT('STRG-Indizes'!$B$3 & "Z" & 'STRG-Indizes'!$B83 & "S" & 'STRG-Indizes'!V$5, FALSE) -> 125 | W84: =INDIRECT('STRG-Indizes'!$B$3 & "Z" & 'STRG-Indizes'!$B83 & "S" & 'STRG-Indizes'!W$5, FALSE) -> 226 | X84: =INDIRECT('STRG-Indizes'!$B$3 & "Z" & 'STRG-Indizes'!$B83 & "S" & 'STRG-Indizes'!X$5, FALSE) -> 116 | Y84: =INDIRECT('STRG-Indizes'!$B$3 & "Z" & 'STRG-Indizes'!$B83 & "S" & 'STRG-Indizes'!Y$5, FALSE) -> 129 | Z84: =INDIRECT('STRG-Indizes'!$B$3 & "Z" & 'STRG-Indizes'!$B83 & "S" & 'STRG-Indizes'!Z$5, FALSE) -> 86 | AA84: =INDIRECT('STRG-Indizes'!$B$3 & "Z" & 'STRG-Indizes'!$B83 & "S" & 'STRG-Indizes'!AA$5, FALSE) -> 69 | AB84: =INDIRECT('STRG-Indizes'!$B$3 & "Z" & 'STRG-Indizes'!$B83 & "S" & 'STRG-Indizes'!AB$5, FALSE) -> 89 | AC84: =INDIRECT('STRG-Indizes'!$B$3 & "Z" & 'STRG-Indizes'!$B83 & "S" & 'STRG-Indizes'!AC$5, FALSE) -> 96 | AD84: =INDIRECT('STRG-Indizes'!$B$3 & "Z" & 'STRG-Indizes'!$B83 & "S" & 'STRG-Indizes'!AD$5, FALSE) -> 105 | AE84: =INDIRECT('STRG-Indizes'!$B$3 & "Z" & 'STRG-Indizes'!$B83 & "S" & 'STRG-Indizes'!AE$5, FALSE) -> 92 | AF84: =INDIRECT('STRG-Indizes'!$B$3 & "Z" & 'STRG-Indizes'!$B83 & "S" & 'STRG-Indizes'!AF$5, FALSE) -> 107 | AG84: =INDIRECT('STRG-Indizes'!$B$3 & "Z" & 'STRG-Indizes'!$B83 & "S" & 'STRG-Indizes'!AG$5, FALSE) -> 98 | AH84: =INDIRECT('STRG-Indizes'!$B$3 & "Z" & 'STRG-Indizes'!$B83 & "S" & 'STRG-Indizes'!AH$5, FALSE) -> 115 | AI84: =INDIRECT('STRG-Indizes'!$B$3 & "Z" & 'STRG-Indizes'!$B83 & "S" & 'STRG-Indizes'!AI$5, FALSE) -> 216 | AJ84: =INDIRECT('STRG-Indizes'!$B$3 & "Z" & 'STRG-Indizes'!$B83 & "S" & 'STRG-Indizes'!AJ$5, FALSE) -> 106
A85: JC Augsburg, Stadt | B85: IIb | C85: =IF('STRG-Merkmal'!$E$9=2,"",INDIRECT('STRG-Indizes'!$B$3&"Z"&'STRG-Indizes'!$B84&"S"&'STRG-Indizes'!C$5,FALSE)) -> 180 | D85: =IF('STRG-Merkmal'!$E$9=2,"",INDIRECT('STRG-Indizes'!$B$3&"Z"&'STRG-Indizes'!$B84&"S"&'STRG-Indizes'!D$5,FALSE)) -> 227 | E85: =IF('STRG-Merkmal'!$E$9=2,"",INDIRECT('STRG-Indizes'!$B$3&"Z"&'STRG-Indizes'!$B84&"S"&'STRG-Indizes'!E$5,FALSE)) -> 244 | F85: =IF('STRG-Merkmal'!$E$9=2,"",INDIRECT('STRG-Indizes'!$B$3&"Z"&'STRG-Indizes'!$B84&"S"&'STRG-Indizes'!F$5,FALSE)) -> 247 | G85: =IF('STRG-Merkmal'!$E$9=2,"",INDIRECT('STRG-Indizes'!$B$3&"Z"&'STRG-Indizes'!$B84&"S"&'STRG-Indizes'!G$5,FALSE)) -> 261 | H85: =IF('STRG-Merkmal'!$E$9=2,"",INDIRECT('STRG-Indizes'!$B$3&"Z"&'STRG-Indizes'!$B84&"S"&'STRG-Indizes'!H$5,FALSE)) -> 234 | I85: =IF('STRG-Merkmal'!$E$9=2,"",INDIRECT('STRG-Indizes'!$B$3&"Z"&'STRG-Indizes'!$B84&"S"&'STRG-Indizes'!I$5,FALSE)) -> 282 | J85: =IF('STRG-Merkmal'!$E$9=2,"",INDIRECT('STRG-Indizes'!$B$3&"Z"&'STRG-Indizes'!$B84&"S"&'STRG-Indizes'!J$5,FALSE)) -> 326 | K85: =IF('STRG-Merkmal'!$E$9=2,"",INDIRECT('STRG-Indizes'!$B$3&"Z"&'STRG-Indizes'!$B84&"S"&'STRG-Indizes'!K$5,FALSE)) -> 564 | L85: =IF('STRG-Merkmal'!$E$9=2,"",INDIRECT('STRG-Indizes'!$B$3&"Z"&'STRG-Indizes'!$B84&"S"&'STRG-Indizes'!L$5,FALSE)) -> 372 | M85: =IF('STRG-Merkmal'!$E$9=2,"",INDIRECT('STRG-Indizes'!$B$3&"Z"&'STRG-Indizes'!$B84&"S"&'STRG-Indizes'!M$5,FALSE)) -> 313 | N85: =INDIRECT('STRG-Indizes'!$B$3&"Z"&'STRG-Indizes'!$B84&"S"&'STRG-Indizes'!N$5,FALSE) -> 211 | O85: =INDIRECT('STRG-Indizes'!$B$3 & "Z" & 'STRG-Indizes'!$B84 & "S" & 'STRG-Indizes'!O$5, FALSE) -> 164 | P85: =INDIRECT('STRG-Indizes'!$B$3 & "Z" & 'STRG-Indizes'!$B84 & "S" & 'STRG-Indizes'!P$5, FALSE) -> 239 | Q85: =INDIRECT('STRG-Indizes'!$B$3 & "Z" & 'STRG-Indizes'!$B84 & "S" & 'STRG-Indizes'!Q$5, FALSE) -> 237 | R85: =INDIRECT('STRG-Indizes'!$B$3 & "Z" & 'STRG-Indizes'!$B84 & "S" & 'STRG-Indizes'!R$5, FALSE) -> 237 | S85: =INDIRECT('STRG-Indizes'!$B$3 & "Z" & 'STRG-Indizes'!$B84 & "S" & 'STRG-Indizes'!S$5, FALSE) -> 265 | T85: =INDIRECT('STRG-Indizes'!$B$3 & "Z" & 'STRG-Indizes'!$B84 & "S" & 'STRG-Indizes'!T$5, FALSE) -> 241 | U85: =INDIRECT('STRG-Indizes'!$B$3 & "Z" & 'STRG-Indizes'!$B84 & "S" & 'STRG-Indizes'!U$5, FALSE) -> 249 | V85: =INDIRECT('STRG-Indizes'!$B$3 & "Z" & 'STRG-Indizes'!$B84 & "S" & 'STRG-Indizes'!V$5, FALSE) -> 322 | W85: =INDIRECT('STRG-Indizes'!$B$3 & "Z" & 'STRG-Indizes'!$B84 & "S" & 'STRG-Indizes'!W$5, FALSE) -> 569 | X85: =INDIRECT('STRG-Indizes'!$B$3 & "Z" & 'STRG-Indizes'!$B84 & "S" & 'STRG-Indizes'!X$5, FALSE) -> 350 | Y85: =INDIRECT('STRG-Indizes'!$B$3 & "Z" & 'STRG-Indizes'!$B84 & "S" & 'STRG-Indizes'!Y$5, FALSE) -> 303 | Z85: =INDIRECT('STRG-Indizes'!$B$3 & "Z" & 'STRG-Indizes'!$B84 & "S" & 'STRG-Indizes'!Z$5, FALSE) -> 207 | AA85: =INDIRECT('STRG-Indizes'!$B$3 & "Z" & 'STRG-Indizes'!$B84 & "S" & 'STRG-Indizes'!AA$5, FALSE) -> 176 | AB85: =INDIRECT('STRG-Indizes'!$B$3 & "Z" & 'STRG-Indizes'!$B84 & "S" & 'STRG-Indizes'!AB$5, FALSE) -> 207 | AC85: =INDIRECT('STRG-Indizes'!$B$3 & "Z" & 'STRG-Indizes'!$B84 & "S" & 'STRG-Indizes'!AC$5, FALSE) -> 242 | AD85: =INDIRECT('STRG-Indizes'!$B$3 & "Z" & 'STRG-Indizes'!$B84 & "S" & 'STRG-Indizes'!AD$5, FALSE) -> 228 | AE85: =INDIRECT('STRG-Indizes'!$B$3 & "Z" & 'STRG-Indizes'!$B84 & "S" & 'STRG-Indizes'!AE$5, FALSE) -> 226 | AF85: =INDIRECT('STRG-Indizes'!$B$3 & "Z" & 'STRG-Indizes'!$B84 & "S" & 'STRG-Indizes'!AF$5, FALSE) -> 230 | AG85: =INDIRECT('STRG-Indizes'!$B$3 & "Z" & 'STRG-Indizes'!$B84 & "S" & 'STRG-Indizes'!AG$5, FALSE) -> 205 | AH85: =INDIRECT('STRG-Indizes'!$B$3 & "Z" & 'STRG-Indizes'!$B84 & "S" & 'STRG-Indizes'!AH$5, FALSE) -> 266 | AI85: =INDIRECT('STRG-Indizes'!$B$3 & "Z" & 'STRG-Indizes'!$B84 & "S" & 'STRG-Indizes'!AI$5, FALSE) -> 591 | AJ85: =INDIRECT('STRG-Indizes'!$B$3 & "Z" & 'STRG-Indizes'!$B84 & "S" & 'STRG-Indizes'!AJ$5, FALSE) -> 290
A86: JC Bad Kissingen | B86: Ie | C86: =IF('STRG-Merkmal'!$E$9=2,"",INDIRECT('STRG-Indizes'!$B$3&"Z"&'STRG-Indizes'!$B85&"S"&'STRG-Indizes'!C$5,FALSE)) -> 37 | D86: =IF('STRG-Merkmal'!$E$9=2,"",INDIRECT('STRG-Indizes'!$B$3&"Z"&'STRG-Indizes'!$B85&"S"&'STRG-Indizes'!D$5,FALSE)) -> 46 | E86: =IF('STRG-Merkmal'!$E$9=2,"",INDIRECT('STRG-Indizes'!$B$3&"Z"&'STRG-Indizes'!$B85&"S"&'STRG-Indizes'!E$5,FALSE)) -> 49 | F86: =IF('STRG-Merkmal'!$E$9=2,"",INDIRECT('STRG-Indizes'!$B$3&"Z"&'STRG-Indizes'!$B85&"S"&'STRG-Indizes'!F$5,FALSE)) -> 65 | G86: =IF('STRG-Merkmal'!$E$9=2,"",INDIRECT('STRG-Indizes'!$B$3&"Z"&'STRG-Indizes'!$B85&"S"&'STRG-Indizes'!G$5,FALSE)) -> 67 | H86: =IF('STRG-Merkmal'!$E$9=2,"",INDIRECT('STRG-Indizes'!$B$3&"Z"&'STRG-Indizes'!$B85&"S"&'STRG-Indizes'!H$5,FALSE)) -> 53 | I86: =IF('STRG-Merkmal'!$E$9=2,"",INDIRECT('STRG-Indizes'!$B$3&"Z"&'STRG-Indizes'!$B85&"S"&'STRG-Indizes'!I$5,FALSE)) -> 84 | J86: =IF('STRG-Merkmal'!$E$9=2,"",INDIRECT('STRG-Indizes'!$B$3&"Z"&'STRG-Indizes'!$B85&"S"&'STRG-Indizes'!J$5,FALSE)) -> 60 | K86: =IF('STRG-Merkmal'!$E$9=2,"",INDIRECT('STRG-Indizes'!$B$3&"Z"&'STRG-Indizes'!$B85&"S"&'STRG-Indizes'!K$5,FALSE)) -> 114 | L86: =IF('STRG-Merkmal'!$E$9=2,"",INDIRECT('STRG-Indizes'!$B$3&"Z"&'STRG-Indizes'!$B85&"S"&'STRG-Indizes'!L$5,FALSE)) -> 65 | M86: =IF('STRG-Merkmal'!$E$9=2,"",INDIRECT('STRG-Indizes'!$B$3&"Z"&'STRG-Indizes'!$B85&"S"&'STRG-Indizes'!M$5,FALSE)) -> 47 | N86: =INDIRECT('STRG-Indizes'!$B$3&"Z"&'STRG-Indizes'!$B85&"S"&'STRG-Indizes'!N$5,FALSE) -> 56 | O86: =INDIRECT('STRG-Indizes'!$B$3 & "Z" & 'STRG-Indizes'!$B85 & "S" & 'STRG-Indizes'!O$5, FALSE) -> 43 | P86: =INDIRECT('STRG-Indizes'!$B$3 & "Z" & 'STRG-Indizes'!$B85 & "S" & 'STRG-Indizes'!P$5, FALSE) -> 63 | Q86: =INDIRECT('STRG-Indizes'!$B$3 & "Z" & 'STRG-Indizes'!$B85 & "S" & 'STRG-Indizes'!Q$5, FALSE) -> 71 | R86: =INDIRECT('STRG-Indizes'!$B$3 & "Z" & 'STRG-Indizes'!$B85 & "S" & 'STRG-Indizes'!R$5, FALSE) -> 59 | S86: =INDIRECT('STRG-Indizes'!$B$3 & "Z" & 'STRG-Indizes'!$B85 & "S" & 'STRG-Indizes'!S$5, FALSE) -> 54 | T86: =INDIRECT('STRG-Indizes'!$B$3 & "Z" & 'STRG-Indizes'!$B85 & "S" & 'STRG-Indizes'!T$5, FALSE) -> 46 | U86: =INDIRECT('STRG-Indizes'!$B$3 & "Z" & 'STRG-Indizes'!$B85 & "S" & 'STRG-Indizes'!U$5, FALSE) -> 69 | V86: =INDIRECT('STRG-Indizes'!$B$3 & "Z" & 'STRG-Indizes'!$B85 & "S" & 'STRG-Indizes'!V$5, FALSE) -> 64 | W86: =INDIRECT('STRG-Indizes'!$B$3 & "Z" & 'STRG-Indizes'!$B85 & "S" & 'STRG-Indizes'!W$5, FALSE) -> 101 | X86: =INDIRECT('STRG-Indizes'!$B$3 & "Z" & 'STRG-Indizes'!$B85 & "S" & 'STRG-Indizes'!X$5, FALSE) -> 64 | Y86: =INDIRECT('STRG-Indizes'!$B$3 & "Z" & 'STRG-Indizes'!$B85 & "S" & 'STRG-Indizes'!Y$5, FALSE) -> 41 | Z86: =INDIRECT('STRG-Indizes'!$B$3 & "Z" & 'STRG-Indizes'!$B85 & "S" & 'STRG-Indizes'!Z$5, FALSE) -> 62 | AA86: =INDIRECT('STRG-Indizes'!$B$3 & "Z" & 'STRG-Indizes'!$B85 & "S" & 'STRG-Indizes'!AA$5, FALSE) -> 37 | AB86: =INDIRECT('STRG-Indizes'!$B$3 & "Z" & 'STRG-Indizes'!$B85 & "S" & 'STRG-Indizes'!AB$5, FALSE) -> 43 | AC86: =INDIRECT('STRG-Indizes'!$B$3 & "Z" & 'STRG-Indizes'!$B85 & "S" & 'STRG-Indizes'!AC$5, FALSE) -> 47 | AD86: =INDIRECT('STRG-Indizes'!$B$3 & "Z" & 'STRG-Indizes'!$B85 & "S" & 'STRG-Indizes'!AD$5, FALSE) -> 60 | AE86: =INDIRECT('STRG-Indizes'!$B$3 & "Z" & 'STRG-Indizes'!$B85 & "S" & 'STRG-Indizes'!AE$5, FALSE) -> 48 | AF86: =INDIRECT('STRG-Indizes'!$B$3 & "Z" & 'STRG-Indizes'!$B85 & "S" & 'STRG-Indizes'!AF$5, FALSE) -> 37 | AG86: =INDIRECT('STRG-Indizes'!$B$3 & "Z" & 'STRG-Indizes'!$B85 & "S" & 'STRG-Indizes'!AG$5, FALSE) -> 43 | AH86: =INDIRECT('STRG-Indizes'!$B$3 & "Z" & 'STRG-Indizes'!$B85 & "S" & 'STRG-Indizes'!AH$5, FALSE) -> 53 | AI86: =INDIRECT('STRG-Indizes'!$B$3 & "Z" & 'STRG-Indizes'!$B85 & "S" & 'STRG-Indizes'!AI$5, FALSE) -> 76 | AJ86: =INDIRECT('STRG-Indizes'!$B$3 & "Z" & 'STRG-Indizes'!$B85 & "S" & 'STRG-Indizes'!AJ$5, FALSE) -> 59
